Workbook

Sheet MENU
J1: PM
E2: =CHOOSE(MATCH(Objeto,{"PM","PO"}),"PLANILHA MÚLTIPLA ","PLANILHA ORÇAMENTÁRIA ")& Versao -> PLANILHA MÚLTIPLA v3.0.5 | J2: v3.0.5
O3: 1
O4: 1
J5: Proposto
E6: DADOS DO CONTRATO | G6: NOVIDADES DA VERSÃO | J6: Licitado
J7: PLE
B8: =IF($O$3<>2,"DOCUMENTAÇÃO DA PROPOSTA","PROPOSTA: Para visualizar/preencher esta seção, altere o TIPO DE ORÇAMENTO para 'Proposto'") -> DOCUMENTAÇÃO DA PROPOSTA | J8: BM | L8: LEGENDA:
L9: Cores das células:
C10: =IF(TIPOORCAMENTO<>"Proposto",""," BDI ") -> BDI | E10: =IF(TIPOORCAMENTO<>"Proposto",""," ORÇAMENTO ") -> ORÇAMENTO | G10: =IF(TIPOORCAMENTO<>"Proposto","","MEMÓRIA DE CÁLCULO / PLQ") -> MEMÓRIA DE CÁLCULO / PLQ | N10: Fundo amarelo: células para preencher
C12: =IF(TIPOORCAMENTO<>"Proposto",""," QCI ") -> QCI | E12: =IF(TIPOORCAMENTO<>"Proposto","","CRONOGRAMA FÍSICO-FINANCEIRO") -> CRONOGRAMA FÍSICO-FINANCEIRO | N12: Fundo azul: células para seleção de opções
C14: =IF(TIPOORCAMENTO<>"Proposto","","Obs: Composições e Cotações devem ser preenchidas diretamente no arquivo Referência "&IF(ISBLANK(Import.DataBase),"mm-aaaa",TEXT(Import.DataBase,"mm-aaaa"))&".xls.") -> Obs: Composições e Cotações devem ser preenchidas diretamente no arquivo Referência 07-2018.xls.
L15: Cores dos botões:
B16: =IF($O$3<>2,"PÓS-LICITADO: Para visualizar/preencher esta seção, altere o TIPO DE ORÇAMENTO para 'Licitado'","RESULTADO DO PROCESSO LICITATÓRIO") -> PÓS-LICITADO: Para visualizar/preencher esta seção, altere o TIPO DE ORÇAMENTO para 'Licitado' | N16: Fundo azul: navegação entre abas
C18: =IF(TIPOORCAMENTO<>"Licitado",""," ORÇAMENTO ") ->  | E18: =IF(TIPOORCAMENTO<>"Licitado",""," QCI ") ->  | G18: =IF(TIPOORCAMENTO<>"Licitado","","CRONOGRAMA FÍSICO-FINANCEIRO") ->  | N18: Fundo laranja: execução de macro
B20: =IF($O$3<>2,"ACOMPANHAMENTO: Para visualizar/preencher esta seção, altere o TIPO DE ORÇAMENTO para 'Licitado'","ACOMPANHAMENTO DO EMPREENDIMENTO") -> ACOMPANHAMENTO: Para visualizar/preencher esta seção, altere o TIPO DE ORÇAMENTO para 'Licitado'
C22: =IF(OR(TIPOORCAMENTO<>"Licitado",ACOMPANHAMENTO<>"PLE"),"","PLAN. DE LEVANT. DE EVENTOS - PLE") ->  | E22: =IF(TIPOORCAMENTO<>"Licitado",""," RRE ") ->  | G22: =IF(OR(TIPOORCAMENTO<>"Licitado",ACOMPANHAMENTO<>"BM"),""," BOLETIM DE MEDIÇÃO - BM ") -> 
E24: =IF(TIPOORCAMENTO<>"Licitado","","OF. DE SOLICITAÇÃO DE DESBLOQUEIO") -> 

Sheet DADOS
E1: A. DOCUMENTAÇÃO DA PROPOSTA | L1: Sub-Itens de Investimento
J2: Itens de Investimento | K2: Unidades habitacionais | L2: =COUNTA(K:K)-1 -> 3 | M2: Equipamentos comunitários | N2: =COUNTA(M:M)-1 -> 6 | O2: Pavimentação | P2: =COUNTA(O:O)-1 -> 6 | Q2: Drenagem | R2: =COUNTA(Q:Q)-1 -> 6 | S2: Abastecimento de água | T2: =COUNTA(S:S)-1 -> 11 | U2: Esgotamento sanitário | V2: =COUNTA(U:U)-1 -> 8 | W2: Energia elétrica e iluminação pública | X2: =COUNTA(W:W)-1 -> 4 | Y2: Coleta e tratamento de resíduos sólidos | Z2: =COUNTA(Y:Y)-1 -> 6 | AA2: Contenção e estabilização de encostas | AB2: =COUNTA(AA:AA)-1 -> 2 | AC2: Regularização fundiária | AD2: =COUNTA(AC:AC)-1 -> 2 | AE2: Aquisição de terreno | AF2: =COUNTA(AE:AE)-1 -> 2 | AG2: Aquisição de equipamentos e insumos | AH2: =COUNTA(AG:AG)-1 -> 1 | AI2: Elaboração de estudos e projetos | AJ2: =COUNTA(AI:AI)-1 -> 1 | AK2: Instrumentos e ações em planejamento e gestão pública | AL2: =COUNTA(AK:AK)-1 -> 1 | AM2: Ações complementares às obras | AN2: =COUNTA(AM:AM)-1 -> 3 | AO2: Gerenciamento | AP2: =COUNTA(AO:AO)-1 -> 1 | AQ2: Trabalho social | AR2: =COUNTA(AQ:AQ)-1 -> 4
E3: Dados do Contrato (Inicial) | J3: Unidades habitacionais | K3: Aquisição | L3: un | M3: Convivência comunitária, assistência social e/ou comunitária | N3: m² | O3: Capeamento de vias | P3: m² | Q3: Obras de microdrenagem | R3: m | S3: Captação subterrânea | T3: m³/s | U3: Ligações domiciliares e/ou intradomiciliares | V3: un | W3: Iluminação pública - luminárias | X3: un | Y3: Acondicionamento | Z3: un | AA3: Estabilização de taludes | AB3: m² | AC3: Desapropriacões/Indenizações | AD3: m² | AE3: Aquisição de terreno | AF3: m² | AG3: Aquisição de equipamentos e insumos | AH3: un | AI3: Elaboração de estudos e projetos | AJ3: un | AK3: Instrumentos e ações em planejamento e gestão pública | AL3: un | AM3: Avaliação pós intervenção | AN3: un | AO3: Gerenciamento | AP3: %CT | AQ3: Projeto de Trabalho Social Preliminar | AR3: nº fam
E4: Fonte de recursos: | F4: OGU | J4: Equipamentos comunitários | K4: Construção | L4: un | M4: Educação e cultura | N4: m² | O4: Recapeamento de vias | P4: m² | Q4: Desassoreamento de cursos de água | R4: m | S4: Captação superficial | T4: m³/s | U4: Rede coletora e/ou condominial | V4: m | W4: Ligações domiciliares | X4: un | Y4: Aterro sanitário e/ou disposição final | Z4: m³ | AA4: Obras complementares a ações de redução de risco e/ou contenções | AB4: m² | AC4: Projeto de Regularização Fundiária | AD4: m² | AE4: Benfeitorias | AF4: m² | AM4: Demolições | AN4: un | AQ4: Projeto de Trabalho Social | AR4: nº fam
E5: Proponente/Tomador: | F5: Prefeitura Municipal de Vargem Bonita | J5: Pavimentação | K5: Reforma e/ou melhoria | L5: un | M5: Esportes | N5: m² | O5: Obras de artes especiais | P5: m | Q5: Canalização de cursos de água | R5: m | S5: Estação de bombeamento de água bruta | T5: m³/s | U5: Coletor tronco e/ou interceptores | V5: m | W5: Linhas de distribuição - baixa tensão | X5: m | Y5: Erradicação de lixões | Z5: m³ | AM5: Plano de Reassentamento e medidas compensatórias | AN5: un | AQ5: Plano de Desenvolvimento Socioterritorial | AR5: nº fam
E6: Município/UF: | F6: Vargem Bonita | J6: Drenagem | M6: Lazer e turismo | N6: m² | O6: Pavimentação de calçadas | P6: m² | Q6: Recomposição de vegetação ciliar, renaturalização de cursos de água ou restauração de margens | R6: m² | S6: Adução | T6: m | U6: Emissário | V6: m | W6: Linhas de transmissão - alta tensão | X6: m | Y6: Sistema de coleta seletiva tradicional, transporte e/ou equipamentos | Z6: un | AQ6: Plano de Gestão Condominial | AR6: nº fam
E7: Nº da Operação (0000000-00): | J7: Abastecimento de água | M7: Saúde | N7: m² | O7: Pavimentação de vias | P7: m² | Q7: Reservatório de amortecimento de cheias | R7: m³ | S7: Estação de Tratamento de Água (ETA) | T7: m³/s | U7: Estação Elevatória | V7: m³/s | Y7: Tratamento local | Z7: un
E8: Nº do SICONV (000000): | F8: 853767/2017 | J8: Esgotamento sanitário | M8: Segurança pública | N8: m² | O8: Sinalização | P8: m² | Q8: Estação de Bombeamento | R8: m³/s | S8: Estação de bombeamento de água tratada | T8: m³/s | U8: Estação de Tratamento de Esgoto (ETE) | V8: m³/s | Y8: Usinas de reciclagem | Z8: m²
E9: =IF(F4="FGTS","Valor de Financiamento Contratado (R$):","Valor do Repasse Contratado (R$):") -> Valor do Repasse Contratado (R$): | F9: 243750 | J9: Energia elétrica e iluminação pública | S9: Linha de recalque | T9: m | U9: Sistema simplificado de tratamento | V9: m³/s
E10: Valor de Contrapartida Contratada (R$): | F10: 39211.07 | J10: Coleta e tratamento de resíduos sólidos | S10: Reservação | T10: m³ | U10: Unidades sanitárias | V10: un
E11: % mínimo de Contrapartida: | F11: 0.001 | J11: Contenção e estabilização de encostas | S11: Rede de distribuição | T11: m
E12: R$ mínimo de Contrapartida (se houver): | J12: Regularização fundiária | S12: Ligações domiciliares e/ou intradomiciliares | T12: un
E13: % máximo de Contrapartida: | J13: Aquisição de terreno | S13: Sistema simplificado de abastecimento | T13: m
J14: Aquisição de equipamentos e insumos
E15: Dados do Empreendimento e Orçamento | J15: Elaboração de estudos e projetos
E16: Nome/apelido: | F16: Reforma e Ampliação do Campo Municipal de Futebol | J16: Instrumentos e ações em planejamento e gestão pública
E17: Descrição do Objeto do Lote / CTEF: | F17: Reforma e Ampliação do Estádio Municipal de Futebol de Campo de Vargem Bonita | J17: Ações complementares às obras
E18: Regime previdenciário previsto para a obra: | F18: NÃO DESONERADO | J18: Gerenciamento
E19: Data base do Orçamento: | F19: 2018-07-01 | J19: Trabalho social
E21: Responsável pelo Orçamento
E22: Nome: | F22: Max Mooshammer
E23: CREA/CAU: | F23: 139.164-0
E24: ART/RRT: | F24: 6749482-4
E25: Data do preenchimento: | F25: =TODAY() -> 2019-03-28
E27: Responsável pelo Tomador (Prefeito, no caso de Municípios)
E28: Nome: | F28: Melânia Ap. Roman Meneghini
E29: Cargo: | F29: Prefeita Municipal de Vargem Bonita
E32: B. RESULTADO DO PROCESSO LICITATÓRIO
E34: Licitação
E35: Data de emissão dos documentos de licitação:
E36: Nº do CTEF (contrato com empresa):
E37: Nome da empresa:
E38: CNPJ da empresa:
E39: Regime de execução do CTEF: | F39: (SELECIONAR)
E40: Data base do CTEF:
E43: C. ACOMPANHAMENTO DO EMPREENDIMENTO
E45: Dados da obra
E46: Data do Início da Obra:
E47: Data de fechamento do RRE: | F47: =TODAY() -> 2019-03-28
E49: Responsável pela Fiscalização
E50: Nome:
E51: Profissão:
E52: CREA/CAU (para obras/projetos):
E53: ART/RRT (para obras/projetos):
E56: D. ACOMPANHAMENTO CAIXA
E58: Responsável Gerencial
E59: Nome:
E60: Função:

Sheet NOVO
B3: Novidades da Versão
A6: V3.0.0
B7: GERAL
C8: =IF(D8<>"","▪","") -> ▪ | D8: Lançamento: Adequação à Portaria 424/2016. Acompanhamento por Eventos.
C9: =IF(D9<>"","▪","") -> 
A10: V3.0.1
B11: GERAL
C12: =IF(D12<>"","▪","") -> ▪ | D12: Ajustes de formatações.
B13: PO
C14: =IF(D14<>"","▪","") -> ▪ | D14: Correção da aplicação do BDI não desonerado.
C15: =IF(D15<>"","▪","") -> ▪ | D15: Inclusão de coluna exclusiva "Preço Unitário Edital", para o Modo 'Orçamento Licitado'.
A17: V3.0.2
B18: GERAL
C19: =IF(D19<>"","▪","") -> ▪ | D19: Ajustes de formatações.
C20: =IF(D20<>"","▪","") -> ▪ | D20: Correção do Problema de Guias ocultas no BROFFICE.
B21: ORÇAMENTO
C22: =IF(D22<>"","▪","") -> ▪ | D22: Ampliada obtenção de dados da Planilha Referência de 20.000 para 65.536 linhas.
B23: CRONOGRAMA
C24: =IF(D24<>"","▪","") -> ▪ | D24: Correção na formulação do total acumulado por Repasse, CP e Outros
B25: QCI
C26: =IF(D26<>"","▪","") -> ▪ | D26: Correção na formulação do arredondamento no rateio dos valores do QCI.
B27: RRE
C28: =IF(D28<>"","▪","") -> ▪ | D28: Correção na formulação do total por Repasse, CP e Outros.
A30: V3.0.3
B31: GERAL
C32: =IF(D32<>"","▪","") -> ▪ | D32: Correção do Problema de Guias ocultas no BROFFICE.
B33: CÁLCULO
C34: =IF(D34<>"","▪","") -> ▪ | D34: Corrigida lentidão e travamento ao incluir e excluir frentes.
A37: V3.0.4
B38: BDI
C39: =IF(D39<>"","▪","") -> ▪ | D39: Correção da CPRB que exibia 4,5% mesmo quando não desonerado.
B40: CRONOGRAMA
C41: =IF(D41<>"","▪","") -> ▪ | D41: Correção da distribuição de Repasse, CP e Outros para as metas manuais.
B42: QCI
C43: =IF(D43<>"","▪","") -> ▪ | D43: Adicionado botão para adotar a CP do QCI como CP do contrato (zera saldo a reprogramar de CP).
A45: V3.0.5
B46: GERAL
C47: =IF(D47<>"","▪","") -> ▪ | D47: Corrigido modo de Cálculo da Planilha para Automático.

Sheet BDI
E1: MIN | F1: MED | G1: MAX | O1: ="Quadro de Composição do BDI" -> Quadro de Composição do BDI | R1: Grau de Sigilo
A2: Construção e Reforma de Edifícios | B2: AC | C2: =CONCATENATE(A2,"-",B2) -> Construção e Reforma de Edifícios-AC | E2: 0.03 | F2: 0.04 | G2: 0.055 | R2: #PUBLICO
A3: =A2 -> Construção e Reforma de Edifícios | B3: SG | C3: Construção e Reforma de Edifícios-SG | E3: 0.008 | F3: 0.008 | G3: 0.01
A4: =A3 -> Construção e Reforma de Edifícios | B4: R | C4: Construção e Reforma de Edifícios-R | E4: 0.0097 | F4: 0.0127 | G4: 0.0127 | J4: Nº OPERAÇÃO | L4: Nº SICONV | N4: PROPONENTE / TOMADOR
A5: =A4 -> Construção e Reforma de Edifícios | B5: DF | C5: Construção e Reforma de Edifícios-DF | E5: 0.0059 | F5: 0.0123 | G5: 0.0139 | J5: =Import.CR -> 0 | L5: =Import.SICONV -> 853767/2017 | N5: =Import.Proponente -> Prefeitura Municipal de Vargem Bonita
A6: =A5 -> Construção e Reforma de Edifícios | B6: L | C6: Construção e Reforma de Edifícios-L | E6: 0.0616 | F6: 0.074 | G6: 0.0896 | I6: FILTRO
A7: =A6 -> Construção e Reforma de Edifícios | B7: BDI PAD | C7: Construção e Reforma de Edifícios-BDI PAD | E7: 0.2034 | F7: 0.2212 | G7: 0.25 | J7: APELIDO DO EMPREENDIMENTO / DESCRIÇÃO DO LOTE
A8: Construção de Praças Urbanas, Rodovias, Ferrovias e recapeamento e pavimentação de vias urbanas | B8: AC | C8: Construção de Praças Urbanas, Rodovias, Ferrovias e recapeamento e pavimentação de vias urbanas-AC | E8: 0.038 | F8: 0.0401 | G8: 0.0467 | J8: =Import.Apelido&" / "&Import.DescLote -> Reforma e Ampliação do Campo Municipal de Futebol / Reforma e Ampliação do Estádio Municipal de Futebol de Campo de Vargem Bonita
A9: Construção de Praças Urbanas, Rodovias, Ferrovias e recapeamento e pavimentação de vias urbanas | B9: SG | C9: Construção de Praças Urbanas, Rodovias, Ferrovias e recapeamento e pavimentação de vias urbanas-SG | E9: 0.0032 | F9: 0.004 | G9: 0.0074
A10: Construção de Praças Urbanas, Rodovias, Ferrovias e recapeamento e pavimentação de vias urbanas | B10: R | C10: Construção de Praças Urbanas, Rodovias, Ferrovias e recapeamento e pavimentação de vias urbanas-R | E10: 0.005 | F10: 0.0056 | G10: 0.0097 | J10: Conforme legislação tributária municipal, definir estimativa de percentual da base de cálculo para o ISS: | R10: 1
A11: Construção de Praças Urbanas, Rodovias, Ferrovias e recapeamento e pavimentação de vias urbanas | B11: DF | C11: Construção de Praças Urbanas, Rodovias, Ferrovias e recapeamento e pavimentação de vias urbanas-DF | E11: 0.0102 | F11: 0.0111 | G11: 0.0121 | I11: ↓ | J11: Sobre a base de cálculo, definir a respectiva alíquota do ISS (entre 2% e 5%): | R11: 0.03
A12: Construção de Praças Urbanas, Rodovias, Ferrovias e recapeamento e pavimentação de vias urbanas | B12: L | C12: Construção de Praças Urbanas, Rodovias, Ferrovias e recapeamento e pavimentação de vias urbanas-L | E12: 0.0664 | F12: 0.073 | G12: 0.0869 | I12: F
A13: Construção de Praças Urbanas, Rodovias, Ferrovias e recapeamento e pavimentação de vias urbanas | B13: BDI PAD | C13: Construção de Praças Urbanas, Rodovias, Ferrovias e recapeamento e pavimentação de vias urbanas-BDI PAD | E13: 0.196 | F13: 0.2097 | G13: 0.2423 | I13: F
A14: Construção de Redes de Abastecimento de Água, Coleta de Esgoto | B14: AC | C14: Construção de Redes de Abastecimento de Água, Coleta de Esgoto-AC | E14: 0.0343 | F14: 0.0493 | G14: 0.0671 | I14: F | J14: BDI 1
A15: =A14 -> Construção de Redes de Abastecimento de Água, Coleta de Esgoto | B15: SG | C15: Construção de Redes de Abastecimento de Água, Coleta de Esgoto-SG | E15: 0.0028 | F15: 0.0049 | G15: 0.0075 | I15: F
A16: =A15 -> Construção de Redes de Abastecimento de Água, Coleta de Esgoto | B16: R | C16: Construção de Redes de Abastecimento de Água, Coleta de Esgoto-R | E16: 0.01 | F16: 0.0139 | G16: 0.0174 | I16: F | J16: TIPO DE OBRA
A17: =A16 -> Construção de Redes de Abastecimento de Água, Coleta de Esgoto | B17: DF | C17: Construção de Redes de Abastecimento de Água, Coleta de Esgoto-DF | E17: 0.0094 | F17: 0.0099 | G17: 0.0117 | I17: F | J17: Construção e Reforma de Edifícios
A18: =A17 -> Construção de Redes de Abastecimento de Água, Coleta de Esgoto | B18: L | C18: Construção de Redes de Abastecimento de Água, Coleta de Esgoto-L | E18: 0.0674 | F18: 0.0804 | G18: 0.094 | I18: F
A19: =A18 -> Construção de Redes de Abastecimento de Água, Coleta de Esgoto | B19: BDI PAD | C19: Construção de Redes de Abastecimento de Água, Coleta de Esgoto-BDI PAD | E19: 0.2076 | F19: 0.2418 | G19: 0.2644 | I19: F | J19: Itens | R19: Siglas | S19: % Adotado | U19: Situação | X19: 1º Quartil | Y19: Médio | Z19: 3º Quartil
A20: Construção e Manutenção de Estações e Redes de Distribuição de Energia Elétrica | B20: AC | C20: Construção e Manutenção de Estações e Redes de Distribuição de Energia Elétrica-AC | E20: 0.0529 | F20: 0.0592 | G20: 0.0793 | I20: F
A21: =A20 -> Construção e Manutenção de Estações e Redes de Distribuição de Energia Elétrica | B21: SG | C21: Construção e Manutenção de Estações e Redes de Distribuição de Energia Elétrica-SG | E21: 0.0025 | F21: 0.0051 | G21: 0.0056 | I21: F | J21: =IF($J$17=$A$146,"Encargos Sociais incidentes sobre a mão de obra","Administração Central") -> Administração Central | R21: =IF($J17=$A$146,"K1","AC") -> AC | S21: 0.04 | U21: - | X21: =VLOOKUP(CONCATENATE(J17,"-",R21),$C$2:$G$136,3,FALSE) -> 0.03 | Y21: =VLOOKUP(CONCATENATE(J17,"-",R21),$C$2:$G$136,4,FALSE) -> 0.04 | Z21: =VLOOKUP(CONCATENATE(J17,"-",R21),$C$2:$G$136,5,FALSE) -> 0.055
A22: =A21 -> Construção e Manutenção de Estações e Redes de Distribuição de Energia Elétrica | B22: R | C22: Construção e Manutenção de Estações e Redes de Distribuição de Energia Elétrica-R | E22: 0.01 | F22: 0.0148 | G22: 0.0197 | I22: F | J22: =IF($J$17=$A$146,"Administração Central da empresa ou consultoria - overhead","Seguro e Garantia") -> Seguro e Garantia | R22: =IF($J17=$A$146,"K2","SG") -> SG | S22: 0.008 | U22: - | X22: =VLOOKUP(CONCATENATE(J17,"-",R22),$C$2:$G$136,3,FALSE) -> 0.008 | Y22: =VLOOKUP(CONCATENATE(J17,"-",R22),$C$2:$G$136,4,FALSE) -> 0.008 | Z22: =VLOOKUP(CONCATENATE(J17,"-",R22),$C$2:$G$136,5,FALSE) -> 0.01
A23: =A22 -> Construção e Manutenção de Estações e Redes de Distribuição de Energia Elétrica | B23: DF | C23: Construção e Manutenção de Estações e Redes de Distribuição de Energia Elétrica-DF | E23: 0.0101 | F23: 0.0107 | G23: 0.0111 | I23: F | J23: =IF($J$17=$A$146,"","Risco") -> Risco | R23: =IF($J17=$A$146,"","R") -> R | S23: 0.0127 | U23: - | X23: =VLOOKUP(CONCATENATE(J17,"-",R23),$C$2:$G$136,3,FALSE) -> 0.0097 | Y23: =VLOOKUP(CONCATENATE(J17,"-",R23),$C$2:$G$136,4,FALSE) -> 0.0127 | Z23: =VLOOKUP(CONCATENATE(J17,"-",R23),$C$2:$G$136,5,FALSE) -> 0.0127
A24: =A23 -> Construção e Manutenção de Estações e Redes de Distribuição de Energia Elétrica | B24: L | C24: Construção e Manutenção de Estações e Redes de Distribuição de Energia Elétrica-L | E24: 0.08 | F24: 0.0831 | G24: 0.0951 | I24: F | J24: =IF($J$17=$A$146,"","Despesas Financeiras") -> Despesas Financeiras | R24: =IF($J17=$A$146,"","DF") -> DF | S24: 0.0123 | U24: - | X24: =VLOOKUP(CONCATENATE(J17,"-",R24),$C$2:$G$136,3,FALSE) -> 0.0059 | Y24: =VLOOKUP(CONCATENATE(J17,"-",R24),$C$2:$G$136,4,FALSE) -> 0.0123 | Z24: =VLOOKUP(CONCATENATE(J17,"-",R24),$C$2:$G$136,5,FALSE) -> 0.0139
A25: =A24 -> Construção e Manutenção de Estações e Redes de Distribuição de Energia Elétrica | B25: BDI PAD | C25: Construção e Manutenção de Estações e Redes de Distribuição de Energia Elétrica-BDI PAD | E25: 0.24 | F25: 0.2584 | G25: 0.2786 | I25: F | J25: =IF($J$17=$A$146,"Margem bruta da empresa de consultoria","Lucro") -> Lucro | R25: =IF($J17=$A$146,"K3","L") -> L | S25: 0.074 | U25: - | X25: =VLOOKUP(CONCATENATE(J17,"-",R25),$C$2:$G$136,3,FALSE) -> 0.0616 | Y25: =VLOOKUP(CONCATENATE(J17,"-",R25),$C$2:$G$136,4,FALSE) -> 0.074 | Z25: =VLOOKUP(CONCATENATE(J17,"-",R25),$C$2:$G$136,5,FALSE) -> 0.0896
A26: Obras Portuárias, Marítimas e Fluviais | B26: AC | C26: Obras Portuárias, Marítimas e Fluviais-AC | E26: 0.04 | F26: 0.0552 | G26: 0.0785 | I26: F | J26: Tributos (impostos COFINS 3%, e PIS 0,65%) | R26: CP | S26: 0.0365 | U26: - | X26: 0.0365 | Y26: 0.0365 | Z26: 0.0365
A27: =A26 -> Obras Portuárias, Marítimas e Fluviais | B27: SG | C27: Obras Portuárias, Marítimas e Fluviais-SG | E27: 0.0081 | F27: 0.0122 | G27: 0.0199 | I27: F | J27: Tributos (ISS, variável de acordo com o município) | R27: ISS | S27: =IF(AND($J17<>$A$145,COUNTA(OFFSET(S20,1,0,6))>0),$R$11*$R$10,0) -> 0.03 | U27: - | X27: 0 | Y27: 0.025 | Z27: 0.05
A28: =A27 -> Obras Portuárias, Marítimas e Fluviais | B28: R | C28: Obras Portuárias, Marítimas e Fluviais-R | E28: 0.0146 | F28: 0.0232 | G28: 0.0316 | I28: F | J28: Tributos (Contribuição Previdenciária sobre a Receita Bruta - 0% ou 4,5% - Desoneração) | R28: CPRB | S28: =IF(BDI.Opcao<>"Desonerado",0,IF(AND($J17<>$A$145,COUNTA(OFFSET(S20,1,0,6))>0),4.5%,0%)) -> 0 | U28: - | X28: 0 | Y28: 0.045 | Z28: 0.045
A29: =A28 -> Obras Portuárias, Marítimas e Fluviais | B29: DF | C29: Obras Portuárias, Marítimas e Fluviais-DF | E29: 0.0094 | F29: 0.0102 | G29: 0.0133 | I29: F | J29: BDI SEM desoneração (Fórmula Acórdão TCU) | R29: BDI PAD | S29: =IF($J17=$A$145,0,ROUND((((1+S21+S22+S23)*(1+S24)*(1+S25)/(1-(S26+S27)))-1),4)) -> 0.2354 | U29: =IF(OR($J$17=$A$146,$J$17=$A$145,AND(S29>=X29,S29<=Z29)),"OK","FORA DO INTERVALO") -> OK | X29: =IF($J17=$A$145,0,VLOOKUP(CONCATENATE($J17,"-",$R29),$C$2:$G$136,3,FALSE)) -> 0.2034 | Y29: =IF($J17=$A$145,0,VLOOKUP(CONCATENATE($J17,"-",$R29),$C$2:$G$136,4,FALSE)) -> 0.2212 | Z29: =IF($J17=$A$145,0,VLOOKUP(CONCATENATE($J17,"-",$R29),$C$2:$G$136,5,FALSE)) -> 0.25
A30: =A29 -> Obras Portuárias, Marítimas e Fluviais | B30: L | C30: Obras Portuárias, Marítimas e Fluviais-L | E30: 0.0714 | F30: 0.084 | G30: 0.1043 | I30: F | J30: BDI COM desoneração | R30: BDI DES | S30: =IF($J17=$A$145,0,ROUND((((1+S21+S22+S23)*(1+S24)*(1+S25)/(1-(S26+S27+S28)))-1),4)) -> 0.2354
A31: =A30 -> Obras Portuárias, Marítimas e Fluviais | B31: BDI PAD | C31: Obras Portuárias, Marítimas e Fluviais-BDI PAD | E31: 0.228 | F31: 0.2748 | G31: 0.3095 | I31: F
A32: Fornecimento de Materiais e Equipamentos (aquisição indireta - em conjunto com licitação de obras) | B32: AC | C32: Fornecimento de Materiais e Equipamentos (aquisição indireta - em conjunto com licitação de obras)-AC | E32: 0.015 | F32: 0.0345 | G32: 0.0449 | I32: F | J32: =IF(U29<>"ok","X","") ->  | K32: =IF(U29<>"ok","Anexo: Relatório Técnico Circunstanciado justificando a adoção do percentual de cada parcela do BDI.","") -> 
A33: =A32 -> Fornecimento de Materiais e Equipamentos (aquisição indireta - em conjunto com licitação de obras) | B33: SG | C33: Fornecimento de Materiais e Equipamentos (aquisição indireta - em conjunto com licitação de obras)-SG | E33: 0.003 | F33: 0.0048 | G33: 0.0082 | I33: F
A34: =A33 -> Fornecimento de Materiais e Equipamentos (aquisição indireta - em conjunto com licitação de obras) | B34: R | C34: Fornecimento de Materiais e Equipamentos (aquisição indireta - em conjunto com licitação de obras)-R | E34: 0.0056 | F34: 0.0085 | G34: 0.0089 | I34: F | J34: Os valores de BDI foram calculados com o emprego da fórmula:
A35: =A34 -> Fornecimento de Materiais e Equipamentos (aquisição indireta - em conjunto com licitação de obras) | B35: DF | C35: Fornecimento de Materiais e Equipamentos (aquisição indireta - em conjunto com licitação de obras)-DF | E35: 0.0085 | F35: 0.0085 | G35: 0.0111 | I35: F | M35: BDI = | N35: =IF($J17=$A$146,"(1+K1+K2)*(1+K3)","(1+AC + S + R + G)*(1 + DF)*(1+L)") -> (1+AC + S + R + G)*(1 + DF)*(1+L) | Q35: - 1
A36: =A35 -> Fornecimento de Materiais e Equipamentos (aquisição indireta - em conjunto com licitação de obras) | B36: L | C36: Fornecimento de Materiais e Equipamentos (aquisição indireta - em conjunto com licitação de obras)-L | E36: 0.035 | F36: 0.0511 | G36: 0.0622 | I36: F | N36: (1-CP-ISS-CRPB)
A37: =A36 -> Fornecimento de Materiais e Equipamentos (aquisição indireta - em conjunto com licitação de obras) | B37: BDI PAD | C37: Fornecimento de Materiais e Equipamentos (aquisição indireta - em conjunto com licitação de obras)-BDI PAD | E37: 0.111 | F37: 0.1402 | G37: 0.168 | I37: F
A38: Fornecimento de Materiais e Equipamentos (aquisição direta) | B38: AC | C38: Fornecimento de Materiais e Equipamentos (aquisição direta)-AC | E38: - | F38: - | G38: - | I38: F | J38: =CONCATENATE("Declaro para os devidos fins que, conforme legislação tributária municipal, a base de cálculo deste tipo de obra corresponde à ",$R$10*100,"%, com a respectiva alíquota de ",$R$11*100,"%.") -> Declaro para os devidos fins que, conforme legislação tributária municipal, a base de cálculo deste tipo de obra corresponde à 100%, com a respectiva alíquota de 3%.
A39: Fornecimento de Materiais e Equipamentos (aquisição direta) | B39: SG | C39: Fornecimento de Materiais e Equipamentos (aquisição direta)-SG | E39: - | F39: - | G39: - | I39: F
A40: Fornecimento de Materiais e Equipamentos (aquisição direta) | B40: R | C40: Fornecimento de Materiais e Equipamentos (aquisição direta)-R | E40: - | F40: - | G40: - | I40: F | J40: =CONCATENATE("Declaro para os devidos fins que o regime de Contribuição Previdenciária sobre a Receita Bruta adotado para elaboração do orçamento foi ",IF(DESONERACAO="Sim","COM","SEM")," Desoneração, e que esta é a alternativa mais adequada para a Administração Pública.") -> Declaro para os devidos fins que o regime de Contribuição Previdenciária sobre a Receita Bruta adotado para elaboração do orçamento foi SEM Desoneração, e que esta é a alternativa mais adequada para a Administração Pública.
A41: Fornecimento de Materiais e Equipamentos (aquisição direta) | B41: DF | C41: Fornecimento de Materiais e Equipamentos (aquisição direta)-DF | E41: - | F41: - | G41: - | I41: F
A42: Fornecimento de Materiais e Equipamentos (aquisição direta) | B42: L | C42: Fornecimento de Materiais e Equipamentos (aquisição direta)-L | E42: - | F42: - | G42: - | I42: F | J42: Observações:
A43: Fornecimento de Materiais e Equipamentos (aquisição direta) | B43: BDI PAD | C43: Fornecimento de Materiais e Equipamentos (aquisição direta)-BDI PAD | E43: - | F43: - | G43: - | I43: F
A44: Estudos e Projetos, Planos e Gerenciamento e outros correlatos | B44: K1 | C44: Estudos e Projetos, Planos e Gerenciamento e outros correlatos-K1 | E44: - | F44: - | G44: - | I44: F
A45: =A44 -> Estudos e Projetos, Planos e Gerenciamento e outros correlatos | B45: K2 | C45: Estudos e Projetos, Planos e Gerenciamento e outros correlatos-K2 | E45: - | F45: 0.2 | G45: - | I45: F | J45: =Import.Município -> Vargem Bonita | P45: =DADOS!$F$25 -> 2019-03-28
A46: =A45 -> Estudos e Projetos, Planos e Gerenciamento e outros correlatos | C46: Estudos e Projetos, Planos e Gerenciamento e outros correlatos- | E46: - | F46: - | G46: - | I46: F | J46: Local | P46: Data
A47: =A46 -> Estudos e Projetos, Planos e Gerenciamento e outros correlatos | C47: Estudos e Projetos, Planos e Gerenciamento e outros correlatos- | E47: - | F47: - | G47: - | I47: F
A48: =A47 -> Estudos e Projetos, Planos e Gerenciamento e outros correlatos | B48: K3 | C48: Estudos e Projetos, Planos e Gerenciamento e outros correlatos-K3 | E48: - | F48: 0.12 | G48: - | I48: F
A49: =A48 -> Estudos e Projetos, Planos e Gerenciamento e outros correlatos | B49: BDI PAD | C49: Estudos e Projetos, Planos e Gerenciamento e outros correlatos-BDI PAD | E49: - | F49: - | G49: - | I49: F | J49: Responsável Técnico
I50: F | J50: Nome: | K50: =Import.RespOrçamento -> Max Mooshammer
I51: F | J51: CREA/CAU: | K51: 139.164-0
I52: F | J52: ART/RRT: | K52: 6749482-4
I53: F
I54: =IF($S$69=0,"","F") ->  | J54: BDI 2
I55: =IF($S$69=0,"","F") -> 
J56: TIPO DE OBRA
J57: (SELECIONAR)
J59: Itens | R59: Siglas | S59: % Adotado | U59: Situação | X59: 1º Quartil | Y59: Médio | Z59: 3º Quartil
J61: =IF($J$17=$A$146,"Encargos Sociais incidentes sobre a mão de obra","Administração Central") -> Administração Central | R61: =IF($J57=$A$146,"K1","AC") -> AC | U61: - | X61: =VLOOKUP(CONCATENATE(J57,"-",R61),$C$2:$G$136,3,FALSE) ->  | Y61: =VLOOKUP(CONCATENATE(J57,"-",R61),$C$2:$G$136,4,FALSE) ->  | Z61: =VLOOKUP(CONCATENATE(J57,"-",R61),$C$2:$G$136,5,FALSE) -> 
J62: =IF($J$17=$A$146,"Administração Central da empresa ou consultoria - overhead","Seguro e Garantia") -> Seguro e Garantia | R62: =IF($J57=$A$146,"K2","SG") -> SG | U62: - | X62: =VLOOKUP(CONCATENATE(J57,"-",R62),$C$2:$G$136,3,FALSE) ->  | Y62: =VLOOKUP(CONCATENATE(J57,"-",R62),$C$2:$G$136,4,FALSE) ->  | Z62: =VLOOKUP(CONCATENATE(J57,"-",R62),$C$2:$G$136,5,FALSE) -> 
J63: =IF($J$17=$A$146,"","Risco") -> Risco | R63: =IF($J57=$A$146,"","R") -> R | U63: - | X63: =VLOOKUP(CONCATENATE(J57,"-",R63),$C$2:$G$136,3,FALSE) ->  | Y63: =VLOOKUP(CONCATENATE(J57,"-",R63),$C$2:$G$136,4,FALSE) ->  | Z63: =VLOOKUP(CONCATENATE(J57,"-",R63),$C$2:$G$136,5,FALSE) -> 
J64: =IF($J$17=$A$146,"","Despesas Financeiras") -> Despesas Financeiras | R64: =IF($J57=$A$146,"","DF") -> DF | U64: - | X64: =VLOOKUP(CONCATENATE(J57,"-",R64),$C$2:$G$136,3,FALSE) ->  | Y64: =VLOOKUP(CONCATENATE(J57,"-",R64),$C$2:$G$136,4,FALSE) ->  | Z64: =VLOOKUP(CONCATENATE(J57,"-",R64),$C$2:$G$136,5,FALSE) -> 
J65: =IF($J$17=$A$146,"Margem bruta da empresa de consultoria","Lucro") -> Lucro | R65: =IF($J57=$A$146,"K3","L") -> L | U65: - | X65: =VLOOKUP(CONCATENATE(J57,"-",R65),$C$2:$G$136,3,FALSE) ->  | Y65: =VLOOKUP(CONCATENATE(J57,"-",R65),$C$2:$G$136,4,FALSE) ->  | Z65: =VLOOKUP(CONCATENATE(J57,"-",R65),$C$2:$G$136,5,FALSE) -> 
J66: Tributos (impostos COFINS 3%, e PIS 0,65%) | R66: CP | U66: - | X66: 0.0365 | Y66: 0.0365 | Z66: 0.0365
J67: Tributos (ISS, variável de acordo com o município) | R67: ISS | S67: =IF(AND($J57<>$A$145,COUNTA(OFFSET(S60,1,0,6))>0),$R$11*$R$10,0) -> 0 | U67: - | X67: 0 | Y67: 0.025 | Z67: 0.05
J68: Tributos (Contribuição Previdenciária sobre a Receita Bruta - 0% ou 4,5% - Desoneração) | R68: CPRB | S68: =IF(BDI.Opcao<>"Desonerado",0,IF(AND($J57<>$A$145,COUNTA(OFFSET(S60,1,0,6))>0),4.5%,0%)) -> 0 | U68: - | X68: 0 | Y68: 0.045 | Z68: 0.045
J69: BDI SEM desoneração (Fórmula Acórdão TCU) | R69: BDI PAD | S69: =IF($J57=$A$145,0,ROUND((((1+S61+S62+S63)*(1+S64)*(1+S65)/(1-(S66+S67)))-1),4)) -> 0 | U69: =IF(OR($J$17=$A$146,$J$17=$A$145,AND(S69>=X69,S69<=Z69)),"OK","FORA DO INTERVALO") ->  | X69: =IF($J57=$A$145,0,VLOOKUP(CONCATENATE($J57,"-",$R69),$C$2:$G$136,3,FALSE)) ->  | Y69: =IF($J57=$A$145,0,VLOOKUP(CONCATENATE($J57,"-",$R69),$C$2:$G$136,4,FALSE)) ->  | Z69: =IF($J57=$A$145,0,VLOOKUP(CONCATENATE($J57,"-",$R69),$C$2:$G$136,5,FALSE)) -> 
J70: BDI COM desoneração | R70: BDI DES | S70: =IF($J57=$A$145,0,ROUND((((1+S61+S62+S63)*(1+S64)*(1+S65)/(1-(S66+S67+S68)))-1),4)) -> 0
J72: =IF(U69<>"ok","X","") ->  | K72: =IF(U69<>"ok","Anexo: Relatório Técnico Circunstanciado justificando a adoção do percentual de cada parcela do BDI.","") -> 
J74: Os valores de BDI foram calculados com o emprego da fórmula:
M75: BDI = | N75: =IF($J57=$A$146,"(1+K1+K2)*(1+K3)","(1+AC + S + R + G)*(1 + DF)*(1+L)") -> (1+AC + S + R + G)*(1 + DF)*(1+L) | Q75: - 1
N76: (1-CP-ISS-CRPB)
J78: =CONCATENATE("Declaro para os devidos fins que, conforme legislação tributária municipal, a base de cálculo deste tipo de obra corresponde à ",$R$10*100,"%, com a respectiva alíquota de ",$R$11*100,"%.") -> Declaro para os devidos fins que, conforme legislação tributária municipal, a base de cálculo deste tipo de obra corresponde à 100%, com a respectiva alíquota de 3%.
J80: =CONCATENATE("Declaro para os devidos fins que o regime de Contribuição Previdenciária sobre a Receita Bruta adotado para elaboração do orçamento foi ",IF(DESONERACAO="Sim","COM","SEM")," Desoneração, e que esta é a alternativa mais adequada para a Administração Pública.") -> Declaro para os devidos fins que o regime de Contribuição Previdenciária sobre a Receita Bruta adotado para elaboração do orçamento foi SEM Desoneração, e que esta é a alternativa mais adequada para a Administração Pública.
J82: Observações:
J85: =Import.Município -> Vargem Bonita | P85: =DADOS!$F$25 -> 2019-03-28
J86: Local | P86: Data
J89: Responsável Técnico
J90: Nome: | K90: =Import.RespOrçamento -> Max Mooshammer
J91: CREA/CAU: | K91: 139.164-0
J92: ART/RRT: | K92: 6749482-4
I94: =IF($S$109=0,"","F") ->  | J94: BDI 3
I95: =IF($S$109=0,"","F") -> 
J96: TIPO DE OBRA
J97: (SELECIONAR)
J99: Itens | R99: Siglas | S99: % Adotado | U99: Situação | X99: 1º Quartil | Y99: Médio | Z99: 3º Quartil
J101: =IF($J$17=$A$146,"Encargos Sociais incidentes sobre a mão de obra","Administração Central") -> Administração Central | R101: =IF($J97=$A$146,"K1","AC") -> AC | U101: - | X101: =VLOOKUP(CONCATENATE(J97,"-",R101),$C$2:$G$136,3,FALSE) ->  | Y101: =VLOOKUP(CONCATENATE(J97,"-",R101),$C$2:$G$136,4,FALSE) ->  | Z101: =VLOOKUP(CONCATENATE(J97,"-",R101),$C$2:$G$136,5,FALSE) -> 
J102: =IF($J$17=$A$146,"Administração Central da empresa ou consultoria - overhead","Seguro e Garantia") -> Seguro e Garantia | R102: =IF($J97=$A$146,"K2","SG") -> SG | U102: - | X102: =VLOOKUP(CONCATENATE(J97,"-",R102),$C$2:$G$136,3,FALSE) ->  | Y102: =VLOOKUP(CONCATENATE(J97,"-",R102),$C$2:$G$136,4,FALSE) ->  | Z102: =VLOOKUP(CONCATENATE(J97,"-",R102),$C$2:$G$136,5,FALSE) -> 
J103: =IF($J$17=$A$146,"","Risco") -> Risco | R103: =IF($J97=$A$146,"","R") -> R | U103: - | X103: =VLOOKUP(CONCATENATE(J97,"-",R103),$C$2:$G$136,3,FALSE) ->  | Y103: =VLOOKUP(CONCATENATE(J97,"-",R103),$C$2:$G$136,4,FALSE) ->  | Z103: =VLOOKUP(CONCATENATE(J97,"-",R103),$C$2:$G$136,5,FALSE) -> 
J104: =IF($J$17=$A$146,"","Despesas Financeiras") -> Despesas Financeiras | R104: =IF($J97=$A$146,"","DF") -> DF | U104: - | X104: =VLOOKUP(CONCATENATE(J97,"-",R104),$C$2:$G$136,3,FALSE) ->  | Y104: =VLOOKUP(CONCATENATE(J97,"-",R104),$C$2:$G$136,4,FALSE) ->  | Z104: =VLOOKUP(CONCATENATE(J97,"-",R104),$C$2:$G$136,5,FALSE) -> 
J105: =IF($J$17=$A$146,"Margem bruta da empresa de consultoria","Lucro") -> Lucro | R105: =IF($J97=$A$146,"K3","L") -> L | U105: - | X105: =VLOOKUP(CONCATENATE(J97,"-",R105),$C$2:$G$136,3,FALSE) ->  | Y105: =VLOOKUP(CONCATENATE(J97,"-",R105),$C$2:$G$136,4,FALSE) ->  | Z105: =VLOOKUP(CONCATENATE(J97,"-",R105),$C$2:$G$136,5,FALSE) -> 
J106: Tributos (impostos COFINS 3%, e PIS 0,65%) | R106: CP | U106: - | X106: 0.0365 | Y106: 0.0365 | Z106: 0.0365
J107: Tributos (ISS, variável de acordo com o município) | R107: ISS | S107: =IF(AND($J97<>$A$145,COUNTA(OFFSET(S100,1,0,6))>0),$R$11*$R$10,0) -> 0 | U107: - | X107: 0 | Y107: 0.025 | Z107: 0.05
J108: Tributos (Contribuição Previdenciária sobre a Receita Bruta - 0% ou 4,5% - Desoneração) | R108: CPRB | S108: =IF(BDI.Opcao<>"Desonerado",0,IF(AND($J97<>$A$145,COUNTA(OFFSET(S100,1,0,6))>0),4.5%,0%)) -> 0 | U108: - | X108: 0 | Y108: 0.045 | Z108: 0.045
J109: BDI SEM desoneração (Fórmula Acórdão TCU) | R109: BDI PAD | S109: =IF($J97=$A$145,0,ROUND((((1+S101+S102+S103)*(1+S104)*(1+S105)/(1-(S106+S107)))-1),4)) -> 0 | U109: =IF(OR($J$17=$A$146,$J$17=$A$145,AND(S109>=X109,S109<=Z109)),"OK","FORA DO INTERVALO") ->  | X109: =IF($J97=$A$145,0,VLOOKUP(CONCATENATE($J97,"-",$R109),$C$2:$G$136,3,FALSE)) ->  | Y109: =IF($J97=$A$145,0,VLOOKUP(CONCATENATE($J97,"-",$R109),$C$2:$G$136,4,FALSE)) ->  | Z109: =IF($J97=$A$145,0,VLOOKUP(CONCATENATE($J97,"-",$R109),$C$2:$G$136,5,FALSE)) -> 
J110: BDI COM desoneração | R110: BDI DES | S110: =IF($J97=$A$145,0,ROUND((((1+S101+S102+S103)*(1+S104)*(1+S105)/(1-(S106+S107+S108)))-1),4)) -> 0
J112: =IF(U109<>"ok","X","") ->  | K112: =IF(U109<>"ok","Anexo: Relatório Técnico Circunstanciado justificando a adoção do percentual de cada parcela do BDI.","") -> 
J114: Os valores de BDI foram calculados com o emprego da fórmula:
M115: BDI = | N115: =IF($J97=$A$146,"(1+K1+K2)*(1+K3)","(1+AC + S + R + G)*(1 + DF)*(1+L)") -> (1+AC + S + R + G)*(1 + DF)*(1+L) | Q115: - 1
N116: (1-CP-ISS-CRPB)
J118: =CONCATENATE("Declaro para os devidos fins que, conforme legislação tributária municipal, a base de cálculo deste tipo de obra corresponde à ",$R$10*100,"%, com a respectiva alíquota de ",$R$11*100,"%.") -> Declaro para os devidos fins que, conforme legislação tributária municipal, a base de cálculo deste tipo de obra corresponde à 100%, com a respectiva alíquota de 3%.
J120: =CONCATENATE("Declaro para os devidos fins que o regime de Contribuição Previdenciária sobre a Receita Bruta adotado para elaboração do orçamento foi ",IF(DESONERACAO="Sim","COM","SEM")," Desoneração, e que esta é a alternativa mais adequada para a Administração Pública.") -> Declaro para os devidos fins que o regime de Contribuição Previdenciária sobre a Receita Bruta adotado para elaboração do orçamento foi SEM Desoneração, e que esta é a alternativa mais adequada para a Administração Pública.
J122: Observações:
J125: =Import.Município -> Vargem Bonita | P125: =DADOS!$F$25 -> 2019-03-28
J126: Local | P126: Data
J129: Responsável Técnico
J130: Nome: | K130: =Import.RespOrçamento -> Max Mooshammer
J131: CREA/CAU: | K131: 139.164-0
J132: ART/RRT: | K132: 6749482-4
A138: (SELECIONAR)
A139: Construção e Reforma de Edifícios
A140: Construção de Praças Urbanas, Rodovias, Ferrovias e recapeamento e pavimentação de vias urbanas
A141: Construção de Redes de Abastecimento de Água, Coleta de Esgoto
A142: Construção e Manutenção de Estações e Redes de Distribuição de Energia Elétrica
A143: Obras Portuárias, Marítimas e Fluviais
A144: Fornecimento de Materiais e Equipamentos (aquisição indireta - em conjunto com licitação de obras)
A145: Fornecimento de Materiais e Equipamentos (aquisição direta)
A146: Estudos e Projetos, Planos e Gerenciamento e outros correlatos

Sheet ORÇAMENTO
R1: PO - PLANILHA ORÇAMENTÁRIA | X1: Grau de Sigilo
D2: LOTE | E2: Meta | F2: Nível 2 | G2: Nível 3 | H2: Nível 4 | I2: Serviço | R2: =IF(TIPOORCAMENTO="licitado","Orçamento Licitado","Orçamento Base para Licitação")&" - "&import.recurso -> Orçamento Base para Licitação - OGU | X2: #PUBLICO
A4: Nmax | F4: BDI 1 | G4: BDI 2 | H4: BDI 3 | I4: 0 | O4: Nº OPERAÇÃO | Q4: Nº SICONV | R4: PROPONENTE / TOMADOR | S4: APELIDO DO EMPREENDIMENTO
A5: =MAX($C$15:$C$190) -> 4 | F5: =IF(BDI.Opcao="DESONERADO",BDI!$S$30,BDI!$S$29) -> 0.2354 | G5: =IF(BDI.Opcao="DESONERADO",BDI!$S$70,BDI!$S$69) -> 0 | H5: =IF(BDI.Opcao="DESONERADO",BDI!$S$110,BDI!$S$109) -> 0 | O5: =Import.CR -> 0 | Q5: =Import.SICONV -> 853767/2017 | R5: =Import.Proponente -> Prefeitura Municipal de Vargem Bonita | S5: =Import.Apelido -> Reforma e Ampliação do Campo Municipal de Futebol | AE5: Arredondamento
O7: LOCALIDADE SINAPI | Q7: DATA BASE | R7: =IF(TIPOORCAMENTO="Licitado","NOME DA EMPRESA","DESCRIÇÃO DO LOTE") -> DESCRIÇÃO DO LOTE | S7: =IF(TIPOORCAMENTO="Licitado","REGIME DE EXECUÇÃO","MUNICÍPIO / UF") -> MUNICÍPIO / UF | V7: =IF(TIPOORCAMENTO="Licitado","","BDI 1") -> BDI 1 | W7: =IF(TIPOORCAMENTO="Licitado","","BDI 2") -> BDI 2 | X7: =IF(TIPOORCAMENTO="Licitado","Nº CTEF","BDI 3") -> BDI 3 | AE7: Quantidade | AF7: TRUE | AJ7: QUANTIDADES: ACOMP. POR BM | AL7: PREÇO UNITÁRIO LICITADO
F8: =IF(LEN(INFO("release"))>5,"'Referência "&Excel_BuiltIn_Database&".xls'#Banco.$a5:$a$65536","'[Referência "&Excel_BuiltIn_Database&".xls]Banco'!$a5:$a$65536") -> '[Referência 07-2018.xls]Banco'!$a5:$a$65536 | L8: FILTRO | O8: =IF(ISERROR(INDIRECT($F$9)),"(N/D: 'Referência "&Excel_BuiltIn_Database&".xls)",INDIRECT($F$9)) -> FLORIANOPOLIS | Q8: =TEXT(Import.DataBase,"mm-aa")&IF(DESONERACAO="Sim"," (DES.)"," (N DES.)") -> 07-18 (N DES.) | R8: =IF(TIPOORCAMENTO="Licitado",Import.empresa,Import.DescLote) -> Reforma e Ampliação do Estádio Municipal de Futebol de Campo de Vargem Bonita | S8: =IF(TIPOORCAMENTO="Licitado",Import.RegimeExecução,Import.Município) -> Vargem Bonita | V8: =IF(TIPOORCAMENTO="Licitado","",TEXT(F5,"0,00%")) -> 23,54% | W8: =IF(TIPOORCAMENTO="Licitado","",TEXT(G5,"0,00%")) -> 0,00% | X8: =IF(TIPOORCAMENTO="Licitado",Import.CTEF,TEXT(H5,"0,00%")) -> 0,00% | Y8: RECURSO | Z8: SGL RECURSO | AE8: Custo Unitáro | AF8: TRUE
F9: =IF(LEN(INFO("release"))>5,"'Referência "&Excel_BuiltIn_Database&".xls'#Banco.$d$3","'[Referência "&Excel_BuiltIn_Database&".xls]Banco'!$d$3") -> '[Referência 07-2018.xls]Banco'!$d$3 | AE9: BDI | AF9: TRUE
AC10: ERRO GERAL | AE10: Preço Unitário | AF10: TRUE
AC11: =IF(COUNTIF($AC$15:OFFSET($AC$190,-1,0),"DESCRIÇÃO")+COUNTIF($AC$15:OFFSET($AC$190,-1,0),"UNIDADE")+COUNTIF($AC$15:OFFSET($AC$190,-1,0),"SEM VALOR")>0,"NÃO OK","OK") -> OK | AE11: Preço Total | AF11: TRUE
AA12: Valores não Arredondados | AJ12: ↓ | AL12: ↓
A13: Nível E | B13: Save Nivel | C13: Nível C | D13: Altura | E13: n1 | F13: n2 | G13: n3 | H13: n4 | I13: n5 | J13: Czero | K13: Cnível | L13: ↓ | M13: Nível | N13: Nível Corrigido | O13: Item | P13: Fonte | Q13: Código | R13: Descrição | S13: Unidade | T13: Quantidade | U13: =IF(TIPOORCAMENTO="Licitado","","Custo Unitário (sem BDI) (R$)") -> Custo Unitário (sem BDI) (R$) | V13: =IF(TIPOORCAMENTO="Licitado","","BDI (%)") -> BDI (%) | W13: Preço Unitário (com BDI) (R$) | X13: Preço Total (R$) | Y13: ↓ | Z13: ↓ | AA13: Contrapartida (R$) | AB13: Outros (R$) | AC13: Erro de Dados | AD13: Lista Crono | AE13: Concatenação Fonte-Código | AF13: BancoDesloc | AG13: Custo Unitário Referência (R$) | AH13: =IF(TIPOORCAMENTO="LICITADO","Valor BDI Edital","Valor BDI") -> Valor BDI | AJ13: Quantidade | AL13: Preço Unitário (com BDI) (R$) | AM13: Preço Total Licit. (R$) | AN13: Preço Unitário Edital (R$)
A14: =CHOOSE(1+LOG(1+2*(ORÇAMENTO.Nivel="Meta")+4*(ORÇAMENTO.Nivel="Nível 2")+8*(ORÇAMENTO.Nivel="Nível 3")+16*(ORÇAMENTO.Nivel="Nível 4")+32*(ORÇAMENTO.Nivel="Serviço"),2),0,1,2,3,4,"S") -> S | B14: =IF(OR(C14="s",C14=0),OFFSET(B14,-1,0),C14) -> Save Nivel | C14: =IF(OFFSET(C14,-1,0)="L",1,IF(OFFSET(C14,-1,0)=1,2,IF(OR(A14="s",A14=0),"S",IF(AND(OFFSET(C14,-1,0)=2,A14=4),3,IF(AND(OR(OFFSET(C14,-1,0)="s",OFFSET(C14,-1,0)=0),A14<>"s",A14>OFFSET(B14,-1,0)),OFFSET(B14,-1,0),A14))))) -> S | D14: =IF(OR(C14="S",C14=0),0,IF(ISERROR(K14),J14,SMALL(J14:K14,1))) -> 0 | E14: =IF($C14=1,OFFSET(E14,-1,0)+MAX(1,COUNTIF(QCI!$A$13:$A$24,OFFSET(ORÇAMENTO!E14,-1,0))),OFFSET(E14,-1,0)) -> n1 | F14: =IF($C14=1,0,IF($C14=2,OFFSET(F14,-1,0)+1,OFFSET(F14,-1,0))) -> n2 | G14: =IF(AND($C14<=2,$C14<>0),0,IF($C14=3,OFFSET(G14,-1,0)+1,OFFSET(G14,-1,0))) -> n3 | H14: =IF(AND($C14<=3,$C14<>0),0,IF($C14=4,OFFSET(H14,-1,0)+1,OFFSET(H14,-1,0))) -> n4 | I14: =IF(AND($C14<=4,$C14<>0),0,IF(AND($C14="S",$X14>0),OFFSET(I14,-1,0)+1,OFFSET(I14,-1,0))) -> n5 | J14: =IF(OR($C14="S",$C14=0),0,MATCH(0,OFFSET($D14,1,$C14,ROW($C$190)-ROW($C14)),0)) -> 0 | K14: =IF(OR($C14="S",$C14=0),0,MATCH(OFFSET($D14,0,$C14)+IF($C14<>1,1,COUNTIF(QCI!$A$13:$A$24,ORÇAMENTO!E14)),OFFSET($D14,1,$C14,ROW($C$190)-ROW($C14)),0)) -> 0 | L14: =IF(OR($X14>0,$C14=1,$C14=2,$C14=3,$C14=4),"F","") ->  | M14: Serviço | N14: =CHOOSE(1+LOG(1+2*(C14=1)+4*(C14=2)+8*(C14=3)+16*(C14=4)+32*(C14="S"),2),"","Meta","Nível 2","Nível 3","Nível 4","Serviço") -> Serviço | O14: =IF(OR($C14=0,$L14=""),"-",CONCATENATE(E14&".",IF(AND($A$5>=2,$C14>=2),F14&".",""),IF(AND($A$5>=3,$C14>=3),G14&".",""),IF(AND($A$5>=4,$C14>=4),H14&".",""),IF($C14="S",I14&".",""))) -> - | P14: SINAPI | R14: =IF($C14="S",REFERENCIA.Descricao,"(digite a descrição aqui)") -> (Sem Código) | S14: =REFERENCIA.Unidade -> - | T14: =OFFSET(CÁLCULO!H$15,ROW($T14)-ROW(T$15),0) -> 0 | V14: BDI 1 | W14: =IF($C14="S",ROUND(IF(TIPOORCAMENTO="Proposto",ORÇAMENTO.CustoUnitario*(1+$AH14),ORÇAMENTO.PrecoUnitarioLicitado),15-13*$AF$10),0) -> 0 | X14: =IF($C14="S",VTOTAL1,IF($C14=0,0,ROUND(SomaAgrup,15-13*$AF$11))) -> 0 | Y14: RA | Z14: =IF(AND($C14="S",$X14>0),IF(ISBLANK($Y14),"RA",LEFT($Y14,2)),"") ->  | AA14: =IF($C14="S",IF($Z14="CP",$X14,IF($Z14="RA",(($X14)*QCI!$AA$3),0)),SomaAgrup) -> 0 | AB14: =IF($C14="S",IF($Z14="OU",ROUND($X14,2),0),SomaAgrup) -> 0 | AC14: =IF($N14="","",IF(ORÇAMENTO.Descricao="","DESCRIÇÃO",IF(AND($C14="S",ORÇAMENTO.Unidade=""),"UNIDADE",IF($X14<0,"VALOR NEGATIVO",IF(OR(AND(TIPOORCAMENTO="Proposto",$AG14<>"",$AG14>0,ORÇAMENTO.CustoUnitario>$AG14),AND(TIPOORCAMENTO="LICITADO",ORÇAMENTO.PrecoUnitarioLicitado>$AN14)),"ACIMA REF.",""))))) ->  | AD14: =IF(C14<=CRONO.NivelExibicao,MAX($AD$15:OFFSET(AD14,-1,0))+IF($C14<>1,1,MAX(1,COUNTIF(QCI!$A$13:$A$24,OFFSET($E14,-1,0)))),"") ->  | AE14: =IF(AND($C14="S",ORÇAMENTO.CodBarra<>""),IF(ORÇAMENTO.Fonte="",ORÇAMENTO.CodBarra,CONCATENATE(ORÇAMENTO.Fonte," ",ORÇAMENTO.CodBarra))) -> FALSE | AF14: =IF(ISERROR(INDIRECT(ORÇAMENTO.BancoRef)),"(abra o arquivo 'Referência "&Excel_BuiltIn_Database&".xls)",IF(OR($C14<>"S",ORÇAMENTO.CodBarra=""),"(Sem Código)",IF(ISERROR(MATCH($AE14,INDIRECT(ORÇAMENTO.BancoRef),0)),"(Código não identificado nas referências)",MATCH($AE14,INDIRECT(ORÇAMENTO.BancoRef),0)))) -> (Sem Código) | AG14: =ROUND(IF(DESONERACAO="sim",REFERENCIA.Desonerado,REFERENCIA.NaoDesonerado),2) -> 0 | AH14: =ROUND(IF(ISNUMBER(ORÇAMENTO.OpcaoBDI),ORÇAMENTO.OpcaoBDI,IF(LEFT(ORÇAMENTO.OpcaoBDI,3)="BDI",HLOOKUP(ORÇAMENTO.OpcaoBDI,$F$4:$H$5,2,FALSE),0)),15-11*$AF$9) -> 0.2354 | AM14: =$X14 -> 0 | AN14: =ROUND(ORÇAMENTO.CustoUnitario*(1+$AH14),2) -> 0
A15: 0 | C15: L | D15: =COUNTA(OFFSET(D15,1,0):D$190) -> 174 | E15: 0 | L15: F | M15: =IF(TIPOORCAMENTO="LICITADO","CTEF","LOTE") -> LOTE | N15: =IF(TIPOORCAMENTO="LICITADO","CTEF","LOTE") -> LOTE | O15: =Import.DescLote -> Reforma e Ampliação do Estádio Municipal de Futebol de Campo de Vargem Bonita | X15: =SUMIF(OFFSET($C15,1,0,ROW(X190)-ROW(X15)-1),"S",OFFSET(X15,1,0,ROW(X190)-ROW(X15)-1)) -> 282961.07 | Z15: =IF(AND($C15="S",$X15>0),LEFT($Y15,2),"") ->  | AA15: =SUMIF(OFFSET($C15,1,0,ROW(AA190)-ROW(AA15)-1),"S",OFFSET(AA15,1,0,ROW(AA190)-ROW(AA15)-1)) -> 39211.07 | AB15: =SUMIF(OFFSET($C15,1,0,ROW(AB190)-ROW(AB15)-1),"S",OFFSET(AB15,1,0,ROW(AB190)-ROW(AB15)-1)) -> 0 | AM15: 282961.07
A16: =CHOOSE(1+LOG(1+2*(ORÇAMENTO.Nivel="Meta")+4*(ORÇAMENTO.Nivel="Nível 2")+8*(ORÇAMENTO.Nivel="Nível 3")+16*(ORÇAMENTO.Nivel="Nível 4")+32*(ORÇAMENTO.Nivel="Serviço"),2),0,1,2,3,4,"S") -> 1 | B16: =IF(OR(C16="s",C16=0),OFFSET(B16,-1,0),C16) -> 1 | C16: =IF(OFFSET(C16,-1,0)="L",1,IF(OFFSET(C16,-1,0)=1,2,IF(OR(A16="s",A16=0),"S",IF(AND(OFFSET(C16,-1,0)=2,A16=4),3,IF(AND(OR(OFFSET(C16,-1,0)="s",OFFSET(C16,-1,0)=0),A16<>"s",A16>OFFSET(B16,-1,0)),OFFSET(B16,-1,0),A16))))) -> 1 | D16: =IF(OR(C16="S",C16=0),0,IF(ISERROR(K16),J16,SMALL(J16:K16,1))) -> 174 | E16: =IF($C16=1,OFFSET(E16,-1,0)+MAX(1,COUNTIF(QCI!$A$13:$A$24,OFFSET(ORÇAMENTO!E16,-1,0))),OFFSET(E16,-1,0)) -> 1 | F16: =IF($C16=1,0,IF($C16=2,OFFSET(F16,-1,0)+1,OFFSET(F16,-1,0))) -> 0 | G16: =IF(AND($C16<=2,$C16<>0),0,IF($C16=3,OFFSET(G16,-1,0)+1,OFFSET(G16,-1,0))) -> 0 | H16: =IF(AND($C16<=3,$C16<>0),0,IF($C16=4,OFFSET(H16,-1,0)+1,OFFSET(H16,-1,0))) -> 0 | I16: =IF(AND($C16<=4,$C16<>0),0,IF(AND($C16="S",$X16>0),OFFSET(I16,-1,0)+1,OFFSET(I16,-1,0))) -> 0 | J16: =IF(OR($C16="S",$C16=0),0,MATCH(0,OFFSET($D16,1,$C16,ROW($C$190)-ROW($C16)),0)) -> 174 | K16: =IF(OR($C16="S",$C16=0),0,MATCH(OFFSET($D16,0,$C16)+IF($C16<>1,1,COUNTIF(QCI!$A$13:$A$24,ORÇAMENTO!E16)),OFFSET($D16,1,$C16,ROW($C$190)-ROW($C16)),0)) ->  | L16: =IF(OR($X16>0,$C16=1,$C16=2,$C16=3,$C16=4),"F","") -> F | M16: Meta | N16: =CHOOSE(1+LOG(1+2*(C16=1)+4*(C16=2)+8*(C16=3)+16*(C16=4)+32*(C16="S"),2),"","Meta","Nível 2","Nível 3","Nível 4","Serviço") -> Meta | O16: =IF(OR($C16=0,$L16=""),"-",CONCATENATE(E16&".",IF(AND($A$5>=2,$C16>=2),F16&".",""),IF(AND($A$5>=3,$C16>=3),G16&".",""),IF(AND($A$5>=4,$C16>=4),H16&".",""),IF($C16="S",I16&".",""))) -> 1. | P16: SINAPI | R16: Reforma e Ampliação do Estádio Municipal de Futebol de Campo de Vargem Bonita | S16: - | T16: =OFFSET(CÁLCULO!H$15,ROW($T16)-ROW(T$15),0) -> 0 | V16: BDI 1 | W16: =IF($C16="S",ROUND(IF(TIPOORCAMENTO="Proposto",ORÇAMENTO.CustoUnitario*(1+$AH16),ORÇAMENTO.PrecoUnitarioLicitado),15-13*$AF$10),0) -> 0 | X16: =IF($C16="S",VTOTAL1,IF($C16=0,0,ROUND(SomaAgrup,15-13*$AF$11))) -> 282961.07 | Y16: RA | Z16: =IF(AND($C16="S",$X16>0),IF(ISBLANK($Y16),"RA",LEFT($Y16,2)),"") ->  | AA16: =IF($C16="S",IF($Z16="CP",$X16,IF($Z16="RA",(($X16)*QCI!$AA$3),0)),SomaAgrup) -> 39211.07 | AB16: =IF($C16="S",IF($Z16="OU",ROUND($X16,2),0),SomaAgrup) -> 0 | AC16: =IF($N16="","",IF(ORÇAMENTO.Descricao="","DESCRIÇÃO",IF(AND($C16="S",ORÇAMENTO.Unidade=""),"UNIDADE",IF($X16<0,"VALOR NEGATIVO",IF(OR(AND(TIPOORCAMENTO="Proposto",$AG16<>"",$AG16>0,ORÇAMENTO.CustoUnitario>$AG16),AND(TIPOORCAMENTO="LICITADO",ORÇAMENTO.PrecoUnitarioLicitado>$AN16)),"ACIMA REF.",""))))) ->  | AD16: =IF(C16<=CRONO.NivelExibicao,MAX($AD$15:OFFSET(AD16,-1,0))+IF($C16<>1,1,MAX(1,COUNTIF(QCI!$A$13:$A$24,OFFSET($E16,-1,0)))),"") -> 1 | AE16: =IF(AND($C16="S",ORÇAMENTO.CodBarra<>""),IF(ORÇAMENTO.Fonte="",ORÇAMENTO.CodBarra,CONCATENATE(ORÇAMENTO.Fonte," ",ORÇAMENTO.CodBarra))) -> FALSE | AF16: =IF(ISERROR(INDIRECT(ORÇAMENTO.BancoRef)),"(abra o arquivo 'Referência "&Excel_BuiltIn_Database&".xls)",IF(OR($C16<>"S",ORÇAMENTO.CodBarra=""),"(Sem Código)",IF(ISERROR(MATCH($AE16,INDIRECT(ORÇAMENTO.BancoRef),0)),"(Código não identificado nas referências)",MATCH($AE16,INDIRECT(ORÇAMENTO.BancoRef),0)))) -> (Sem Código) | AG16: =ROUND(IF(DESONERACAO="sim",REFERENCIA.Desonerado,REFERENCIA.NaoDesonerado),2) -> 0 | AH16: =ROUND(IF(ISNUMBER(ORÇAMENTO.OpcaoBDI),ORÇAMENTO.OpcaoBDI,IF(LEFT(ORÇAMENTO.OpcaoBDI,3)="BDI",HLOOKUP(ORÇAMENTO.OpcaoBDI,$F$4:$H$5,2,FALSE),0)),15-11*$AF$9) -> 0.2354 | AM16: 282961.07 | AN16: =ROUND(ORÇAMENTO.CustoUnitario*(1+$AH16),2) -> 0
A17: 2 | B17: 2 | C17: 2 | D17: 132 | E17: =IF($C17=1,OFFSET(E17,-1,0)+MAX(1,COUNTIF(QCI!$A$13:$A$24,OFFSET(ORÇAMENTO!E17,-1,0))),OFFSET(E17,-1,0)) -> 1 | F17: 1 | G17: 0 | H17: 0 | I17: 0 | J17: 173 | K17: =IF(OR($C17="S",$C17=0),0,MATCH(OFFSET($D17,0,$C17)+IF($C17<>1,1,COUNTIF(QCI!$A$13:$A$24,ORÇAMENTO!E17)),OFFSET($D17,1,$C17,ROW($C$190)-ROW($C17)),0)) -> 132 | L17: F | M17: Nível 2 | N17: Nível 2 | O17: 1.1. | P17: SINAPI | R17: VESTIÁRIOS | S17: - | T17: =OFFSET(CÁLCULO!H$15,ROW($T17)-ROW(T$15),0) -> 0 | V17: BDI 1 | W17: 0 | X17: 133883.91 | Y17: RA | AA17: =IF($C17="S",IF($Z17="CP",$X17,IF($Z17="RA",(($X17)*QCI!$AA$3),0)),SomaAgrup) -> 18552.83968 | AB17: 0 | AD17: =IF(C17<=CRONO.NivelExibicao,MAX($AD$15:OFFSET(AD17,-1,0))+IF($C17<>1,1,MAX(1,COUNTIF(QCI!$A$13:$A$24,OFFSET($E17,-1,0)))),"") -> 2 | AE17: FALSE | AF17: (Sem Código) | AG17: 0 | AH17: 0.2354 | AM17: 133883.91 | AN17: 0
A18: =CHOOSE(1+LOG(1+2*(ORÇAMENTO.Nivel="Meta")+4*(ORÇAMENTO.Nivel="Nível 2")+8*(ORÇAMENTO.Nivel="Nível 3")+16*(ORÇAMENTO.Nivel="Nível 4")+32*(ORÇAMENTO.Nivel="Serviço"),2),0,1,2,3,4,"S") -> 3 | B18: =IF(OR(C18="s",C18=0),OFFSET(B18,-1,0),C18) -> 3 | C18: =IF(OFFSET(C18,-1,0)="L",1,IF(OFFSET(C18,-1,0)=1,2,IF(OR(A18="s",A18=0),"S",IF(AND(OFFSET(C18,-1,0)=2,A18=4),3,IF(AND(OR(OFFSET(C18,-1,0)="s",OFFSET(C18,-1,0)=0),A18<>"s",A18>OFFSET(B18,-1,0)),OFFSET(B18,-1,0),A18))))) -> 3 | D18: =IF(OR(C18="S",C18=0),0,IF(ISERROR(K18),J18,SMALL(J18:K18,1))) -> 4 | E18: =IF($C18=1,OFFSET(E18,-1,0)+MAX(1,COUNTIF(QCI!$A$13:$A$24,OFFSET(ORÇAMENTO!E18,-1,0))),OFFSET(E18,-1,0)) -> 1 | F18: =IF($C18=1,0,IF($C18=2,OFFSET(F18,-1,0)+1,OFFSET(F18,-1,0))) -> 1 | G18: =IF(AND($C18<=2,$C18<>0),0,IF($C18=3,OFFSET(G18,-1,0)+1,OFFSET(G18,-1,0))) -> 1 | H18: =IF(AND($C18<=3,$C18<>0),0,IF($C18=4,OFFSET(H18,-1,0)+1,OFFSET(H18,-1,0))) -> 0 | I18: =IF(AND($C18<=4,$C18<>0),0,IF(AND($C18="S",$X18>0),OFFSET(I18,-1,0)+1,OFFSET(I18,-1,0))) -> 0 | J18: 131 | K18: =IF(OR($C18="S",$C18=0),0,MATCH(OFFSET($D18,0,$C18)+IF($C18<>1,1,COUNTIF(QCI!$A$13:$A$24,ORÇAMENTO!E18)),OFFSET($D18,1,$C18,ROW($C$190)-ROW($C18)),0)) -> 4 | L18: =IF(OR($X18>0,$C18=1,$C18=2,$C18=3,$C18=4),"F","") -> F | M18: Nível 3 | N18: =CHOOSE(1+LOG(1+2*(C18=1)+4*(C18=2)+8*(C18=3)+16*(C18=4)+32*(C18="S"),2),"","Meta","Nível 2","Nível 3","Nível 4","Serviço") -> Nível 3 | O18: =IF(OR($C18=0,$L18=""),"-",CONCATENATE(E18&".",IF(AND($A$5>=2,$C18>=2),F18&".",""),IF(AND($A$5>=3,$C18>=3),G18&".",""),IF(AND($A$5>=4,$C18>=4),H18&".",""),IF($C18="S",I18&".",""))) -> 1.1.1. | P18: SINAPI | R18: Serviços Iniciais | S18: - | T18: =OFFSET(CÁLCULO!H$15,ROW($T18)-ROW(T$15),0) -> 0 | V18: BDI 1 | W18: =IF($C18="S",ROUND(IF(TIPOORCAMENTO="Proposto",ORÇAMENTO.CustoUnitario*(1+$AH18),ORÇAMENTO.PrecoUnitarioLicitado),15-13*$AF$10),0) -> 0 | X18: =IF($C18="S",VTOTAL1,IF($C18=0,0,ROUND(SomaAgrup,15-13*$AF$11))) -> 1707.55 | Y18: RA | Z18: =IF(AND($C18="S",$X18>0),IF(ISBLANK($Y18),"RA",LEFT($Y18,2)),"") ->  | AA18: =IF($C18="S",IF($Z18="CP",$X18,IF($Z18="RA",(($X18)*QCI!$AA$3),0)),SomaAgrup) -> 236.6221706 | AB18: =IF($C18="S",IF($Z18="OU",ROUND($X18,2),0),SomaAgrup) -> 0 | AC18: =IF($N18="","",IF(ORÇAMENTO.Descricao="","DESCRIÇÃO",IF(AND($C18="S",ORÇAMENTO.Unidade=""),"UNIDADE",IF($X18<0,"VALOR NEGATIVO",IF(OR(AND(TIPOORCAMENTO="Proposto",$AG18<>"",$AG18>0,ORÇAMENTO.CustoUnitario>$AG18),AND(TIPOORCAMENTO="LICITADO",ORÇAMENTO.PrecoUnitarioLicitado>$AN18)),"ACIMA REF.",""))))) ->  | AD18: =IF(C18<=CRONO.NivelExibicao,MAX($AD$15:OFFSET(AD18,-1,0))+IF($C18<>1,1,MAX(1,COUNTIF(QCI!$A$13:$A$24,OFFSET($E18,-1,0)))),"") ->  | AE18: =IF(AND($C18="S",ORÇAMENTO.CodBarra<>""),IF(ORÇAMENTO.Fonte="",ORÇAMENTO.CodBarra,CONCATENATE(ORÇAMENTO.Fonte," ",ORÇAMENTO.CodBarra))) -> FALSE | AF18: =IF(ISERROR(INDIRECT(ORÇAMENTO.BancoRef)),"(abra o arquivo 'Referência "&Excel_BuiltIn_Database&".xls)",IF(OR($C18<>"S",ORÇAMENTO.CodBarra=""),"(Sem Código)",IF(ISERROR(MATCH($AE18,INDIRECT(ORÇAMENTO.BancoRef),0)),"(Código não identificado nas referências)",MATCH($AE18,INDIRECT(ORÇAMENTO.BancoRef),0)))) -> (Sem Código) | AG18: =ROUND(IF(DESONERACAO="sim",REFERENCIA.Desonerado,REFERENCIA.NaoDesonerado),2) -> 0 | AH18: =ROUND(IF(ISNUMBER(ORÇAMENTO.OpcaoBDI),ORÇAMENTO.OpcaoBDI,IF(LEFT(ORÇAMENTO.OpcaoBDI,3)="BDI",HLOOKUP(ORÇAMENTO.OpcaoBDI,$F$4:$H$5,2,FALSE),0)),15-11*$AF$9) -> 0.2354 | AM18: 1707.55 | AN18: =ROUND(ORÇAMENTO.CustoUnitario*(1+$AH18),2) -> 0
A19: S | B19: 3 | C19: S | D19: 0 | E19: =IF($C19=1,OFFSET(E19,-1,0)+MAX(1,COUNTIF(QCI!$A$13:$A$24,OFFSET(ORÇAMENTO!E19,-1,0))),OFFSET(E19,-1,0)) -> 1 | F19: 1 | G19: 1 | H19: 0 | I19: 1 | J19: 0 | K19: =IF(OR($C19="S",$C19=0),0,MATCH(OFFSET($D19,0,$C19)+IF($C19<>1,1,COUNTIF(QCI!$A$13:$A$24,ORÇAMENTO!E19)),OFFSET($D19,1,$C19,ROW($C$190)-ROW($C19)),0)) -> 0 | L19: F | M19: Serviço | N19: Serviço | O19: 1.1.1.0.1. | P19: SINAPI | Q19: 74209/1 | R19: PLACA DE OBRA EM CHAPA DE ACO GALVANIZADO PADRÃO GIGOV | S19: M2 | T19: =OFFSET(CÁLCULO!H$15,ROW($T19)-ROW(T$15),0) -> 2.5 | U19: 250 | V19: BDI 1 | W19: 308.85 | X19: 772.13 | Y19: RA | Z19: RA | AA19: =IF($C19="S",IF($Z19="CP",$X19,IF($Z19="RA",(($X19)*QCI!$AA$3),0)),SomaAgrup) -> 106.9972045 | AB19: 0 | AD19: =IF(C19<=CRONO.NivelExibicao,MAX($AD$15:OFFSET(AD19,-1,0))+IF($C19<>1,1,MAX(1,COUNTIF(QCI!$A$13:$A$24,OFFSET($E19,-1,0)))),"") ->  | AE19: SINAPI 74209/1 | AF19: 6008 | AG19: 323.98 | AH19: 0.2354 | AM19: 772.13 | AN19: 308.85
A20: S | B20: 3 | C20: S | D20: 0 | E20: =IF($C20=1,OFFSET(E20,-1,0)+MAX(1,COUNTIF(QCI!$A$13:$A$24,OFFSET(ORÇAMENTO!E20,-1,0))),OFFSET(E20,-1,0)) -> 1 | F20: 1 | G20: 1 | H20: 0 | I20: 2 | J20: 0 | K20: =IF(OR($C20="S",$C20=0),0,MATCH(OFFSET($D20,0,$C20)+IF($C20<>1,1,COUNTIF(QCI!$A$13:$A$24,ORÇAMENTO!E20)),OFFSET($D20,1,$C20,ROW($C$190)-ROW($C20)),0)) -> 0 | L20: F | M20: Serviço | N20: Serviço | O20: 1.1.1.0.2. | P20: SINAPI | Q20: 74209/1 | R20: PLACA DE OBRA EM CHAPA DE ACO GALVANIZADO PADRÃO AMMOC | S20: M2 | T20: =OFFSET(CÁLCULO!H$15,ROW($T20)-ROW(T$15),0) -> 2.5 | U20: 250 | V20: BDI 1 | W20: 308.85 | X20: 772.13 | Y20: RA | Z20: RA | AA20: =IF($C20="S",IF($Z20="CP",$X20,IF($Z20="RA",(($X20)*QCI!$AA$3),0)),SomaAgrup) -> 106.9972045 | AB20: 0 | AD20: =IF(C20<=CRONO.NivelExibicao,MAX($AD$15:OFFSET(AD20,-1,0))+IF($C20<>1,1,MAX(1,COUNTIF(QCI!$A$13:$A$24,OFFSET($E20,-1,0)))),"") ->  | AE20: SINAPI 74209/1 | AF20: 6008 | AG20: 323.98 | AH20: 0.2354 | AM20: 772.13 | AN20: 308.85
A21: S | B21: 3 | C21: S | D21: 0 | E21: =IF($C21=1,OFFSET(E21,-1,0)+MAX(1,COUNTIF(QCI!$A$13:$A$24,OFFSET(ORÇAMENTO!E21,-1,0))),OFFSET(E21,-1,0)) -> 1 | F21: 1 | G21: 1 | H21: 0 | I21: 3 | J21: 0 | K21: =IF(OR($C21="S",$C21=0),0,MATCH(OFFSET($D21,0,$C21)+IF($C21<>1,1,COUNTIF(QCI!$A$13:$A$24,ORÇAMENTO!E21)),OFFSET($D21,1,$C21,ROW($C$190)-ROW($C21)),0)) -> 0 | L21: F | M21: Serviço | N21: Serviço | O21: 1.1.1.0.3. | P21: SINAPI | Q21: 74077/2 | R21: LOCACAO CONVENCIONAL DE OBRA, ATRAVÉS DE GABARITO DE TABUAS CORRIDAS PONTALETADAS | S21: M2 | T21: =OFFSET(CÁLCULO!H$15,ROW($T21)-ROW(T$15),0) -> 66.11 | U21: 2 | V21: BDI 1 | W21: 2.47 | X21: 163.29 | Y21: RA | Z21: RA | AA21: =IF($C21="S",IF($Z21="CP",$X21,IF($Z21="RA",(($X21)*QCI!$AA$3),0)),SomaAgrup) -> 22.62776155 | AB21: 0 | AD21: =IF(C21<=CRONO.NivelExibicao,MAX($AD$15:OFFSET(AD21,-1,0))+IF($C21<>1,1,MAX(1,COUNTIF(QCI!$A$13:$A$24,OFFSET($E21,-1,0)))),"") ->  | AE21: SINAPI 74077/2 | AF21: 11837 | AG21: 4.64 | AH21: 0.2354 | AM21: 163.29 | AN21: 2.47
A22: 3 | B22: 3 | C22: 3 | D22: 18 | E22: =IF($C22=1,OFFSET(E22,-1,0)+MAX(1,COUNTIF(QCI!$A$13:$A$24,OFFSET(ORÇAMENTO!E22,-1,0))),OFFSET(E22,-1,0)) -> 1 | F22: 1 | G22: 2 | H22: 0 | I22: 0 | J22: 127 | K22: =IF(OR($C22="S",$C22=0),0,MATCH(OFFSET($D22,0,$C22)+IF($C22<>1,1,COUNTIF(QCI!$A$13:$A$24,ORÇAMENTO!E22)),OFFSET($D22,1,$C22,ROW($C$190)-ROW($C22)),0)) -> 18 | L22: F | M22: Nível 3 | N22: Nível 3 | O22: 1.1.2. | P22: SINAPI | R22: Estrutura em Concreto Armado | S22: - | T22: =OFFSET(CÁLCULO!H$15,ROW($T22)-ROW(T$15),0) -> 0 | U22: 0 | V22: BDI 1 | W22: 0 | X22: 27779.45 | Y22: RA | AA22: =IF($C22="S",IF($Z22="CP",$X22,IF($Z22="RA",(($X22)*QCI!$AA$3),0)),SomaAgrup) -> 3849.511731 | AB22: 0 | AD22: =IF(C22<=CRONO.NivelExibicao,MAX($AD$15:OFFSET(AD22,-1,0))+IF($C22<>1,1,MAX(1,COUNTIF(QCI!$A$13:$A$24,OFFSET($E22,-1,0)))),"") ->  | AE22: FALSE | AF22: (Sem Código) | AG22: 0 | AH22: 0.2354 | AM22: 27779.45 | AN22: 0
A23: =CHOOSE(1+LOG(1+2*(ORÇAMENTO.Nivel="Meta")+4*(ORÇAMENTO.Nivel="Nível 2")+8*(ORÇAMENTO.Nivel="Nível 3")+16*(ORÇAMENTO.Nivel="Nível 4")+32*(ORÇAMENTO.Nivel="Serviço"),2),0,1,2,3,4,"S") -> 4 | B23: =IF(OR(C23="s",C23=0),OFFSET(B23,-1,0),C23) -> 4 | C23: =IF(OFFSET(C23,-1,0)="L",1,IF(OFFSET(C23,-1,0)=1,2,IF(OR(A23="s",A23=0),"S",IF(AND(OFFSET(C23,-1,0)=2,A23=4),3,IF(AND(OR(OFFSET(C23,-1,0)="s",OFFSET(C23,-1,0)=0),A23<>"s",A23>OFFSET(B23,-1,0)),OFFSET(B23,-1,0),A23))))) -> 4 | D23: =IF(OR(C23="S",C23=0),0,IF(ISERROR(K23),J23,SMALL(J23:K23,1))) -> 5 | E23: =IF($C23=1,OFFSET(E23,-1,0)+MAX(1,COUNTIF(QCI!$A$13:$A$24,OFFSET(ORÇAMENTO!E23,-1,0))),OFFSET(E23,-1,0)) -> 1 | F23: =IF($C23=1,0,IF($C23=2,OFFSET(F23,-1,0)+1,OFFSET(F23,-1,0))) -> 1 | G23: =IF(AND($C23<=2,$C23<>0),0,IF($C23=3,OFFSET(G23,-1,0)+1,OFFSET(G23,-1,0))) -> 2 | H23: =IF(AND($C23<=3,$C23<>0),0,IF($C23=4,OFFSET(H23,-1,0)+1,OFFSET(H23,-1,0))) -> 1 | I23: =IF(AND($C23<=4,$C23<>0),0,IF(AND($C23="S",$X23>0),OFFSET(I23,-1,0)+1,OFFSET(I23,-1,0))) -> 0 | J23: 17 | K23: =IF(OR($C23="S",$C23=0),0,MATCH(OFFSET($D23,0,$C23)+IF($C23<>1,1,COUNTIF(QCI!$A$13:$A$24,ORÇAMENTO!E23)),OFFSET($D23,1,$C23,ROW($C$190)-ROW($C23)),0)) -> 5 | L23: =IF(OR($X23>0,$C23=1,$C23=2,$C23=3,$C23=4),"F","") -> F | M23: Nível 4 | N23: =CHOOSE(1+LOG(1+2*(C23=1)+4*(C23=2)+8*(C23=3)+16*(C23=4)+32*(C23="S"),2),"","Meta","Nível 2","Nível 3","Nível 4","Serviço") -> Nível 4 | O23: =IF(OR($C23=0,$L23=""),"-",CONCATENATE(E23&".",IF(AND($A$5>=2,$C23>=2),F23&".",""),IF(AND($A$5>=3,$C23>=3),G23&".",""),IF(AND($A$5>=4,$C23>=4),H23&".",""),IF($C23="S",I23&".",""))) -> 1.1.2.1. | P23: SINAPI | R23: Sapatas | S23: - | T23: =OFFSET(CÁLCULO!H$15,ROW($T23)-ROW(T$15),0) -> 0 | U23: 0 | V23: BDI 1 | W23: =IF($C23="S",ROUND(IF(TIPOORCAMENTO="Proposto",ORÇAMENTO.CustoUnitario*(1+$AH23),ORÇAMENTO.PrecoUnitarioLicitado),15-13*$AF$10),0) -> 0 | X23: =IF($C23="S",VTOTAL1,IF($C23=0,0,ROUND(SomaAgrup,15-13*$AF$11))) -> 5281.02 | Y23: RA | Z23: =IF(AND($C23="S",$X23>0),IF(ISBLANK($Y23),"RA",LEFT($Y23,2)),"") ->  | AA23: =IF($C23="S",IF($Z23="CP",$X23,IF($Z23="RA",(($X23)*QCI!$AA$3),0)),SomaAgrup) -> 731.8124889 | AB23: =IF($C23="S",IF($Z23="OU",ROUND($X23,2),0),SomaAgrup) -> 0 | AC23: =IF($N23="","",IF(ORÇAMENTO.Descricao="","DESCRIÇÃO",IF(AND($C23="S",ORÇAMENTO.Unidade=""),"UNIDADE",IF($X23<0,"VALOR NEGATIVO",IF(OR(AND(TIPOORCAMENTO="Proposto",$AG23<>"",$AG23>0,ORÇAMENTO.CustoUnitario>$AG23),AND(TIPOORCAMENTO="LICITADO",ORÇAMENTO.PrecoUnitarioLicitado>$AN23)),"ACIMA REF.",""))))) ->  | AD23: =IF(C23<=CRONO.NivelExibicao,MAX($AD$15:OFFSET(AD23,-1,0))+IF($C23<>1,1,MAX(1,COUNTIF(QCI!$A$13:$A$24,OFFSET($E23,-1,0)))),"") ->  | AE23: =IF(AND($C23="S",ORÇAMENTO.CodBarra<>""),IF(ORÇAMENTO.Fonte="",ORÇAMENTO.CodBarra,CONCATENATE(ORÇAMENTO.Fonte," ",ORÇAMENTO.CodBarra))) -> FALSE | AF23: =IF(ISERROR(INDIRECT(ORÇAMENTO.BancoRef)),"(abra o arquivo 'Referência "&Excel_BuiltIn_Database&".xls)",IF(OR($C23<>"S",ORÇAMENTO.CodBarra=""),"(Sem Código)",IF(ISERROR(MATCH($AE23,INDIRECT(ORÇAMENTO.BancoRef),0)),"(Código não identificado nas referências)",MATCH($AE23,INDIRECT(ORÇAMENTO.BancoRef),0)))) -> (Sem Código) | AG23: =ROUND(IF(DESONERACAO="sim",REFERENCIA.Desonerado,REFERENCIA.NaoDesonerado),2) -> 0 | AH23: =ROUND(IF(ISNUMBER(ORÇAMENTO.OpcaoBDI),ORÇAMENTO.OpcaoBDI,IF(LEFT(ORÇAMENTO.OpcaoBDI,3)="BDI",HLOOKUP(ORÇAMENTO.OpcaoBDI,$F$4:$H$5,2,FALSE),0)),15-11*$AF$9) -> 0.2354 | AM23: 5281.02 | AN23: =ROUND(ORÇAMENTO.CustoUnitario*(1+$AH23),2) -> 0
A24: S | B24: 4 | C24: S | D24: 0 | E24: =IF($C24=1,OFFSET(E24,-1,0)+MAX(1,COUNTIF(QCI!$A$13:$A$24,OFFSET(ORÇAMENTO!E24,-1,0))),OFFSET(E24,-1,0)) -> 1 | F24: 1 | G24: 2 | H24: 1 | I24: 1 | J24: 0 | K24: =IF(OR($C24="S",$C24=0),0,MATCH(OFFSET($D24,0,$C24)+IF($C24<>1,1,COUNTIF(QCI!$A$13:$A$24,ORÇAMENTO!E24)),OFFSET($D24,1,$C24,ROW($C$190)-ROW($C24)),0)) -> 0 | L24: F | M24: Serviço | N24: Serviço | O24: 1.1.2.1.1. | P24: SINAPI | Q24: 83338 | R24: ESCAVACAO MECANICA EM MATERIAL DE 1A CATEGORIA, COM ESCAVADEIRA HIDRAULICA | S24: M3 | T24: =OFFSET(CÁLCULO!H$15,ROW($T24)-ROW(T$15),0) -> 14.7 | U24: 2 | V24: BDI 1 | W24: 2.47 | X24: 36.31 | Y24: RA | Z24: RA | AA24: =IF($C24="S",IF($Z24="CP",$X24,IF($Z24="RA",(($X24)*QCI!$AA$3),0)),SomaAgrup) -> 5.031624851 | AB24: 0 | AD24: =IF(C24<=CRONO.NivelExibicao,MAX($AD$15:OFFSET(AD24,-1,0))+IF($C24<>1,1,MAX(1,COUNTIF(QCI!$A$13:$A$24,OFFSET($E24,-1,0)))),"") ->  | AE24: SINAPI 83338 | AF24: 10403 | AG24: 2.32 | AH24: 0.2354 | AM24: 36.31 | AN24: 2.47
A25: S | B25: 4 | C25: S | D25: 0 | E25: =IF($C25=1,OFFSET(E25,-1,0)+MAX(1,COUNTIF(QCI!$A$13:$A$24,OFFSET(ORÇAMENTO!E25,-1,0))),OFFSET(E25,-1,0)) -> 1 | F25: 1 | G25: 2 | H25: 1 | I25: 2 | J25: 0 | K25: =IF(OR($C25="S",$C25=0),0,MATCH(OFFSET($D25,0,$C25)+IF($C25<>1,1,COUNTIF(QCI!$A$13:$A$24,ORÇAMENTO!E25)),OFFSET($D25,1,$C25,ROW($C$190)-ROW($C25)),0)) -> 0 | L25: F | M25: Serviço | N25: Serviço | O25: 1.1.2.1.2. | P25: SINAPI | Q25: 96622 | R25: LASTRO COM MATERIAL GRANULAR, APLICAÇÃO EM PISOS OU RADIERS, ESPESSURA DE *5 CM* | S25: M3 | T25: =OFFSET(CÁLCULO!H$15,ROW($T25)-ROW(T$15),0) -> 0.3 | U25: 60 | V25: BDI 1 | W25: 74.12 | X25: 22.24 | Y25: RA | Z25: RA | AA25: =IF($C25="S",IF($Z25="CP",$X25,IF($Z25="RA",(($X25)*QCI!$AA$3),0)),SomaAgrup) -> 3.081887543 | AB25: 0 | AD25: =IF(C25<=CRONO.NivelExibicao,MAX($AD$15:OFFSET(AD25,-1,0))+IF($C25<>1,1,MAX(1,COUNTIF(QCI!$A$13:$A$24,OFFSET($E25,-1,0)))),"") ->  | AE25: SINAPI 96622 | AF25: 7607 | AG25: 104.19 | AH25: 0.2354 | AM25: 22.24 | AN25: 74.12
A26: S | B26: 4 | C26: S | D26: 0 | E26: =IF($C26=1,OFFSET(E26,-1,0)+MAX(1,COUNTIF(QCI!$A$13:$A$24,OFFSET(ORÇAMENTO!E26,-1,0))),OFFSET(E26,-1,0)) -> 1 | F26: 1 | G26: 2 | H26: 1 | I26: 3 | J26: 0 | K26: =IF(OR($C26="S",$C26=0),0,MATCH(OFFSET($D26,0,$C26)+IF($C26<>1,1,COUNTIF(QCI!$A$13:$A$24,ORÇAMENTO!E26)),OFFSET($D26,1,$C26,ROW($C$190)-ROW($C26)),0)) -> 0 | L26: F | M26: Serviço | N26: Serviço | O26: 1.1.2.1.3. | P26: SINAPI | Q26: 95957 | R26: SAPATAS EM CONCRETO ARMADO, FCK = 25 MPA | S26: M3 | T26: =OFFSET(CÁLCULO!H$15,ROW($T26)-ROW(T$15),0) -> 3.1 | U26: 1300 | V26: BDI 1 | W26: 1606.02 | X26: 4978.66 | Y26: RA | Z26: RA | AA26: =IF($C26="S",IF($Z26="CP",$X26,IF($Z26="RA",(($X26)*QCI!$AA$3),0)),SomaAgrup) -> 689.91323 | AB26: 0 | AD26: =IF(C26<=CRONO.NivelExibicao,MAX($AD$15:OFFSET(AD26,-1,0))+IF($C26<>1,1,MAX(1,COUNTIF(QCI!$A$13:$A$24,OFFSET($E26,-1,0)))),"") ->  | AE26: SINAPI 95957 | AF26: 8049 | AG26: 2020.49 | AH26: 0.2354 | AM26: 4978.66 | AN26: 1606.02
A27: =CHOOSE(1+LOG(1+2*(ORÇAMENTO.Nivel="Meta")+4*(ORÇAMENTO.Nivel="Nível 2")+8*(ORÇAMENTO.Nivel="Nível 3")+16*(ORÇAMENTO.Nivel="Nível 4")+32*(ORÇAMENTO.Nivel="Serviço"),2),0,1,2,3,4,"S") -> S | B27: =IF(OR(C27="s",C27=0),OFFSET(B27,-1,0),C27) -> 4 | C27: =IF(OFFSET(C27,-1,0)="L",1,IF(OFFSET(C27,-1,0)=1,2,IF(OR(A27="s",A27=0),"S",IF(AND(OFFSET(C27,-1,0)=2,A27=4),3,IF(AND(OR(OFFSET(C27,-1,0)="s",OFFSET(C27,-1,0)=0),A27<>"s",A27>OFFSET(B27,-1,0)),OFFSET(B27,-1,0),A27))))) -> S | D27: =IF(OR(C27="S",C27=0),0,IF(ISERROR(K27),J27,SMALL(J27:K27,1))) -> 0 | E27: =IF($C27=1,OFFSET(E27,-1,0)+MAX(1,COUNTIF(QCI!$A$13:$A$24,OFFSET(ORÇAMENTO!E27,-1,0))),OFFSET(E27,-1,0)) -> 1 | F27: =IF($C27=1,0,IF($C27=2,OFFSET(F27,-1,0)+1,OFFSET(F27,-1,0))) -> 1 | G27: =IF(AND($C27<=2,$C27<>0),0,IF($C27=3,OFFSET(G27,-1,0)+1,OFFSET(G27,-1,0))) -> 2 | H27: =IF(AND($C27<=3,$C27<>0),0,IF($C27=4,OFFSET(H27,-1,0)+1,OFFSET(H27,-1,0))) -> 1 | I27: =IF(AND($C27<=4,$C27<>0),0,IF(AND($C27="S",$X27>0),OFFSET(I27,-1,0)+1,OFFSET(I27,-1,0))) -> 4 | J27: 0 | K27: =IF(OR($C27="S",$C27=0),0,MATCH(OFFSET($D27,0,$C27)+IF($C27<>1,1,COUNTIF(QCI!$A$13:$A$24,ORÇAMENTO!E27)),OFFSET($D27,1,$C27,ROW($C$190)-ROW($C27)),0)) -> 0 | L27: =IF(OR($X27>0,$C27=1,$C27=2,$C27=3,$C27=4),"F","") -> F | M27: Serviço | N27: =CHOOSE(1+LOG(1+2*(C27=1)+4*(C27=2)+8*(C27=3)+16*(C27=4)+32*(C27="S"),2),"","Meta","Nível 2","Nível 3","Nível 4","Serviço") -> Serviço | O27: =IF(OR($C27=0,$L27=""),"-",CONCATENATE(E27&".",IF(AND($A$5>=2,$C27>=2),F27&".",""),IF(AND($A$5>=3,$C27>=3),G27&".",""),IF(AND($A$5>=4,$C27>=4),H27&".",""),IF($C27="S",I27&".",""))) -> 1.1.2.1.4. | P27: SINAPI | Q27: 93382 | R27: REATERRO MANUAL DE VALAS COM COMPACTAÇÃO MECANIZADA | S27: M3 | T27: =OFFSET(CÁLCULO!H$15,ROW($T27)-ROW(T$15),0) -> 11.61 | U27: 17 | V27: BDI 1 | W27: =IF($C27="S",ROUND(IF(TIPOORCAMENTO="Proposto",ORÇAMENTO.CustoUnitario*(1+$AH27),ORÇAMENTO.PrecoUnitarioLicitado),15-13*$AF$10),0) -> 21 | X27: =IF($C27="S",VTOTAL1,IF($C27=0,0,ROUND(SomaAgrup,15-13*$AF$11))) -> 243.81 | Y27: RA | Z27: =IF(AND($C27="S",$X27>0),IF(ISBLANK($Y27),"RA",LEFT($Y27,2)),"") -> RA | AA27: =IF($C27="S",IF($Z27="CP",$X27,IF($Z27="RA",(($X27)*QCI!$AA$3),0)),SomaAgrup) -> 33.78574649 | AB27: =IF($C27="S",IF($Z27="OU",ROUND($X27,2),0),SomaAgrup) -> 0 | AC27: =IF($N27="","",IF(ORÇAMENTO.Descricao="","DESCRIÇÃO",IF(AND($C27="S",ORÇAMENTO.Unidade=""),"UNIDADE",IF($X27<0,"VALOR NEGATIVO",IF(OR(AND(TIPOORCAMENTO="Proposto",$AG27<>"",$AG27>0,ORÇAMENTO.CustoUnitario>$AG27),AND(TIPOORCAMENTO="LICITADO",ORÇAMENTO.PrecoUnitarioLicitado>$AN27)),"ACIMA REF.",""))))) ->  | AD27: =IF(C27<=CRONO.NivelExibicao,MAX($AD$15:OFFSET(AD27,-1,0))+IF($C27<>1,1,MAX(1,COUNTIF(QCI!$A$13:$A$24,OFFSET($E27,-1,0)))),"") ->  | AE27: =IF(AND($C27="S",ORÇAMENTO.CodBarra<>""),IF(ORÇAMENTO.Fonte="",ORÇAMENTO.CodBarra,CONCATENATE(ORÇAMENTO.Fonte," ",ORÇAMENTO.CodBarra))) -> SINAPI 93382 | AF27: =IF(ISERROR(INDIRECT(ORÇAMENTO.BancoRef)),"(abra o arquivo 'Referência "&Excel_BuiltIn_Database&".xls)",IF(OR($C27<>"S",ORÇAMENTO.CodBarra=""),"(Sem Código)",IF(ISERROR(MATCH($AE27,INDIRECT(ORÇAMENTO.BancoRef),0)),"(Código não identificado nas referências)",MATCH($AE27,INDIRECT(ORÇAMENTO.BancoRef),0)))) -> 10534 | AG27: =ROUND(IF(DESONERACAO="sim",REFERENCIA.Desonerado,REFERENCIA.NaoDesonerado),2) -> 24.74 | AH27: =ROUND(IF(ISNUMBER(ORÇAMENTO.OpcaoBDI),ORÇAMENTO.OpcaoBDI,IF(LEFT(ORÇAMENTO.OpcaoBDI,3)="BDI",HLOOKUP(ORÇAMENTO.OpcaoBDI,$F$4:$H$5,2,FALSE),0)),15-11*$AF$9) -> 0.2354 | AM27: 243.81 | AN27: =ROUND(ORÇAMENTO.CustoUnitario*(1+$AH27),2) -> 21
A28: =CHOOSE(1+LOG(1+2*(ORÇAMENTO.Nivel="Meta")+4*(ORÇAMENTO.Nivel="Nível 2")+8*(ORÇAMENTO.Nivel="Nível 3")+16*(ORÇAMENTO.Nivel="Nível 4")+32*(ORÇAMENTO.Nivel="Serviço"),2),0,1,2,3,4,"S") -> 4 | B28: =IF(OR(C28="s",C28=0),OFFSET(B28,-1,0),C28) -> 4 | C28: =IF(OFFSET(C28,-1,0)="L",1,IF(OFFSET(C28,-1,0)=1,2,IF(OR(A28="s",A28=0),"S",IF(AND(OFFSET(C28,-1,0)=2,A28=4),3,IF(AND(OR(OFFSET(C28,-1,0)="s",OFFSET(C28,-1,0)=0),A28<>"s",A28>OFFSET(B28,-1,0)),OFFSET(B28,-1,0),A28))))) -> 4 | D28: =IF(OR(C28="S",C28=0),0,IF(ISERROR(K28),J28,SMALL(J28:K28,1))) -> 5 | E28: =IF($C28=1,OFFSET(E28,-1,0)+MAX(1,COUNTIF(QCI!$A$13:$A$24,OFFSET(ORÇAMENTO!E28,-1,0))),OFFSET(E28,-1,0)) -> 1 | F28: =IF($C28=1,0,IF($C28=2,OFFSET(F28,-1,0)+1,OFFSET(F28,-1,0))) -> 1 | G28: =IF(AND($C28<=2,$C28<>0),0,IF($C28=3,OFFSET(G28,-1,0)+1,OFFSET(G28,-1,0))) -> 2 | H28: =IF(AND($C28<=3,$C28<>0),0,IF($C28=4,OFFSET(H28,-1,0)+1,OFFSET(H28,-1,0))) -> 2 | I28: =IF(AND($C28<=4,$C28<>0),0,IF(AND($C28="S",$X28>0),OFFSET(I28,-1,0)+1,OFFSET(I28,-1,0))) -> 0 | J28: 12 | K28: =IF(OR($C28="S",$C28=0),0,MATCH(OFFSET($D28,0,$C28)+IF($C28<>1,1,COUNTIF(QCI!$A$13:$A$24,ORÇAMENTO!E28)),OFFSET($D28,1,$C28,ROW($C$190)-ROW($C28)),0)) -> 5 | L28: =IF(OR($X28>0,$C28=1,$C28=2,$C28=3,$C28=4),"F","") -> F | M28: Nível 4 | N28: =CHOOSE(1+LOG(1+2*(C28=1)+4*(C28=2)+8*(C28=3)+16*(C28=4)+32*(C28="S"),2),"","Meta","Nível 2","Nível 3","Nível 4","Serviço") -> Nível 4 | O28: =IF(OR($C28=0,$L28=""),"-",CONCATENATE(E28&".",IF(AND($A$5>=2,$C28>=2),F28&".",""),IF(AND($A$5>=3,$C28>=3),G28&".",""),IF(AND($A$5>=4,$C28>=4),H28&".",""),IF($C28="S",I28&".",""))) -> 1.1.2.2. | P28: SINAPI | R28: Baldrames | S28: - | T28: =OFFSET(CÁLCULO!H$15,ROW($T28)-ROW(T$15),0) -> 0 | U28: 0 | V28: BDI 1 | W28: =IF($C28="S",ROUND(IF(TIPOORCAMENTO="Proposto",ORÇAMENTO.CustoUnitario*(1+$AH28),ORÇAMENTO.PrecoUnitarioLicitado),15-13*$AF$10),0) -> 0 | X28: =IF($C28="S",VTOTAL1,IF($C28=0,0,ROUND(SomaAgrup,15-13*$AF$11))) -> 6491.3 | Y28: RA | Z28: =IF(AND($C28="S",$X28>0),IF(ISBLANK($Y28),"RA",LEFT($Y28,2)),"") ->  | AA28: =IF($C28="S",IF($Z28="CP",$X28,IF($Z28="RA",(($X28)*QCI!$AA$3),0)),SomaAgrup) -> 899.5259266 | AB28: =IF($C28="S",IF($Z28="OU",ROUND($X28,2),0),SomaAgrup) -> 0 | AC28: =IF($N28="","",IF(ORÇAMENTO.Descricao="","DESCRIÇÃO",IF(AND($C28="S",ORÇAMENTO.Unidade=""),"UNIDADE",IF($X28<0,"VALOR NEGATIVO",IF(OR(AND(TIPOORCAMENTO="Proposto",$AG28<>"",$AG28>0,ORÇAMENTO.CustoUnitario>$AG28),AND(TIPOORCAMENTO="LICITADO",ORÇAMENTO.PrecoUnitarioLicitado>$AN28)),"ACIMA REF.",""))))) ->  | AD28: =IF(C28<=CRONO.NivelExibicao,MAX($AD$15:OFFSET(AD28,-1,0))+IF($C28<>1,1,MAX(1,COUNTIF(QCI!$A$13:$A$24,OFFSET($E28,-1,0)))),"") ->  | AE28: =IF(AND($C28="S",ORÇAMENTO.CodBarra<>""),IF(ORÇAMENTO.Fonte="",ORÇAMENTO.CodBarra,CONCATENATE(ORÇAMENTO.Fonte," ",ORÇAMENTO.CodBarra))) -> FALSE | AF28: =IF(ISERROR(INDIRECT(ORÇAMENTO.BancoRef)),"(abra o arquivo 'Referência "&Excel_BuiltIn_Database&".xls)",IF(OR($C28<>"S",ORÇAMENTO.CodBarra=""),"(Sem Código)",IF(ISERROR(MATCH($AE28,INDIRECT(ORÇAMENTO.BancoRef),0)),"(Código não identificado nas referências)",MATCH($AE28,INDIRECT(ORÇAMENTO.BancoRef),0)))) -> (Sem Código) | AG28: =ROUND(IF(DESONERACAO="sim",REFERENCIA.Desonerado,REFERENCIA.NaoDesonerado),2) -> 0 | AH28: =ROUND(IF(ISNUMBER(ORÇAMENTO.OpcaoBDI),ORÇAMENTO.OpcaoBDI,IF(LEFT(ORÇAMENTO.OpcaoBDI,3)="BDI",HLOOKUP(ORÇAMENTO.OpcaoBDI,$F$4:$H$5,2,FALSE),0)),15-11*$AF$9) -> 0.2354 | AM28: 6491.3 | AN28: =ROUND(ORÇAMENTO.CustoUnitario*(1+$AH28),2) -> 0
A29: =CHOOSE(1+LOG(1+2*(ORÇAMENTO.Nivel="Meta")+4*(ORÇAMENTO.Nivel="Nível 2")+8*(ORÇAMENTO.Nivel="Nível 3")+16*(ORÇAMENTO.Nivel="Nível 4")+32*(ORÇAMENTO.Nivel="Serviço"),2),0,1,2,3,4,"S") -> S | B29: =IF(OR(C29="s",C29=0),OFFSET(B29,-1,0),C29) -> 4 | C29: =IF(OFFSET(C29,-1,0)="L",1,IF(OFFSET(C29,-1,0)=1,2,IF(OR(A29="s",A29=0),"S",IF(AND(OFFSET(C29,-1,0)=2,A29=4),3,IF(AND(OR(OFFSET(C29,-1,0)="s",OFFSET(C29,-1,0)=0),A29<>"s",A29>OFFSET(B29,-1,0)),OFFSET(B29,-1,0),A29))))) -> S | D29: =IF(OR(C29="S",C29=0),0,IF(ISERROR(K29),J29,SMALL(J29:K29,1))) -> 0 | E29: =IF($C29=1,OFFSET(E29,-1,0)+MAX(1,COUNTIF(QCI!$A$13:$A$24,OFFSET(ORÇAMENTO!E29,-1,0))),OFFSET(E29,-1,0)) -> 1 | F29: =IF($C29=1,0,IF($C29=2,OFFSET(F29,-1,0)+1,OFFSET(F29,-1,0))) -> 1 | G29: =IF(AND($C29<=2,$C29<>0),0,IF($C29=3,OFFSET(G29,-1,0)+1,OFFSET(G29,-1,0))) -> 2 | H29: =IF(AND($C29<=3,$C29<>0),0,IF($C29=4,OFFSET(H29,-1,0)+1,OFFSET(H29,-1,0))) -> 2 | I29: =IF(AND($C29<=4,$C29<>0),0,IF(AND($C29="S",$X29>0),OFFSET(I29,-1,0)+1,OFFSET(I29,-1,0))) -> 1 | J29: 0 | K29: =IF(OR($C29="S",$C29=0),0,MATCH(OFFSET($D29,0,$C29)+IF($C29<>1,1,COUNTIF(QCI!$A$13:$A$24,ORÇAMENTO!E29)),OFFSET($D29,1,$C29,ROW($C$190)-ROW($C29)),0)) -> 0 | L29: =IF(OR($X29>0,$C29=1,$C29=2,$C29=3,$C29=4),"F","") -> F | M29: Serviço | N29: =CHOOSE(1+LOG(1+2*(C29=1)+4*(C29=2)+8*(C29=3)+16*(C29=4)+32*(C29="S"),2),"","Meta","Nível 2","Nível 3","Nível 4","Serviço") -> Serviço | O29: =IF(OR($C29=0,$L29=""),"-",CONCATENATE(E29&".",IF(AND($A$5>=2,$C29>=2),F29&".",""),IF(AND($A$5>=3,$C29>=3),G29&".",""),IF(AND($A$5>=4,$C29>=4),H29&".",""),IF($C29="S",I29&".",""))) -> 1.1.2.2.1. | P29: SINAPI | Q29: 83338 | R29: ESCAVACAO MECANICA EM MATERIAL DE 1A CATEGORIA, COM ESCAVADEIRA HIDRAULICA | S29: M3 | T29: =OFFSET(CÁLCULO!H$15,ROW($T29)-ROW(T$15),0) -> 4.91 | U29: 2 | V29: BDI 1 | W29: =IF($C29="S",ROUND(IF(TIPOORCAMENTO="Proposto",ORÇAMENTO.CustoUnitario*(1+$AH29),ORÇAMENTO.PrecoUnitarioLicitado),15-13*$AF$10),0) -> 2.47 | X29: =IF($C29="S",VTOTAL1,IF($C29=0,0,ROUND(SomaAgrup,15-13*$AF$11))) -> 12.13 | Y29: RA | Z29: =IF(AND($C29="S",$X29>0),IF(ISBLANK($Y29),"RA",LEFT($Y29,2)),"") -> RA | AA29: =IF($C29="S",IF($Z29="CP",$X29,IF($Z29="RA",(($X29)*QCI!$AA$3),0)),SomaAgrup) -> 1.680903592 | AB29: =IF($C29="S",IF($Z29="OU",ROUND($X29,2),0),SomaAgrup) -> 0 | AC29: =IF($N29="","",IF(ORÇAMENTO.Descricao="","DESCRIÇÃO",IF(AND($C29="S",ORÇAMENTO.Unidade=""),"UNIDADE",IF($X29<0,"VALOR NEGATIVO",IF(OR(AND(TIPOORCAMENTO="Proposto",$AG29<>"",$AG29>0,ORÇAMENTO.CustoUnitario>$AG29),AND(TIPOORCAMENTO="LICITADO",ORÇAMENTO.PrecoUnitarioLicitado>$AN29)),"ACIMA REF.",""))))) ->  | AD29: =IF(C29<=CRONO.NivelExibicao,MAX($AD$15:OFFSET(AD29,-1,0))+IF($C29<>1,1,MAX(1,COUNTIF(QCI!$A$13:$A$24,OFFSET($E29,-1,0)))),"") ->  | AE29: =IF(AND($C29="S",ORÇAMENTO.CodBarra<>""),IF(ORÇAMENTO.Fonte="",ORÇAMENTO.CodBarra,CONCATENATE(ORÇAMENTO.Fonte," ",ORÇAMENTO.CodBarra))) -> SINAPI 83338 | AF29: =IF(ISERROR(INDIRECT(ORÇAMENTO.BancoRef)),"(abra o arquivo 'Referência "&Excel_BuiltIn_Database&".xls)",IF(OR($C29<>"S",ORÇAMENTO.CodBarra=""),"(Sem Código)",IF(ISERROR(MATCH($AE29,INDIRECT(ORÇAMENTO.BancoRef),0)),"(Código não identificado nas referências)",MATCH($AE29,INDIRECT(ORÇAMENTO.BancoRef),0)))) -> 10403 | AG29: =ROUND(IF(DESONERACAO="sim",REFERENCIA.Desonerado,REFERENCIA.NaoDesonerado),2) -> 2.32 | AH29: =ROUND(IF(ISNUMBER(ORÇAMENTO.OpcaoBDI),ORÇAMENTO.OpcaoBDI,IF(LEFT(ORÇAMENTO.OpcaoBDI,3)="BDI",HLOOKUP(ORÇAMENTO.OpcaoBDI,$F$4:$H$5,2,FALSE),0)),15-11*$AF$9) -> 0.2354 | AM29: 12.13 | AN29: =ROUND(ORÇAMENTO.CustoUnitario*(1+$AH29),2) -> 2.47
A30: S | B30: 4 | C30: S | D30: 0 | E30: =IF($C30=1,OFFSET(E30,-1,0)+MAX(1,COUNTIF(QCI!$A$13:$A$24,OFFSET(ORÇAMENTO!E30,-1,0))),OFFSET(E30,-1,0)) -> 1 | F30: 1 | G30: 2 | H30: 2 | I30: 2 | J30: 0 | K30: =IF(OR($C30="S",$C30=0),0,MATCH(OFFSET($D30,0,$C30)+IF($C30<>1,1,COUNTIF(QCI!$A$13:$A$24,ORÇAMENTO!E30)),OFFSET($D30,1,$C30,ROW($C$190)-ROW($C30)),0)) -> 0 | L30: F | M30: Serviço | N30: Serviço | O30: 1.1.2.2.2. | P30: SINAPI | Q30: 95957 | R30: VIGAS BALDRAMES EM CONCRETO ARMADO, FCK = 25 MPA | S30: M3 | T30: =OFFSET(CÁLCULO!H$15,ROW($T30)-ROW(T$15),0) -> 3.7 | U30: 1300 | V30: BDI 1 | W30: 1606.02 | X30: 5942.27 | Y30: RA | Z30: RA | AA30: =IF($C30="S",IF($Z30="CP",$X30,IF($Z30="RA",(($X30)*QCI!$AA$3),0)),SomaAgrup) -> 823.4445994 | AB30: 0 | AD30: =IF(C30<=CRONO.NivelExibicao,MAX($AD$15:OFFSET(AD30,-1,0))+IF($C30<>1,1,MAX(1,COUNTIF(QCI!$A$13:$A$24,OFFSET($E30,-1,0)))),"") ->  | AE30: SINAPI 95957 | AF30: 8049 | AG30: 2020.49 | AH30: 0.2354 | AM30: 5942.27 | AN30: 1606.02
A31: S | B31: 4 | C31: S | D31: 0 | E31: =IF($C31=1,OFFSET(E31,-1,0)+MAX(1,COUNTIF(QCI!$A$13:$A$24,OFFSET(ORÇAMENTO!E31,-1,0))),OFFSET(E31,-1,0)) -> 1 | F31: 1 | G31: 2 | H31: 2 | I31: 3 | J31: 0 | K31: =IF(OR($C31="S",$C31=0),0,MATCH(OFFSET($D31,0,$C31)+IF($C31<>1,1,COUNTIF(QCI!$A$13:$A$24,ORÇAMENTO!E31)),OFFSET($D31,1,$C31,ROW($C$190)-ROW($C31)),0)) -> 0 | L31: F | M31: Serviço | N31: Serviço | O31: 1.1.2.2.3. | P31: SINAPI | Q31: 74106/1 | R31: IMPERMEABILIZACAO DE ESTRUTURAS ENTERRADAS, COM TINTA ASFALTICA, DUAS DEMAOS. | S31: M2 | T31: =OFFSET(CÁLCULO!H$15,ROW($T31)-ROW(T$15),0) -> 51.77 | U31: 8 | V31: BDI 1 | W31: 9.88 | X31: 511.49 | Y31: RA | Z31: RA | AA31: =IF($C31="S",IF($Z31="CP",$X31,IF($Z31="RA",(($X31)*QCI!$AA$3),0)),SomaAgrup) -> 70.87925627 | AB31: 0 | AD31: =IF(C31<=CRONO.NivelExibicao,MAX($AD$15:OFFSET(AD31,-1,0))+IF($C31<>1,1,MAX(1,COUNTIF(QCI!$A$13:$A$24,OFFSET($E31,-1,0)))),"") ->  | AE31: SINAPI 74106/1 | AF31: 8096 | AG31: 9.78 | AH31: 0.2354 | AM31: 511.49 | AN31: 9.88
A32: S | B32: 4 | C32: S | D32: 0 | E32: =IF($C32=1,OFFSET(E32,-1,0)+MAX(1,COUNTIF(QCI!$A$13:$A$24,OFFSET(ORÇAMENTO!E32,-1,0))),OFFSET(E32,-1,0)) -> 1 | F32: 1 | G32: 2 | H32: 2 | I32: 4 | J32: 0 | K32: =IF(OR($C32="S",$C32=0),0,MATCH(OFFSET($D32,0,$C32)+IF($C32<>1,1,COUNTIF(QCI!$A$13:$A$24,ORÇAMENTO!E32)),OFFSET($D32,1,$C32,ROW($C$190)-ROW($C32)),0)) -> 0 | L32: F | M32: Serviço | N32: Serviço | O32: 1.1.2.2.4. | P32: SINAPI | Q32: 93382 | R32: REATERRO MANUAL DE VALAS COM COMPACTAÇÃO MECANIZADA | S32: M3 | T32: =OFFSET(CÁLCULO!H$15,ROW($T32)-ROW(T$15),0) -> 1.21 | U32: 17 | V32: BDI 1 | W32: 21 | X32: 25.41 | Y32: RA | Z32: RA | AA32: =IF($C32="S",IF($Z32="CP",$X32,IF($Z32="RA",(($X32)*QCI!$AA$3),0)),SomaAgrup) -> 3.521167377 | AB32: 0 | AD32: =IF(C32<=CRONO.NivelExibicao,MAX($AD$15:OFFSET(AD32,-1,0))+IF($C32<>1,1,MAX(1,COUNTIF(QCI!$A$13:$A$24,OFFSET($E32,-1,0)))),"") ->  | AE32: SINAPI 93382 | AF32: 10534 | AG32: 24.74 | AH32: 0.2354 | AM32: 25.41 | AN32: 21
A33: =CHOOSE(1+LOG(1+2*(ORÇAMENTO.Nivel="Meta")+4*(ORÇAMENTO.Nivel="Nível 2")+8*(ORÇAMENTO.Nivel="Nível 3")+16*(ORÇAMENTO.Nivel="Nível 4")+32*(ORÇAMENTO.Nivel="Serviço"),2),0,1,2,3,4,"S") -> 4 | B33: =IF(OR(C33="s",C33=0),OFFSET(B33,-1,0),C33) -> 4 | C33: =IF(OFFSET(C33,-1,0)="L",1,IF(OFFSET(C33,-1,0)=1,2,IF(OR(A33="s",A33=0),"S",IF(AND(OFFSET(C33,-1,0)=2,A33=4),3,IF(AND(OR(OFFSET(C33,-1,0)="s",OFFSET(C33,-1,0)=0),A33<>"s",A33>OFFSET(B33,-1,0)),OFFSET(B33,-1,0),A33))))) -> 4 | D33: =IF(OR(C33="S",C33=0),0,IF(ISERROR(K33),J33,SMALL(J33:K33,1))) -> 2 | E33: =IF($C33=1,OFFSET(E33,-1,0)+MAX(1,COUNTIF(QCI!$A$13:$A$24,OFFSET(ORÇAMENTO!E33,-1,0))),OFFSET(E33,-1,0)) -> 1 | F33: =IF($C33=1,0,IF($C33=2,OFFSET(F33,-1,0)+1,OFFSET(F33,-1,0))) -> 1 | G33: =IF(AND($C33<=2,$C33<>0),0,IF($C33=3,OFFSET(G33,-1,0)+1,OFFSET(G33,-1,0))) -> 2 | H33: =IF(AND($C33<=3,$C33<>0),0,IF($C33=4,OFFSET(H33,-1,0)+1,OFFSET(H33,-1,0))) -> 3 | I33: =IF(AND($C33<=4,$C33<>0),0,IF(AND($C33="S",$X33>0),OFFSET(I33,-1,0)+1,OFFSET(I33,-1,0))) -> 0 | J33: 7 | K33: =IF(OR($C33="S",$C33=0),0,MATCH(OFFSET($D33,0,$C33)+IF($C33<>1,1,COUNTIF(QCI!$A$13:$A$24,ORÇAMENTO!E33)),OFFSET($D33,1,$C33,ROW($C$190)-ROW($C33)),0)) -> 2 | L33: =IF(OR($X33>0,$C33=1,$C33=2,$C33=3,$C33=4),"F","") -> F | M33: Nível 4 | N33: =CHOOSE(1+LOG(1+2*(C33=1)+4*(C33=2)+8*(C33=3)+16*(C33=4)+32*(C33="S"),2),"","Meta","Nível 2","Nível 3","Nível 4","Serviço") -> Nível 4 | O33: =IF(OR($C33=0,$L33=""),"-",CONCATENATE(E33&".",IF(AND($A$5>=2,$C33>=2),F33&".",""),IF(AND($A$5>=3,$C33>=3),G33&".",""),IF(AND($A$5>=4,$C33>=4),H33&".",""),IF($C33="S",I33&".",""))) -> 1.1.2.3. | P33: SINAPI | R33: Pilares | S33: - | T33: =OFFSET(CÁLCULO!H$15,ROW($T33)-ROW(T$15),0) -> 0 | U33: 0 | V33: BDI 1 | W33: =IF($C33="S",ROUND(IF(TIPOORCAMENTO="Proposto",ORÇAMENTO.CustoUnitario*(1+$AH33),ORÇAMENTO.PrecoUnitarioLicitado),15-13*$AF$10),0) -> 0 | X33: =IF($C33="S",VTOTAL1,IF($C33=0,0,ROUND(SomaAgrup,15-13*$AF$11))) -> 5733.49 | Y33: RA | Z33: =IF(AND($C33="S",$X33>0),IF(ISBLANK($Y33),"RA",LEFT($Y33,2)),"") ->  | AA33: =IF($C33="S",IF($Z33="CP",$X33,IF($Z33="RA",(($X33)*QCI!$AA$3),0)),SomaAgrup) -> 794.5131029 | AB33: =IF($C33="S",IF($Z33="OU",ROUND($X33,2),0),SomaAgrup) -> 0 | AC33: =IF($N33="","",IF(ORÇAMENTO.Descricao="","DESCRIÇÃO",IF(AND($C33="S",ORÇAMENTO.Unidade=""),"UNIDADE",IF($X33<0,"VALOR NEGATIVO",IF(OR(AND(TIPOORCAMENTO="Proposto",$AG33<>"",$AG33>0,ORÇAMENTO.CustoUnitario>$AG33),AND(TIPOORCAMENTO="LICITADO",ORÇAMENTO.PrecoUnitarioLicitado>$AN33)),"ACIMA REF.",""))))) ->  | AD33: =IF(C33<=CRONO.NivelExibicao,MAX($AD$15:OFFSET(AD33,-1,0))+IF($C33<>1,1,MAX(1,COUNTIF(QCI!$A$13:$A$24,OFFSET($E33,-1,0)))),"") ->  | AE33: =IF(AND($C33="S",ORÇAMENTO.CodBarra<>""),IF(ORÇAMENTO.Fonte="",ORÇAMENTO.CodBarra,CONCATENATE(ORÇAMENTO.Fonte," ",ORÇAMENTO.CodBarra))) -> FALSE | AF33: =IF(ISERROR(INDIRECT(ORÇAMENTO.BancoRef)),"(abra o arquivo 'Referência "&Excel_BuiltIn_Database&".xls)",IF(OR($C33<>"S",ORÇAMENTO.CodBarra=""),"(Sem Código)",IF(ISERROR(MATCH($AE33,INDIRECT(ORÇAMENTO.BancoRef),0)),"(Código não identificado nas referências)",MATCH($AE33,INDIRECT(ORÇAMENTO.BancoRef),0)))) -> (Sem Código) | AG33: =ROUND(IF(DESONERACAO="sim",REFERENCIA.Desonerado,REFERENCIA.NaoDesonerado),2) -> 0 | AH33: =ROUND(IF(ISNUMBER(ORÇAMENTO.OpcaoBDI),ORÇAMENTO.OpcaoBDI,IF(LEFT(ORÇAMENTO.OpcaoBDI,3)="BDI",HLOOKUP(ORÇAMENTO.OpcaoBDI,$F$4:$H$5,2,FALSE),0)),15-11*$AF$9) -> 0.2354 | AM33: 5733.49 | AN33: =ROUND(ORÇAMENTO.CustoUnitario*(1+$AH33),2) -> 0
A34: S | B34: 4 | C34: S | D34: 0 | E34: =IF($C34=1,OFFSET(E34,-1,0)+MAX(1,COUNTIF(QCI!$A$13:$A$24,OFFSET(ORÇAMENTO!E34,-1,0))),OFFSET(E34,-1,0)) -> 1 | F34: 1 | G34: 2 | H34: 3 | I34: 1 | J34: 0 | K34: =IF(OR($C34="S",$C34=0),0,MATCH(OFFSET($D34,0,$C34)+IF($C34<>1,1,COUNTIF(QCI!$A$13:$A$24,ORÇAMENTO!E34)),OFFSET($D34,1,$C34,ROW($C$190)-ROW($C34)),0)) -> 0 | L34: F | M34: Serviço | N34: Serviço | O34: 1.1.2.3.1. | P34: SINAPI | Q34: 95957 | R34: PILARES EM CONCRETO ARMADO, FCK = 25 MPA | S34: M3 | T34: =OFFSET(CÁLCULO!H$15,ROW($T34)-ROW(T$15),0) -> 3.57 | U34: 1300 | V34: BDI 1 | W34: 1606.02 | X34: 5733.49 | Y34: RA | Z34: RA | AA34: =IF($C34="S",IF($Z34="CP",$X34,IF($Z34="RA",(($X34)*QCI!$AA$3),0)),SomaAgrup) -> 794.5131029 | AB34: 0 | AD34: =IF(C34<=CRONO.NivelExibicao,MAX($AD$15:OFFSET(AD34,-1,0))+IF($C34<>1,1,MAX(1,COUNTIF(QCI!$A$13:$A$24,OFFSET($E34,-1,0)))),"") ->  | AE34: SINAPI 95957 | AF34: 8049 | AG34: 2020.49 | AH34: 0.2354 | AM34: 5733.49 | AN34: 1606.02
A35: =CHOOSE(1+LOG(1+2*(ORÇAMENTO.Nivel="Meta")+4*(ORÇAMENTO.Nivel="Nível 2")+8*(ORÇAMENTO.Nivel="Nível 3")+16*(ORÇAMENTO.Nivel="Nível 4")+32*(ORÇAMENTO.Nivel="Serviço"),2),0,1,2,3,4,"S") -> 4 | B35: =IF(OR(C35="s",C35=0),OFFSET(B35,-1,0),C35) -> 4 | C35: =IF(OFFSET(C35,-1,0)="L",1,IF(OFFSET(C35,-1,0)=1,2,IF(OR(A35="s",A35=0),"S",IF(AND(OFFSET(C35,-1,0)=2,A35=4),3,IF(AND(OR(OFFSET(C35,-1,0)="s",OFFSET(C35,-1,0)=0),A35<>"s",A35>OFFSET(B35,-1,0)),OFFSET(B35,-1,0),A35))))) -> 4 | D35: =IF(OR(C35="S",C35=0),0,IF(ISERROR(K35),J35,SMALL(J35:K35,1))) -> 2 | E35: =IF($C35=1,OFFSET(E35,-1,0)+MAX(1,COUNTIF(QCI!$A$13:$A$24,OFFSET(ORÇAMENTO!E35,-1,0))),OFFSET(E35,-1,0)) -> 1 | F35: =IF($C35=1,0,IF($C35=2,OFFSET(F35,-1,0)+1,OFFSET(F35,-1,0))) -> 1 | G35: =IF(AND($C35<=2,$C35<>0),0,IF($C35=3,OFFSET(G35,-1,0)+1,OFFSET(G35,-1,0))) -> 2 | H35: =IF(AND($C35<=3,$C35<>0),0,IF($C35=4,OFFSET(H35,-1,0)+1,OFFSET(H35,-1,0))) -> 4 | I35: =IF(AND($C35<=4,$C35<>0),0,IF(AND($C35="S",$X35>0),OFFSET(I35,-1,0)+1,OFFSET(I35,-1,0))) -> 0 | J35: 5 | K35: =IF(OR($C35="S",$C35=0),0,MATCH(OFFSET($D35,0,$C35)+IF($C35<>1,1,COUNTIF(QCI!$A$13:$A$24,ORÇAMENTO!E35)),OFFSET($D35,1,$C35,ROW($C$190)-ROW($C35)),0)) -> 2 | L35: =IF(OR($X35>0,$C35=1,$C35=2,$C35=3,$C35=4),"F","") -> F | M35: Nível 4 | N35: =CHOOSE(1+LOG(1+2*(C35=1)+4*(C35=2)+8*(C35=3)+16*(C35=4)+32*(C35="S"),2),"","Meta","Nível 2","Nível 3","Nível 4","Serviço") -> Nível 4 | O35: =IF(OR($C35=0,$L35=""),"-",CONCATENATE(E35&".",IF(AND($A$5>=2,$C35>=2),F35&".",""),IF(AND($A$5>=3,$C35>=3),G35&".",""),IF(AND($A$5>=4,$C35>=4),H35&".",""),IF($C35="S",I35&".",""))) -> 1.1.2.4. | P35: SINAPI | R35: Vigas | S35: - | T35: =OFFSET(CÁLCULO!H$15,ROW($T35)-ROW(T$15),0) -> 0 | U35: 0 | V35: BDI 1 | W35: =IF($C35="S",ROUND(IF(TIPOORCAMENTO="Proposto",ORÇAMENTO.CustoUnitario*(1+$AH35),ORÇAMENTO.PrecoUnitarioLicitado),15-13*$AF$10),0) -> 0 | X35: =IF($C35="S",VTOTAL1,IF($C35=0,0,ROUND(SomaAgrup,15-13*$AF$11))) -> 5010.78 | Y35: RA | Z35: =IF(AND($C35="S",$X35>0),IF(ISBLANK($Y35),"RA",LEFT($Y35,2)),"") ->  | AA35: =IF($C35="S",IF($Z35="CP",$X35,IF($Z35="RA",(($X35)*QCI!$AA$3),0)),SomaAgrup) -> 694.3642294 | AB35: =IF($C35="S",IF($Z35="OU",ROUND($X35,2),0),SomaAgrup) -> 0 | AC35: =IF($N35="","",IF(ORÇAMENTO.Descricao="","DESCRIÇÃO",IF(AND($C35="S",ORÇAMENTO.Unidade=""),"UNIDADE",IF($X35<0,"VALOR NEGATIVO",IF(OR(AND(TIPOORCAMENTO="Proposto",$AG35<>"",$AG35>0,ORÇAMENTO.CustoUnitario>$AG35),AND(TIPOORCAMENTO="LICITADO",ORÇAMENTO.PrecoUnitarioLicitado>$AN35)),"ACIMA REF.",""))))) ->  | AD35: =IF(C35<=CRONO.NivelExibicao,MAX($AD$15:OFFSET(AD35,-1,0))+IF($C35<>1,1,MAX(1,COUNTIF(QCI!$A$13:$A$24,OFFSET($E35,-1,0)))),"") ->  | AE35: =IF(AND($C35="S",ORÇAMENTO.CodBarra<>""),IF(ORÇAMENTO.Fonte="",ORÇAMENTO.CodBarra,CONCATENATE(ORÇAMENTO.Fonte," ",ORÇAMENTO.CodBarra))) -> FALSE | AF35: =IF(ISERROR(INDIRECT(ORÇAMENTO.BancoRef)),"(abra o arquivo 'Referência "&Excel_BuiltIn_Database&".xls)",IF(OR($C35<>"S",ORÇAMENTO.CodBarra=""),"(Sem Código)",IF(ISERROR(MATCH($AE35,INDIRECT(ORÇAMENTO.BancoRef),0)),"(Código não identificado nas referências)",MATCH($AE35,INDIRECT(ORÇAMENTO.BancoRef),0)))) -> (Sem Código) | AG35: =ROUND(IF(DESONERACAO="sim",REFERENCIA.Desonerado,REFERENCIA.NaoDesonerado),2) -> 0 | AH35: =ROUND(IF(ISNUMBER(ORÇAMENTO.OpcaoBDI),ORÇAMENTO.OpcaoBDI,IF(LEFT(ORÇAMENTO.OpcaoBDI,3)="BDI",HLOOKUP(ORÇAMENTO.OpcaoBDI,$F$4:$H$5,2,FALSE),0)),15-11*$AF$9) -> 0.2354 | AM35: 5010.78 | AN35: =ROUND(ORÇAMENTO.CustoUnitario*(1+$AH35),2) -> 0
A36: S | B36: 4 | C36: S | D36: 0 | E36: =IF($C36=1,OFFSET(E36,-1,0)+MAX(1,COUNTIF(QCI!$A$13:$A$24,OFFSET(ORÇAMENTO!E36,-1,0))),OFFSET(E36,-1,0)) -> 1 | F36: 1 | G36: 2 | H36: 4 | I36: 1 | J36: 0 | K36: =IF(OR($C36="S",$C36=0),0,MATCH(OFFSET($D36,0,$C36)+IF($C36<>1,1,COUNTIF(QCI!$A$13:$A$24,ORÇAMENTO!E36)),OFFSET($D36,1,$C36,ROW($C$190)-ROW($C36)),0)) -> 0 | L36: F | M36: Serviço | N36: Serviço | O36: 1.1.2.4.1. | P36: SINAPI | Q36: 95957 | R36: VIGAS EM CONCRETO ARMADO, FCK = 25 MPA | S36: M3 | T36: =OFFSET(CÁLCULO!H$15,ROW($T36)-ROW(T$15),0) -> 3.12 | U36: 1300 | V36: BDI 1 | W36: 1606.02 | X36: 5010.78 | Y36: RA | Z36: RA | AA36: =IF($C36="S",IF($Z36="CP",$X36,IF($Z36="RA",(($X36)*QCI!$AA$3),0)),SomaAgrup) -> 694.3642294 | AB36: 0 | AD36: =IF(C36<=CRONO.NivelExibicao,MAX($AD$15:OFFSET(AD36,-1,0))+IF($C36<>1,1,MAX(1,COUNTIF(QCI!$A$13:$A$24,OFFSET($E36,-1,0)))),"") ->  | AE36: SINAPI 95957 | AF36: 8049 | AG36: 2020.49 | AH36: 0.2354 | AM36: 5010.78 | AN36: 1606.02
A37: 4 | B37: 4 | C37: 4 | D37: 3 | E37: =IF($C37=1,OFFSET(E37,-1,0)+MAX(1,COUNTIF(QCI!$A$13:$A$24,OFFSET(ORÇAMENTO!E37,-1,0))),OFFSET(E37,-1,0)) -> 1 | F37: 1 | G37: 2 | H37: 5 | I37: 0 | J37: 3 | K37: =IF(OR($C37="S",$C37=0),0,MATCH(OFFSET($D37,0,$C37)+IF($C37<>1,1,COUNTIF(QCI!$A$13:$A$24,ORÇAMENTO!E37)),OFFSET($D37,1,$C37,ROW($C$190)-ROW($C37)),0)) -> 25 | L37: F | M37: Nível 4 | N37: Nível 4 | O37: 1.1.2.5. | P37: SINAPI | R37: Lajes | S37: - | T37: =OFFSET(CÁLCULO!H$15,ROW($T37)-ROW(T$15),0) -> 0 | U37: 0 | V37: BDI 1 | W37: 0 | X37: 5262.86 | Y37: RA | AA37: =IF($C37="S",IF($Z37="CP",$X37,IF($Z37="RA",(($X37)*QCI!$AA$3),0)),SomaAgrup) -> 729.2959836 | AB37: 0 | AD37: =IF(C37<=CRONO.NivelExibicao,MAX($AD$15:OFFSET(AD37,-1,0))+IF($C37<>1,1,MAX(1,COUNTIF(QCI!$A$13:$A$24,OFFSET($E37,-1,0)))),"") ->  | AE37: FALSE | AF37: (Sem Código) | AG37: 0 | AH37: 0.2354 | AM37: 5262.86 | AN37: 0
A38: S | B38: 4 | C38: S | D38: 0 | E38: =IF($C38=1,OFFSET(E38,-1,0)+MAX(1,COUNTIF(QCI!$A$13:$A$24,OFFSET(ORÇAMENTO!E38,-1,0))),OFFSET(E38,-1,0)) -> 1 | F38: 1 | G38: 2 | H38: 5 | I38: 1 | J38: 0 | K38: =IF(OR($C38="S",$C38=0),0,MATCH(OFFSET($D38,0,$C38)+IF($C38<>1,1,COUNTIF(QCI!$A$13:$A$24,ORÇAMENTO!E38)),OFFSET($D38,1,$C38,ROW($C$190)-ROW($C38)),0)) -> 0 | L38: F | M38: Serviço | N38: Serviço | O38: 1.1.2.5.1. | P38: SINAPI | Q38: 74141/1 | R38: LAJE PRE-MOLD BETA 11 P/1KN/M2 VAOS 4,40M/INCL VIGOTAS TIJOLOS ARMADURA NEGATIVA CAPEAMENTO 3CM CONCRETO 20MPA ESCORAMENTO MATERIAL E MAO DE OBRA. | S38: M2 | T38: =OFFSET(CÁLCULO!H$15,ROW($T38)-ROW(T$15),0) -> 48.27 | U38: 60 | V38: BDI 1 | W38: 74.12 | X38: 3577.77 | Y38: RA | Z38: RA | AA38: =IF($C38="S",IF($Z38="CP",$X38,IF($Z38="RA",(($X38)*QCI!$AA$3),0)),SomaAgrup) -> 495.7861868 | AB38: 0 | AD38: =IF(C38<=CRONO.NivelExibicao,MAX($AD$15:OFFSET(AD38,-1,0))+IF($C38<>1,1,MAX(1,COUNTIF(QCI!$A$13:$A$24,OFFSET($E38,-1,0)))),"") ->  | AE38: SINAPI 74141/1 | AF38: 7998 | AG38: 69.91 | AH38: 0.2354 | AM38: 3577.77 | AN38: 74.12
A39: S | B39: 4 | C39: S | D39: 0 | E39: =IF($C39=1,OFFSET(E39,-1,0)+MAX(1,COUNTIF(QCI!$A$13:$A$24,OFFSET(ORÇAMENTO!E39,-1,0))),OFFSET(E39,-1,0)) -> 1 | F39: 1 | G39: 2 | H39: 5 | I39: 2 | J39: 0 | K39: =IF(OR($C39="S",$C39=0),0,MATCH(OFFSET($D39,0,$C39)+IF($C39<>1,1,COUNTIF(QCI!$A$13:$A$24,ORÇAMENTO!E39)),OFFSET($D39,1,$C39,ROW($C$190)-ROW($C39)),0)) -> 0 | L39: F | M39: Serviço | N39: Serviço | O39: 1.1.2.5.2. | P39: SINAPI | Q39: 95956 | R39: LAJES EM CONCRETO ARMADO, FCK = 25 MPA | S39: M3 | T39: =OFFSET(CÁLCULO!H$15,ROW($T39)-ROW(T$15),0) -> 1.24 | U39: 1100 | V39: BDI 1 | W39: 1358.94 | X39: 1685.09 | Y39: RA | Z39: RA | AA39: =IF($C39="S",IF($Z39="CP",$X39,IF($Z39="RA",(($X39)*QCI!$AA$3),0)),SomaAgrup) -> 233.5097968 | AB39: 0 | AD39: =IF(C39<=CRONO.NivelExibicao,MAX($AD$15:OFFSET(AD39,-1,0))+IF($C39<>1,1,MAX(1,COUNTIF(QCI!$A$13:$A$24,OFFSET($E39,-1,0)))),"") ->  | AE39: SINAPI 95956 | AF39: 8048 | AG39: 1598.63 | AH39: 0.2354 | AM39: 1685.09 | AN39: 1358.94
A40: 3 | B40: 3 | C40: 3 | D40: 9 | E40: =IF($C40=1,OFFSET(E40,-1,0)+MAX(1,COUNTIF(QCI!$A$13:$A$24,OFFSET(ORÇAMENTO!E40,-1,0))),OFFSET(E40,-1,0)) -> 1 | F40: 1 | G40: 3 | H40: 0 | I40: 0 | J40: 109 | K40: =IF(OR($C40="S",$C40=0),0,MATCH(OFFSET($D40,0,$C40)+IF($C40<>1,1,COUNTIF(QCI!$A$13:$A$24,ORÇAMENTO!E40)),OFFSET($D40,1,$C40,ROW($C$190)-ROW($C40)),0)) -> 9 | L40: F | M40: Nível 3 | N40: Nível 3 | O40: 1.1.3. | P40: SINAPI | R40: PISOS | S40: - | T40: =OFFSET(CÁLCULO!H$15,ROW($T40)-ROW(T$15),0) -> 0 | U40: 0 | V40: BDI 1 | W40: 0 | X40: 9209.42 | Y40: RA | AA40: =IF($C40="S",IF($Z40="CP",$X40,IF($Z40="RA",(($X40)*QCI!$AA$3),0)),SomaAgrup) -> 1276.186905 | AB40: 0 | AD40: =IF(C40<=CRONO.NivelExibicao,MAX($AD$15:OFFSET(AD40,-1,0))+IF($C40<>1,1,MAX(1,COUNTIF(QCI!$A$13:$A$24,OFFSET($E40,-1,0)))),"") ->  | AE40: FALSE | AF40: (Sem Código) | AG40: 0 | AH40: 0.2354 | AM40: 9209.42 | AN40: 0
A41: 4 | B41: 4 | C41: 4 | D41: 4 | E41: =IF($C41=1,OFFSET(E41,-1,0)+MAX(1,COUNTIF(QCI!$A$13:$A$24,OFFSET(ORÇAMENTO!E41,-1,0))),OFFSET(E41,-1,0)) -> 1 | F41: 1 | G41: 3 | H41: 1 | I41: 0 | J41: 8 | K41: =IF(OR($C41="S",$C41=0),0,MATCH(OFFSET($D41,0,$C41)+IF($C41<>1,1,COUNTIF(QCI!$A$13:$A$24,ORÇAMENTO!E41)),OFFSET($D41,1,$C41,ROW($C$190)-ROW($C41)),0)) -> 4 | L41: F | M41: Nível 4 | N41: Nível 4 | O41: 1.1.3.1. | P41: SINAPI | R41: Piso e Contra Piso | S41: - | T41: =OFFSET(CÁLCULO!H$15,ROW($T41)-ROW(T$15),0) -> 0 | U41: 0 | V41: BDI 1 | W41: 0 | X41: 5255.94 | Y41: RA | AA41: =IF($C41="S",IF($Z41="CP",$X41,IF($Z41="RA",(($X41)*QCI!$AA$3),0)),SomaAgrup) -> 728.3370509 | AB41: 0 | AD41: =IF(C41<=CRONO.NivelExibicao,MAX($AD$15:OFFSET(AD41,-1,0))+IF($C41<>1,1,MAX(1,COUNTIF(QCI!$A$13:$A$24,OFFSET($E41,-1,0)))),"") ->  | AE41: FALSE | AF41: (Sem Código) | AG41: 0 | AH41: 0.2354 | AM41: 5255.94 | AN41: 0
A42: S | B42: 4 | C42: S | D42: 0 | E42: =IF($C42=1,OFFSET(E42,-1,0)+MAX(1,COUNTIF(QCI!$A$13:$A$24,OFFSET(ORÇAMENTO!E42,-1,0))),OFFSET(E42,-1,0)) -> 1 | F42: 1 | G42: 3 | H42: 1 | I42: 1 | J42: 0 | K42: =IF(OR($C42="S",$C42=0),0,MATCH(OFFSET($D42,0,$C42)+IF($C42<>1,1,COUNTIF(QCI!$A$13:$A$24,ORÇAMENTO!E42)),OFFSET($D42,1,$C42,ROW($C$190)-ROW($C42)),0)) -> 0 | L42: F | M42: Serviço | N42: Serviço | O42: 1.1.3.1.1. | P42: SINAPI | Q42: 96622 | R42: LASTRO COM MATERIAL GRANULAR, APLICAÇÃO EM PISOS OU RADIERS, ESPESSURA DE *5 CM* | S42: M3 | T42: =OFFSET(CÁLCULO!H$15,ROW($T42)-ROW(T$15),0) -> 2.45 | U42: 60 | V42: BDI 1 | W42: 74.12 | X42: 181.59 | Y42: RA | Z42: RA | AA42: =IF($C42="S",IF($Z42="CP",$X42,IF($Z42="RA",(($X42)*QCI!$AA$3),0)),SomaAgrup) -> 25.16366722 | AB42: 0 | AD42: =IF(C42<=CRONO.NivelExibicao,MAX($AD$15:OFFSET(AD42,-1,0))+IF($C42<>1,1,MAX(1,COUNTIF(QCI!$A$13:$A$24,OFFSET($E42,-1,0)))),"") ->  | AE42: SINAPI 96622 | AF42: 7607 | AG42: 104.19 | AH42: 0.2354 | AM42: 181.59 | AN42: 74.12
A43: S | B43: 4 | C43: S | D43: 0 | E43: =IF($C43=1,OFFSET(E43,-1,0)+MAX(1,COUNTIF(QCI!$A$13:$A$24,OFFSET(ORÇAMENTO!E43,-1,0))),OFFSET(E43,-1,0)) -> 1 | F43: 1 | G43: 3 | H43: 1 | I43: 2 | J43: 0 | K43: =IF(OR($C43="S",$C43=0),0,MATCH(OFFSET($D43,0,$C43)+IF($C43<>1,1,COUNTIF(QCI!$A$13:$A$24,ORÇAMENTO!E43)),OFFSET($D43,1,$C43,ROW($C$190)-ROW($C43)),0)) -> 0 | L43: F | M43: Serviço | N43: Serviço | O43: 1.1.3.1.2. | P43: SINAPI | Q43: 72183 | R43: PISO EM CONCRETO 20MPA PREPARO MECANICO, ESPESSURA 7 CM, COM ARMACAO EM TELA SOLDADA | S43: M2 | T43: =OFFSET(CÁLCULO!H$15,ROW($T43)-ROW(T$15),0) -> 48.9 | U43: 54 | V43: BDI 1 | W43: 66.71 | X43: 3262.12 | Y43: RA | Z43: RA | AA43: =IF($C43="S",IF($Z43="CP",$X43,IF($Z43="RA",(($X43)*QCI!$AA$3),0)),SomaAgrup) -> 452.0452784 | AB43: 0 | AD43: =IF(C43<=CRONO.NivelExibicao,MAX($AD$15:OFFSET(AD43,-1,0))+IF($C43<>1,1,MAX(1,COUNTIF(QCI!$A$13:$A$24,OFFSET($E43,-1,0)))),"") ->  | AE43: SINAPI 72183 | AF43: 11058 | AG43: 75.37 | AH43: 0.2354 | AM43: 3262.12 | AN43: 66.71
A44: S | B44: 4 | C44: S | D44: 0 | E44: =IF($C44=1,OFFSET(E44,-1,0)+MAX(1,COUNTIF(QCI!$A$13:$A$24,OFFSET(ORÇAMENTO!E44,-1,0))),OFFSET(E44,-1,0)) -> 1 | F44: 1 | G44: 3 | H44: 1 | I44: 3 | J44: 0 | K44: =IF(OR($C44="S",$C44=0),0,MATCH(OFFSET($D44,0,$C44)+IF($C44<>1,1,COUNTIF(QCI!$A$13:$A$24,ORÇAMENTO!E44)),OFFSET($D44,1,$C44,ROW($C$190)-ROW($C44)),0)) -> 0 | L44: F | M44: Serviço | N44: Serviço | O44: 1.1.3.1.3. | P44: SINAPI | Q44: 94438 | R44: CONTRAPISO EM ARGAMASSA TRAÇO 1:4 (CIM E AREIA), ESPESSURA 3 CM | S44: M2 | T44: =OFFSET(CÁLCULO!H$15,ROW($T44)-ROW(T$15),0) -> 48.9 | U44: 30 | V44: BDI 1 | W44: 37.06 | X44: 1812.23 | Y44: RA | Z44: RA | AA44: =IF($C44="S",IF($Z44="CP",$X44,IF($Z44="RA",(($X44)*QCI!$AA$3),0)),SomaAgrup) -> 251.1281053 | AB44: 0 | AD44: =IF(C44<=CRONO.NivelExibicao,MAX($AD$15:OFFSET(AD44,-1,0))+IF($C44<>1,1,MAX(1,COUNTIF(QCI!$A$13:$A$24,OFFSET($E44,-1,0)))),"") ->  | AE44: SINAPI 94438 | AF44: 11141 | AG44: 34.24 | AH44: 0.2354 | AM44: 1812.23 | AN44: 37.06
A45: =CHOOSE(1+LOG(1+2*(ORÇAMENTO.Nivel="Meta")+4*(ORÇAMENTO.Nivel="Nível 2")+8*(ORÇAMENTO.Nivel="Nível 3")+16*(ORÇAMENTO.Nivel="Nível 4")+32*(ORÇAMENTO.Nivel="Serviço"),2),0,1,2,3,4,"S") -> 4 | B45: =IF(OR(C45="s",C45=0),OFFSET(B45,-1,0),C45) -> 4 | C45: =IF(OFFSET(C45,-1,0)="L",1,IF(OFFSET(C45,-1,0)=1,2,IF(OR(A45="s",A45=0),"S",IF(AND(OFFSET(C45,-1,0)=2,A45=4),3,IF(AND(OR(OFFSET(C45,-1,0)="s",OFFSET(C45,-1,0)=0),A45<>"s",A45>OFFSET(B45,-1,0)),OFFSET(B45,-1,0),A45))))) -> 4 | D45: =IF(OR(C45="S",C45=0),0,IF(ISERROR(K45),J45,SMALL(J45:K45,1))) -> 4 | E45: =IF($C45=1,OFFSET(E45,-1,0)+MAX(1,COUNTIF(QCI!$A$13:$A$24,OFFSET(ORÇAMENTO!E45,-1,0))),OFFSET(E45,-1,0)) -> 1 | F45: =IF($C45=1,0,IF($C45=2,OFFSET(F45,-1,0)+1,OFFSET(F45,-1,0))) -> 1 | G45: =IF(AND($C45<=2,$C45<>0),0,IF($C45=3,OFFSET(G45,-1,0)+1,OFFSET(G45,-1,0))) -> 3 | H45: =IF(AND($C45<=3,$C45<>0),0,IF($C45=4,OFFSET(H45,-1,0)+1,OFFSET(H45,-1,0))) -> 2 | I45: =IF(AND($C45<=4,$C45<>0),0,IF(AND($C45="S",$X45>0),OFFSET(I45,-1,0)+1,OFFSET(I45,-1,0))) -> 0 | J45: 4 | K45: =IF(OR($C45="S",$C45=0),0,MATCH(OFFSET($D45,0,$C45)+IF($C45<>1,1,COUNTIF(QCI!$A$13:$A$24,ORÇAMENTO!E45)),OFFSET($D45,1,$C45,ROW($C$190)-ROW($C45)),0)) -> 10 | L45: =IF(OR($X45>0,$C45=1,$C45=2,$C45=3,$C45=4),"F","") -> F | M45: Nível 4 | N45: =CHOOSE(1+LOG(1+2*(C45=1)+4*(C45=2)+8*(C45=3)+16*(C45=4)+32*(C45="S"),2),"","Meta","Nível 2","Nível 3","Nível 4","Serviço") -> Nível 4 | O45: =IF(OR($C45=0,$L45=""),"-",CONCATENATE(E45&".",IF(AND($A$5>=2,$C45>=2),F45&".",""),IF(AND($A$5>=3,$C45>=3),G45&".",""),IF(AND($A$5>=4,$C45>=4),H45&".",""),IF($C45="S",I45&".",""))) -> 1.1.3.2. | P45: SINAPI | R45: Revestimento para Pisos | S45: - | T45: =OFFSET(CÁLCULO!H$15,ROW($T45)-ROW(T$15),0) -> 0 | U45: 0 | V45: BDI 1 | W45: =IF($C45="S",ROUND(IF(TIPOORCAMENTO="Proposto",ORÇAMENTO.CustoUnitario*(1+$AH45),ORÇAMENTO.PrecoUnitarioLicitado),15-13*$AF$10),0) -> 0 | X45: =IF($C45="S",VTOTAL1,IF($C45=0,0,ROUND(SomaAgrup,15-13*$AF$11))) -> 3953.48 | Y45: RA | Z45: =IF(AND($C45="S",$X45>0),IF(ISBLANK($Y45),"RA",LEFT($Y45,2)),"") ->  | AA45: =IF($C45="S",IF($Z45="CP",$X45,IF($Z45="RA",(($X45)*QCI!$AA$3),0)),SomaAgrup) -> 547.8498545 | AB45: =IF($C45="S",IF($Z45="OU",ROUND($X45,2),0),SomaAgrup) -> 0 | AC45: =IF($N45="","",IF(ORÇAMENTO.Descricao="","DESCRIÇÃO",IF(AND($C45="S",ORÇAMENTO.Unidade=""),"UNIDADE",IF($X45<0,"VALOR NEGATIVO",IF(OR(AND(TIPOORCAMENTO="Proposto",$AG45<>"",$AG45>0,ORÇAMENTO.CustoUnitario>$AG45),AND(TIPOORCAMENTO="LICITADO",ORÇAMENTO.PrecoUnitarioLicitado>$AN45)),"ACIMA REF.",""))))) ->  | AD45: =IF(C45<=CRONO.NivelExibicao,MAX($AD$15:OFFSET(AD45,-1,0))+IF($C45<>1,1,MAX(1,COUNTIF(QCI!$A$13:$A$24,OFFSET($E45,-1,0)))),"") ->  | AE45: =IF(AND($C45="S",ORÇAMENTO.CodBarra<>""),IF(ORÇAMENTO.Fonte="",ORÇAMENTO.CodBarra,CONCATENATE(ORÇAMENTO.Fonte," ",ORÇAMENTO.CodBarra))) -> FALSE | AF45: =IF(ISERROR(INDIRECT(ORÇAMENTO.BancoRef)),"(abra o arquivo 'Referência "&Excel_BuiltIn_Database&".xls)",IF(OR($C45<>"S",ORÇAMENTO.CodBarra=""),"(Sem Código)",IF(ISERROR(MATCH($AE45,INDIRECT(ORÇAMENTO.BancoRef),0)),"(Código não identificado nas referências)",MATCH($AE45,INDIRECT(ORÇAMENTO.BancoRef),0)))) -> (Sem Código) | AG45: =ROUND(IF(DESONERACAO="sim",REFERENCIA.Desonerado,REFERENCIA.NaoDesonerado),2) -> 0 | AH45: =ROUND(IF(ISNUMBER(ORÇAMENTO.OpcaoBDI),ORÇAMENTO.OpcaoBDI,IF(LEFT(ORÇAMENTO.OpcaoBDI,3)="BDI",HLOOKUP(ORÇAMENTO.OpcaoBDI,$F$4:$H$5,2,FALSE),0)),15-11*$AF$9) -> 0.2354 | AM45: 3953.48 | AN45: =ROUND(ORÇAMENTO.CustoUnitario*(1+$AH45),2) -> 0
A46: S | B46: 4 | C46: S | D46: 0 | E46: =IF($C46=1,OFFSET(E46,-1,0)+MAX(1,COUNTIF(QCI!$A$13:$A$24,OFFSET(ORÇAMENTO!E46,-1,0))),OFFSET(E46,-1,0)) -> 1 | F46: 1 | G46: 3 | H46: 2 | I46: 1 | J46: 0 | K46: =IF(OR($C46="S",$C46=0),0,MATCH(OFFSET($D46,0,$C46)+IF($C46<>1,1,COUNTIF(QCI!$A$13:$A$24,ORÇAMENTO!E46)),OFFSET($D46,1,$C46,ROW($C$190)-ROW($C46)),0)) -> 0 | L46: F | M46: Serviço | N46: Serviço | O46: 1.1.3.2.1. | P46: SINAPI | Q46: 87257 | R46: REVESTIMENTO CERÂMICO PARA PISO COM PLACAS TIPO ESMALTADA EXTRA DE DIMENSÕES 60X60 CM | S46: M2 | T46: =OFFSET(CÁLCULO!H$15,ROW($T46)-ROW(T$15),0) -> 48.9 | U46: 50 | V46: BDI 1 | W46: 61.77 | X46: 3020.55 | Y46: RA | Z46: RA | AA46: =IF($C46="S",IF($Z46="CP",$X46,IF($Z46="RA",(($X46)*QCI!$AA$3),0)),SomaAgrup) -> 418.5699379 | AB46: 0 | AD46: =IF(C46<=CRONO.NivelExibicao,MAX($AD$15:OFFSET(AD46,-1,0))+IF($C46<>1,1,MAX(1,COUNTIF(QCI!$A$13:$A$24,OFFSET($E46,-1,0)))),"") ->  | AE46: SINAPI 87257 | AF46: 11009 | AG46: 55.56 | AH46: 0.2354 | AM46: 3020.55 | AN46: 61.77
A47: S | B47: 4 | C47: S | D47: 0 | E47: =IF($C47=1,OFFSET(E47,-1,0)+MAX(1,COUNTIF(QCI!$A$13:$A$24,OFFSET(ORÇAMENTO!E47,-1,0))),OFFSET(E47,-1,0)) -> 1 | F47: 1 | G47: 3 | H47: 2 | I47: 2 | J47: 0 | K47: =IF(OR($C47="S",$C47=0),0,MATCH(OFFSET($D47,0,$C47)+IF($C47<>1,1,COUNTIF(QCI!$A$13:$A$24,ORÇAMENTO!E47)),OFFSET($D47,1,$C47,ROW($C$190)-ROW($C47)),0)) -> 0 | L47: F | M47: Serviço | N47: Serviço | O47: 1.1.3.2.2. | P47: SINAPI | Q47: 88650 | R47: RODAPÉ CERÂMICO DE 7CM DE ALTURA COM PLACAS TIPO ESMALTADA EXTRA DE DIMENSÕES 60X60CM | S47: M | T47: =OFFSET(CÁLCULO!H$15,ROW($T47)-ROW(T$15),0) -> 61.9 | U47: 9 | V47: BDI 1 | W47: 11.12 | X47: 688.33 | Y47: RA | Z47: RA | AA47: =IF($C47="S",IF($Z47="CP",$X47,IF($Z47="RA",(($X47)*QCI!$AA$3),0)),SomaAgrup) -> 95.38469661 | AB47: 0 | AD47: =IF(C47<=CRONO.NivelExibicao,MAX($AD$15:OFFSET(AD47,-1,0))+IF($C47<>1,1,MAX(1,COUNTIF(QCI!$A$13:$A$24,OFFSET($E47,-1,0)))),"") ->  | AE47: SINAPI 88650 | AF47: 11052 | AG47: 10.24 | AH47: 0.2354 | AM47: 688.33 | AN47: 11.12
A48: =CHOOSE(1+LOG(1+2*(ORÇAMENTO.Nivel="Meta")+4*(ORÇAMENTO.Nivel="Nível 2")+8*(ORÇAMENTO.Nivel="Nível 3")+16*(ORÇAMENTO.Nivel="Nível 4")+32*(ORÇAMENTO.Nivel="Serviço"),2),0,1,2,3,4,"S") -> S | B48: =IF(OR(C48="s",C48=0),OFFSET(B48,-1,0),C48) -> 4 | C48: =IF(OFFSET(C48,-1,0)="L",1,IF(OFFSET(C48,-1,0)=1,2,IF(OR(A48="s",A48=0),"S",IF(AND(OFFSET(C48,-1,0)=2,A48=4),3,IF(AND(OR(OFFSET(C48,-1,0)="s",OFFSET(C48,-1,0)=0),A48<>"s",A48>OFFSET(B48,-1,0)),OFFSET(B48,-1,0),A48))))) -> S | D48: =IF(OR(C48="S",C48=0),0,IF(ISERROR(K48),J48,SMALL(J48:K48,1))) -> 0 | E48: =IF($C48=1,OFFSET(E48,-1,0)+MAX(1,COUNTIF(QCI!$A$13:$A$24,OFFSET(ORÇAMENTO!E48,-1,0))),OFFSET(E48,-1,0)) -> 1 | F48: =IF($C48=1,0,IF($C48=2,OFFSET(F48,-1,0)+1,OFFSET(F48,-1,0))) -> 1 | G48: =IF(AND($C48<=2,$C48<>0),0,IF($C48=3,OFFSET(G48,-1,0)+1,OFFSET(G48,-1,0))) -> 3 | H48: =IF(AND($C48<=3,$C48<>0),0,IF($C48=4,OFFSET(H48,-1,0)+1,OFFSET(H48,-1,0))) -> 2 | I48: =IF(AND($C48<=4,$C48<>0),0,IF(AND($C48="S",$X48>0),OFFSET(I48,-1,0)+1,OFFSET(I48,-1,0))) -> 3 | J48: =IF(OR($C48="S",$C48=0),0,MATCH(0,OFFSET($D48,1,$C48,ROW($C$190)-ROW($C48)),0)) -> 0 | K48: =IF(OR($C48="S",$C48=0),0,MATCH(OFFSET($D48,0,$C48)+IF($C48<>1,1,COUNTIF(QCI!$A$13:$A$24,ORÇAMENTO!E48)),OFFSET($D48,1,$C48,ROW($C$190)-ROW($C48)),0)) -> 0 | L48: =IF(OR($X48>0,$C48=1,$C48=2,$C48=3,$C48=4),"F","") -> F | M48: Serviço | N48: =CHOOSE(1+LOG(1+2*(C48=1)+4*(C48=2)+8*(C48=3)+16*(C48=4)+32*(C48="S"),2),"","Meta","Nível 2","Nível 3","Nível 4","Serviço") -> Serviço | O48: =IF(OR($C48=0,$L48=""),"-",CONCATENATE(E48&".",IF(AND($A$5>=2,$C48>=2),F48&".",""),IF(AND($A$5>=3,$C48>=3),G48&".",""),IF(AND($A$5>=4,$C48>=4),H48&".",""),IF($C48="S",I48&".",""))) -> 1.1.3.2.3. | P48: SINAPI | Q48: 98689 | R48: SOLEIRA EM GRANITO, LARGURA 15 CM, ESPESSURA 2,0 CM. | S48: M | T48: =OFFSET(CÁLCULO!H$15,ROW($T48)-ROW(T$15),0) -> 3.3 | U48: 60 | V48: BDI 1 | W48: =IF($C48="S",ROUND(IF(TIPOORCAMENTO="Proposto",ORÇAMENTO.CustoUnitario*(1+$AH48),ORÇAMENTO.PrecoUnitarioLicitado),15-13*$AF$10),0) -> 74.12 | X48: =IF($C48="S",VTOTAL1,IF($C48=0,0,ROUND(SomaAgrup,15-13*$AF$11))) -> 244.6 | Y48: RA | Z48: =IF(AND($C48="S",$X48>0),IF(ISBLANK($Y48),"RA",LEFT($Y48,2)),"") -> RA | AA48: =IF($C48="S",IF($Z48="CP",$X48,IF($Z48="RA",(($X48)*QCI!$AA$3),0)),SomaAgrup) -> 33.89522001 | AB48: =IF($C48="S",IF($Z48="OU",ROUND($X48,2),0),SomaAgrup) -> 0 | AC48: =IF($N48="","",IF(ORÇAMENTO.Descricao="","DESCRIÇÃO",IF(AND($C48="S",ORÇAMENTO.Unidade=""),"UNIDADE",IF($X48<0,"VALOR NEGATIVO",IF(OR(AND(TIPOORCAMENTO="Proposto",$AG48<>"",$AG48>0,ORÇAMENTO.CustoUnitario>$AG48),AND(TIPOORCAMENTO="LICITADO",ORÇAMENTO.PrecoUnitarioLicitado>$AN48)),"ACIMA REF.",""))))) ->  | AD48: =IF(C48<=CRONO.NivelExibicao,MAX($AD$15:OFFSET(AD48,-1,0))+IF($C48<>1,1,MAX(1,COUNTIF(QCI!$A$13:$A$24,OFFSET($E48,-1,0)))),"") ->  | AE48: =IF(AND($C48="S",ORÇAMENTO.CodBarra<>""),IF(ORÇAMENTO.Fonte="",ORÇAMENTO.CodBarra,CONCATENATE(ORÇAMENTO.Fonte," ",ORÇAMENTO.CodBarra))) -> SINAPI 98689 | AF48: =IF(ISERROR(INDIRECT(ORÇAMENTO.BancoRef)),"(abra o arquivo 'Referência "&Excel_BuiltIn_Database&".xls)",IF(OR($C48<>"S",ORÇAMENTO.CodBarra=""),"(Sem Código)",IF(ISERROR(MATCH($AE48,INDIRECT(ORÇAMENTO.BancoRef),0)),"(Código não identificado nas referências)",MATCH($AE48,INDIRECT(ORÇAMENTO.BancoRef),0)))) -> 11035 | AG48: =ROUND(IF(DESONERACAO="sim",REFERENCIA.Desonerado,REFERENCIA.NaoDesonerado),2) -> 61.39 | AH48: =ROUND(IF(ISNUMBER(ORÇAMENTO.OpcaoBDI),ORÇAMENTO.OpcaoBDI,IF(LEFT(ORÇAMENTO.OpcaoBDI,3)="BDI",HLOOKUP(ORÇAMENTO.OpcaoBDI,$F$4:$H$5,2,FALSE),0)),15-11*$AF$9) -> 0.2354 | AM48: 244.6 | AN48: =ROUND(ORÇAMENTO.CustoUnitario*(1+$AH48),2) -> 74.12
A49: 3 | B49: 3 | C49: 3 | D49: 16 | E49: =IF($C49=1,OFFSET(E49,-1,0)+MAX(1,COUNTIF(QCI!$A$13:$A$24,OFFSET(ORÇAMENTO!E49,-1,0))),OFFSET(E49,-1,0)) -> 1 | F49: 1 | G49: 4 | H49: 0 | I49: 0 | J49: 100 | K49: =IF(OR($C49="S",$C49=0),0,MATCH(OFFSET($D49,0,$C49)+IF($C49<>1,1,COUNTIF(QCI!$A$13:$A$24,ORÇAMENTO!E49)),OFFSET($D49,1,$C49,ROW($C$190)-ROW($C49)),0)) -> 16 | L49: F | M49: Nível 3 | N49: Nível 3 | O49: 1.1.4. | P49: SINAPI | R49: Alvenarias, Fechamentos e Revestimentos | S49: - | T49: =OFFSET(CÁLCULO!H$15,ROW($T49)-ROW(T$15),0) -> 0 | U49: 0 | V49: BDI 1 | W49: 0 | X49: 43879.83 | Y49: RA | AA49: =IF($C49="S",IF($Z49="CP",$X49,IF($Z49="RA",(($X49)*QCI!$AA$3),0)),SomaAgrup) -> 6080.60708 | AB49: 0 | AD49: =IF(C49<=CRONO.NivelExibicao,MAX($AD$15:OFFSET(AD49,-1,0))+IF($C49<>1,1,MAX(1,COUNTIF(QCI!$A$13:$A$24,OFFSET($E49,-1,0)))),"") ->  | AE49: FALSE | AF49: (Sem Código) | AG49: 0 | AH49: 0.2354 | AM49: 43879.83 | AN49: 0
A50: =CHOOSE(1+LOG(1+2*(ORÇAMENTO.Nivel="Meta")+4*(ORÇAMENTO.Nivel="Nível 2")+8*(ORÇAMENTO.Nivel="Nível 3")+16*(ORÇAMENTO.Nivel="Nível 4")+32*(ORÇAMENTO.Nivel="Serviço"),2),0,1,2,3,4,"S") -> 4 | B50: =IF(OR(C50="s",C50=0),OFFSET(B50,-1,0),C50) -> 4 | C50: =IF(OFFSET(C50,-1,0)="L",1,IF(OFFSET(C50,-1,0)=1,2,IF(OR(A50="s",A50=0),"S",IF(AND(OFFSET(C50,-1,0)=2,A50=4),3,IF(AND(OR(OFFSET(C50,-1,0)="s",OFFSET(C50,-1,0)=0),A50<>"s",A50>OFFSET(B50,-1,0)),OFFSET(B50,-1,0),A50))))) -> 4 | D50: =IF(OR(C50="S",C50=0),0,IF(ISERROR(K50),J50,SMALL(J50:K50,1))) -> 2 | E50: =IF($C50=1,OFFSET(E50,-1,0)+MAX(1,COUNTIF(QCI!$A$13:$A$24,OFFSET(ORÇAMENTO!E50,-1,0))),OFFSET(E50,-1,0)) -> 1 | F50: =IF($C50=1,0,IF($C50=2,OFFSET(F50,-1,0)+1,OFFSET(F50,-1,0))) -> 1 | G50: =IF(AND($C50<=2,$C50<>0),0,IF($C50=3,OFFSET(G50,-1,0)+1,OFFSET(G50,-1,0))) -> 4 | H50: =IF(AND($C50<=3,$C50<>0),0,IF($C50=4,OFFSET(H50,-1,0)+1,OFFSET(H50,-1,0))) -> 1 | I50: =IF(AND($C50<=4,$C50<>0),0,IF(AND($C50="S",$X50>0),OFFSET(I50,-1,0)+1,OFFSET(I50,-1,0))) -> 0 | J50: 15 | K50: =IF(OR($C50="S",$C50=0),0,MATCH(OFFSET($D50,0,$C50)+IF($C50<>1,1,COUNTIF(QCI!$A$13:$A$24,ORÇAMENTO!E50)),OFFSET($D50,1,$C50,ROW($C$190)-ROW($C50)),0)) -> 2 | L50: =IF(OR($X50>0,$C50=1,$C50=2,$C50=3,$C50=4),"F","") -> F | M50: Nível 4 | N50: =CHOOSE(1+LOG(1+2*(C50=1)+4*(C50=2)+8*(C50=3)+16*(C50=4)+32*(C50="S"),2),"","Meta","Nível 2","Nível 3","Nível 4","Serviço") -> Nível 4 | O50: =IF(OR($C50=0,$L50=""),"-",CONCATENATE(E50&".",IF(AND($A$5>=2,$C50>=2),F50&".",""),IF(AND($A$5>=3,$C50>=3),G50&".",""),IF(AND($A$5>=4,$C50>=4),H50&".",""),IF($C50="S",I50&".",""))) -> 1.1.4.1. | P50: SINAPI | R50: Alvenaria de Vedação | S50: - | T50: =OFFSET(CÁLCULO!H$15,ROW($T50)-ROW(T$15),0) -> 0 | U50: 0 | V50: BDI 1 | W50: =IF($C50="S",ROUND(IF(TIPOORCAMENTO="Proposto",ORÇAMENTO.CustoUnitario*(1+$AH50),ORÇAMENTO.PrecoUnitarioLicitado),15-13*$AF$10),0) -> 0 | X50: =IF($C50="S",VTOTAL1,IF($C50=0,0,ROUND(SomaAgrup,15-13*$AF$11))) -> 19005.01 | Y50: RA | Z50: =IF(AND($C50="S",$X50>0),IF(ISBLANK($Y50),"RA",LEFT($Y50,2)),"") ->  | AA50: =IF($C50="S",IF($Z50="CP",$X50,IF($Z50="RA",(($X50)*QCI!$AA$3),0)),SomaAgrup) -> 2633.601779 | AB50: =IF($C50="S",IF($Z50="OU",ROUND($X50,2),0),SomaAgrup) -> 0 | AC50: =IF($N50="","",IF(ORÇAMENTO.Descricao="","DESCRIÇÃO",IF(AND($C50="S",ORÇAMENTO.Unidade=""),"UNIDADE",IF($X50<0,"VALOR NEGATIVO",IF(OR(AND(TIPOORCAMENTO="Proposto",$AG50<>"",$AG50>0,ORÇAMENTO.CustoUnitario>$AG50),AND(TIPOORCAMENTO="LICITADO",ORÇAMENTO.PrecoUnitarioLicitado>$AN50)),"ACIMA REF.",""))))) ->  | AD50: =IF(C50<=CRONO.NivelExibicao,MAX($AD$15:OFFSET(AD50,-1,0))+IF($C50<>1,1,MAX(1,COUNTIF(QCI!$A$13:$A$24,OFFSET($E50,-1,0)))),"") ->  | AE50: =IF(AND($C50="S",ORÇAMENTO.CodBarra<>""),IF(ORÇAMENTO.Fonte="",ORÇAMENTO.CodBarra,CONCATENATE(ORÇAMENTO.Fonte," ",ORÇAMENTO.CodBarra))) -> FALSE | AF50: =IF(ISERROR(INDIRECT(ORÇAMENTO.BancoRef)),"(abra o arquivo 'Referência "&Excel_BuiltIn_Database&".xls)",IF(OR($C50<>"S",ORÇAMENTO.CodBarra=""),"(Sem Código)",IF(ISERROR(MATCH($AE50,INDIRECT(ORÇAMENTO.BancoRef),0)),"(Código não identificado nas referências)",MATCH($AE50,INDIRECT(ORÇAMENTO.BancoRef),0)))) -> (Sem Código) | AG50: =ROUND(IF(DESONERACAO="sim",REFERENCIA.Desonerado,REFERENCIA.NaoDesonerado),2) -> 0 | AH50: =ROUND(IF(ISNUMBER(ORÇAMENTO.OpcaoBDI),ORÇAMENTO.OpcaoBDI,IF(LEFT(ORÇAMENTO.OpcaoBDI,3)="BDI",HLOOKUP(ORÇAMENTO.OpcaoBDI,$F$4:$H$5,2,FALSE),0)),15-11*$AF$9) -> 0.2354 | AM50: 19005.01 | AN50: =ROUND(ORÇAMENTO.CustoUnitario*(1+$AH50),2) -> 0
A51: S | B51: 4 | C51: S | D51: 0 | E51: =IF($C51=1,OFFSET(E51,-1,0)+MAX(1,COUNTIF(QCI!$A$13:$A$24,OFFSET(ORÇAMENTO!E51,-1,0))),OFFSET(E51,-1,0)) -> 1 | F51: 1 | G51: 4 | H51: 1 | I51: 1 | J51: 0 | K51: =IF(OR($C51="S",$C51=0),0,MATCH(OFFSET($D51,0,$C51)+IF($C51<>1,1,COUNTIF(QCI!$A$13:$A$24,ORÇAMENTO!E51)),OFFSET($D51,1,$C51,ROW($C$190)-ROW($C51)),0)) -> 0 | L51: F | M51: Serviço | N51: Serviço | O51: 1.1.4.1.1. | P51: SINAPI | Q51: 89977 | R51: ALVENARIA DE VEDAÇÃO DE BLOCOS VAZADOS DE CERÂMICA DE 14X9X19CM (ESPESSURA 14CM, BLOCO DEITADO) | S51: M2 | T51: =OFFSET(CÁLCULO!H$15,ROW($T51)-ROW(T$15),0) -> 192.3 | U51: 80 | V51: BDI 1 | W51: 98.83 | X51: 19005.01 | Y51: RA | Z51: RA | AA51: =IF($C51="S",IF($Z51="CP",$X51,IF($Z51="RA",(($X51)*QCI!$AA$3),0)),SomaAgrup) -> 2633.601779 | AB51: 0 | AD51: =IF(C51<=CRONO.NivelExibicao,MAX($AD$15:OFFSET(AD51,-1,0))+IF($C51<>1,1,MAX(1,COUNTIF(QCI!$A$13:$A$24,OFFSET($E51,-1,0)))),"") ->  | AE51: SINAPI 89977 | AF51: 10662 | AG51: 117.33 | AH51: 0.2354 | AM51: 19005.01 | AN51: 98.83
A52: =CHOOSE(1+LOG(1+2*(ORÇAMENTO.Nivel="Meta")+4*(ORÇAMENTO.Nivel="Nível 2")+8*(ORÇAMENTO.Nivel="Nível 3")+16*(ORÇAMENTO.Nivel="Nível 4")+32*(ORÇAMENTO.Nivel="Serviço"),2),0,1,2,3,4,"S") -> 4 | B52: =IF(OR(C52="s",C52=0),OFFSET(B52,-1,0),C52) -> 4 | C52: =IF(OFFSET(C52,-1,0)="L",1,IF(OFFSET(C52,-1,0)=1,2,IF(OR(A52="s",A52=0),"S",IF(AND(OFFSET(C52,-1,0)=2,A52=4),3,IF(AND(OR(OFFSET(C52,-1,0)="s",OFFSET(C52,-1,0)=0),A52<>"s",A52>OFFSET(B52,-1,0)),OFFSET(B52,-1,0),A52))))) -> 4 | D52: =IF(OR(C52="S",C52=0),0,IF(ISERROR(K52),J52,SMALL(J52:K52,1))) -> 3 | E52: =IF($C52=1,OFFSET(E52,-1,0)+MAX(1,COUNTIF(QCI!$A$13:$A$24,OFFSET(ORÇAMENTO!E52,-1,0))),OFFSET(E52,-1,0)) -> 1 | F52: =IF($C52=1,0,IF($C52=2,OFFSET(F52,-1,0)+1,OFFSET(F52,-1,0))) -> 1 | G52: =IF(AND($C52<=2,$C52<>0),0,IF($C52=3,OFFSET(G52,-1,0)+1,OFFSET(G52,-1,0))) -> 4 | H52: =IF(AND($C52<=3,$C52<>0),0,IF($C52=4,OFFSET(H52,-1,0)+1,OFFSET(H52,-1,0))) -> 2 | I52: =IF(AND($C52<=4,$C52<>0),0,IF(AND($C52="S",$X52>0),OFFSET(I52,-1,0)+1,OFFSET(I52,-1,0))) -> 0 | J52: 13 | K52: =IF(OR($C52="S",$C52=0),0,MATCH(OFFSET($D52,0,$C52)+IF($C52<>1,1,COUNTIF(QCI!$A$13:$A$24,ORÇAMENTO!E52)),OFFSET($D52,1,$C52,ROW($C$190)-ROW($C52)),0)) -> 3 | L52: =IF(OR($X52>0,$C52=1,$C52=2,$C52=3,$C52=4),"F","") -> F | M52: Nível 4 | N52: =CHOOSE(1+LOG(1+2*(C52=1)+4*(C52=2)+8*(C52=3)+16*(C52=4)+32*(C52="S"),2),"","Meta","Nível 2","Nível 3","Nível 4","Serviço") -> Nível 4 | O52: =IF(OR($C52=0,$L52=""),"-",CONCATENATE(E52&".",IF(AND($A$5>=2,$C52>=2),F52&".",""),IF(AND($A$5>=3,$C52>=3),G52&".",""),IF(AND($A$5>=4,$C52>=4),H52&".",""),IF($C52="S",I52&".",""))) -> 1.1.4.2. | P52: SINAPI | R52: Chapisco e Emboço | S52: - | T52: =OFFSET(CÁLCULO!H$15,ROW($T52)-ROW(T$15),0) -> 0 | U52: 0 | V52: BDI 1 | W52: =IF($C52="S",ROUND(IF(TIPOORCAMENTO="Proposto",ORÇAMENTO.CustoUnitario*(1+$AH52),ORÇAMENTO.PrecoUnitarioLicitado),15-13*$AF$10),0) -> 0 | X52: =IF($C52="S",VTOTAL1,IF($C52=0,0,ROUND(SomaAgrup,15-13*$AF$11))) -> 9211.26 | Y52: RA | Z52: =IF(AND($C52="S",$X52>0),IF(ISBLANK($Y52),"RA",LEFT($Y52,2)),"") ->  | AA52: =IF($C52="S",IF($Z52="CP",$X52,IF($Z52="RA",(($X52)*QCI!$AA$3),0)),SomaAgrup) -> 1276.441882 | AB52: =IF($C52="S",IF($Z52="OU",ROUND($X52,2),0),SomaAgrup) -> 0 | AC52: =IF($N52="","",IF(ORÇAMENTO.Descricao="","DESCRIÇÃO",IF(AND($C52="S",ORÇAMENTO.Unidade=""),"UNIDADE",IF($X52<0,"VALOR NEGATIVO",IF(OR(AND(TIPOORCAMENTO="Proposto",$AG52<>"",$AG52>0,ORÇAMENTO.CustoUnitario>$AG52),AND(TIPOORCAMENTO="LICITADO",ORÇAMENTO.PrecoUnitarioLicitado>$AN52)),"ACIMA REF.",""))))) ->  | AD52: =IF(C52<=CRONO.NivelExibicao,MAX($AD$15:OFFSET(AD52,-1,0))+IF($C52<>1,1,MAX(1,COUNTIF(QCI!$A$13:$A$24,OFFSET($E52,-1,0)))),"") ->  | AE52: =IF(AND($C52="S",ORÇAMENTO.CodBarra<>""),IF(ORÇAMENTO.Fonte="",ORÇAMENTO.CodBarra,CONCATENATE(ORÇAMENTO.Fonte," ",ORÇAMENTO.CodBarra))) -> FALSE | AF52: =IF(ISERROR(INDIRECT(ORÇAMENTO.BancoRef)),"(abra o arquivo 'Referência "&Excel_BuiltIn_Database&".xls)",IF(OR($C52<>"S",ORÇAMENTO.CodBarra=""),"(Sem Código)",IF(ISERROR(MATCH($AE52,INDIRECT(ORÇAMENTO.BancoRef),0)),"(Código não identificado nas referências)",MATCH($AE52,INDIRECT(ORÇAMENTO.BancoRef),0)))) -> (Sem Código) | AG52: =ROUND(IF(DESONERACAO="sim",REFERENCIA.Desonerado,REFERENCIA.NaoDesonerado),2) -> 0 | AH52: =ROUND(IF(ISNUMBER(ORÇAMENTO.OpcaoBDI),ORÇAMENTO.OpcaoBDI,IF(LEFT(ORÇAMENTO.OpcaoBDI,3)="BDI",HLOOKUP(ORÇAMENTO.OpcaoBDI,$F$4:$H$5,2,FALSE),0)),15-11*$AF$9) -> 0.2354 | AM52: 9211.26 | AN52: =ROUND(ORÇAMENTO.CustoUnitario*(1+$AH52),2) -> 0
A53: S | B53: 4 | C53: S | D53: 0 | E53: =IF($C53=1,OFFSET(E53,-1,0)+MAX(1,COUNTIF(QCI!$A$13:$A$24,OFFSET(ORÇAMENTO!E53,-1,0))),OFFSET(E53,-1,0)) -> 1 | F53: 1 | G53: 4 | H53: 2 | I53: 1 | J53: 0 | K53: =IF(OR($C53="S",$C53=0),0,MATCH(OFFSET($D53,0,$C53)+IF($C53<>1,1,COUNTIF(QCI!$A$13:$A$24,ORÇAMENTO!E53)),OFFSET($D53,1,$C53,ROW($C$190)-ROW($C53)),0)) -> 0 | L53: F | M53: Serviço | N53: Serviço | O53: 1.1.4.2.1. | P53: SINAPI | Q53: 87879 | R53: CHAPISCO APLICADO EM ALVENARIAS E ESTRUTURAS DE CONCRETO, ARGAMASSA TRAÇO 1:3 | S53: M2 | T53: =OFFSET(CÁLCULO!H$15,ROW($T53)-ROW(T$15),0) -> 363.65 | U53: 2.5 | V53: BDI 1 | W53: 3.09 | X53: 1123.68 | Y53: RA | Z53: RA | AA53: =IF($C53="S",IF($Z53="CP",$X53,IF($Z53="RA",(($X53)*QCI!$AA$3),0)),SomaAgrup) -> 155.7129224 | AB53: 0 | AD53: =IF(C53<=CRONO.NivelExibicao,MAX($AD$15:OFFSET(AD53,-1,0))+IF($C53<>1,1,MAX(1,COUNTIF(QCI!$A$13:$A$24,OFFSET($E53,-1,0)))),"") ->  | AE53: SINAPI 87879 | AF53: 11153 | AG53: 3.17 | AH53: 0.2354 | AM53: 1123.68 | AN53: 3.09
A54: S | B54: 4 | C54: S | D54: 0 | E54: =IF($C54=1,OFFSET(E54,-1,0)+MAX(1,COUNTIF(QCI!$A$13:$A$24,OFFSET(ORÇAMENTO!E54,-1,0))),OFFSET(E54,-1,0)) -> 1 | F54: 1 | G54: 4 | H54: 2 | I54: 2 | J54: 0 | K54: =IF(OR($C54="S",$C54=0),0,MATCH(OFFSET($D54,0,$C54)+IF($C54<>1,1,COUNTIF(QCI!$A$13:$A$24,ORÇAMENTO!E54)),OFFSET($D54,1,$C54,ROW($C$190)-ROW($C54)),0)) -> 0 | L54: F | M54: Serviço | N54: Serviço | O54: 1.1.4.2.2. | P54: SINAPI | Q54: 89173 | R54: EMBOÇO/MASSA ÚNICA, TRAÇO 1:2:8, COM EXECUÇÃO DE TALISCAS | S54: M2 | T54: =OFFSET(CÁLCULO!H$15,ROW($T54)-ROW(T$15),0) -> 363.65 | U54: 18 | V54: BDI 1 | W54: 22.24 | X54: 8087.58 | Y54: RA | Z54: RA | AA54: =IF($C54="S",IF($Z54="CP",$X54,IF($Z54="RA",(($X54)*QCI!$AA$3),0)),SomaAgrup) -> 1120.728959 | AB54: 0 | AD54: =IF(C54<=CRONO.NivelExibicao,MAX($AD$15:OFFSET(AD54,-1,0))+IF($C54<>1,1,MAX(1,COUNTIF(QCI!$A$13:$A$24,OFFSET($E54,-1,0)))),"") ->  | AE54: SINAPI 89173 | AF54: 11311 | AG54: 26.11 | AH54: 0.2354 | AM54: 8087.58 | AN54: 22.24
A55: =CHOOSE(1+LOG(1+2*(ORÇAMENTO.Nivel="Meta")+4*(ORÇAMENTO.Nivel="Nível 2")+8*(ORÇAMENTO.Nivel="Nível 3")+16*(ORÇAMENTO.Nivel="Nível 4")+32*(ORÇAMENTO.Nivel="Serviço"),2),0,1,2,3,4,"S") -> 4 | B55: =IF(OR(C55="s",C55=0),OFFSET(B55,-1,0),C55) -> 4 | C55: =IF(OFFSET(C55,-1,0)="L",1,IF(OFFSET(C55,-1,0)=1,2,IF(OR(A55="s",A55=0),"S",IF(AND(OFFSET(C55,-1,0)=2,A55=4),3,IF(AND(OR(OFFSET(C55,-1,0)="s",OFFSET(C55,-1,0)=0),A55<>"s",A55>OFFSET(B55,-1,0)),OFFSET(B55,-1,0),A55))))) -> 4 | D55: =IF(OR(C55="S",C55=0),0,IF(ISERROR(K55),J55,SMALL(J55:K55,1))) -> 3 | E55: =IF($C55=1,OFFSET(E55,-1,0)+MAX(1,COUNTIF(QCI!$A$13:$A$24,OFFSET(ORÇAMENTO!E55,-1,0))),OFFSET(E55,-1,0)) -> 1 | F55: =IF($C55=1,0,IF($C55=2,OFFSET(F55,-1,0)+1,OFFSET(F55,-1,0))) -> 1 | G55: =IF(AND($C55<=2,$C55<>0),0,IF($C55=3,OFFSET(G55,-1,0)+1,OFFSET(G55,-1,0))) -> 4 | H55: =IF(AND($C55<=3,$C55<>0),0,IF($C55=4,OFFSET(H55,-1,0)+1,OFFSET(H55,-1,0))) -> 3 | I55: =IF(AND($C55<=4,$C55<>0),0,IF(AND($C55="S",$X55>0),OFFSET(I55,-1,0)+1,OFFSET(I55,-1,0))) -> 0 | J55: 10 | K55: =IF(OR($C55="S",$C55=0),0,MATCH(OFFSET($D55,0,$C55)+IF($C55<>1,1,COUNTIF(QCI!$A$13:$A$24,ORÇAMENTO!E55)),OFFSET($D55,1,$C55,ROW($C$190)-ROW($C55)),0)) -> 3 | L55: =IF(OR($X55>0,$C55=1,$C55=2,$C55=3,$C55=4),"F","") -> F | M55: Nível 4 | N55: =CHOOSE(1+LOG(1+2*(C55=1)+4*(C55=2)+8*(C55=3)+16*(C55=4)+32*(C55="S"),2),"","Meta","Nível 2","Nível 3","Nível 4","Serviço") -> Nível 4 | O55: =IF(OR($C55=0,$L55=""),"-",CONCATENATE(E55&".",IF(AND($A$5>=2,$C55>=2),F55&".",""),IF(AND($A$5>=3,$C55>=3),G55&".",""),IF(AND($A$5>=4,$C55>=4),H55&".",""),IF($C55="S",I55&".",""))) -> 1.1.4.3. | P55: SINAPI | R55: Vergas e Contravergas | S55: - | T55: =OFFSET(CÁLCULO!H$15,ROW($T55)-ROW(T$15),0) -> 0 | U55: 0 | V55: BDI 1 | W55: =IF($C55="S",ROUND(IF(TIPOORCAMENTO="Proposto",ORÇAMENTO.CustoUnitario*(1+$AH55),ORÇAMENTO.PrecoUnitarioLicitado),15-13*$AF$10),0) -> 0 | X55: =IF($C55="S",VTOTAL1,IF($C55=0,0,ROUND(SomaAgrup,15-13*$AF$11))) -> 553.5 | Y55: RA | Z55: =IF(AND($C55="S",$X55>0),IF(ISBLANK($Y55),"RA",LEFT($Y55,2)),"") ->  | AA55: =IF($C55="S",IF($Z55="CP",$X55,IF($Z55="RA",(($X55)*QCI!$AA$3),0)),SomaAgrup) -> 76.70075338 | AB55: =IF($C55="S",IF($Z55="OU",ROUND($X55,2),0),SomaAgrup) -> 0 | AC55: =IF($N55="","",IF(ORÇAMENTO.Descricao="","DESCRIÇÃO",IF(AND($C55="S",ORÇAMENTO.Unidade=""),"UNIDADE",IF($X55<0,"VALOR NEGATIVO",IF(OR(AND(TIPOORCAMENTO="Proposto",$AG55<>"",$AG55>0,ORÇAMENTO.CustoUnitario>$AG55),AND(TIPOORCAMENTO="LICITADO",ORÇAMENTO.PrecoUnitarioLicitado>$AN55)),"ACIMA REF.",""))))) ->  | AD55: =IF(C55<=CRONO.NivelExibicao,MAX($AD$15:OFFSET(AD55,-1,0))+IF($C55<>1,1,MAX(1,COUNTIF(QCI!$A$13:$A$24,OFFSET($E55,-1,0)))),"") ->  | AE55: =IF(AND($C55="S",ORÇAMENTO.CodBarra<>""),IF(ORÇAMENTO.Fonte="",ORÇAMENTO.CodBarra,CONCATENATE(ORÇAMENTO.Fonte," ",ORÇAMENTO.CodBarra))) -> FALSE | AF55: =IF(ISERROR(INDIRECT(ORÇAMENTO.BancoRef)),"(abra o arquivo 'Referência "&Excel_BuiltIn_Database&".xls)",IF(OR($C55<>"S",ORÇAMENTO.CodBarra=""),"(Sem Código)",IF(ISERROR(MATCH($AE55,INDIRECT(ORÇAMENTO.BancoRef),0)),"(Código não identificado nas referências)",MATCH($AE55,INDIRECT(ORÇAMENTO.BancoRef),0)))) -> (Sem Código) | AG55: =ROUND(IF(DESONERACAO="sim",REFERENCIA.Desonerado,REFERENCIA.NaoDesonerado),2) -> 0 | AH55: =ROUND(IF(ISNUMBER(ORÇAMENTO.OpcaoBDI),ORÇAMENTO.OpcaoBDI,IF(LEFT(ORÇAMENTO.OpcaoBDI,3)="BDI",HLOOKUP(ORÇAMENTO.OpcaoBDI,$F$4:$H$5,2,FALSE),0)),15-11*$AF$9) -> 0.2354 | AM55: 553.5 | AN55: =ROUND(ORÇAMENTO.CustoUnitario*(1+$AH55),2) -> 0
A56: S | B56: 4 | C56: S | D56: 0 | E56: =IF($C56=1,OFFSET(E56,-1,0)+MAX(1,COUNTIF(QCI!$A$13:$A$24,OFFSET(ORÇAMENTO!E56,-1,0))),OFFSET(E56,-1,0)) -> 1 | F56: 1 | G56: 4 | H56: 3 | I56: 1 | J56: 0 | K56: =IF(OR($C56="S",$C56=0),0,MATCH(OFFSET($D56,0,$C56)+IF($C56<>1,1,COUNTIF(QCI!$A$13:$A$24,ORÇAMENTO!E56)),OFFSET($D56,1,$C56,ROW($C$190)-ROW($C56)),0)) -> 0 | L56: F | M56: Serviço | N56: Serviço | O56: 1.1.4.3.1. | P56: SINAPI | Q56: 93194 | R56: CONTRAVERGA PRÉ-MOLDADA | S56: M | T56: =OFFSET(CÁLCULO!H$15,ROW($T56)-ROW(T$15),0) -> 8.2 | U56: 20 | V56: BDI 1 | W56: 24.71 | X56: 202.62 | Y56: RA | Z56: RA | AA56: =IF($C56="S",IF($Z56="CP",$X56,IF($Z56="RA",(($X56)*QCI!$AA$3),0)),SomaAgrup) -> 28.07788012 | AB56: 0 | AD56: =IF(C56<=CRONO.NivelExibicao,MAX($AD$15:OFFSET(AD56,-1,0))+IF($C56<>1,1,MAX(1,COUNTIF(QCI!$A$13:$A$24,OFFSET($E56,-1,0)))),"") ->  | AE56: SINAPI 93194 | AF56: 8025 | AG56: 23.49 | AH56: 0.2354 | AM56: 202.62 | AN56: 24.71
A57: S | B57: 4 | C57: S | D57: 0 | E57: =IF($C57=1,OFFSET(E57,-1,0)+MAX(1,COUNTIF(QCI!$A$13:$A$24,OFFSET(ORÇAMENTO!E57,-1,0))),OFFSET(E57,-1,0)) -> 1 | F57: 1 | G57: 4 | H57: 3 | I57: 2 | J57: 0 | K57: =IF(OR($C57="S",$C57=0),0,MATCH(OFFSET($D57,0,$C57)+IF($C57<>1,1,COUNTIF(QCI!$A$13:$A$24,ORÇAMENTO!E57)),OFFSET($D57,1,$C57,ROW($C$190)-ROW($C57)),0)) -> 0 | L57: F | M57: Serviço | N57: Serviço | O57: 1.1.4.3.2. | P57: SINAPI | Q57: 93182 | R57: VERGA PRÉ-MOLDADA | S57: M | T57: =OFFSET(CÁLCULO!H$15,ROW($T57)-ROW(T$15),0) -> 14.2 | U57: 20 | V57: BDI 1 | W57: 24.71 | X57: 350.88 | Y57: RA | Z57: RA | AA57: =IF($C57="S",IF($Z57="CP",$X57,IF($Z57="RA",(($X57)*QCI!$AA$3),0)),SomaAgrup) -> 48.62287325 | AB57: 0 | AD57: =IF(C57<=CRONO.NivelExibicao,MAX($AD$15:OFFSET(AD57,-1,0))+IF($C57<>1,1,MAX(1,COUNTIF(QCI!$A$13:$A$24,OFFSET($E57,-1,0)))),"") ->  | AE57: SINAPI 93182 | AF57: 8013 | AG57: 23.87 | AH57: 0.2354 | AM57: 350.88 | AN57: 24.71
A58: =CHOOSE(1+LOG(1+2*(ORÇAMENTO.Nivel="Meta")+4*(ORÇAMENTO.Nivel="Nível 2")+8*(ORÇAMENTO.Nivel="Nível 3")+16*(ORÇAMENTO.Nivel="Nível 4")+32*(ORÇAMENTO.Nivel="Serviço"),2),0,1,2,3,4,"S") -> 4 | B58: =IF(OR(C58="s",C58=0),OFFSET(B58,-1,0),C58) -> 4 | C58: =IF(OFFSET(C58,-1,0)="L",1,IF(OFFSET(C58,-1,0)=1,2,IF(OR(A58="s",A58=0),"S",IF(AND(OFFSET(C58,-1,0)=2,A58=4),3,IF(AND(OR(OFFSET(C58,-1,0)="s",OFFSET(C58,-1,0)=0),A58<>"s",A58>OFFSET(B58,-1,0)),OFFSET(B58,-1,0),A58))))) -> 4 | D58: =IF(OR(C58="S",C58=0),0,IF(ISERROR(K58),J58,SMALL(J58:K58,1))) -> 2 | E58: =IF($C58=1,OFFSET(E58,-1,0)+MAX(1,COUNTIF(QCI!$A$13:$A$24,OFFSET(ORÇAMENTO!E58,-1,0))),OFFSET(E58,-1,0)) -> 1 | F58: =IF($C58=1,0,IF($C58=2,OFFSET(F58,-1,0)+1,OFFSET(F58,-1,0))) -> 1 | G58: =IF(AND($C58<=2,$C58<>0),0,IF($C58=3,OFFSET(G58,-1,0)+1,OFFSET(G58,-1,0))) -> 4 | H58: =IF(AND($C58<=3,$C58<>0),0,IF($C58=4,OFFSET(H58,-1,0)+1,OFFSET(H58,-1,0))) -> 4 | I58: =IF(AND($C58<=4,$C58<>0),0,IF(AND($C58="S",$X58>0),OFFSET(I58,-1,0)+1,OFFSET(I58,-1,0))) -> 0 | J58: 7 | K58: =IF(OR($C58="S",$C58=0),0,MATCH(OFFSET($D58,0,$C58)+IF($C58<>1,1,COUNTIF(QCI!$A$13:$A$24,ORÇAMENTO!E58)),OFFSET($D58,1,$C58,ROW($C$190)-ROW($C58)),0)) -> 2 | L58: =IF(OR($X58>0,$C58=1,$C58=2,$C58=3,$C58=4),"F","") -> F | M58: Nível 4 | N58: =CHOOSE(1+LOG(1+2*(C58=1)+4*(C58=2)+8*(C58=3)+16*(C58=4)+32*(C58="S"),2),"","Meta","Nível 2","Nível 3","Nível 4","Serviço") -> Nível 4 | O58: =IF(OR($C58=0,$L58=""),"-",CONCATENATE(E58&".",IF(AND($A$5>=2,$C58>=2),F58&".",""),IF(AND($A$5>=3,$C58>=3),G58&".",""),IF(AND($A$5>=4,$C58>=4),H58&".",""),IF($C58="S",I58&".",""))) -> 1.1.4.4. | P58: SINAPI | R58: Revestimento cerâmico de paredes | S58: - | T58: =OFFSET(CÁLCULO!H$15,ROW($T58)-ROW(T$15),0) -> 0 | U58: 0 | V58: BDI 1 | W58: =IF($C58="S",ROUND(IF(TIPOORCAMENTO="Proposto",ORÇAMENTO.CustoUnitario*(1+$AH58),ORÇAMENTO.PrecoUnitarioLicitado),15-13*$AF$10),0) -> 0 | X58: =IF($C58="S",VTOTAL1,IF($C58=0,0,ROUND(SomaAgrup,15-13*$AF$11))) -> 7658.08 | Y58: RA | Z58: =IF(AND($C58="S",$X58>0),IF(ISBLANK($Y58),"RA",LEFT($Y58,2)),"") ->  | AA58: =IF($C58="S",IF($Z58="CP",$X58,IF($Z58="RA",(($X58)*QCI!$AA$3),0)),SomaAgrup) -> 1061.211392 | AB58: =IF($C58="S",IF($Z58="OU",ROUND($X58,2),0),SomaAgrup) -> 0 | AC58: =IF($N58="","",IF(ORÇAMENTO.Descricao="","DESCRIÇÃO",IF(AND($C58="S",ORÇAMENTO.Unidade=""),"UNIDADE",IF($X58<0,"VALOR NEGATIVO",IF(OR(AND(TIPOORCAMENTO="Proposto",$AG58<>"",$AG58>0,ORÇAMENTO.CustoUnitario>$AG58),AND(TIPOORCAMENTO="LICITADO",ORÇAMENTO.PrecoUnitarioLicitado>$AN58)),"ACIMA REF.",""))))) ->  | AD58: =IF(C58<=CRONO.NivelExibicao,MAX($AD$15:OFFSET(AD58,-1,0))+IF($C58<>1,1,MAX(1,COUNTIF(QCI!$A$13:$A$24,OFFSET($E58,-1,0)))),"") ->  | AE58: =IF(AND($C58="S",ORÇAMENTO.CodBarra<>""),IF(ORÇAMENTO.Fonte="",ORÇAMENTO.CodBarra,CONCATENATE(ORÇAMENTO.Fonte," ",ORÇAMENTO.CodBarra))) -> FALSE | AF58: =IF(ISERROR(INDIRECT(ORÇAMENTO.BancoRef)),"(abra o arquivo 'Referência "&Excel_BuiltIn_Database&".xls)",IF(OR($C58<>"S",ORÇAMENTO.CodBarra=""),"(Sem Código)",IF(ISERROR(MATCH($AE58,INDIRECT(ORÇAMENTO.BancoRef),0)),"(Código não identificado nas referências)",MATCH($AE58,INDIRECT(ORÇAMENTO.BancoRef),0)))) -> (Sem Código) | AG58: =ROUND(IF(DESONERACAO="sim",REFERENCIA.Desonerado,REFERENCIA.NaoDesonerado),2) -> 0 | AH58: =ROUND(IF(ISNUMBER(ORÇAMENTO.OpcaoBDI),ORÇAMENTO.OpcaoBDI,IF(LEFT(ORÇAMENTO.OpcaoBDI,3)="BDI",HLOOKUP(ORÇAMENTO.OpcaoBDI,$F$4:$H$5,2,FALSE),0)),15-11*$AF$9) -> 0.2354 | AM58: 7658.08 | AN58: =ROUND(ORÇAMENTO.CustoUnitario*(1+$AH58),2) -> 0
A59: S | B59: 4 | C59: S | D59: 0 | E59: =IF($C59=1,OFFSET(E59,-1,0)+MAX(1,COUNTIF(QCI!$A$13:$A$24,OFFSET(ORÇAMENTO!E59,-1,0))),OFFSET(E59,-1,0)) -> 1 | F59: 1 | G59: 4 | H59: 4 | I59: 1 | J59: 0 | K59: =IF(OR($C59="S",$C59=0),0,MATCH(OFFSET($D59,0,$C59)+IF($C59<>1,1,COUNTIF(QCI!$A$13:$A$24,ORÇAMENTO!E59)),OFFSET($D59,1,$C59,ROW($C$190)-ROW($C59)),0)) -> 0 | L59: F | M59: Serviço | N59: Serviço | O59: 1.1.4.4.1. | P59: SINAPI | Q59: 87272 | R59: REVESTIMENTO CERÂMICO PARA PAREDES INTERNAS COM PLACAS TIPO ESMALTADA EXTRA DE DIMENSÕES 33X45 CM | S59: M2 | T59: =OFFSET(CÁLCULO!H$15,ROW($T59)-ROW(T$15),0) -> 137.76 | U59: 45 | V59: BDI 1 | W59: 55.59 | X59: 7658.08 | Y59: RA | Z59: RA | AA59: =IF($C59="S",IF($Z59="CP",$X59,IF($Z59="RA",(($X59)*QCI!$AA$3),0)),SomaAgrup) -> 1061.211392 | AB59: 0 | AD59: =IF(C59<=CRONO.NivelExibicao,MAX($AD$15:OFFSET(AD59,-1,0))+IF($C59<>1,1,MAX(1,COUNTIF(QCI!$A$13:$A$24,OFFSET($E59,-1,0)))),"") ->  | AE59: SINAPI 87272 | AF59: 11330 | AG59: 60.79 | AH59: 0.2354 | AM59: 7658.08 | AN59: 55.59
A60: =CHOOSE(1+LOG(1+2*(ORÇAMENTO.Nivel="Meta")+4*(ORÇAMENTO.Nivel="Nível 2")+8*(ORÇAMENTO.Nivel="Nível 3")+16*(ORÇAMENTO.Nivel="Nível 4")+32*(ORÇAMENTO.Nivel="Serviço"),2),0,1,2,3,4,"S") -> 4 | B60: =IF(OR(C60="s",C60=0),OFFSET(B60,-1,0),C60) -> 4 | C60: =IF(OFFSET(C60,-1,0)="L",1,IF(OFFSET(C60,-1,0)=1,2,IF(OR(A60="s",A60=0),"S",IF(AND(OFFSET(C60,-1,0)=2,A60=4),3,IF(AND(OR(OFFSET(C60,-1,0)="s",OFFSET(C60,-1,0)=0),A60<>"s",A60>OFFSET(B60,-1,0)),OFFSET(B60,-1,0),A60))))) -> 4 | D60: =IF(OR(C60="S",C60=0),0,IF(ISERROR(K60),J60,SMALL(J60:K60,1))) -> 2 | E60: =IF($C60=1,OFFSET(E60,-1,0)+MAX(1,COUNTIF(QCI!$A$13:$A$24,OFFSET(ORÇAMENTO!E60,-1,0))),OFFSET(E60,-1,0)) -> 1 | F60: =IF($C60=1,0,IF($C60=2,OFFSET(F60,-1,0)+1,OFFSET(F60,-1,0))) -> 1 | G60: =IF(AND($C60<=2,$C60<>0),0,IF($C60=3,OFFSET(G60,-1,0)+1,OFFSET(G60,-1,0))) -> 4 | H60: =IF(AND($C60<=3,$C60<>0),0,IF($C60=4,OFFSET(H60,-1,0)+1,OFFSET(H60,-1,0))) -> 5 | I60: =IF(AND($C60<=4,$C60<>0),0,IF(AND($C60="S",$X60>0),OFFSET(I60,-1,0)+1,OFFSET(I60,-1,0))) -> 0 | J60: 5 | K60: =IF(OR($C60="S",$C60=0),0,MATCH(OFFSET($D60,0,$C60)+IF($C60<>1,1,COUNTIF(QCI!$A$13:$A$24,ORÇAMENTO!E60)),OFFSET($D60,1,$C60,ROW($C$190)-ROW($C60)),0)) -> 2 | L60: =IF(OR($X60>0,$C60=1,$C60=2,$C60=3,$C60=4),"F","") -> F | M60: Nível 4 | N60: =CHOOSE(1+LOG(1+2*(C60=1)+4*(C60=2)+8*(C60=3)+16*(C60=4)+32*(C60="S"),2),"","Meta","Nível 2","Nível 3","Nível 4","Serviço") -> Nível 4 | O60: =IF(OR($C60=0,$L60=""),"-",CONCATENATE(E60&".",IF(AND($A$5>=2,$C60>=2),F60&".",""),IF(AND($A$5>=3,$C60>=3),G60&".",""),IF(AND($A$5>=4,$C60>=4),H60&".",""),IF($C60="S",I60&".",""))) -> 1.1.4.5. | P60: SINAPI | R60: Fechamentos | S60: - | T60: =OFFSET(CÁLCULO!H$15,ROW($T60)-ROW(T$15),0) -> 0 | U60: 0 | V60: BDI 1 | W60: =IF($C60="S",ROUND(IF(TIPOORCAMENTO="Proposto",ORÇAMENTO.CustoUnitario*(1+$AH60),ORÇAMENTO.PrecoUnitarioLicitado),15-13*$AF$10),0) -> 0 | X60: =IF($C60="S",VTOTAL1,IF($C60=0,0,ROUND(SomaAgrup,15-13*$AF$11))) -> 3612.31 | Y60: RA | Z60: =IF(AND($C60="S",$X60>0),IF(ISBLANK($Y60),"RA",LEFT($Y60,2)),"") ->  | AA60: =IF($C60="S",IF($Z60="CP",$X60,IF($Z60="RA",(($X60)*QCI!$AA$3),0)),SomaAgrup) -> 500.5725355 | AB60: =IF($C60="S",IF($Z60="OU",ROUND($X60,2),0),SomaAgrup) -> 0 | AC60: =IF($N60="","",IF(ORÇAMENTO.Descricao="","DESCRIÇÃO",IF(AND($C60="S",ORÇAMENTO.Unidade=""),"UNIDADE",IF($X60<0,"VALOR NEGATIVO",IF(OR(AND(TIPOORCAMENTO="Proposto",$AG60<>"",$AG60>0,ORÇAMENTO.CustoUnitario>$AG60),AND(TIPOORCAMENTO="LICITADO",ORÇAMENTO.PrecoUnitarioLicitado>$AN60)),"ACIMA REF.",""))))) ->  | AD60: =IF(C60<=CRONO.NivelExibicao,MAX($AD$15:OFFSET(AD60,-1,0))+IF($C60<>1,1,MAX(1,COUNTIF(QCI!$A$13:$A$24,OFFSET($E60,-1,0)))),"") ->  | AE60: =IF(AND($C60="S",ORÇAMENTO.CodBarra<>""),IF(ORÇAMENTO.Fonte="",ORÇAMENTO.CodBarra,CONCATENATE(ORÇAMENTO.Fonte," ",ORÇAMENTO.CodBarra))) -> FALSE | AF60: =IF(ISERROR(INDIRECT(ORÇAMENTO.BancoRef)),"(abra o arquivo 'Referência "&Excel_BuiltIn_Database&".xls)",IF(OR($C60<>"S",ORÇAMENTO.CodBarra=""),"(Sem Código)",IF(ISERROR(MATCH($AE60,INDIRECT(ORÇAMENTO.BancoRef),0)),"(Código não identificado nas referências)",MATCH($AE60,INDIRECT(ORÇAMENTO.BancoRef),0)))) -> (Sem Código) | AG60: =ROUND(IF(DESONERACAO="sim",REFERENCIA.Desonerado,REFERENCIA.NaoDesonerado),2) -> 0 | AH60: =ROUND(IF(ISNUMBER(ORÇAMENTO.OpcaoBDI),ORÇAMENTO.OpcaoBDI,IF(LEFT(ORÇAMENTO.OpcaoBDI,3)="BDI",HLOOKUP(ORÇAMENTO.OpcaoBDI,$F$4:$H$5,2,FALSE),0)),15-11*$AF$9) -> 0.2354 | AM60: 3612.31 | AN60: =ROUND(ORÇAMENTO.CustoUnitario*(1+$AH60),2) -> 0
A61: S | B61: 4 | C61: S | D61: 0 | E61: =IF($C61=1,OFFSET(E61,-1,0)+MAX(1,COUNTIF(QCI!$A$13:$A$24,OFFSET(ORÇAMENTO!E61,-1,0))),OFFSET(E61,-1,0)) -> 1 | F61: 1 | G61: 4 | H61: 5 | I61: 1 | J61: 0 | K61: =IF(OR($C61="S",$C61=0),0,MATCH(OFFSET($D61,0,$C61)+IF($C61<>1,1,COUNTIF(QCI!$A$13:$A$24,ORÇAMENTO!E61)),OFFSET($D61,1,$C61,ROW($C$190)-ROW($C61)),0)) -> 0 | L61: F | M61: Serviço | N61: Serviço | O61: 1.1.4.5.1. | P61: SINAPI | Q61: 73774/1 | R61: DIVISORIA EM MARMORITE ESPESSURA 35MM, CHUMBAMENTO NO PISO E PAREDE COM ARGAMASSA DE CIMENTO E AREIA, POLIMENTO MANUAL, EXCLUSIVE FERRAGENS | S61: M2 | T61: =OFFSET(CÁLCULO!H$15,ROW($T61)-ROW(T$15),0) -> 14.62 | U61: 200 | V61: BDI 1 | W61: 247.08 | X61: 3612.31 | Y61: RA | Z61: RA | AA61: =IF($C61="S",IF($Z61="CP",$X61,IF($Z61="RA",(($X61)*QCI!$AA$3),0)),SomaAgrup) -> 500.5725355 | AB61: 0 | AD61: =IF(C61<=CRONO.NivelExibicao,MAX($AD$15:OFFSET(AD61,-1,0))+IF($C61<>1,1,MAX(1,COUNTIF(QCI!$A$13:$A$24,OFFSET($E61,-1,0)))),"") ->  | AE61: SINAPI 73774/1 | AF61: 10769 | AG61: 303.34 | AH61: 0.2354 | AM61: 3612.31 | AN61: 247.08
A62: =CHOOSE(1+LOG(1+2*(ORÇAMENTO.Nivel="Meta")+4*(ORÇAMENTO.Nivel="Nível 2")+8*(ORÇAMENTO.Nivel="Nível 3")+16*(ORÇAMENTO.Nivel="Nível 4")+32*(ORÇAMENTO.Nivel="Serviço"),2),0,1,2,3,4,"S") -> 4 | B62: =IF(OR(C62="s",C62=0),OFFSET(B62,-1,0),C62) -> 4 | C62: =IF(OFFSET(C62,-1,0)="L",1,IF(OFFSET(C62,-1,0)=1,2,IF(OR(A62="s",A62=0),"S",IF(AND(OFFSET(C62,-1,0)=2,A62=4),3,IF(AND(OR(OFFSET(C62,-1,0)="s",OFFSET(C62,-1,0)=0),A62<>"s",A62>OFFSET(B62,-1,0)),OFFSET(B62,-1,0),A62))))) -> 4 | D62: =IF(OR(C62="S",C62=0),0,IF(ISERROR(K62),J62,SMALL(J62:K62,1))) -> 3 | E62: =IF($C62=1,OFFSET(E62,-1,0)+MAX(1,COUNTIF(QCI!$A$13:$A$24,OFFSET(ORÇAMENTO!E62,-1,0))),OFFSET(E62,-1,0)) -> 1 | F62: =IF($C62=1,0,IF($C62=2,OFFSET(F62,-1,0)+1,OFFSET(F62,-1,0))) -> 1 | G62: =IF(AND($C62<=2,$C62<>0),0,IF($C62=3,OFFSET(G62,-1,0)+1,OFFSET(G62,-1,0))) -> 4 | H62: =IF(AND($C62<=3,$C62<>0),0,IF($C62=4,OFFSET(H62,-1,0)+1,OFFSET(H62,-1,0))) -> 6 | I62: =IF(AND($C62<=4,$C62<>0),0,IF(AND($C62="S",$X62>0),OFFSET(I62,-1,0)+1,OFFSET(I62,-1,0))) -> 0 | J62: 3 | K62: =IF(OR($C62="S",$C62=0),0,MATCH(OFFSET($D62,0,$C62)+IF($C62<>1,1,COUNTIF(QCI!$A$13:$A$24,ORÇAMENTO!E62)),OFFSET($D62,1,$C62,ROW($C$190)-ROW($C62)),0)) ->  | L62: =IF(OR($X62>0,$C62=1,$C62=2,$C62=3,$C62=4),"F","") -> F | M62: Nível 4 | N62: =CHOOSE(1+LOG(1+2*(C62=1)+4*(C62=2)+8*(C62=3)+16*(C62=4)+32*(C62="S"),2),"","Meta","Nível 2","Nível 3","Nível 4","Serviço") -> Nível 4 | O62: =IF(OR($C62=0,$L62=""),"-",CONCATENATE(E62&".",IF(AND($A$5>=2,$C62>=2),F62&".",""),IF(AND($A$5>=3,$C62>=3),G62&".",""),IF(AND($A$5>=4,$C62>=4),H62&".",""),IF($C62="S",I62&".",""))) -> 1.1.4.6. | P62: SINAPI | R62: Acabamentos de Fachada | S62: - | T62: =OFFSET(CÁLCULO!H$15,ROW($T62)-ROW(T$15),0) -> 0 | U62: 0 | V62: BDI 1 | W62: =IF($C62="S",ROUND(IF(TIPOORCAMENTO="Proposto",ORÇAMENTO.CustoUnitario*(1+$AH62),ORÇAMENTO.PrecoUnitarioLicitado),15-13*$AF$10),0) -> 0 | X62: =IF($C62="S",VTOTAL1,IF($C62=0,0,ROUND(SomaAgrup,15-13*$AF$11))) -> 3839.67 | Y62: RA | Z62: =IF(AND($C62="S",$X62>0),IF(ISBLANK($Y62),"RA",LEFT($Y62,2)),"") ->  | AA62: =IF($C62="S",IF($Z62="CP",$X62,IF($Z62="RA",(($X62)*QCI!$AA$3),0)),SomaAgrup) -> 532.0787384 | AB62: =IF($C62="S",IF($Z62="OU",ROUND($X62,2),0),SomaAgrup) -> 0 | AC62: =IF($N62="","",IF(ORÇAMENTO.Descricao="","DESCRIÇÃO",IF(AND($C62="S",ORÇAMENTO.Unidade=""),"UNIDADE",IF($X62<0,"VALOR NEGATIVO",IF(OR(AND(TIPOORCAMENTO="Proposto",$AG62<>"",$AG62>0,ORÇAMENTO.CustoUnitario>$AG62),AND(TIPOORCAMENTO="LICITADO",ORÇAMENTO.PrecoUnitarioLicitado>$AN62)),"ACIMA REF.",""))))) ->  | AD62: =IF(C62<=CRONO.NivelExibicao,MAX($AD$15:OFFSET(AD62,-1,0))+IF($C62<>1,1,MAX(1,COUNTIF(QCI!$A$13:$A$24,OFFSET($E62,-1,0)))),"") ->  | AE62: =IF(AND($C62="S",ORÇAMENTO.CodBarra<>""),IF(ORÇAMENTO.Fonte="",ORÇAMENTO.CodBarra,CONCATENATE(ORÇAMENTO.Fonte," ",ORÇAMENTO.CodBarra))) -> FALSE | AF62: =IF(ISERROR(INDIRECT(ORÇAMENTO.BancoRef)),"(abra o arquivo 'Referência "&Excel_BuiltIn_Database&".xls)",IF(OR($C62<>"S",ORÇAMENTO.CodBarra=""),"(Sem Código)",IF(ISERROR(MATCH($AE62,INDIRECT(ORÇAMENTO.BancoRef),0)),"(Código não identificado nas referências)",MATCH($AE62,INDIRECT(ORÇAMENTO.BancoRef),0)))) -> (Sem Código) | AG62: =ROUND(IF(DESONERACAO="sim",REFERENCIA.Desonerado,REFERENCIA.NaoDesonerado),2) -> 0 | AH62: =ROUND(IF(ISNUMBER(ORÇAMENTO.OpcaoBDI),ORÇAMENTO.OpcaoBDI,IF(LEFT(ORÇAMENTO.OpcaoBDI,3)="BDI",HLOOKUP(ORÇAMENTO.OpcaoBDI,$F$4:$H$5,2,FALSE),0)),15-11*$AF$9) -> 0.2354 | AM62: 3839.67 | AN62: =ROUND(ORÇAMENTO.CustoUnitario*(1+$AH62),2) -> 0
A63: S | B63: 4 | C63: S | D63: 0 | E63: =IF($C63=1,OFFSET(E63,-1,0)+MAX(1,COUNTIF(QCI!$A$13:$A$24,OFFSET(ORÇAMENTO!E63,-1,0))),OFFSET(E63,-1,0)) -> 1 | F63: 1 | G63: 4 | H63: 6 | I63: 1 | J63: 0 | K63: =IF(OR($C63="S",$C63=0),0,MATCH(OFFSET($D63,0,$C63)+IF($C63<>1,1,COUNTIF(QCI!$A$13:$A$24,ORÇAMENTO!E63)),OFFSET($D63,1,$C63,ROW($C$190)-ROW($C63)),0)) -> 0 | L63: F | M63: Serviço | N63: Serviço | O63: 1.1.4.6.1. | P63: AMMOC | Q63: 48 | R63: REVESTIMENTO CERÂMICO EM TIJOLETAS LISAS 10x20x2,5CM, ASSENTADAS COM ARGAMASSA DO TIPO ACIII | S63: M2 | T63: =OFFSET(CÁLCULO!H$15,ROW($T63)-ROW(T$15),0) -> 36.12 | U63: 80 | V63: BDI 1 | W63: 98.83 | X63: 3569.74 | Y63: RA | Z63: RA | AA63: =IF($C63="S",IF($Z63="CP",$X63,IF($Z63="RA",(($X63)*QCI!$AA$3),0)),SomaAgrup) -> 494.673437 | AB63: 0 | AD63: =IF(C63<=CRONO.NivelExibicao,MAX($AD$15:OFFSET(AD63,-1,0))+IF($C63<>1,1,MAX(1,COUNTIF(QCI!$A$13:$A$24,OFFSET($E63,-1,0)))),"") ->  | AE63: AMMOC 48 | AF63: 50 | AG63: 95.06 | AH63: 0.2354 | AM63: 3569.74 | AN63: 98.83
A64: S | B64: 4 | C64: S | D64: 0 | E64: =IF($C64=1,OFFSET(E64,-1,0)+MAX(1,COUNTIF(QCI!$A$13:$A$24,OFFSET(ORÇAMENTO!E64,-1,0))),OFFSET(E64,-1,0)) -> 1 | F64: 1 | G64: 4 | H64: 6 | I64: 2 | J64: 0 | K64: =IF(OR($C64="S",$C64=0),0,MATCH(OFFSET($D64,0,$C64)+IF($C64<>1,1,COUNTIF(QCI!$A$13:$A$24,ORÇAMENTO!E64)),OFFSET($D64,1,$C64,ROW($C$190)-ROW($C64)),0)) -> 0 | L64: F | M64: Serviço | N64: Serviço | O64: 1.1.4.6.2. | P64: AMMOC | Q64: 17 | R64: MURETA PARA FLOREIRA H:35CM, INCLUSO, CHAPISCO, EMBOÇO E PINTURA SOBRE LAJE | S64: M | T64: =OFFSET(CÁLCULO!H$15,ROW($T64)-ROW(T$15),0) -> 4.37 | U64: 50 | V64: BDI 1 | W64: 61.77 | X64: 269.93 | Y64: RA | Z64: RA | AA64: =IF($C64="S",IF($Z64="CP",$X64,IF($Z64="RA",(($X64)*QCI!$AA$3),0)),SomaAgrup) -> 37.40530146 | AB64: 0 | AD64: =IF(C64<=CRONO.NivelExibicao,MAX($AD$15:OFFSET(AD64,-1,0))+IF($C64<>1,1,MAX(1,COUNTIF(QCI!$A$13:$A$24,OFFSET($E64,-1,0)))),"") ->  | AE64: AMMOC 17 | AF64: 19 | AG64: 52.58 | AH64: 0.2354 | AM64: 269.93 | AN64: 61.77
A65: 3 | B65: 3 | C65: 3 | D65: 6 | E65: =IF($C65=1,OFFSET(E65,-1,0)+MAX(1,COUNTIF(QCI!$A$13:$A$24,OFFSET(ORÇAMENTO!E65,-1,0))),OFFSET(E65,-1,0)) -> 1 | F65: 1 | G65: 5 | H65: 0 | I65: 0 | J65: 84 | K65: =IF(OR($C65="S",$C65=0),0,MATCH(OFFSET($D65,0,$C65)+IF($C65<>1,1,COUNTIF(QCI!$A$13:$A$24,ORÇAMENTO!E65)),OFFSET($D65,1,$C65,ROW($C$190)-ROW($C65)),0)) -> 6 | L65: F | M65: Nível 3 | N65: Nível 3 | O65: 1.1.5. | P65: SINAPI | R65: Coberturas | S65: - | T65: =OFFSET(CÁLCULO!H$15,ROW($T65)-ROW(T$15),0) -> 0 | U65: 0 | V65: BDI 1 | W65: 0 | X65: 5801.78 | Y65: RA | AA65: =IF($C65="S",IF($Z65="CP",$X65,IF($Z65="RA",(($X65)*QCI!$AA$3),0)),SomaAgrup) -> 803.9763269 | AB65: 0 | AD65: =IF(C65<=CRONO.NivelExibicao,MAX($AD$15:OFFSET(AD65,-1,0))+IF($C65<>1,1,MAX(1,COUNTIF(QCI!$A$13:$A$24,OFFSET($E65,-1,0)))),"") ->  | AE65: FALSE | AF65: (Sem Código) | AG65: 0 | AH65: 0.2354 | AM65: 5801.78 | AN65: 0
A66: =CHOOSE(1+LOG(1+2*(ORÇAMENTO.Nivel="Meta")+4*(ORÇAMENTO.Nivel="Nível 2")+8*(ORÇAMENTO.Nivel="Nível 3")+16*(ORÇAMENTO.Nivel="Nível 4")+32*(ORÇAMENTO.Nivel="Serviço"),2),0,1,2,3,4,"S") -> 4 | B66: =IF(OR(C66="s",C66=0),OFFSET(B66,-1,0),C66) -> 4 | C66: =IF(OFFSET(C66,-1,0)="L",1,IF(OFFSET(C66,-1,0)=1,2,IF(OR(A66="s",A66=0),"S",IF(AND(OFFSET(C66,-1,0)=2,A66=4),3,IF(AND(OR(OFFSET(C66,-1,0)="s",OFFSET(C66,-1,0)=0),A66<>"s",A66>OFFSET(B66,-1,0)),OFFSET(B66,-1,0),A66))))) -> 4 | D66: =IF(OR(C66="S",C66=0),0,IF(ISERROR(K66),J66,SMALL(J66:K66,1))) -> 5 | E66: =IF($C66=1,OFFSET(E66,-1,0)+MAX(1,COUNTIF(QCI!$A$13:$A$24,OFFSET(ORÇAMENTO!E66,-1,0))),OFFSET(E66,-1,0)) -> 1 | F66: =IF($C66=1,0,IF($C66=2,OFFSET(F66,-1,0)+1,OFFSET(F66,-1,0))) -> 1 | G66: =IF(AND($C66<=2,$C66<>0),0,IF($C66=3,OFFSET(G66,-1,0)+1,OFFSET(G66,-1,0))) -> 5 | H66: =IF(AND($C66<=3,$C66<>0),0,IF($C66=4,OFFSET(H66,-1,0)+1,OFFSET(H66,-1,0))) -> 1 | I66: =IF(AND($C66<=4,$C66<>0),0,IF(AND($C66="S",$X66>0),OFFSET(I66,-1,0)+1,OFFSET(I66,-1,0))) -> 0 | J66: 5 | K66: =IF(OR($C66="S",$C66=0),0,MATCH(OFFSET($D66,0,$C66)+IF($C66<>1,1,COUNTIF(QCI!$A$13:$A$24,ORÇAMENTO!E66)),OFFSET($D66,1,$C66,ROW($C$190)-ROW($C66)),0)) -> 18 | L66: =IF(OR($X66>0,$C66=1,$C66=2,$C66=3,$C66=4),"F","") -> F | M66: Nível 4 | N66: =CHOOSE(1+LOG(1+2*(C66=1)+4*(C66=2)+8*(C66=3)+16*(C66=4)+32*(C66="S"),2),"","Meta","Nível 2","Nível 3","Nível 4","Serviço") -> Nível 4 | O66: =IF(OR($C66=0,$L66=""),"-",CONCATENATE(E66&".",IF(AND($A$5>=2,$C66>=2),F66&".",""),IF(AND($A$5>=3,$C66>=3),G66&".",""),IF(AND($A$5>=4,$C66>=4),H66&".",""),IF($C66="S",I66&".",""))) -> 1.1.5.1. | P66: SINAPI | R66: Cobertura e Madeiramento | S66: - | T66: =OFFSET(CÁLCULO!H$15,ROW($T66)-ROW(T$15),0) -> 0 | U66: 0 | V66: BDI 1 | W66: =IF($C66="S",ROUND(IF(TIPOORCAMENTO="Proposto",ORÇAMENTO.CustoUnitario*(1+$AH66),ORÇAMENTO.PrecoUnitarioLicitado),15-13*$AF$10),0) -> 0 | X66: =IF($C66="S",VTOTAL1,IF($C66=0,0,ROUND(SomaAgrup,15-13*$AF$11))) -> 5801.78 | Y66: RA | Z66: =IF(AND($C66="S",$X66>0),IF(ISBLANK($Y66),"RA",LEFT($Y66,2)),"") ->  | AA66: =IF($C66="S",IF($Z66="CP",$X66,IF($Z66="RA",(($X66)*QCI!$AA$3),0)),SomaAgrup) -> 803.9763269 | AB66: =IF($C66="S",IF($Z66="OU",ROUND($X66,2),0),SomaAgrup) -> 0 | AC66: =IF($N66="","",IF(ORÇAMENTO.Descricao="","DESCRIÇÃO",IF(AND($C66="S",ORÇAMENTO.Unidade=""),"UNIDADE",IF($X66<0,"VALOR NEGATIVO",IF(OR(AND(TIPOORCAMENTO="Proposto",$AG66<>"",$AG66>0,ORÇAMENTO.CustoUnitario>$AG66),AND(TIPOORCAMENTO="LICITADO",ORÇAMENTO.PrecoUnitarioLicitado>$AN66)),"ACIMA REF.",""))))) ->  | AD66: =IF(C66<=CRONO.NivelExibicao,MAX($AD$15:OFFSET(AD66,-1,0))+IF($C66<>1,1,MAX(1,COUNTIF(QCI!$A$13:$A$24,OFFSET($E66,-1,0)))),"") ->  | AE66: =IF(AND($C66="S",ORÇAMENTO.CodBarra<>""),IF(ORÇAMENTO.Fonte="",ORÇAMENTO.CodBarra,CONCATENATE(ORÇAMENTO.Fonte," ",ORÇAMENTO.CodBarra))) -> FALSE | AF66: =IF(ISERROR(INDIRECT(ORÇAMENTO.BancoRef)),"(abra o arquivo 'Referência "&Excel_BuiltIn_Database&".xls)",IF(OR($C66<>"S",ORÇAMENTO.CodBarra=""),"(Sem Código)",IF(ISERROR(MATCH($AE66,INDIRECT(ORÇAMENTO.BancoRef),0)),"(Código não identificado nas referências)",MATCH($AE66,INDIRECT(ORÇAMENTO.BancoRef),0)))) -> (Sem Código) | AG66: =ROUND(IF(DESONERACAO="sim",REFERENCIA.Desonerado,REFERENCIA.NaoDesonerado),2) -> 0 | AH66: =ROUND(IF(ISNUMBER(ORÇAMENTO.OpcaoBDI),ORÇAMENTO.OpcaoBDI,IF(LEFT(ORÇAMENTO.OpcaoBDI,3)="BDI",HLOOKUP(ORÇAMENTO.OpcaoBDI,$F$4:$H$5,2,FALSE),0)),15-11*$AF$9) -> 0.2354 | AM66: 5801.78 | AN66: =ROUND(ORÇAMENTO.CustoUnitario*(1+$AH66),2) -> 0
A67: S | B67: 4 | C67: S | D67: 0 | E67: =IF($C67=1,OFFSET(E67,-1,0)+MAX(1,COUNTIF(QCI!$A$13:$A$24,OFFSET(ORÇAMENTO!E67,-1,0))),OFFSET(E67,-1,0)) -> 1 | F67: 1 | G67: 5 | H67: 1 | I67: 1 | J67: 0 | K67: =IF(OR($C67="S",$C67=0),0,MATCH(OFFSET($D67,0,$C67)+IF($C67<>1,1,COUNTIF(QCI!$A$13:$A$24,ORÇAMENTO!E67)),OFFSET($D67,1,$C67,ROW($C$190)-ROW($C67)),0)) -> 0 | L67: F | M67: Serviço | N67: Serviço | O67: 1.1.5.1.1. | P67: SINAPI | Q67: 92565 | R67: FABRICAÇÃO E INSTALAÇÃO DE ESTRUTURA PONTALETADA DE MADEIRA NÃO APARELHADA PARA TELHADOS COM ATÉ 2 ÁGUAS, INCLUSO TRANSPORTE VERTICAL | S67: M2 | T67: =OFFSET(CÁLCULO!H$15,ROW($T67)-ROW(T$15),0) -> 66.69 | U67: 25 | V67: BDI 1 | W67: 30.89 | X67: 2060.05 | Y67: RA | Z67: RA | AA67: =IF($C67="S",IF($Z67="CP",$X67,IF($Z67="RA",(($X67)*QCI!$AA$3),0)),SomaAgrup) -> 285.4695339 | AB67: 0 | AD67: =IF(C67<=CRONO.NivelExibicao,MAX($AD$15:OFFSET(AD67,-1,0))+IF($C67<>1,1,MAX(1,COUNTIF(QCI!$A$13:$A$24,OFFSET($E67,-1,0)))),"") ->  | AE67: SINAPI 92565 | AF67: 6909 | AG67: 27.94 | AH67: 0.2354 | AM67: 2060.05 | AN67: 30.89
A68: S | B68: 4 | C68: S | D68: 0 | E68: =IF($C68=1,OFFSET(E68,-1,0)+MAX(1,COUNTIF(QCI!$A$13:$A$24,OFFSET(ORÇAMENTO!E68,-1,0))),OFFSET(E68,-1,0)) -> 1 | F68: 1 | G68: 5 | H68: 1 | I68: 2 | J68: 0 | K68: =IF(OR($C68="S",$C68=0),0,MATCH(OFFSET($D68,0,$C68)+IF($C68<>1,1,COUNTIF(QCI!$A$13:$A$24,ORÇAMENTO!E68)),OFFSET($D68,1,$C68,ROW($C$190)-ROW($C68)),0)) -> 0 | L68: F | M68: Serviço | N68: Serviço | O68: 1.1.5.1.2. | P68: SINAPI | Q68: 94207 | R68: TELHAMENTO COM TELHA ONDULADA DE FIBROCIMENTO E = 6 MM, COM RECOBRIMENTO LATERAL DE 1/4 DE ONDA PARA TELHADO COM INCLINAÇÃO MAIOR QUE 10°, COM ATÉ 2 ÁGUAS, INCLUSO IÇAMENTO | S68: M2 | T68: =OFFSET(CÁLCULO!H$15,ROW($T68)-ROW(T$15),0) -> 66.69 | U68: 25 | V68: BDI 1 | W68: 30.89 | X68: 2060.05 | Y68: RA | Z68: RA | AA68: =IF($C68="S",IF($Z68="CP",$X68,IF($Z68="RA",(($X68)*QCI!$AA$3),0)),SomaAgrup) -> 285.4695339 | AB68: 0 | AD68: =IF(C68<=CRONO.NivelExibicao,MAX($AD$15:OFFSET(AD68,-1,0))+IF($C68<>1,1,MAX(1,COUNTIF(QCI!$A$13:$A$24,OFFSET($E68,-1,0)))),"") ->  | AE68: SINAPI 94207 | AF68: 6932 | AG68: 31 | AH68: 0.2354 | AM68: 2060.05 | AN68: 30.89
A69: =CHOOSE(1+LOG(1+2*(ORÇAMENTO.Nivel="Meta")+4*(ORÇAMENTO.Nivel="Nível 2")+8*(ORÇAMENTO.Nivel="Nível 3")+16*(ORÇAMENTO.Nivel="Nível 4")+32*(ORÇAMENTO.Nivel="Serviço"),2),0,1,2,3,4,"S") -> S | B69: =IF(OR(C69="s",C69=0),OFFSET(B69,-1,0),C69) -> 4 | C69: =IF(OFFSET(C69,-1,0)="L",1,IF(OFFSET(C69,-1,0)=1,2,IF(OR(A69="s",A69=0),"S",IF(AND(OFFSET(C69,-1,0)=2,A69=4),3,IF(AND(OR(OFFSET(C69,-1,0)="s",OFFSET(C69,-1,0)=0),A69<>"s",A69>OFFSET(B69,-1,0)),OFFSET(B69,-1,0),A69))))) -> S | D69: =IF(OR(C69="S",C69=0),0,IF(ISERROR(K69),J69,SMALL(J69:K69,1))) -> 0 | E69: =IF($C69=1,OFFSET(E69,-1,0)+MAX(1,COUNTIF(QCI!$A$13:$A$24,OFFSET(ORÇAMENTO!E69,-1,0))),OFFSET(E69,-1,0)) -> 1 | F69: =IF($C69=1,0,IF($C69=2,OFFSET(F69,-1,0)+1,OFFSET(F69,-1,0))) -> 1 | G69: =IF(AND($C69<=2,$C69<>0),0,IF($C69=3,OFFSET(G69,-1,0)+1,OFFSET(G69,-1,0))) -> 5 | H69: =IF(AND($C69<=3,$C69<>0),0,IF($C69=4,OFFSET(H69,-1,0)+1,OFFSET(H69,-1,0))) -> 1 | I69: =IF(AND($C69<=4,$C69<>0),0,IF(AND($C69="S",$X69>0),OFFSET(I69,-1,0)+1,OFFSET(I69,-1,0))) -> 3 | J69: 0 | K69: =IF(OR($C69="S",$C69=0),0,MATCH(OFFSET($D69,0,$C69)+IF($C69<>1,1,COUNTIF(QCI!$A$13:$A$24,ORÇAMENTO!E69)),OFFSET($D69,1,$C69,ROW($C$190)-ROW($C69)),0)) -> 0 | L69: =IF(OR($X69>0,$C69=1,$C69=2,$C69=3,$C69=4),"F","") -> F | M69: Serviço | N69: =CHOOSE(1+LOG(1+2*(C69=1)+4*(C69=2)+8*(C69=3)+16*(C69=4)+32*(C69="S"),2),"","Meta","Nível 2","Nível 3","Nível 4","Serviço") -> Serviço | O69: =IF(OR($C69=0,$L69=""),"-",CONCATENATE(E69&".",IF(AND($A$5>=2,$C69>=2),F69&".",""),IF(AND($A$5>=3,$C69>=3),G69&".",""),IF(AND($A$5>=4,$C69>=4),H69&".",""),IF($C69="S",I69&".",""))) -> 1.1.5.1.3. | P69: SINAPI | Q69: 94231 | R69: PINGADEIRA EM CHAPA DE AÇO GALVANIZADO NÚMERO 24, CORTE DE 25 CM, INCLUSO TRANSPORTE VERTICAL | S69: M | T69: =OFFSET(CÁLCULO!H$15,ROW($T69)-ROW(T$15),0) -> 28.3 | U69: 23.1455 | V69: BDI 1 | W69: =IF($C69="S",ROUND(IF(TIPOORCAMENTO="Proposto",ORÇAMENTO.CustoUnitario*(1+$AH69),ORÇAMENTO.PrecoUnitarioLicitado),15-13*$AF$10),0) -> 28.6 | X69: =IF($C69="S",VTOTAL1,IF($C69=0,0,ROUND(SomaAgrup,15-13*$AF$11))) -> 809.38 | Y69: RA | Z69: =IF(AND($C69="S",$X69>0),IF(ISBLANK($Y69),"RA",LEFT($Y69,2)),"") -> RA | AA69: =IF($C69="S",IF($Z69="CP",$X69,IF($Z69="RA",(($X69)*QCI!$AA$3),0)),SomaAgrup) -> 112.159089 | AB69: =IF($C69="S",IF($Z69="OU",ROUND($X69,2),0),SomaAgrup) -> 0 | AC69: =IF($N69="","",IF(ORÇAMENTO.Descricao="","DESCRIÇÃO",IF(AND($C69="S",ORÇAMENTO.Unidade=""),"UNIDADE",IF($X69<0,"VALOR NEGATIVO",IF(OR(AND(TIPOORCAMENTO="Proposto",$AG69<>"",$AG69>0,ORÇAMENTO.CustoUnitario>$AG69),AND(TIPOORCAMENTO="LICITADO",ORÇAMENTO.PrecoUnitarioLicitado>$AN69)),"ACIMA REF.",""))))) ->  | AD69: =IF(C69<=CRONO.NivelExibicao,MAX($AD$15:OFFSET(AD69,-1,0))+IF($C69<>1,1,MAX(1,COUNTIF(QCI!$A$13:$A$24,OFFSET($E69,-1,0)))),"") ->  | AE69: =IF(AND($C69="S",ORÇAMENTO.CodBarra<>""),IF(ORÇAMENTO.Fonte="",ORÇAMENTO.CodBarra,CONCATENATE(ORÇAMENTO.Fonte," ",ORÇAMENTO.CodBarra))) -> SINAPI 94231 | AF69: =IF(ISERROR(INDIRECT(ORÇAMENTO.BancoRef)),"(abra o arquivo 'Referência "&Excel_BuiltIn_Database&".xls)",IF(OR($C69<>"S",ORÇAMENTO.CodBarra=""),"(Sem Código)",IF(ISERROR(MATCH($AE69,INDIRECT(ORÇAMENTO.BancoRef),0)),"(Código não identificado nas referências)",MATCH($AE69,INDIRECT(ORÇAMENTO.BancoRef),0)))) -> 6959 | AG69: =ROUND(IF(DESONERACAO="sim",REFERENCIA.Desonerado,REFERENCIA.NaoDesonerado),2) -> 27.23 | AH69: =ROUND(IF(ISNUMBER(ORÇAMENTO.OpcaoBDI),ORÇAMENTO.OpcaoBDI,IF(LEFT(ORÇAMENTO.OpcaoBDI,3)="BDI",HLOOKUP(ORÇAMENTO.OpcaoBDI,$F$4:$H$5,2,FALSE),0)),15-11*$AF$9) -> 0.2354 | AM69: 809.38 | AN69: =ROUND(ORÇAMENTO.CustoUnitario*(1+$AH69),2) -> 28.6
A70: =CHOOSE(1+LOG(1+2*(ORÇAMENTO.Nivel="Meta")+4*(ORÇAMENTO.Nivel="Nível 2")+8*(ORÇAMENTO.Nivel="Nível 3")+16*(ORÇAMENTO.Nivel="Nível 4")+32*(ORÇAMENTO.Nivel="Serviço"),2),0,1,2,3,4,"S") -> S | B70: =IF(OR(C70="s",C70=0),OFFSET(B70,-1,0),C70) -> 4 | C70: =IF(OFFSET(C70,-1,0)="L",1,IF(OFFSET(C70,-1,0)=1,2,IF(OR(A70="s",A70=0),"S",IF(AND(OFFSET(C70,-1,0)=2,A70=4),3,IF(AND(OR(OFFSET(C70,-1,0)="s",OFFSET(C70,-1,0)=0),A70<>"s",A70>OFFSET(B70,-1,0)),OFFSET(B70,-1,0),A70))))) -> S | D70: =IF(OR(C70="S",C70=0),0,IF(ISERROR(K70),J70,SMALL(J70:K70,1))) -> 0 | E70: =IF($C70=1,OFFSET(E70,-1,0)+MAX(1,COUNTIF(QCI!$A$13:$A$24,OFFSET(ORÇAMENTO!E70,-1,0))),OFFSET(E70,-1,0)) -> 1 | F70: =IF($C70=1,0,IF($C70=2,OFFSET(F70,-1,0)+1,OFFSET(F70,-1,0))) -> 1 | G70: =IF(AND($C70<=2,$C70<>0),0,IF($C70=3,OFFSET(G70,-1,0)+1,OFFSET(G70,-1,0))) -> 5 | H70: =IF(AND($C70<=3,$C70<>0),0,IF($C70=4,OFFSET(H70,-1,0)+1,OFFSET(H70,-1,0))) -> 1 | I70: =IF(AND($C70<=4,$C70<>0),0,IF(AND($C70="S",$X70>0),OFFSET(I70,-1,0)+1,OFFSET(I70,-1,0))) -> 4 | J70: 0 | K70: =IF(OR($C70="S",$C70=0),0,MATCH(OFFSET($D70,0,$C70)+IF($C70<>1,1,COUNTIF(QCI!$A$13:$A$24,ORÇAMENTO!E70)),OFFSET($D70,1,$C70,ROW($C$190)-ROW($C70)),0)) -> 0 | L70: =IF(OR($X70>0,$C70=1,$C70=2,$C70=3,$C70=4),"F","") -> F | M70: Serviço | N70: =CHOOSE(1+LOG(1+2*(C70=1)+4*(C70=2)+8*(C70=3)+16*(C70=4)+32*(C70="S"),2),"","Meta","Nível 2","Nível 3","Nível 4","Serviço") -> Serviço | O70: =IF(OR($C70=0,$L70=""),"-",CONCATENATE(E70&".",IF(AND($A$5>=2,$C70>=2),F70&".",""),IF(AND($A$5>=3,$C70>=3),G70&".",""),IF(AND($A$5>=4,$C70>=4),H70&".",""),IF($C70="S",I70&".",""))) -> 1.1.5.1.4. | P70: SINAPI | Q70: 94231 | R70: RUFO EM CHAPA DE AÇO GALVANIZADO NÚMERO 24, CORTE DE 25 CM, INCLUSO TRANSPORTE VERTICAL | S70: M | T70: =OFFSET(CÁLCULO!H$15,ROW($T70)-ROW(T$15),0) -> 30.5 | U70: 23.1455 | V70: BDI 1 | W70: =IF($C70="S",ROUND(IF(TIPOORCAMENTO="Proposto",ORÇAMENTO.CustoUnitario*(1+$AH70),ORÇAMENTO.PrecoUnitarioLicitado),15-13*$AF$10),0) -> 28.6 | X70: =IF($C70="S",VTOTAL1,IF($C70=0,0,ROUND(SomaAgrup,15-13*$AF$11))) -> 872.3 | Y70: RA | Z70: =IF(AND($C70="S",$X70>0),IF(ISBLANK($Y70),"RA",LEFT($Y70,2)),"") -> RA | AA70: =IF($C70="S",IF($Z70="CP",$X70,IF($Z70="RA",(($X70)*QCI!$AA$3),0)),SomaAgrup) -> 120.8781701 | AB70: =IF($C70="S",IF($Z70="OU",ROUND($X70,2),0),SomaAgrup) -> 0 | AC70: =IF($N70="","",IF(ORÇAMENTO.Descricao="","DESCRIÇÃO",IF(AND($C70="S",ORÇAMENTO.Unidade=""),"UNIDADE",IF($X70<0,"VALOR NEGATIVO",IF(OR(AND(TIPOORCAMENTO="Proposto",$AG70<>"",$AG70>0,ORÇAMENTO.CustoUnitario>$AG70),AND(TIPOORCAMENTO="LICITADO",ORÇAMENTO.PrecoUnitarioLicitado>$AN70)),"ACIMA REF.",""))))) ->  | AD70: =IF(C70<=CRONO.NivelExibicao,MAX($AD$15:OFFSET(AD70,-1,0))+IF($C70<>1,1,MAX(1,COUNTIF(QCI!$A$13:$A$24,OFFSET($E70,-1,0)))),"") ->  | AE70: =IF(AND($C70="S",ORÇAMENTO.CodBarra<>""),IF(ORÇAMENTO.Fonte="",ORÇAMENTO.CodBarra,CONCATENATE(ORÇAMENTO.Fonte," ",ORÇAMENTO.CodBarra))) -> SINAPI 94231 | AF70: =IF(ISERROR(INDIRECT(ORÇAMENTO.BancoRef)),"(abra o arquivo 'Referência "&Excel_BuiltIn_Database&".xls)",IF(OR($C70<>"S",ORÇAMENTO.CodBarra=""),"(Sem Código)",IF(ISERROR(MATCH($AE70,INDIRECT(ORÇAMENTO.BancoRef),0)),"(Código não identificado nas referências)",MATCH($AE70,INDIRECT(ORÇAMENTO.BancoRef),0)))) -> 6959 | AG70: =ROUND(IF(DESONERACAO="sim",REFERENCIA.Desonerado,REFERENCIA.NaoDesonerado),2) -> 27.23 | AH70: =ROUND(IF(ISNUMBER(ORÇAMENTO.OpcaoBDI),ORÇAMENTO.OpcaoBDI,IF(LEFT(ORÇAMENTO.OpcaoBDI,3)="BDI",HLOOKUP(ORÇAMENTO.OpcaoBDI,$F$4:$H$5,2,FALSE),0)),15-11*$AF$9) -> 0.2354 | AM70: 872.3 | AN70: =ROUND(ORÇAMENTO.CustoUnitario*(1+$AH70),2) -> 28.6
A71: 3 | B71: 3 | C71: 3 | D71: 6 | E71: =IF($C71=1,OFFSET(E71,-1,0)+MAX(1,COUNTIF(QCI!$A$13:$A$24,OFFSET(ORÇAMENTO!E71,-1,0))),OFFSET(E71,-1,0)) -> 1 | F71: 1 | G71: 6 | H71: 0 | I71: 0 | J71: 78 | K71: =IF(OR($C71="S",$C71=0),0,MATCH(OFFSET($D71,0,$C71)+IF($C71<>1,1,COUNTIF(QCI!$A$13:$A$24,ORÇAMENTO!E71)),OFFSET($D71,1,$C71,ROW($C$190)-ROW($C71)),0)) -> 6 | L71: F | M71: Nível 3 | N71: Nível 3 | O71: 1.1.6. | P71: SINAPI | R71: Aberturas | S71: - | T71: =OFFSET(CÁLCULO!H$15,ROW($T71)-ROW(T$15),0) -> 0 | U71: 0 | V71: BDI 1 | W71: 0 | X71: 16175.83 | Y71: RA | AA71: =IF($C71="S",IF($Z71="CP",$X71,IF($Z71="RA",(($X71)*QCI!$AA$3),0)),SomaAgrup) -> 2241.550763 | AB71: 0 | AD71: =IF(C71<=CRONO.NivelExibicao,MAX($AD$15:OFFSET(AD71,-1,0))+IF($C71<>1,1,MAX(1,COUNTIF(QCI!$A$13:$A$24,OFFSET($E71,-1,0)))),"") ->  | AE71: FALSE | AF71: (Sem Código) | AG71: 0 | AH71: 0.2354 | AM71: 16175.83 | AN71: 0
A72: =CHOOSE(1+LOG(1+2*(ORÇAMENTO.Nivel="Meta")+4*(ORÇAMENTO.Nivel="Nível 2")+8*(ORÇAMENTO.Nivel="Nível 3")+16*(ORÇAMENTO.Nivel="Nível 4")+32*(ORÇAMENTO.Nivel="Serviço"),2),0,1,2,3,4,"S") -> 4 | B72: =IF(OR(C72="s",C72=0),OFFSET(B72,-1,0),C72) -> 4 | C72: =IF(OFFSET(C72,-1,0)="L",1,IF(OFFSET(C72,-1,0)=1,2,IF(OR(A72="s",A72=0),"S",IF(AND(OFFSET(C72,-1,0)=2,A72=4),3,IF(AND(OR(OFFSET(C72,-1,0)="s",OFFSET(C72,-1,0)=0),A72<>"s",A72>OFFSET(B72,-1,0)),OFFSET(B72,-1,0),A72))))) -> 4 | D72: =IF(OR(C72="S",C72=0),0,IF(ISERROR(K72),J72,SMALL(J72:K72,1))) -> 5 | E72: =IF($C72=1,OFFSET(E72,-1,0)+MAX(1,COUNTIF(QCI!$A$13:$A$24,OFFSET(ORÇAMENTO!E72,-1,0))),OFFSET(E72,-1,0)) -> 1 | F72: =IF($C72=1,0,IF($C72=2,OFFSET(F72,-1,0)+1,OFFSET(F72,-1,0))) -> 1 | G72: =IF(AND($C72<=2,$C72<>0),0,IF($C72=3,OFFSET(G72,-1,0)+1,OFFSET(G72,-1,0))) -> 6 | H72: =IF(AND($C72<=3,$C72<>0),0,IF($C72=4,OFFSET(H72,-1,0)+1,OFFSET(H72,-1,0))) -> 1 | I72: =IF(AND($C72<=4,$C72<>0),0,IF(AND($C72="S",$X72>0),OFFSET(I72,-1,0)+1,OFFSET(I72,-1,0))) -> 0 | J72: 5 | K72: =IF(OR($C72="S",$C72=0),0,MATCH(OFFSET($D72,0,$C72)+IF($C72<>1,1,COUNTIF(QCI!$A$13:$A$24,ORÇAMENTO!E72)),OFFSET($D72,1,$C72,ROW($C$190)-ROW($C72)),0)) -> 12 | L72: =IF(OR($X72>0,$C72=1,$C72=2,$C72=3,$C72=4),"F","") -> F | M72: Nível 4 | N72: =CHOOSE(1+LOG(1+2*(C72=1)+4*(C72=2)+8*(C72=3)+16*(C72=4)+32*(C72="S"),2),"","Meta","Nível 2","Nível 3","Nível 4","Serviço") -> Nível 4 | O72: =IF(OR($C72=0,$L72=""),"-",CONCATENATE(E72&".",IF(AND($A$5>=2,$C72>=2),F72&".",""),IF(AND($A$5>=3,$C72>=3),G72&".",""),IF(AND($A$5>=4,$C72>=4),H72&".",""),IF($C72="S",I72&".",""))) -> 1.1.6.1. | P72: SINAPI | R72: Janelas e Portas | S72: - | T72: =OFFSET(CÁLCULO!H$15,ROW($T72)-ROW(T$15),0) -> 0 | U72: 0 | V72: BDI 1 | W72: =IF($C72="S",ROUND(IF(TIPOORCAMENTO="Proposto",ORÇAMENTO.CustoUnitario*(1+$AH72),ORÇAMENTO.PrecoUnitarioLicitado),15-13*$AF$10),0) -> 0 | X72: =IF($C72="S",VTOTAL1,IF($C72=0,0,ROUND(SomaAgrup,15-13*$AF$11))) -> 16175.83 | Y72: RA | Z72: =IF(AND($C72="S",$X72>0),IF(ISBLANK($Y72),"RA",LEFT($Y72,2)),"") ->  | AA72: =IF($C72="S",IF($Z72="CP",$X72,IF($Z72="RA",(($X72)*QCI!$AA$3),0)),SomaAgrup) -> 2241.550763 | AB72: =IF($C72="S",IF($Z72="OU",ROUND($X72,2),0),SomaAgrup) -> 0 | AC72: =IF($N72="","",IF(ORÇAMENTO.Descricao="","DESCRIÇÃO",IF(AND($C72="S",ORÇAMENTO.Unidade=""),"UNIDADE",IF($X72<0,"VALOR NEGATIVO",IF(OR(AND(TIPOORCAMENTO="Proposto",$AG72<>"",$AG72>0,ORÇAMENTO.CustoUnitario>$AG72),AND(TIPOORCAMENTO="LICITADO",ORÇAMENTO.PrecoUnitarioLicitado>$AN72)),"ACIMA REF.",""))))) ->  | AD72: =IF(C72<=CRONO.NivelExibicao,MAX($AD$15:OFFSET(AD72,-1,0))+IF($C72<>1,1,MAX(1,COUNTIF(QCI!$A$13:$A$24,OFFSET($E72,-1,0)))),"") ->  | AE72: =IF(AND($C72="S",ORÇAMENTO.CodBarra<>""),IF(ORÇAMENTO.Fonte="",ORÇAMENTO.CodBarra,CONCATENATE(ORÇAMENTO.Fonte," ",ORÇAMENTO.CodBarra))) -> FALSE | AF72: =IF(ISERROR(INDIRECT(ORÇAMENTO.BancoRef)),"(abra o arquivo 'Referência "&Excel_BuiltIn_Database&".xls)",IF(OR($C72<>"S",ORÇAMENTO.CodBarra=""),"(Sem Código)",IF(ISERROR(MATCH($AE72,INDIRECT(ORÇAMENTO.BancoRef),0)),"(Código não identificado nas referências)",MATCH($AE72,INDIRECT(ORÇAMENTO.BancoRef),0)))) -> (Sem Código) | AG72: =ROUND(IF(DESONERACAO="sim",REFERENCIA.Desonerado,REFERENCIA.NaoDesonerado),2) -> 0 | AH72: =ROUND(IF(ISNUMBER(ORÇAMENTO.OpcaoBDI),ORÇAMENTO.OpcaoBDI,IF(LEFT(ORÇAMENTO.OpcaoBDI,3)="BDI",HLOOKUP(ORÇAMENTO.OpcaoBDI,$F$4:$H$5,2,FALSE),0)),15-11*$AF$9) -> 0.2354 | AM72: 16175.83 | AN72: =ROUND(ORÇAMENTO.CustoUnitario*(1+$AH72),2) -> 0
A73: S | B73: 4 | C73: S | D73: 0 | E73: =IF($C73=1,OFFSET(E73,-1,0)+MAX(1,COUNTIF(QCI!$A$13:$A$24,OFFSET(ORÇAMENTO!E73,-1,0))),OFFSET(E73,-1,0)) -> 1 | F73: 1 | G73: 6 | H73: 1 | I73: 1 | J73: 0 | K73: =IF(OR($C73="S",$C73=0),0,MATCH(OFFSET($D73,0,$C73)+IF($C73<>1,1,COUNTIF(QCI!$A$13:$A$24,ORÇAMENTO!E73)),OFFSET($D73,1,$C73,ROW($C$190)-ROW($C73)),0)) -> 0 | L73: F | M73: Serviço | N73: Serviço | O73: 1.1.6.1.1. | P73: SINAPI | Q73: 94559 | R73: JANELA DE AÇO BASCULANTE, FIXAÇÃO COM ARGAMASSA, SEM VIDROS, PADRONIZADA | S73: M2 | T73: =OFFSET(CÁLCULO!H$15,ROW($T73)-ROW(T$15),0) -> 3.12 | U73: 400 | V73: BDI 1 | W73: 494.16 | X73: 1541.78 | Y73: RA | Z73: RA | AA73: =IF($C73="S",IF($Z73="CP",$X73,IF($Z73="RA",(($X73)*QCI!$AA$3),0)),SomaAgrup) -> 213.6507453 | AB73: 0 | AD73: =IF(C73<=CRONO.NivelExibicao,MAX($AD$15:OFFSET(AD73,-1,0))+IF($C73<>1,1,MAX(1,COUNTIF(QCI!$A$13:$A$24,OFFSET($E73,-1,0)))),"") ->  | AE73: SINAPI 94559 | AF73: 7401 | AG73: 439.18 | AH73: 0.2354 | AM73: 1541.78 | AN73: 494.16
A74: S | B74: 4 | C74: S | D74: 0 | E74: =IF($C74=1,OFFSET(E74,-1,0)+MAX(1,COUNTIF(QCI!$A$13:$A$24,OFFSET(ORÇAMENTO!E74,-1,0))),OFFSET(E74,-1,0)) -> 1 | F74: 1 | G74: 6 | H74: 1 | I74: 2 | J74: 0 | K74: =IF(OR($C74="S",$C74=0),0,MATCH(OFFSET($D74,0,$C74)+IF($C74<>1,1,COUNTIF(QCI!$A$13:$A$24,ORÇAMENTO!E74)),OFFSET($D74,1,$C74,ROW($C$190)-ROW($C74)),0)) -> 0 | L74: F | M74: Serviço | N74: Serviço | O74: 1.1.6.1.2. | P74: SINAPI | Q74: 91341 | R74: PORTA EM ALUMÍNIO DE ABRIR TIPO VENEZIANA COM GUARNIÇÃO, FIXAÇÃO COM PARAFUSOS - FORNECIMENTO E INSTALAÇÃO | S74: M2 | T74: =OFFSET(CÁLCULO!H$15,ROW($T74)-ROW(T$15),0) -> 17.16 | U74: 650 | V74: BDI 1 | W74: 803.01 | X74: 13779.65 | Y74: RA | Z74: RA | AA74: =IF($C74="S",IF($Z74="CP",$X74,IF($Z74="RA",(($X74)*QCI!$AA$3),0)),SomaAgrup) -> 1909.502324 | AB74: 0 | AD74: =IF(C74<=CRONO.NivelExibicao,MAX($AD$15:OFFSET(AD74,-1,0))+IF($C74<>1,1,MAX(1,COUNTIF(QCI!$A$13:$A$24,OFFSET($E74,-1,0)))),"") ->  | AE74: SINAPI 91341 | AF74: 7423 | AG74: 811.77 | AH74: 0.2354 | AM74: 13779.65 | AN74: 803.01
A75: S | B75: 4 | C75: S | D75: 0 | E75: =IF($C75=1,OFFSET(E75,-1,0)+MAX(1,COUNTIF(QCI!$A$13:$A$24,OFFSET(ORÇAMENTO!E75,-1,0))),OFFSET(E75,-1,0)) -> 1 | F75: 1 | G75: 6 | H75: 1 | I75: 3 | J75: 0 | K75: =IF(OR($C75="S",$C75=0),0,MATCH(OFFSET($D75,0,$C75)+IF($C75<>1,1,COUNTIF(QCI!$A$13:$A$24,ORÇAMENTO!E75)),OFFSET($D75,1,$C75,ROW($C$190)-ROW($C75)),0)) -> 0 | L75: F | M75: Serviço | N75: Serviço | O75: 1.1.6.1.3. | P75: SINAPI | Q75: 84088 | R75: PEITORIL EM MARMORE BRANCO, LARGURA DE 15CM, ASSENTADO COM ARGAMASSA TRACO 1:4 (CIMENTO E AREIA MEDIA), PREPARO MANUAL DA ARGAMASSA | S75: M | T75: =OFFSET(CÁLCULO!H$15,ROW($T75)-ROW(T$15),0) -> 5.2 | U75: 85 | V75: BDI 1 | W75: 105.01 | X75: 546.05 | Y75: RA | Z75: RA | AA75: =IF($C75="S",IF($Z75="CP",$X75,IF($Z75="RA",(($X75)*QCI!$AA$3),0)),SomaAgrup) -> 75.66837648 | AB75: 0 | AD75: =IF(C75<=CRONO.NivelExibicao,MAX($AD$15:OFFSET(AD75,-1,0))+IF($C75<>1,1,MAX(1,COUNTIF(QCI!$A$13:$A$24,OFFSET($E75,-1,0)))),"") ->  | AE75: SINAPI 84088 | AF75: 11344 | AG75: 95.4 | AH75: 0.2354 | AM75: 546.05 | AN75: 105.01
A76: S | B76: 4 | C76: S | D76: 0 | E76: =IF($C76=1,OFFSET(E76,-1,0)+MAX(1,COUNTIF(QCI!$A$13:$A$24,OFFSET(ORÇAMENTO!E76,-1,0))),OFFSET(E76,-1,0)) -> 1 | F76: 1 | G76: 6 | H76: 1 | I76: 4 | J76: 0 | K76: =IF(OR($C76="S",$C76=0),0,MATCH(OFFSET($D76,0,$C76)+IF($C76<>1,1,COUNTIF(QCI!$A$13:$A$24,ORÇAMENTO!E76)),OFFSET($D76,1,$C76,ROW($C$190)-ROW($C76)),0)) -> 0 | L76: F | M76: Serviço | N76: Serviço | O76: 1.1.6.1.4. | P76: SINAPI | Q76: 84959 | R76: VIDRO LISO COMUM TRANSPARENTE, ESPESSURA 6MM | S76: M2 | T76: =OFFSET(CÁLCULO!H$15,ROW($T76)-ROW(T$15),0) -> 3.12 | U76: 80 | V76: BDI 1 | W76: 98.83 | X76: 308.35 | Y76: RA | Z76: RA | AA76: =IF($C76="S",IF($Z76="CP",$X76,IF($Z76="RA",(($X76)*QCI!$AA$3),0)),SomaAgrup) -> 42.72931762 | AB76: 0 | AD76: =IF(C76<=CRONO.NivelExibicao,MAX($AD$15:OFFSET(AD76,-1,0))+IF($C76<>1,1,MAX(1,COUNTIF(QCI!$A$13:$A$24,OFFSET($E76,-1,0)))),"") ->  | AE76: SINAPI 84959 | AF76: 7452 | AG76: 130.56 | AH76: 0.2354 | AM76: 308.35 | AN76: 98.83
A77: 3 | B77: 3 | C77: 3 | D77: 17 | E77: =IF($C77=1,OFFSET(E77,-1,0)+MAX(1,COUNTIF(QCI!$A$13:$A$24,OFFSET(ORÇAMENTO!E77,-1,0))),OFFSET(E77,-1,0)) -> 1 | F77: 1 | G77: 7 | H77: 0 | I77: 0 | J77: 72 | K77: =IF(OR($C77="S",$C77=0),0,MATCH(OFFSET($D77,0,$C77)+IF($C77<>1,1,COUNTIF(QCI!$A$13:$A$24,ORÇAMENTO!E77)),OFFSET($D77,1,$C77,ROW($C$190)-ROW($C77)),0)) -> 17 | L77: F | M77: Nível 3 | N77: Nível 3 | O77: 1.1.7. | P77: SINAPI | R77: Instalações Hidrossanitárias | S77: - | T77: =OFFSET(CÁLCULO!H$15,ROW($T77)-ROW(T$15),0) -> 0 | U77: 0 | V77: BDI 1 | W77: 0 | X77: 11371.57 | Y77: RA | AA77: =IF($C77="S",IF($Z77="CP",$X77,IF($Z77="RA",(($X77)*QCI!$AA$3),0)),SomaAgrup) -> 1575.804853 | AB77: 0 | AD77: =IF(C77<=CRONO.NivelExibicao,MAX($AD$15:OFFSET(AD77,-1,0))+IF($C77<>1,1,MAX(1,COUNTIF(QCI!$A$13:$A$24,OFFSET($E77,-1,0)))),"") ->  | AE77: FALSE | AF77: (Sem Código) | AG77: 0 | AH77: 0.2354 | AM77: 11371.57 | AN77: 0
A78: =CHOOSE(1+LOG(1+2*(ORÇAMENTO.Nivel="Meta")+4*(ORÇAMENTO.Nivel="Nível 2")+8*(ORÇAMENTO.Nivel="Nível 3")+16*(ORÇAMENTO.Nivel="Nível 4")+32*(ORÇAMENTO.Nivel="Serviço"),2),0,1,2,3,4,"S") -> 4 | B78: =IF(OR(C78="s",C78=0),OFFSET(B78,-1,0),C78) -> 4 | C78: =IF(OFFSET(C78,-1,0)="L",1,IF(OFFSET(C78,-1,0)=1,2,IF(OR(A78="s",A78=0),"S",IF(AND(OFFSET(C78,-1,0)=2,A78=4),3,IF(AND(OR(OFFSET(C78,-1,0)="s",OFFSET(C78,-1,0)=0),A78<>"s",A78>OFFSET(B78,-1,0)),OFFSET(B78,-1,0),A78))))) -> 4 | D78: =IF(OR(C78="S",C78=0),0,IF(ISERROR(K78),J78,SMALL(J78:K78,1))) -> 6 | E78: =IF($C78=1,OFFSET(E78,-1,0)+MAX(1,COUNTIF(QCI!$A$13:$A$24,OFFSET(ORÇAMENTO!E78,-1,0))),OFFSET(E78,-1,0)) -> 1 | F78: =IF($C78=1,0,IF($C78=2,OFFSET(F78,-1,0)+1,OFFSET(F78,-1,0))) -> 1 | G78: =IF(AND($C78<=2,$C78<>0),0,IF($C78=3,OFFSET(G78,-1,0)+1,OFFSET(G78,-1,0))) -> 7 | H78: =IF(AND($C78<=3,$C78<>0),0,IF($C78=4,OFFSET(H78,-1,0)+1,OFFSET(H78,-1,0))) -> 1 | I78: =IF(AND($C78<=4,$C78<>0),0,IF(AND($C78="S",$X78>0),OFFSET(I78,-1,0)+1,OFFSET(I78,-1,0))) -> 0 | J78: 16 | K78: =IF(OR($C78="S",$C78=0),0,MATCH(OFFSET($D78,0,$C78)+IF($C78<>1,1,COUNTIF(QCI!$A$13:$A$24,ORÇAMENTO!E78)),OFFSET($D78,1,$C78,ROW($C$190)-ROW($C78)),0)) -> 6 | L78: =IF(OR($X78>0,$C78=1,$C78=2,$C78=3,$C78=4),"F","") -> F | M78: Nível 4 | N78: =CHOOSE(1+LOG(1+2*(C78=1)+4*(C78=2)+8*(C78=3)+16*(C78=4)+32*(C78="S"),2),"","Meta","Nível 2","Nível 3","Nível 4","Serviço") -> Nível 4 | O78: =IF(OR($C78=0,$L78=""),"-",CONCATENATE(E78&".",IF(AND($A$5>=2,$C78>=2),F78&".",""),IF(AND($A$5>=3,$C78>=3),G78&".",""),IF(AND($A$5>=4,$C78>=4),H78&".",""),IF($C78="S",I78&".",""))) -> 1.1.7.1. | P78: SINAPI | R78: Instalações Hidráulicas | S78: - | T78: =OFFSET(CÁLCULO!H$15,ROW($T78)-ROW(T$15),0) -> 0 | U78: 0 | V78: BDI 1 | W78: =IF($C78="S",ROUND(IF(TIPOORCAMENTO="Proposto",ORÇAMENTO.CustoUnitario*(1+$AH78),ORÇAMENTO.PrecoUnitarioLicitado),15-13*$AF$10),0) -> 0 | X78: =IF($C78="S",VTOTAL1,IF($C78=0,0,ROUND(SomaAgrup,15-13*$AF$11))) -> 5771.47 | Y78: RA | Z78: =IF(AND($C78="S",$X78>0),IF(ISBLANK($Y78),"RA",LEFT($Y78,2)),"") ->  | AA78: =IF($C78="S",IF($Z78="CP",$X78,IF($Z78="RA",(($X78)*QCI!$AA$3),0)),SomaAgrup) -> 799.7761465 | AB78: =IF($C78="S",IF($Z78="OU",ROUND($X78,2),0),SomaAgrup) -> 0 | AC78: =IF($N78="","",IF(ORÇAMENTO.Descricao="","DESCRIÇÃO",IF(AND($C78="S",ORÇAMENTO.Unidade=""),"UNIDADE",IF($X78<0,"VALOR NEGATIVO",IF(OR(AND(TIPOORCAMENTO="Proposto",$AG78<>"",$AG78>0,ORÇAMENTO.CustoUnitario>$AG78),AND(TIPOORCAMENTO="LICITADO",ORÇAMENTO.PrecoUnitarioLicitado>$AN78)),"ACIMA REF.",""))))) ->  | AD78: =IF(C78<=CRONO.NivelExibicao,MAX($AD$15:OFFSET(AD78,-1,0))+IF($C78<>1,1,MAX(1,COUNTIF(QCI!$A$13:$A$24,OFFSET($E78,-1,0)))),"") ->  | AE78: =IF(AND($C78="S",ORÇAMENTO.CodBarra<>""),IF(ORÇAMENTO.Fonte="",ORÇAMENTO.CodBarra,CONCATENATE(ORÇAMENTO.Fonte," ",ORÇAMENTO.CodBarra))) -> FALSE | AF78: =IF(ISERROR(INDIRECT(ORÇAMENTO.BancoRef)),"(abra o arquivo 'Referência "&Excel_BuiltIn_Database&".xls)",IF(OR($C78<>"S",ORÇAMENTO.CodBarra=""),"(Sem Código)",IF(ISERROR(MATCH($AE78,INDIRECT(ORÇAMENTO.BancoRef),0)),"(Código não identificado nas referências)",MATCH($AE78,INDIRECT(ORÇAMENTO.BancoRef),0)))) -> (Sem Código) | AG78: =ROUND(IF(DESONERACAO="sim",REFERENCIA.Desonerado,REFERENCIA.NaoDesonerado),2) -> 0 | AH78: =ROUND(IF(ISNUMBER(ORÇAMENTO.OpcaoBDI),ORÇAMENTO.OpcaoBDI,IF(LEFT(ORÇAMENTO.OpcaoBDI,3)="BDI",HLOOKUP(ORÇAMENTO.OpcaoBDI,$F$4:$H$5,2,FALSE),0)),15-11*$AF$9) -> 0.2354 | AM78: 5771.47 | AN78: =ROUND(ORÇAMENTO.CustoUnitario*(1+$AH78),2) -> 0
A79: S | B79: 4 | C79: S | D79: 0 | E79: =IF($C79=1,OFFSET(E79,-1,0)+MAX(1,COUNTIF(QCI!$A$13:$A$24,OFFSET(ORÇAMENTO!E79,-1,0))),OFFSET(E79,-1,0)) -> 1 | F79: 1 | G79: 7 | H79: 1 | I79: 1 | J79: 0 | K79: =IF(OR($C79="S",$C79=0),0,MATCH(OFFSET($D79,0,$C79)+IF($C79<>1,1,COUNTIF(QCI!$A$13:$A$24,ORÇAMENTO!E79)),OFFSET($D79,1,$C79,ROW($C$190)-ROW($C79)),0)) -> 0 | L79: F | M79: Serviço | N79: Serviço | O79: 1.1.7.1.1. | P79: SINAPI | Q79: 95634 | R79: KIT CAVALETE PARA MEDIÇÃO DE ÁGUA - ENTRADA PRINCIPAL, EM PVC SOLDÁVEL DN 20 (½ ) FORNECIMENTO E INSTALAÇÃO (EXCLUSIVE HIDRÔMETRO) | S79: UN | T79: =OFFSET(CÁLCULO!H$15,ROW($T79)-ROW(T$15),0) -> 1 | U79: 81.2175 | V79: BDI 1 | W79: 100.34 | X79: 100.34 | Y79: RA | Z79: RA | AA79: =IF($C79="S",IF($Z79="CP",$X79,IF($Z79="RA",(($X79)*QCI!$AA$3),0)),SomaAgrup) -> 13.9045232 | AB79: 0 | AD79: =IF(C79<=CRONO.NivelExibicao,MAX($AD$15:OFFSET(AD79,-1,0))+IF($C79<>1,1,MAX(1,COUNTIF(QCI!$A$13:$A$24,OFFSET($E79,-1,0)))),"") ->  | AE79: SINAPI 95634 | AF79: 10258 | AG79: 95.55 | AH79: 0.2354 | AM79: 100.34 | AN79: 100.34
A80: =CHOOSE(1+LOG(1+2*(ORÇAMENTO.Nivel="Meta")+4*(ORÇAMENTO.Nivel="Nível 2")+8*(ORÇAMENTO.Nivel="Nível 3")+16*(ORÇAMENTO.Nivel="Nível 4")+32*(ORÇAMENTO.Nivel="Serviço"),2),0,1,2,3,4,"S") -> S | B80: =IF(OR(C80="s",C80=0),OFFSET(B80,-1,0),C80) -> 4 | C80: =IF(OFFSET(C80,-1,0)="L",1,IF(OFFSET(C80,-1,0)=1,2,IF(OR(A80="s",A80=0),"S",IF(AND(OFFSET(C80,-1,0)=2,A80=4),3,IF(AND(OR(OFFSET(C80,-1,0)="s",OFFSET(C80,-1,0)=0),A80<>"s",A80>OFFSET(B80,-1,0)),OFFSET(B80,-1,0),A80))))) -> S | D80: =IF(OR(C80="S",C80=0),0,IF(ISERROR(K80),J80,SMALL(J80:K80,1))) -> 0 | E80: =IF($C80=1,OFFSET(E80,-1,0)+MAX(1,COUNTIF(QCI!$A$13:$A$24,OFFSET(ORÇAMENTO!E80,-1,0))),OFFSET(E80,-1,0)) -> 1 | F80: =IF($C80=1,0,IF($C80=2,OFFSET(F80,-1,0)+1,OFFSET(F80,-1,0))) -> 1 | G80: =IF(AND($C80<=2,$C80<>0),0,IF($C80=3,OFFSET(G80,-1,0)+1,OFFSET(G80,-1,0))) -> 7 | H80: =IF(AND($C80<=3,$C80<>0),0,IF($C80=4,OFFSET(H80,-1,0)+1,OFFSET(H80,-1,0))) -> 1 | I80: =IF(AND($C80<=4,$C80<>0),0,IF(AND($C80="S",$X80>0),OFFSET(I80,-1,0)+1,OFFSET(I80,-1,0))) -> 2 | J80: =IF(OR($C80="S",$C80=0),0,MATCH(0,OFFSET($D80,1,$C80,ROW($C$190)-ROW($C80)),0)) -> 0 | K80: =IF(OR($C80="S",$C80=0),0,MATCH(OFFSET($D80,0,$C80)+IF($C80<>1,1,COUNTIF(QCI!$A$13:$A$24,ORÇAMENTO!E80)),OFFSET($D80,1,$C80,ROW($C$190)-ROW($C80)),0)) -> 0 | L80: =IF(OR($X80>0,$C80=1,$C80=2,$C80=3,$C80=4),"F","") -> F | M80: Serviço | N80: =CHOOSE(1+LOG(1+2*(C80=1)+4*(C80=2)+8*(C80=3)+16*(C80=4)+32*(C80="S"),2),"","Meta","Nível 2","Nível 3","Nível 4","Serviço") -> Serviço | O80: =IF(OR($C80=0,$L80=""),"-",CONCATENATE(E80&".",IF(AND($A$5>=2,$C80>=2),F80&".",""),IF(AND($A$5>=3,$C80>=3),G80&".",""),IF(AND($A$5>=4,$C80>=4),H80&".",""),IF($C80="S",I80&".",""))) -> 1.1.7.1.2. | P80: SINAPI | Q80: 95673 | R80: HIDRÔMETRO DN 20 (½), 1,5 M³/H  FORNECIMENTO E INSTALAÇÃO | S80: UN | T80: =OFFSET(CÁLCULO!H$15,ROW($T80)-ROW(T$15),0) -> 1 | U80: 117.181 | V80: BDI 1 | W80: =IF($C80="S",ROUND(IF(TIPOORCAMENTO="Proposto",ORÇAMENTO.CustoUnitario*(1+$AH80),ORÇAMENTO.PrecoUnitarioLicitado),15-13*$AF$10),0) -> 144.76 | X80: =IF($C80="S",VTOTAL1,IF($C80=0,0,ROUND(SomaAgrup,15-13*$AF$11))) -> 144.76 | Y80: RA | Z80: =IF(AND($C80="S",$X80>0),IF(ISBLANK($Y80),"RA",LEFT($Y80,2)),"") -> RA | AA80: =IF($C80="S",IF($Z80="CP",$X80,IF($Z80="RA",(($X80)*QCI!$AA$3),0)),SomaAgrup) -> 20.05998385 | AB80: =IF($C80="S",IF($Z80="OU",ROUND($X80,2),0),SomaAgrup) -> 0 | AC80: =IF($N80="","",IF(ORÇAMENTO.Descricao="","DESCRIÇÃO",IF(AND($C80="S",ORÇAMENTO.Unidade=""),"UNIDADE",IF($X80<0,"VALOR NEGATIVO",IF(OR(AND(TIPOORCAMENTO="Proposto",$AG80<>"",$AG80>0,ORÇAMENTO.CustoUnitario>$AG80),AND(TIPOORCAMENTO="LICITADO",ORÇAMENTO.PrecoUnitarioLicitado>$AN80)),"ACIMA REF.",""))))) ->  | AD80: =IF(C80<=CRONO.NivelExibicao,MAX($AD$15:OFFSET(AD80,-1,0))+IF($C80<>1,1,MAX(1,COUNTIF(QCI!$A$13:$A$24,OFFSET($E80,-1,0)))),"") ->  | AE80: =IF(AND($C80="S",ORÇAMENTO.CodBarra<>""),IF(ORÇAMENTO.Fonte="",ORÇAMENTO.CodBarra,CONCATENATE(ORÇAMENTO.Fonte," ",ORÇAMENTO.CodBarra))) -> SINAPI 95673 | AF80: =IF(ISERROR(INDIRECT(ORÇAMENTO.BancoRef)),"(abra o arquivo 'Referência "&Excel_BuiltIn_Database&".xls)",IF(OR($C80<>"S",ORÇAMENTO.CodBarra=""),"(Sem Código)",IF(ISERROR(MATCH($AE80,INDIRECT(ORÇAMENTO.BancoRef),0)),"(Código não identificado nas referências)",MATCH($AE80,INDIRECT(ORÇAMENTO.BancoRef),0)))) -> 10270 | AG80: =ROUND(IF(DESONERACAO="sim",REFERENCIA.Desonerado,REFERENCIA.NaoDesonerado),2) -> 137.86 | AH80: =ROUND(IF(ISNUMBER(ORÇAMENTO.OpcaoBDI),ORÇAMENTO.OpcaoBDI,IF(LEFT(ORÇAMENTO.OpcaoBDI,3)="BDI",HLOOKUP(ORÇAMENTO.OpcaoBDI,$F$4:$H$5,2,FALSE),0)),15-11*$AF$9) -> 0.2354 | AM80: 144.76 | AN80: =ROUND(ORÇAMENTO.CustoUnitario*(1+$AH80),2) -> 144.76
A81: S | B81: 4 | C81: S | D81: 0 | E81: =IF($C81=1,OFFSET(E81,-1,0)+MAX(1,COUNTIF(QCI!$A$13:$A$24,OFFSET(ORÇAMENTO!E81,-1,0))),OFFSET(E81,-1,0)) -> 1 | F81: 1 | G81: 7 | H81: 1 | I81: 3 | J81: 0 | K81: =IF(OR($C81="S",$C81=0),0,MATCH(OFFSET($D81,0,$C81)+IF($C81<>1,1,COUNTIF(QCI!$A$13:$A$24,ORÇAMENTO!E81)),OFFSET($D81,1,$C81,ROW($C$190)-ROW($C81)),0)) -> 0 | L81: F | M81: Serviço | N81: Serviço | O81: 1.1.7.1.3. | P81: SINAPI | Q81: 91784 | R81: TUBOS DE PVC, SOLDÁVEL, ÁGUA FRIA, DN 20 MM, INCLUSIVE CONEXÕES, CORTES E FIXAÇÕES | S81: M | T81: =OFFSET(CÁLCULO!H$15,ROW($T81)-ROW(T$15),0) -> 110 | U81: 29.2145 | V81: BDI 1 | W81: 36.09 | X81: 3969.9 | Y81: RA | Z81: RA | AA81: =IF($C81="S",IF($Z81="CP",$X81,IF($Z81="RA",(($X81)*QCI!$AA$3),0)),SomaAgrup) -> 550.1252409 | AB81: 0 | AD81: =IF(C81<=CRONO.NivelExibicao,MAX($AD$15:OFFSET(AD81,-1,0))+IF($C81<>1,1,MAX(1,COUNTIF(QCI!$A$13:$A$24,OFFSET($E81,-1,0)))),"") ->  | AE81: SINAPI 91784 | AF81: 8758 | AG81: 34.37 | AH81: 0.2354 | AM81: 3969.9 | AN81: 36.09
A82: S | B82: 4 | C82: S | D82: 0 | E82: =IF($C82=1,OFFSET(E82,-1,0)+MAX(1,COUNTIF(QCI!$A$13:$A$24,OFFSET(ORÇAMENTO!E82,-1,0))),OFFSET(E82,-1,0)) -> 1 | F82: 1 | G82: 7 | H82: 1 | I82: 4 | J82: 0 | K82: =IF(OR($C82="S",$C82=0),0,MATCH(OFFSET($D82,0,$C82)+IF($C82<>1,1,COUNTIF(QCI!$A$13:$A$24,ORÇAMENTO!E82)),OFFSET($D82,1,$C82,ROW($C$190)-ROW($C82)),0)) -> 0 | L82: F | M82: Serviço | N82: Serviço | O82: 1.1.7.1.4. | P82: SINAPI | Q82: 91785 | R82: TUBOS DE PVC, SOLDÁVEL, ÁGUA FRIA, DN 25 MM, INCLUSIVE CONEXÕES, CORTES E FIXAÇÕES | S82: M | T82: =OFFSET(CÁLCULO!H$15,ROW($T82)-ROW(T$15),0) -> 35.79 | U82: 29.053 | V82: BDI 1 | W82: 35.89 | X82: 1284.5 | Y82: RA | Z82: RA | AA82: =IF($C82="S",IF($Z82="CP",$X82,IF($Z82="RA",(($X82)*QCI!$AA$3),0)),SomaAgrup) -> 177.998406 | AB82: 0 | AD82: =IF(C82<=CRONO.NivelExibicao,MAX($AD$15:OFFSET(AD82,-1,0))+IF($C82<>1,1,MAX(1,COUNTIF(QCI!$A$13:$A$24,OFFSET($E82,-1,0)))),"") ->  | AE82: SINAPI 91785 | AF82: 8759 | AG82: 34.18 | AH82: 0.2354 | AM82: 1284.5 | AN82: 35.89
A83: S | B83: 4 | C83: S | D83: 0 | E83: =IF($C83=1,OFFSET(E83,-1,0)+MAX(1,COUNTIF(QCI!$A$13:$A$24,OFFSET(ORÇAMENTO!E83,-1,0))),OFFSET(E83,-1,0)) -> 1 | F83: 1 | G83: 7 | H83: 1 | I83: 5 | J83: 0 | K83: =IF(OR($C83="S",$C83=0),0,MATCH(OFFSET($D83,0,$C83)+IF($C83<>1,1,COUNTIF(QCI!$A$13:$A$24,ORÇAMENTO!E83)),OFFSET($D83,1,$C83,ROW($C$190)-ROW($C83)),0)) -> 0 | L83: F | M83: Serviço | N83: Serviço | O83: 1.1.7.1.5. | P83: SINAPI-I | Q83: 34636 | R83: CAIXA D'AGUA EM POLIETILENO 1000 LITROS, COM TAMPA | S83: UN | T83: =OFFSET(CÁLCULO!H$15,ROW($T83)-ROW(T$15),0) -> 1 | U83: 220.15 | V83: BDI 1 | W83: 271.97 | X83: 271.97 | Y83: RA | Z83: RA | AA83: =IF($C83="S",IF($Z83="CP",$X83,IF($Z83="RA",(($X83)*QCI!$AA$3),0)),SomaAgrup) -> 37.68799258 | AB83: 0 | AD83: =IF(C83<=CRONO.NivelExibicao,MAX($AD$15:OFFSET(AD83,-1,0))+IF($C83<>1,1,MAX(1,COUNTIF(QCI!$A$13:$A$24,OFFSET($E83,-1,0)))),"") ->  | AE83: SINAPI-I 34636 | AF83: 1241 | AG83: 259 | AH83: 0.2354 | AM83: 271.97 | AN83: 271.97
A84: =CHOOSE(1+LOG(1+2*(ORÇAMENTO.Nivel="Meta")+4*(ORÇAMENTO.Nivel="Nível 2")+8*(ORÇAMENTO.Nivel="Nível 3")+16*(ORÇAMENTO.Nivel="Nível 4")+32*(ORÇAMENTO.Nivel="Serviço"),2),0,1,2,3,4,"S") -> 4 | B84: =IF(OR(C84="s",C84=0),OFFSET(B84,-1,0),C84) -> 4 | C84: =IF(OFFSET(C84,-1,0)="L",1,IF(OFFSET(C84,-1,0)=1,2,IF(OR(A84="s",A84=0),"S",IF(AND(OFFSET(C84,-1,0)=2,A84=4),3,IF(AND(OR(OFFSET(C84,-1,0)="s",OFFSET(C84,-1,0)=0),A84<>"s",A84>OFFSET(B84,-1,0)),OFFSET(B84,-1,0),A84))))) -> 4 | D84: =IF(OR(C84="S",C84=0),0,IF(ISERROR(K84),J84,SMALL(J84:K84,1))) -> 6 | E84: =IF($C84=1,OFFSET(E84,-1,0)+MAX(1,COUNTIF(QCI!$A$13:$A$24,OFFSET(ORÇAMENTO!E84,-1,0))),OFFSET(E84,-1,0)) -> 1 | F84: =IF($C84=1,0,IF($C84=2,OFFSET(F84,-1,0)+1,OFFSET(F84,-1,0))) -> 1 | G84: =IF(AND($C84<=2,$C84<>0),0,IF($C84=3,OFFSET(G84,-1,0)+1,OFFSET(G84,-1,0))) -> 7 | H84: =IF(AND($C84<=3,$C84<>0),0,IF($C84=4,OFFSET(H84,-1,0)+1,OFFSET(H84,-1,0))) -> 2 | I84: =IF(AND($C84<=4,$C84<>0),0,IF(AND($C84="S",$X84>0),OFFSET(I84,-1,0)+1,OFFSET(I84,-1,0))) -> 0 | J84: 10 | K84: =IF(OR($C84="S",$C84=0),0,MATCH(OFFSET($D84,0,$C84)+IF($C84<>1,1,COUNTIF(QCI!$A$13:$A$24,ORÇAMENTO!E84)),OFFSET($D84,1,$C84,ROW($C$190)-ROW($C84)),0)) -> 6 | L84: =IF(OR($X84>0,$C84=1,$C84=2,$C84=3,$C84=4),"F","") -> F | M84: Nível 4 | N84: =CHOOSE(1+LOG(1+2*(C84=1)+4*(C84=2)+8*(C84=3)+16*(C84=4)+32*(C84="S"),2),"","Meta","Nível 2","Nível 3","Nível 4","Serviço") -> Nível 4 | O84: =IF(OR($C84=0,$L84=""),"-",CONCATENATE(E84&".",IF(AND($A$5>=2,$C84>=2),F84&".",""),IF(AND($A$5>=3,$C84>=3),G84&".",""),IF(AND($A$5>=4,$C84>=4),H84&".",""),IF($C84="S",I84&".",""))) -> 1.1.7.2. | P84: SINAPI | R84: Instalações Sanitárias | S84: - | T84: =OFFSET(CÁLCULO!H$15,ROW($T84)-ROW(T$15),0) -> 0 | U84: 0 | V84: BDI 1 | W84: =IF($C84="S",ROUND(IF(TIPOORCAMENTO="Proposto",ORÇAMENTO.CustoUnitario*(1+$AH84),ORÇAMENTO.PrecoUnitarioLicitado),15-13*$AF$10),0) -> 0 | X84: =IF($C84="S",VTOTAL1,IF($C84=0,0,ROUND(SomaAgrup,15-13*$AF$11))) -> 2164.49 | Y84: RA | Z84: =IF(AND($C84="S",$X84>0),IF(ISBLANK($Y84),"RA",LEFT($Y84,2)),"") ->  | AA84: =IF($C84="S",IF($Z84="CP",$X84,IF($Z84="RA",(($X84)*QCI!$AA$3),0)),SomaAgrup) -> 299.9422108 | AB84: =IF($C84="S",IF($Z84="OU",ROUND($X84,2),0),SomaAgrup) -> 0 | AC84: =IF($N84="","",IF(ORÇAMENTO.Descricao="","DESCRIÇÃO",IF(AND($C84="S",ORÇAMENTO.Unidade=""),"UNIDADE",IF($X84<0,"VALOR NEGATIVO",IF(OR(AND(TIPOORCAMENTO="Proposto",$AG84<>"",$AG84>0,ORÇAMENTO.CustoUnitario>$AG84),AND(TIPOORCAMENTO="LICITADO",ORÇAMENTO.PrecoUnitarioLicitado>$AN84)),"ACIMA REF.",""))))) ->  | AD84: =IF(C84<=CRONO.NivelExibicao,MAX($AD$15:OFFSET(AD84,-1,0))+IF($C84<>1,1,MAX(1,COUNTIF(QCI!$A$13:$A$24,OFFSET($E84,-1,0)))),"") ->  | AE84: =IF(AND($C84="S",ORÇAMENTO.CodBarra<>""),IF(ORÇAMENTO.Fonte="",ORÇAMENTO.CodBarra,CONCATENATE(ORÇAMENTO.Fonte," ",ORÇAMENTO.CodBarra))) -> FALSE | AF84: =IF(ISERROR(INDIRECT(ORÇAMENTO.BancoRef)),"(abra o arquivo 'Referência "&Excel_BuiltIn_Database&".xls)",IF(OR($C84<>"S",ORÇAMENTO.CodBarra=""),"(Sem Código)",IF(ISERROR(MATCH($AE84,INDIRECT(ORÇAMENTO.BancoRef),0)),"(Código não identificado nas referências)",MATCH($AE84,INDIRECT(ORÇAMENTO.BancoRef),0)))) -> (Sem Código) | AG84: =ROUND(IF(DESONERACAO="sim",REFERENCIA.Desonerado,REFERENCIA.NaoDesonerado),2) -> 0 | AH84: =ROUND(IF(ISNUMBER(ORÇAMENTO.OpcaoBDI),ORÇAMENTO.OpcaoBDI,IF(LEFT(ORÇAMENTO.OpcaoBDI,3)="BDI",HLOOKUP(ORÇAMENTO.OpcaoBDI,$F$4:$H$5,2,FALSE),0)),15-11*$AF$9) -> 0.2354 | AM84: 2164.49 | AN84: =ROUND(ORÇAMENTO.CustoUnitario*(1+$AH84),2) -> 0
A85: S | B85: 4 | C85: S | D85: 0 | E85: =IF($C85=1,OFFSET(E85,-1,0)+MAX(1,COUNTIF(QCI!$A$13:$A$24,OFFSET(ORÇAMENTO!E85,-1,0))),OFFSET(E85,-1,0)) -> 1 | F85: 1 | G85: 7 | H85: 2 | I85: 1 | J85: 0 | K85: =IF(OR($C85="S",$C85=0),0,MATCH(OFFSET($D85,0,$C85)+IF($C85<>1,1,COUNTIF(QCI!$A$13:$A$24,ORÇAMENTO!E85)),OFFSET($D85,1,$C85,ROW($C$190)-ROW($C85)),0)) -> 0 | L85: F | M85: Serviço | N85: Serviço | O85: 1.1.7.2.1. | P85: SINAPI | Q85: 91792 | R85: TUBO DE PVC, SÉRIE NORMAL, ESGOTO PREDIAL, DN 40 MM, INCLUSIVE CONEXÕES, CORTES E FIXAÇÕES | S85: M | T85: =OFFSET(CÁLCULO!H$15,ROW($T85)-ROW(T$15),0) -> 8.06 | U85: 37.5615 | V85: BDI 1 | W85: 46.4 | X85: 373.98 | Y85: RA | Z85: RA | AA85: =IF($C85="S",IF($Z85="CP",$X85,IF($Z85="RA",(($X85)*QCI!$AA$3),0)),SomaAgrup) -> 51.8239345 | AB85: 0 | AD85: =IF(C85<=CRONO.NivelExibicao,MAX($AD$15:OFFSET(AD85,-1,0))+IF($C85<>1,1,MAX(1,COUNTIF(QCI!$A$13:$A$24,OFFSET($E85,-1,0)))),"") ->  | AE85: SINAPI 91792 | AF85: 8766 | AG85: 44.19 | AH85: 0.2354 | AM85: 373.98 | AN85: 46.4
A86: S | B86: 4 | C86: S | D86: 0 | E86: =IF($C86=1,OFFSET(E86,-1,0)+MAX(1,COUNTIF(QCI!$A$13:$A$24,OFFSET(ORÇAMENTO!E86,-1,0))),OFFSET(E86,-1,0)) -> 1 | F86: 1 | G86: 7 | H86: 2 | I86: 2 | J86: 0 | K86: =IF(OR($C86="S",$C86=0),0,MATCH(OFFSET($D86,0,$C86)+IF($C86<>1,1,COUNTIF(QCI!$A$13:$A$24,ORÇAMENTO!E86)),OFFSET($D86,1,$C86,ROW($C$190)-ROW($C86)),0)) -> 0 | L86: F | M86: Serviço | N86: Serviço | O86: 1.1.7.2.2. | P86: SINAPI | Q86: 91793 | R86: TUBO DE PVC, SÉRIE NORMAL, ESGOTO PREDIAL, DN 50 MM, INCLUSIVE CONEXÕES, CORTES E FIXAÇÕES | S86: M | T86: =OFFSET(CÁLCULO!H$15,ROW($T86)-ROW(T$15),0) -> 15.55 | U86: 53.72 | V86: BDI 1 | W86: 66.37 | X86: 1032.05 | Y86: RA | Z86: RA | AA86: =IF($C86="S",IF($Z86="CP",$X86,IF($Z86="RA",(($X86)*QCI!$AA$3),0)),SomaAgrup) -> 143.0153794 | AB86: 0 | AD86: =IF(C86<=CRONO.NivelExibicao,MAX($AD$15:OFFSET(AD86,-1,0))+IF($C86<>1,1,MAX(1,COUNTIF(QCI!$A$13:$A$24,OFFSET($E86,-1,0)))),"") ->  | AE86: SINAPI 91793 | AF86: 8767 | AG86: 63.2 | AH86: 0.2354 | AM86: 1032.05 | AN86: 66.37
A87: S | B87: 4 | C87: S | D87: 0 | E87: =IF($C87=1,OFFSET(E87,-1,0)+MAX(1,COUNTIF(QCI!$A$13:$A$24,OFFSET(ORÇAMENTO!E87,-1,0))),OFFSET(E87,-1,0)) -> 1 | F87: 1 | G87: 7 | H87: 2 | I87: 3 | J87: 0 | K87: =IF(OR($C87="S",$C87=0),0,MATCH(OFFSET($D87,0,$C87)+IF($C87<>1,1,COUNTIF(QCI!$A$13:$A$24,ORÇAMENTO!E87)),OFFSET($D87,1,$C87,ROW($C$190)-ROW($C87)),0)) -> 0 | L87: F | M87: Serviço | N87: Serviço | O87: 1.1.7.2.3. | P87: SINAPI | Q87: 91795 | R87: TUBO PVC, SÉRIE N, ESGOTO PREDIAL, 100 MM, INCL. CONEXÕES E CORTES, FIXAÇÕES | S87: M | T87: =OFFSET(CÁLCULO!H$15,ROW($T87)-ROW(T$15),0) -> 14.4 | U87: 40.3155 | V87: BDI 1 | W87: 49.81 | X87: 717.26 | Y87: RA | Z87: RA | AA87: =IF($C87="S",IF($Z87="CP",$X87,IF($Z87="RA",(($X87)*QCI!$AA$3),0)),SomaAgrup) -> 99.39364474 | AB87: 0 | AD87: =IF(C87<=CRONO.NivelExibicao,MAX($AD$15:OFFSET(AD87,-1,0))+IF($C87<>1,1,MAX(1,COUNTIF(QCI!$A$13:$A$24,OFFSET($E87,-1,0)))),"") ->  | AE87: SINAPI 91795 | AF87: 8769 | AG87: 47.43 | AH87: 0.2354 | AM87: 717.26 | AN87: 49.81
A88: S | B88: 4 | C88: S | D88: 0 | E88: =IF($C88=1,OFFSET(E88,-1,0)+MAX(1,COUNTIF(QCI!$A$13:$A$24,OFFSET(ORÇAMENTO!E88,-1,0))),OFFSET(E88,-1,0)) -> 1 | F88: 1 | G88: 7 | H88: 2 | I88: 4 | J88: 0 | K88: =IF(OR($C88="S",$C88=0),0,MATCH(OFFSET($D88,0,$C88)+IF($C88<>1,1,COUNTIF(QCI!$A$13:$A$24,ORÇAMENTO!E88)),OFFSET($D88,1,$C88,ROW($C$190)-ROW($C88)),0)) -> 0 | L88: F | M88: Serviço | N88: Serviço | O88: 1.1.7.2.4. | P88: SINAPI | Q88: 89710 | R88: RALO SECO, PVC, DN 100 X 40 MM, JUNTA SOLDÁVEL, FORNECIDO E INSTALADO EM RAMAL DE DESCARGA OU EM RAMAL DE ESGOTO SANITÁRIO | S88: UN | T88: =OFFSET(CÁLCULO!H$15,ROW($T88)-ROW(T$15),0) -> 2 | U88: 6.596 | V88: BDI 1 | W88: 8.15 | X88: 16.3 | Y88: RA | Z88: RA | AA88: =IF($C88="S",IF($Z88="CP",$X88,IF($Z88="RA",(($X88)*QCI!$AA$3),0)),SomaAgrup) -> 2.258757507 | AB88: 0 | AD88: =IF(C88<=CRONO.NivelExibicao,MAX($AD$15:OFFSET(AD88,-1,0))+IF($C88<>1,1,MAX(1,COUNTIF(QCI!$A$13:$A$24,OFFSET($E88,-1,0)))),"") ->  | AE88: SINAPI 89710 | AF88: 10060 | AG88: 7.76 | AH88: 0.2354 | AM88: 16.3 | AN88: 8.15
A89: S | B89: 4 | C89: S | D89: 0 | E89: =IF($C89=1,OFFSET(E89,-1,0)+MAX(1,COUNTIF(QCI!$A$13:$A$24,OFFSET(ORÇAMENTO!E89,-1,0))),OFFSET(E89,-1,0)) -> 1 | F89: 1 | G89: 7 | H89: 2 | I89: 5 | J89: 0 | K89: =IF(OR($C89="S",$C89=0),0,MATCH(OFFSET($D89,0,$C89)+IF($C89<>1,1,COUNTIF(QCI!$A$13:$A$24,ORÇAMENTO!E89)),OFFSET($D89,1,$C89,ROW($C$190)-ROW($C89)),0)) -> 0 | L89: F | M89: Serviço | N89: Serviço | O89: 1.1.7.2.5. | P89: SINAPI | Q89: 89709 | R89: RALO SIFONADO, PVC, DN 100 X 40 MM, JUNTA SOLDÁVEL, FORNECIDO E INSTALADO EM RAMAL DE DESCARGA OU EM RAMAL DE ESGOTO SANITÁRIO. | S89: UN | T89: =OFFSET(CÁLCULO!H$15,ROW($T89)-ROW(T$15),0) -> 3 | U89: 6.715 | V89: BDI 1 | W89: 8.3 | X89: 24.9 | Y89: RA | Z89: RA | AA89: =IF($C89="S",IF($Z89="CP",$X89,IF($Z89="RA",(($X89)*QCI!$AA$3),0)),SomaAgrup) -> 3.450494596 | AB89: 0 | AD89: =IF(C89<=CRONO.NivelExibicao,MAX($AD$15:OFFSET(AD89,-1,0))+IF($C89<>1,1,MAX(1,COUNTIF(QCI!$A$13:$A$24,OFFSET($E89,-1,0)))),"") ->  | AE89: SINAPI 89709 | AF89: 10059 | AG89: 7.9 | AH89: 0.2354 | AM89: 24.9 | AN89: 8.3
A90: =CHOOSE(1+LOG(1+2*(ORÇAMENTO.Nivel="Meta")+4*(ORÇAMENTO.Nivel="Nível 2")+8*(ORÇAMENTO.Nivel="Nível 3")+16*(ORÇAMENTO.Nivel="Nível 4")+32*(ORÇAMENTO.Nivel="Serviço"),2),0,1,2,3,4,"S") -> 4 | B90: =IF(OR(C90="s",C90=0),OFFSET(B90,-1,0),C90) -> 4 | C90: =IF(OFFSET(C90,-1,0)="L",1,IF(OFFSET(C90,-1,0)=1,2,IF(OR(A90="s",A90=0),"S",IF(AND(OFFSET(C90,-1,0)=2,A90=4),3,IF(AND(OR(OFFSET(C90,-1,0)="s",OFFSET(C90,-1,0)=0),A90<>"s",A90>OFFSET(B90,-1,0)),OFFSET(B90,-1,0),A90))))) -> 4 | D90: =IF(OR(C90="S",C90=0),0,IF(ISERROR(K90),J90,SMALL(J90:K90,1))) -> 4 | E90: =IF($C90=1,OFFSET(E90,-1,0)+MAX(1,COUNTIF(QCI!$A$13:$A$24,OFFSET(ORÇAMENTO!E90,-1,0))),OFFSET(E90,-1,0)) -> 1 | F90: =IF($C90=1,0,IF($C90=2,OFFSET(F90,-1,0)+1,OFFSET(F90,-1,0))) -> 1 | G90: =IF(AND($C90<=2,$C90<>0),0,IF($C90=3,OFFSET(G90,-1,0)+1,OFFSET(G90,-1,0))) -> 7 | H90: =IF(AND($C90<=3,$C90<>0),0,IF($C90=4,OFFSET(H90,-1,0)+1,OFFSET(H90,-1,0))) -> 3 | I90: =IF(AND($C90<=4,$C90<>0),0,IF(AND($C90="S",$X90>0),OFFSET(I90,-1,0)+1,OFFSET(I90,-1,0))) -> 0 | J90: 4 | K90: =IF(OR($C90="S",$C90=0),0,MATCH(OFFSET($D90,0,$C90)+IF($C90<>1,1,COUNTIF(QCI!$A$13:$A$24,ORÇAMENTO!E90)),OFFSET($D90,1,$C90,ROW($C$190)-ROW($C90)),0)) ->  | L90: =IF(OR($X90>0,$C90=1,$C90=2,$C90=3,$C90=4),"F","") -> F | M90: Nível 4 | N90: =CHOOSE(1+LOG(1+2*(C90=1)+4*(C90=2)+8*(C90=3)+16*(C90=4)+32*(C90="S"),2),"","Meta","Nível 2","Nível 3","Nível 4","Serviço") -> Nível 4 | O90: =IF(OR($C90=0,$L90=""),"-",CONCATENATE(E90&".",IF(AND($A$5>=2,$C90>=2),F90&".",""),IF(AND($A$5>=3,$C90>=3),G90&".",""),IF(AND($A$5>=4,$C90>=4),H90&".",""),IF($C90="S",I90&".",""))) -> 1.1.7.3. | P90: SINAPI | R90: Fossa e Sumidouro | S90: - | T90: =OFFSET(CÁLCULO!H$15,ROW($T90)-ROW(T$15),0) -> 0 | U90: 0 | V90: BDI 1 | W90: =IF($C90="S",ROUND(IF(TIPOORCAMENTO="Proposto",ORÇAMENTO.CustoUnitario*(1+$AH90),ORÇAMENTO.PrecoUnitarioLicitado),15-13*$AF$10),0) -> 0 | X90: =IF($C90="S",VTOTAL1,IF($C90=0,0,ROUND(SomaAgrup,15-13*$AF$11))) -> 3435.61 | Y90: RA | Z90: =IF(AND($C90="S",$X90>0),IF(ISBLANK($Y90),"RA",LEFT($Y90,2)),"") ->  | AA90: =IF($C90="S",IF($Z90="CP",$X90,IF($Z90="RA",(($X90)*QCI!$AA$3),0)),SomaAgrup) -> 476.0864956 | AB90: =IF($C90="S",IF($Z90="OU",ROUND($X90,2),0),SomaAgrup) -> 0 | AC90: =IF($N90="","",IF(ORÇAMENTO.Descricao="","DESCRIÇÃO",IF(AND($C90="S",ORÇAMENTO.Unidade=""),"UNIDADE",IF($X90<0,"VALOR NEGATIVO",IF(OR(AND(TIPOORCAMENTO="Proposto",$AG90<>"",$AG90>0,ORÇAMENTO.CustoUnitario>$AG90),AND(TIPOORCAMENTO="LICITADO",ORÇAMENTO.PrecoUnitarioLicitado>$AN90)),"ACIMA REF.",""))))) ->  | AD90: =IF(C90<=CRONO.NivelExibicao,MAX($AD$15:OFFSET(AD90,-1,0))+IF($C90<>1,1,MAX(1,COUNTIF(QCI!$A$13:$A$24,OFFSET($E90,-1,0)))),"") ->  | AE90: =IF(AND($C90="S",ORÇAMENTO.CodBarra<>""),IF(ORÇAMENTO.Fonte="",ORÇAMENTO.CodBarra,CONCATENATE(ORÇAMENTO.Fonte," ",ORÇAMENTO.CodBarra))) -> FALSE | AF90: =IF(ISERROR(INDIRECT(ORÇAMENTO.BancoRef)),"(abra o arquivo 'Referência "&Excel_BuiltIn_Database&".xls)",IF(OR($C90<>"S",ORÇAMENTO.CodBarra=""),"(Sem Código)",IF(ISERROR(MATCH($AE90,INDIRECT(ORÇAMENTO.BancoRef),0)),"(Código não identificado nas referências)",MATCH($AE90,INDIRECT(ORÇAMENTO.BancoRef),0)))) -> (Sem Código) | AG90: =ROUND(IF(DESONERACAO="sim",REFERENCIA.Desonerado,REFERENCIA.NaoDesonerado),2) -> 0 | AH90: =ROUND(IF(ISNUMBER(ORÇAMENTO.OpcaoBDI),ORÇAMENTO.OpcaoBDI,IF(LEFT(ORÇAMENTO.OpcaoBDI,3)="BDI",HLOOKUP(ORÇAMENTO.OpcaoBDI,$F$4:$H$5,2,FALSE),0)),15-11*$AF$9) -> 0.2354 | AM90: 3435.61 | AN90: =ROUND(ORÇAMENTO.CustoUnitario*(1+$AH90),2) -> 0
A91: S | B91: 4 | C91: S | D91: 0 | E91: =IF($C91=1,OFFSET(E91,-1,0)+MAX(1,COUNTIF(QCI!$A$13:$A$24,OFFSET(ORÇAMENTO!E91,-1,0))),OFFSET(E91,-1,0)) -> 1 | F91: 1 | G91: 7 | H91: 3 | I91: 1 | J91: 0 | K91: =IF(OR($C91="S",$C91=0),0,MATCH(OFFSET($D91,0,$C91)+IF($C91<>1,1,COUNTIF(QCI!$A$13:$A$24,ORÇAMENTO!E91)),OFFSET($D91,1,$C91,ROW($C$190)-ROW($C91)),0)) -> 0 | L91: F | M91: Serviço | N91: Serviço | O91: 1.1.7.3.1. | P91: SINAPI | Q91: 74166/1 | R91: CAIXA DE INSPEÇÃO EM CONCRETO PRÉ-MOLDADO DN 60CM COM TAMPA H= 60CM - FORNECIMENTO E INSTALACAO | S91: UN | T91: =OFFSET(CÁLCULO!H$15,ROW($T91)-ROW(T$15),0) -> 1 | U91: 161.568 | V91: BDI 1 | W91: 199.6 | X91: 199.6 | Y91: RA | Z91: RA | AA91: =IF($C91="S",IF($Z91="CP",$X91,IF($Z91="RA",(($X91)*QCI!$AA$3),0)),SomaAgrup) -> 27.6593864 | AB91: 0 | AD91: =IF(C91<=CRONO.NivelExibicao,MAX($AD$15:OFFSET(AD91,-1,0))+IF($C91<>1,1,MAX(1,COUNTIF(QCI!$A$13:$A$24,OFFSET($E91,-1,0)))),"") ->  | AE91: SINAPI 74166/1 | AF91: 10034 | AG91: 190.08 | AH91: 0.2354 | AM91: 199.6 | AN91: 199.6
A92: S | B92: 4 | C92: S | D92: 0 | E92: =IF($C92=1,OFFSET(E92,-1,0)+MAX(1,COUNTIF(QCI!$A$13:$A$24,OFFSET(ORÇAMENTO!E92,-1,0))),OFFSET(E92,-1,0)) -> 1 | F92: 1 | G92: 7 | H92: 3 | I92: 2 | J92: 0 | K92: =IF(OR($C92="S",$C92=0),0,MATCH(OFFSET($D92,0,$C92)+IF($C92<>1,1,COUNTIF(QCI!$A$13:$A$24,ORÇAMENTO!E92)),OFFSET($D92,1,$C92,ROW($C$190)-ROW($C92)),0)) -> 0 | L92: F | M92: Serviço | N92: Serviço | O92: 1.1.7.3.2. | P92: AMMOC | Q92: 50 | R92: TANQUE SÉPTICO RETANGULAR, EM ALVENARIA COM BLOCOS CERÃMICOS MACIÇOS, DIMENSÕES INTERNAS: 1,60 X 0,80 X 1,2 M | S92: UN | T92: =OFFSET(CÁLCULO!H$15,ROW($T92)-ROW(T$15),0) -> 1 | U92: 2000 | V92: BDI 1 | W92: 2470.8 | X92: 2470.8 | Y92: RA | Z92: RA | AA92: =IF($C92="S",IF($Z92="CP",$X92,IF($Z92="RA",(($X92)*QCI!$AA$3),0)),SomaAgrup) -> 342.3888373 | AB92: 0 | AD92: =IF(C92<=CRONO.NivelExibicao,MAX($AD$15:OFFSET(AD92,-1,0))+IF($C92<>1,1,MAX(1,COUNTIF(QCI!$A$13:$A$24,OFFSET($E92,-1,0)))),"") ->  | AE92: AMMOC 50 | AF92: 52 | AG92: 2473.37 | AH92: 0.2354 | AM92: 2470.8 | AN92: 2470.8
A93: S | B93: 4 | C93: S | D93: 0 | E93: =IF($C93=1,OFFSET(E93,-1,0)+MAX(1,COUNTIF(QCI!$A$13:$A$24,OFFSET(ORÇAMENTO!E93,-1,0))),OFFSET(E93,-1,0)) -> 1 | F93: 1 | G93: 7 | H93: 3 | I93: 3 | J93: 0 | K93: =IF(OR($C93="S",$C93=0),0,MATCH(OFFSET($D93,0,$C93)+IF($C93<>1,1,COUNTIF(QCI!$A$13:$A$24,ORÇAMENTO!E93)),OFFSET($D93,1,$C93,ROW($C$190)-ROW($C93)),0)) -> 0 | L93: F | M93: Serviço | N93: Serviço | O93: 1.1.7.3.3. | P93: AMMIOC | Q93: 51 | R93: SUMIDOURO RETANGULAR, EM ALVENARIA COM BLOCOS DE CONCRETO, DIMENSÕES INTERNAS: 0,80 X 0,80 X 1,20 M | S93: UN | T93: =OFFSET(CÁLCULO!H$15,ROW($T93)-ROW(T$15),0) -> 1 | U93: 619.4 | V93: BDI 1 | W93: 765.21 | X93: 765.21 | Y93: RA | Z93: RA | AA93: =IF($C93="S",IF($Z93="CP",$X93,IF($Z93="RA",(($X93)*QCI!$AA$3),0)),SomaAgrup) -> 106.0382719 | AB93: 0 | AD93: =IF(C93<=CRONO.NivelExibicao,MAX($AD$15:OFFSET(AD93,-1,0))+IF($C93<>1,1,MAX(1,COUNTIF(QCI!$A$13:$A$24,OFFSET($E93,-1,0)))),"") ->  | AE93: AMMIOC 51 | AF93: 53 | AG93: 619.4 | AH93: 0.2354 | AM93: 765.21 | AN93: 765.21
A94: 3 | B94: 3 | C94: 3 | D94: 16 | E94: =IF($C94=1,OFFSET(E94,-1,0)+MAX(1,COUNTIF(QCI!$A$13:$A$24,OFFSET(ORÇAMENTO!E94,-1,0))),OFFSET(E94,-1,0)) -> 1 | F94: 1 | G94: 8 | H94: 0 | I94: 0 | J94: 55 | K94: =IF(OR($C94="S",$C94=0),0,MATCH(OFFSET($D94,0,$C94)+IF($C94<>1,1,COUNTIF(QCI!$A$13:$A$24,ORÇAMENTO!E94)),OFFSET($D94,1,$C94,ROW($C$190)-ROW($C94)),0)) -> 16 | L94: F | M94: Nível 3 | N94: Nível 3 | O94: 1.1.8. | P94: SINAPI | R94: Aparelhos Sanitários | S94: - | T94: =OFFSET(CÁLCULO!H$15,ROW($T94)-ROW(T$15),0) -> 0 | U94: 0 | V94: BDI 1 | W94: 0 | X94: 5583.28 | Y94: RA | AA94: =IF($C94="S",IF($Z94="CP",$X94,IF($Z94="RA",(($X94)*QCI!$AA$3),0)),SomaAgrup) -> 773.6978903 | AB94: 0 | AD94: =IF(C94<=CRONO.NivelExibicao,MAX($AD$15:OFFSET(AD94,-1,0))+IF($C94<>1,1,MAX(1,COUNTIF(QCI!$A$13:$A$24,OFFSET($E94,-1,0)))),"") ->  | AE94: FALSE | AF94: (Sem Código) | AG94: 0 | AH94: 0.2354 | AM94: 5583.28 | AN94: 0
A95: 4 | B95: 4 | C95: 4 | D95: 8 | E95: =IF($C95=1,OFFSET(E95,-1,0)+MAX(1,COUNTIF(QCI!$A$13:$A$24,OFFSET(ORÇAMENTO!E95,-1,0))),OFFSET(E95,-1,0)) -> 1 | F95: 1 | G95: 8 | H95: 1 | I95: 0 | J95: 15 | K95: =IF(OR($C95="S",$C95=0),0,MATCH(OFFSET($D95,0,$C95)+IF($C95<>1,1,COUNTIF(QCI!$A$13:$A$24,ORÇAMENTO!E95)),OFFSET($D95,1,$C95,ROW($C$190)-ROW($C95)),0)) -> 8 | L95: F | M95: Nível 4 | N95: Nível 4 | O95: 1.1.8.1. | P95: SINAPI | Q95: 86943 | R95: Vasos, Bancadas e Lavatórios | S95: - | T95: =OFFSET(CÁLCULO!H$15,ROW($T95)-ROW(T$15),0) -> 0 | U95: 0 | V95: BDI 1 | W95: 0 | X95: 2787.62 | Y95: RA | AA95: =IF($C95="S",IF($Z95="CP",$X95,IF($Z95="RA",(($X95)*QCI!$AA$3),0)),SomaAgrup) -> 386.2918774 | AB95: 0 | AD95: =IF(C95<=CRONO.NivelExibicao,MAX($AD$15:OFFSET(AD95,-1,0))+IF($C95<>1,1,MAX(1,COUNTIF(QCI!$A$13:$A$24,OFFSET($E95,-1,0)))),"") ->  | AE95: FALSE | AF95: (Sem Código) | AG95: 0 | AH95: 0.2354 | AM95: 2787.62 | AN95: 0
A96: S | B96: 4 | C96: S | D96: 0 | E96: =IF($C96=1,OFFSET(E96,-1,0)+MAX(1,COUNTIF(QCI!$A$13:$A$24,OFFSET(ORÇAMENTO!E96,-1,0))),OFFSET(E96,-1,0)) -> 1 | F96: 1 | G96: 8 | H96: 1 | I96: 1 | J96: 0 | K96: =IF(OR($C96="S",$C96=0),0,MATCH(OFFSET($D96,0,$C96)+IF($C96<>1,1,COUNTIF(QCI!$A$13:$A$24,ORÇAMENTO!E96)),OFFSET($D96,1,$C96,ROW($C$190)-ROW($C96)),0)) -> 0 | L96: F | M96: Serviço | N96: Serviço | O96: 1.1.8.1.1. | P96: SINAPI | Q96: 86895 | R96: BANCADA DE GRANITO CINZA POLIDO PARA LAVATÓRIO 0,50 X 0,60 M - FORNECIMENTO E INSTALAÇÃO | S96: UN | T96: =OFFSET(CÁLCULO!H$15,ROW($T96)-ROW(T$15),0) -> 2 | U96: 202.487 | V96: BDI 1 | W96: 250.16 | X96: 500.32 | Y96: RA | Z96: RA | AA96: =IF($C96="S",IF($Z96="CP",$X96,IF($Z96="RA",(($X96)*QCI!$AA$3),0)),SomaAgrup) -> 69.33138379 | AB96: 0 | AD96: =IF(C96<=CRONO.NivelExibicao,MAX($AD$15:OFFSET(AD96,-1,0))+IF($C96<>1,1,MAX(1,COUNTIF(QCI!$A$13:$A$24,OFFSET($E96,-1,0)))),"") ->  | AE96: SINAPI 86895 | AF96: 10082 | AG96: 238.22 | AH96: 0.2354 | AM96: 500.32 | AN96: 250.16
A97: S | B97: 4 | C97: S | D97: 0 | E97: =IF($C97=1,OFFSET(E97,-1,0)+MAX(1,COUNTIF(QCI!$A$13:$A$24,OFFSET(ORÇAMENTO!E97,-1,0))),OFFSET(E97,-1,0)) -> 1 | F97: 1 | G97: 8 | H97: 1 | I97: 2 | J97: 0 | K97: =IF(OR($C97="S",$C97=0),0,MATCH(OFFSET($D97,0,$C97)+IF($C97<>1,1,COUNTIF(QCI!$A$13:$A$24,ORÇAMENTO!E97)),OFFSET($D97,1,$C97,ROW($C$190)-ROW($C97)),0)) -> 0 | L97: F | M97: Serviço | N97: Serviço | O97: 1.1.8.1.2. | P97: SINAPI-I | Q97: 10427 | R97: LAVATORIO/CUBA DE SOBREPOR RETANGULAR LOUCA BRANCA COM LADRAO *52 X 45* CM | S97: UN | T97: =OFFSET(CÁLCULO!H$15,ROW($T97)-ROW(T$15),0) -> 2 | U97: 154.751 | V97: BDI 1 | W97: 191.18 | X97: 382.36 | Y97: RA | Z97: RA | AA97: =IF($C97="S",IF($Z97="CP",$X97,IF($Z97="RA",(($X97)*QCI!$AA$3),0)),SomaAgrup) -> 52.98518529 | AB97: 0 | AD97: =IF(C97<=CRONO.NivelExibicao,MAX($AD$15:OFFSET(AD97,-1,0))+IF($C97<>1,1,MAX(1,COUNTIF(QCI!$A$13:$A$24,OFFSET($E97,-1,0)))),"") ->  | AE97: SINAPI-I 10427 | AF97: 3157 | AG97: 182.06 | AH97: 0.2354 | AM97: 382.36 | AN97: 191.18
A98: S | B98: 4 | C98: S | D98: 0 | E98: =IF($C98=1,OFFSET(E98,-1,0)+MAX(1,COUNTIF(QCI!$A$13:$A$24,OFFSET(ORÇAMENTO!E98,-1,0))),OFFSET(E98,-1,0)) -> 1 | F98: 1 | G98: 8 | H98: 1 | I98: 3 | J98: 0 | K98: =IF(OR($C98="S",$C98=0),0,MATCH(OFFSET($D98,0,$C98)+IF($C98<>1,1,COUNTIF(QCI!$A$13:$A$24,ORÇAMENTO!E98)),OFFSET($D98,1,$C98,ROW($C$190)-ROW($C98)),0)) -> 0 | L98: F | M98: Serviço | N98: Serviço | O98: 1.1.8.1.3. | P98: SINAPI | Q98: 86883 | R98: SIFÃO DO TIPO FLEXÍVEL EM PVC 1 X 1.1/2 - FORNECIMENTO E INSTALAÇÃO | S98: UN | T98: =OFFSET(CÁLCULO!H$15,ROW($T98)-ROW(T$15),0) -> 3 | U98: 6.953 | V98: BDI 1 | W98: 8.59 | X98: 25.77 | Y98: RA | Z98: RA | AA98: =IF($C98="S",IF($Z98="CP",$X98,IF($Z98="RA",(($X98)*QCI!$AA$3),0)),SomaAgrup) -> 3.571054046 | AB98: 0 | AD98: =IF(C98<=CRONO.NivelExibicao,MAX($AD$15:OFFSET(AD98,-1,0))+IF($C98<>1,1,MAX(1,COUNTIF(QCI!$A$13:$A$24,OFFSET($E98,-1,0)))),"") ->  | AE98: SINAPI 86883 | AF98: 10073 | AG98: 8.18 | AH98: 0.2354 | AM98: 25.77 | AN98: 8.59
A99: S | B99: 4 | C99: S | D99: 0 | E99: =IF($C99=1,OFFSET(E99,-1,0)+MAX(1,COUNTIF(QCI!$A$13:$A$24,OFFSET(ORÇAMENTO!E99,-1,0))),OFFSET(E99,-1,0)) -> 1 | F99: 1 | G99: 8 | H99: 1 | I99: 4 | J99: 0 | K99: =IF(OR($C99="S",$C99=0),0,MATCH(OFFSET($D99,0,$C99)+IF($C99<>1,1,COUNTIF(QCI!$A$13:$A$24,ORÇAMENTO!E99)),OFFSET($D99,1,$C99,ROW($C$190)-ROW($C99)),0)) -> 0 | L99: F | M99: Serviço | N99: Serviço | O99: 1.1.8.1.4. | P99: SINAPI | Q99: 86886 | R99: ENGATE FLEXÍVEL EM INOX, 1/2 X 30CM - FORNECIMENTO E INSTALAÇÃO | S99: UN | T99: =OFFSET(CÁLCULO!H$15,ROW($T99)-ROW(T$15),0) -> 3 | U99: 31.6965 | V99: BDI 1 | W99: 39.16 | X99: 117.48 | Y99: RA | Z99: RA | AA99: =IF($C99="S",IF($Z99="CP",$X99,IF($Z99="RA",(($X99)*QCI!$AA$3),0)),SomaAgrup) -> 16.27968294 | AB99: 0 | AD99: =IF(C99<=CRONO.NivelExibicao,MAX($AD$15:OFFSET(AD99,-1,0))+IF($C99<>1,1,MAX(1,COUNTIF(QCI!$A$13:$A$24,OFFSET($E99,-1,0)))),"") ->  | AE99: SINAPI 86886 | AF99: 10076 | AG99: 37.29 | AH99: 0.2354 | AM99: 117.48 | AN99: 39.16
A100: S | B100: 4 | C100: S | D100: 0 | E100: =IF($C100=1,OFFSET(E100,-1,0)+MAX(1,COUNTIF(QCI!$A$13:$A$24,OFFSET(ORÇAMENTO!E100,-1,0))),OFFSET(E100,-1,0)) -> 1 | F100: 1 | G100: 8 | H100: 1 | I100: 5 | J100: 0 | K100: =IF(OR($C100="S",$C100=0),0,MATCH(OFFSET($D100,0,$C100)+IF($C100<>1,1,COUNTIF(QCI!$A$13:$A$24,ORÇAMENTO!E100)),OFFSET($D100,1,$C100,ROW($C$190)-ROW($C100)),0)) -> 0 | L100: F | M100: Serviço | N100: Serviço | O100: 1.1.8.1.5. | P100: SINAPI | Q100: 95472 | R100: VASO SANITARIO SIFONADO CONVENCIONAL PARA PCD SEM FURO FRONTAL COM LOUÇA BRANCA SEM ASSENTO, INCLUSO CONJUNTO DE LIGAÇÃO PARA BACIA SANITÁRIA AJUSTÁVEL - FORNECIMENTO E INSTALAÇÃO | S100: UN | T100: =OFFSET(CÁLCULO!H$15,ROW($T100)-ROW(T$15),0) -> 1 | U100: 466.5225 | V100: BDI 1 | W100: 576.34 | X100: 576.34 | Y100: RA | Z100: RA | AA100: =IF($C100="S",IF($Z100="CP",$X100,IF($Z100="RA",(($X100)*QCI!$AA$3),0)),SomaAgrup) -> 79.86578537 | AB100: 0 | AD100: =IF(C100<=CRONO.NivelExibicao,MAX($AD$15:OFFSET(AD100,-1,0))+IF($C100<>1,1,MAX(1,COUNTIF(QCI!$A$13:$A$24,OFFSET($E100,-1,0)))),"") ->  | AE100: SINAPI 95472 | AF100: 10133 | AG100: 548.85 | AH100: 0.2354 | AM100: 576.34 | AN100: 576.34
A101: =CHOOSE(1+LOG(1+2*(ORÇAMENTO.Nivel="Meta")+4*(ORÇAMENTO.Nivel="Nível 2")+8*(ORÇAMENTO.Nivel="Nível 3")+16*(ORÇAMENTO.Nivel="Nível 4")+32*(ORÇAMENTO.Nivel="Serviço"),2),0,1,2,3,4,"S") -> S | B101: =IF(OR(C101="s",C101=0),OFFSET(B101,-1,0),C101) -> 4 | C101: =IF(OFFSET(C101,-1,0)="L",1,IF(OFFSET(C101,-1,0)=1,2,IF(OR(A101="s",A101=0),"S",IF(AND(OFFSET(C101,-1,0)=2,A101=4),3,IF(AND(OR(OFFSET(C101,-1,0)="s",OFFSET(C101,-1,0)=0),A101<>"s",A101>OFFSET(B101,-1,0)),OFFSET(B101,-1,0),A101))))) -> S | D101: =IF(OR(C101="S",C101=0),0,IF(ISERROR(K101),J101,SMALL(J101:K101,1))) -> 0 | E101: =IF($C101=1,OFFSET(E101,-1,0)+MAX(1,COUNTIF(QCI!$A$13:$A$24,OFFSET(ORÇAMENTO!E101,-1,0))),OFFSET(E101,-1,0)) -> 1 | F101: =IF($C101=1,0,IF($C101=2,OFFSET(F101,-1,0)+1,OFFSET(F101,-1,0))) -> 1 | G101: =IF(AND($C101<=2,$C101<>0),0,IF($C101=3,OFFSET(G101,-1,0)+1,OFFSET(G101,-1,0))) -> 8 | H101: =IF(AND($C101<=3,$C101<>0),0,IF($C101=4,OFFSET(H101,-1,0)+1,OFFSET(H101,-1,0))) -> 1 | I101: =IF(AND($C101<=4,$C101<>0),0,IF(AND($C101="S",$X101>0),OFFSET(I101,-1,0)+1,OFFSET(I101,-1,0))) -> 6 | J101: 0 | K101: =IF(OR($C101="S",$C101=0),0,MATCH(OFFSET($D101,0,$C101)+IF($C101<>1,1,COUNTIF(QCI!$A$13:$A$24,ORÇAMENTO!E101)),OFFSET($D101,1,$C101,ROW($C$190)-ROW($C101)),0)) -> 0 | L101: =IF(OR($X101>0,$C101=1,$C101=2,$C101=3,$C101=4),"F","") -> F | M101: Serviço | N101: =CHOOSE(1+LOG(1+2*(C101=1)+4*(C101=2)+8*(C101=3)+16*(C101=4)+32*(C101="S"),2),"","Meta","Nível 2","Nível 3","Nível 4","Serviço") -> Serviço | O101: =IF(OR($C101=0,$L101=""),"-",CONCATENATE(E101&".",IF(AND($A$5>=2,$C101>=2),F101&".",""),IF(AND($A$5>=3,$C101>=3),G101&".",""),IF(AND($A$5>=4,$C101>=4),H101&".",""),IF($C101="S",I101&".",""))) -> 1.1.8.1.6. | P101: SINAPI | Q101: 86943 | R101: LAVATÓRIO LOUÇA BRANCA SUSPENSO, 29,5 X 39CM OU EQUIVALENTE, PADRÃO POPULAR, INCLUSO SIFÃO FLEXÍVEL EM PVC, VÁLVULA E ENGATE FLEXÍVEL 30CM EM PLÁSTICO E TORNEIRA CROMADA DE MESA, PADRÃO POPULAR - FORNECIMENTO E INSTALAÇÃO. AF_12/2013 | S101: UN | T101: =OFFSET(CÁLCULO!H$15,ROW($T101)-ROW(T$15),0) -> 1 | U101: 160 | V101: BDI 1 | W101: =IF($C101="S",ROUND(IF(TIPOORCAMENTO="Proposto",ORÇAMENTO.CustoUnitario*(1+$AH101),ORÇAMENTO.PrecoUnitarioLicitado),15-13*$AF$10),0) -> 197.66 | X101: =IF($C101="S",VTOTAL1,IF($C101=0,0,ROUND(SomaAgrup,15-13*$AF$11))) -> 197.66 | Y101: RA | Z101: =IF(AND($C101="S",$X101>0),IF(ISBLANK($Y101),"RA",LEFT($Y101,2)),"") -> RA | AA101: =IF($C101="S",IF($Z101="CP",$X101,IF($Z101="RA",(($X101)*QCI!$AA$3),0)),SomaAgrup) -> 27.39055269 | AB101: =IF($C101="S",IF($Z101="OU",ROUND($X101,2),0),SomaAgrup) -> 0 | AC101: =IF($N101="","",IF(ORÇAMENTO.Descricao="","DESCRIÇÃO",IF(AND($C101="S",ORÇAMENTO.Unidade=""),"UNIDADE",IF($X101<0,"VALOR NEGATIVO",IF(OR(AND(TIPOORCAMENTO="Proposto",$AG101<>"",$AG101>0,ORÇAMENTO.CustoUnitario>$AG101),AND(TIPOORCAMENTO="LICITADO",ORÇAMENTO.PrecoUnitarioLicitado>$AN101)),"ACIMA REF.",""))))) ->  | AD101: =IF(C101<=CRONO.NivelExibicao,MAX($AD$15:OFFSET(AD101,-1,0))+IF($C101<>1,1,MAX(1,COUNTIF(QCI!$A$13:$A$24,OFFSET($E101,-1,0)))),"") ->  | AE101: =IF(AND($C101="S",ORÇAMENTO.CodBarra<>""),IF(ORÇAMENTO.Fonte="",ORÇAMENTO.CodBarra,CONCATENATE(ORÇAMENTO.Fonte," ",ORÇAMENTO.CodBarra))) -> SINAPI 86943 | AF101: =IF(ISERROR(INDIRECT(ORÇAMENTO.BancoRef)),"(abra o arquivo 'Referência "&Excel_BuiltIn_Database&".xls)",IF(OR($C101<>"S",ORÇAMENTO.CodBarra=""),"(Sem Código)",IF(ISERROR(MATCH($AE101,INDIRECT(ORÇAMENTO.BancoRef),0)),"(Código não identificado nas referências)",MATCH($AE101,INDIRECT(ORÇAMENTO.BancoRef),0)))) -> 10124 | AG101: =ROUND(IF(DESONERACAO="sim",REFERENCIA.Desonerado,REFERENCIA.NaoDesonerado),2) -> 160.29 | AH101: =ROUND(IF(ISNUMBER(ORÇAMENTO.OpcaoBDI),ORÇAMENTO.OpcaoBDI,IF(LEFT(ORÇAMENTO.OpcaoBDI,3)="BDI",HLOOKUP(ORÇAMENTO.OpcaoBDI,$F$4:$H$5,2,FALSE),0)),15-11*$AF$9) -> 0.2354 | AM101: 197.66 | AN101: =ROUND(ORÇAMENTO.CustoUnitario*(1+$AH101),2) -> 197.66
A102: S | B102: 4 | C102: S | D102: 0 | E102: =IF($C102=1,OFFSET(E102,-1,0)+MAX(1,COUNTIF(QCI!$A$13:$A$24,OFFSET(ORÇAMENTO!E102,-1,0))),OFFSET(E102,-1,0)) -> 1 | F102: 1 | G102: 8 | H102: 1 | I102: 7 | J102: 0 | K102: =IF(OR($C102="S",$C102=0),0,MATCH(OFFSET($D102,0,$C102)+IF($C102<>1,1,COUNTIF(QCI!$A$13:$A$24,ORÇAMENTO!E102)),OFFSET($D102,1,$C102,ROW($C$190)-ROW($C102)),0)) -> 0 | L102: F | M102: Serviço | N102: Serviço | O102: 1.1.8.1.7. | P102: SINAPI | Q102: 86888 | R102: VASO SANITÁRIO SIFONADO COM CAIXA ACOPLADA LOUÇA BRANCA - FORNECIMENTO E INSTALAÇÃO | S102: UN | T102: =OFFSET(CÁLCULO!H$15,ROW($T102)-ROW(T$15),0) -> 3 | U102: 266.5005 | V102: BDI 1 | W102: 329.23 | X102: 987.69 | Y102: RA | Z102: RA | AA102: =IF($C102="S",IF($Z102="CP",$X102,IF($Z102="RA",(($X102)*QCI!$AA$3),0)),SomaAgrup) -> 136.8682332 | AB102: 0 | AD102: =IF(C102<=CRONO.NivelExibicao,MAX($AD$15:OFFSET(AD102,-1,0))+IF($C102<>1,1,MAX(1,COUNTIF(QCI!$A$13:$A$24,OFFSET($E102,-1,0)))),"") ->  | AE102: SINAPI 86888 | AF102: 10078 | AG102: 313.53 | AH102: 0.2354 | AM102: =$X102 -> 987.69 | AN102: 329.23
A103: =CHOOSE(1+LOG(1+2*(ORÇAMENTO.Nivel="Meta")+4*(ORÇAMENTO.Nivel="Nível 2")+8*(ORÇAMENTO.Nivel="Nível 3")+16*(ORÇAMENTO.Nivel="Nível 4")+32*(ORÇAMENTO.Nivel="Serviço"),2),0,1,2,3,4,"S") -> 4 | B103: =IF(OR(C103="s",C103=0),OFFSET(B103,-1,0),C103) -> 4 | C103: =IF(OFFSET(C103,-1,0)="L",1,IF(OFFSET(C103,-1,0)=1,2,IF(OR(A103="s",A103=0),"S",IF(AND(OFFSET(C103,-1,0)=2,A103=4),3,IF(AND(OR(OFFSET(C103,-1,0)="s",OFFSET(C103,-1,0)=0),A103<>"s",A103>OFFSET(B103,-1,0)),OFFSET(B103,-1,0),A103))))) -> 4 | D103: =IF(OR(C103="S",C103=0),0,IF(ISERROR(K103),J103,SMALL(J103:K103,1))) -> 7 | E103: =IF($C103=1,OFFSET(E103,-1,0)+MAX(1,COUNTIF(QCI!$A$13:$A$24,OFFSET(ORÇAMENTO!E103,-1,0))),OFFSET(E103,-1,0)) -> 1 | F103: =IF($C103=1,0,IF($C103=2,OFFSET(F103,-1,0)+1,OFFSET(F103,-1,0))) -> 1 | G103: =IF(AND($C103<=2,$C103<>0),0,IF($C103=3,OFFSET(G103,-1,0)+1,OFFSET(G103,-1,0))) -> 8 | H103: =IF(AND($C103<=3,$C103<>0),0,IF($C103=4,OFFSET(H103,-1,0)+1,OFFSET(H103,-1,0))) -> 2 | I103: =IF(AND($C103<=4,$C103<>0),0,IF(AND($C103="S",$X103>0),OFFSET(I103,-1,0)+1,OFFSET(I103,-1,0))) -> 0 | J103: 7 | K103: =IF(OR($C103="S",$C103=0),0,MATCH(OFFSET($D103,0,$C103)+IF($C103<>1,1,COUNTIF(QCI!$A$13:$A$24,ORÇAMENTO!E103)),OFFSET($D103,1,$C103,ROW($C$190)-ROW($C103)),0)) ->  | L103: =IF(OR($X103>0,$C103=1,$C103=2,$C103=3,$C103=4),"F","") -> F | M103: Nível 4 | N103: =CHOOSE(1+LOG(1+2*(C103=1)+4*(C103=2)+8*(C103=3)+16*(C103=4)+32*(C103="S"),2),"","Meta","Nível 2","Nível 3","Nível 4","Serviço") -> Nível 4 | O103: =IF(OR($C103=0,$L103=""),"-",CONCATENATE(E103&".",IF(AND($A$5>=2,$C103>=2),F103&".",""),IF(AND($A$5>=3,$C103>=3),G103&".",""),IF(AND($A$5>=4,$C103>=4),H103&".",""),IF($C103="S",I103&".",""))) -> 1.1.8.2. | P103: SINAPI | R103: Itens Complementares | S103: - | T103: =OFFSET(CÁLCULO!H$15,ROW($T103)-ROW(T$15),0) -> 0 | U103: 0 | V103: BDI 1 | W103: =IF($C103="S",ROUND(IF(TIPOORCAMENTO="Proposto",ORÇAMENTO.CustoUnitario*(1+$AH103),ORÇAMENTO.PrecoUnitarioLicitado),15-13*$AF$10),0) -> 0 | X103: =IF($C103="S",VTOTAL1,IF($C103=0,0,ROUND(SomaAgrup,15-13*$AF$11))) -> 2795.66 | Y103: RA | Z103: =IF(AND($C103="S",$X103>0),IF(ISBLANK($Y103),"RA",LEFT($Y103,2)),"") ->  | AA103: =IF($C103="S",IF($Z103="CP",$X103,IF($Z103="RA",(($X103)*QCI!$AA$3),0)),SomaAgrup) -> 387.406013 | AB103: =IF($C103="S",IF($Z103="OU",ROUND($X103,2),0),SomaAgrup) -> 0 | AC103: =IF($N103="","",IF(ORÇAMENTO.Descricao="","DESCRIÇÃO",IF(AND($C103="S",ORÇAMENTO.Unidade=""),"UNIDADE",IF($X103<0,"VALOR NEGATIVO",IF(OR(AND(TIPOORCAMENTO="Proposto",$AG103<>"",$AG103>0,ORÇAMENTO.CustoUnitario>$AG103),AND(TIPOORCAMENTO="LICITADO",ORÇAMENTO.PrecoUnitarioLicitado>$AN103)),"ACIMA REF.",""))))) ->  | AD103: =IF(C103<=CRONO.NivelExibicao,MAX($AD$15:OFFSET(AD103,-1,0))+IF($C103<>1,1,MAX(1,COUNTIF(QCI!$A$13:$A$24,OFFSET($E103,-1,0)))),"") ->  | AE103: =IF(AND($C103="S",ORÇAMENTO.CodBarra<>""),IF(ORÇAMENTO.Fonte="",ORÇAMENTO.CodBarra,CONCATENATE(ORÇAMENTO.Fonte," ",ORÇAMENTO.CodBarra))) -> FALSE | AF103: =IF(ISERROR(INDIRECT(ORÇAMENTO.BancoRef)),"(abra o arquivo 'Referência "&Excel_BuiltIn_Database&".xls)",IF(OR($C103<>"S",ORÇAMENTO.CodBarra=""),"(Sem Código)",IF(ISERROR(MATCH($AE103,INDIRECT(ORÇAMENTO.BancoRef),0)),"(Código não identificado nas referências)",MATCH($AE103,INDIRECT(ORÇAMENTO.BancoRef),0)))) -> (Sem Código) | AG103: =ROUND(IF(DESONERACAO="sim",REFERENCIA.Desonerado,REFERENCIA.NaoDesonerado),2) -> 0 | AH103: =ROUND(IF(ISNUMBER(ORÇAMENTO.OpcaoBDI),ORÇAMENTO.OpcaoBDI,IF(LEFT(ORÇAMENTO.OpcaoBDI,3)="BDI",HLOOKUP(ORÇAMENTO.OpcaoBDI,$F$4:$H$5,2,FALSE),0)),15-11*$AF$9) -> 0.2354 | AM103: 2795.66 | AN103: =ROUND(ORÇAMENTO.CustoUnitario*(1+$AH103),2) -> 0
A104: S | B104: 4 | C104: S | D104: 0 | E104: =IF($C104=1,OFFSET(E104,-1,0)+MAX(1,COUNTIF(QCI!$A$13:$A$24,OFFSET(ORÇAMENTO!E104,-1,0))),OFFSET(E104,-1,0)) -> 1 | F104: 1 | G104: 8 | H104: 2 | I104: 1 | J104: 0 | K104: =IF(OR($C104="S",$C104=0),0,MATCH(OFFSET($D104,0,$C104)+IF($C104<>1,1,COUNTIF(QCI!$A$13:$A$24,ORÇAMENTO!E104)),OFFSET($D104,1,$C104,ROW($C$190)-ROW($C104)),0)) -> 0 | L104: F | M104: Serviço | N104: Serviço | O104: 1.1.8.2.1. | P104: SINAPI-I | Q104: 36795 | R104: TORNEIRA CROMADA DE MESA PARA LAVATORIO COM SENSOR DE PRESENCA | S104: UN | T104: =OFFSET(CÁLCULO!H$15,ROW($T104)-ROW(T$15),0) -> 3 | U104: 503.4295 | V104: BDI 1 | W104: 621.94 | X104: 1865.82 | Y104: RA | Z104: RA | AA104: =IF($C104="S",IF($Z104="CP",$X104,IF($Z104="RA",(($X104)*QCI!$AA$3),0)),SomaAgrup) -> 258.5542903 | AB104: 0 | AD104: =IF(C104<=CRONO.NivelExibicao,MAX($AD$15:OFFSET(AD104,-1,0))+IF($C104<>1,1,MAX(1,COUNTIF(QCI!$A$13:$A$24,OFFSET($E104,-1,0)))),"") ->  | AE104: SINAPI-I 36795 | AF104: 5068 | AG104: 592.27 | AH104: 0.2354 | AM104: 1865.82 | AN104: 621.94
A105: =CHOOSE(1+LOG(1+2*(ORÇAMENTO.Nivel="Meta")+4*(ORÇAMENTO.Nivel="Nível 2")+8*(ORÇAMENTO.Nivel="Nível 3")+16*(ORÇAMENTO.Nivel="Nível 4")+32*(ORÇAMENTO.Nivel="Serviço"),2),0,1,2,3,4,"S") -> S | B105: =IF(OR(C105="s",C105=0),OFFSET(B105,-1,0),C105) -> 4 | C105: =IF(OFFSET(C105,-1,0)="L",1,IF(OFFSET(C105,-1,0)=1,2,IF(OR(A105="s",A105=0),"S",IF(AND(OFFSET(C105,-1,0)=2,A105=4),3,IF(AND(OR(OFFSET(C105,-1,0)="s",OFFSET(C105,-1,0)=0),A105<>"s",A105>OFFSET(B105,-1,0)),OFFSET(B105,-1,0),A105))))) -> S | D105: =IF(OR(C105="S",C105=0),0,IF(ISERROR(K105),J105,SMALL(J105:K105,1))) -> 0 | E105: =IF($C105=1,OFFSET(E105,-1,0)+MAX(1,COUNTIF(QCI!$A$13:$A$24,OFFSET(ORÇAMENTO!E105,-1,0))),OFFSET(E105,-1,0)) -> 1 | F105: =IF($C105=1,0,IF($C105=2,OFFSET(F105,-1,0)+1,OFFSET(F105,-1,0))) -> 1 | G105: =IF(AND($C105<=2,$C105<>0),0,IF($C105=3,OFFSET(G105,-1,0)+1,OFFSET(G105,-1,0))) -> 8 | H105: =IF(AND($C105<=3,$C105<>0),0,IF($C105=4,OFFSET(H105,-1,0)+1,OFFSET(H105,-1,0))) -> 2 | I105: =IF(AND($C105<=4,$C105<>0),0,IF(AND($C105="S",$X105>0),OFFSET(I105,-1,0)+1,OFFSET(I105,-1,0))) -> 2 | J105: 0 | K105: =IF(OR($C105="S",$C105=0),0,MATCH(OFFSET($D105,0,$C105)+IF($C105<>1,1,COUNTIF(QCI!$A$13:$A$24,ORÇAMENTO!E105)),OFFSET($D105,1,$C105,ROW($C$190)-ROW($C105)),0)) -> 0 | L105: =IF(OR($X105>0,$C105=1,$C105=2,$C105=3,$C105=4),"F","") -> F | M105: Serviço | N105: =CHOOSE(1+LOG(1+2*(C105=1)+4*(C105=2)+8*(C105=3)+16*(C105=4)+32*(C105="S"),2),"","Meta","Nível 2","Nível 3","Nível 4","Serviço") -> Serviço | O105: =IF(OR($C105=0,$L105=""),"-",CONCATENATE(E105&".",IF(AND($A$5>=2,$C105>=2),F105&".",""),IF(AND($A$5>=3,$C105>=3),G105&".",""),IF(AND($A$5>=4,$C105>=4),H105&".",""),IF($C105="S",I105&".",""))) -> 1.1.8.2.2. | P105: SINAPI-I | Q105: 37400 | R105: PAPELEIRA PLASTICA TIPO DISPENSER PARA PAPEL HIGIENICO ROLAO | S105: UN | T105: =OFFSET(CÁLCULO!H$15,ROW($T105)-ROW(T$15),0) -> 3 | U105: 52.343 | V105: BDI 1 | W105: =IF($C105="S",ROUND(IF(TIPOORCAMENTO="Proposto",ORÇAMENTO.CustoUnitario*(1+$AH105),ORÇAMENTO.PrecoUnitarioLicitado),15-13*$AF$10),0) -> 64.66 | X105: =IF($C105="S",VTOTAL1,IF($C105=0,0,ROUND(SomaAgrup,15-13*$AF$11))) -> 193.98 | Y105: RA | Z105: =IF(AND($C105="S",$X105>0),IF(ISBLANK($Y105),"RA",LEFT($Y105,2)),"") -> RA | AA105: =IF($C105="S",IF($Z105="CP",$X105,IF($Z105="RA",(($X105)*QCI!$AA$3),0)),SomaAgrup) -> 26.88060007 | AB105: =IF($C105="S",IF($Z105="OU",ROUND($X105,2),0),SomaAgrup) -> 0 | AC105: =IF($N105="","",IF(ORÇAMENTO.Descricao="","DESCRIÇÃO",IF(AND($C105="S",ORÇAMENTO.Unidade=""),"UNIDADE",IF($X105<0,"VALOR NEGATIVO",IF(OR(AND(TIPOORCAMENTO="Proposto",$AG105<>"",$AG105>0,ORÇAMENTO.CustoUnitario>$AG105),AND(TIPOORCAMENTO="LICITADO",ORÇAMENTO.PrecoUnitarioLicitado>$AN105)),"ACIMA REF.",""))))) ->  | AD105: =IF(C105<=CRONO.NivelExibicao,MAX($AD$15:OFFSET(AD105,-1,0))+IF($C105<>1,1,MAX(1,COUNTIF(QCI!$A$13:$A$24,OFFSET($E105,-1,0)))),"") ->  | AE105: =IF(AND($C105="S",ORÇAMENTO.CodBarra<>""),IF(ORÇAMENTO.Fonte="",ORÇAMENTO.CodBarra,CONCATENATE(ORÇAMENTO.Fonte," ",ORÇAMENTO.CodBarra))) -> SINAPI-I 37400 | AF105: =IF(ISERROR(INDIRECT(ORÇAMENTO.BancoRef)),"(abra o arquivo 'Referência "&Excel_BuiltIn_Database&".xls)",IF(OR($C105<>"S",ORÇAMENTO.CodBarra=""),"(Sem Código)",IF(ISERROR(MATCH($AE105,INDIRECT(ORÇAMENTO.BancoRef),0)),"(Código não identificado nas referências)",MATCH($AE105,INDIRECT(ORÇAMENTO.BancoRef),0)))) -> 3792 | AG105: =ROUND(IF(DESONERACAO="sim",REFERENCIA.Desonerado,REFERENCIA.NaoDesonerado),2) -> 61.58 | AH105: =ROUND(IF(ISNUMBER(ORÇAMENTO.OpcaoBDI),ORÇAMENTO.OpcaoBDI,IF(LEFT(ORÇAMENTO.OpcaoBDI,3)="BDI",HLOOKUP(ORÇAMENTO.OpcaoBDI,$F$4:$H$5,2,FALSE),0)),15-11*$AF$9) -> 0.2354 | AM105: =$X105 -> 193.98 | AN105: =ROUND(ORÇAMENTO.CustoUnitario*(1+$AH105),2) -> 64.66
A106: S | B106: 4 | C106: S | D106: 0 | E106: =IF($C106=1,OFFSET(E106,-1,0)+MAX(1,COUNTIF(QCI!$A$13:$A$24,OFFSET(ORÇAMENTO!E106,-1,0))),OFFSET(E106,-1,0)) -> 1 | F106: 1 | G106: 8 | H106: 2 | I106: 3 | J106: 0 | K106: =IF(OR($C106="S",$C106=0),0,MATCH(OFFSET($D106,0,$C106)+IF($C106<>1,1,COUNTIF(QCI!$A$13:$A$24,ORÇAMENTO!E106)),OFFSET($D106,1,$C106,ROW($C$190)-ROW($C106)),0)) -> 0 | L106: F | M106: Serviço | N106: Serviço | O106: 1.1.8.2.3. | P106: SINAPI-I | Q106: 11758 | R106: SABONETEIRA PLASTICA TIPO DISPENSER PARA SABONETE LIQUIDO COM RESERVATORIO 800 A 1500 ML | S106: UN | T106: =OFFSET(CÁLCULO!H$15,ROW($T106)-ROW(T$15),0) -> 3 | U106: 50.2775 | V106: BDI 1 | W106: 62.12 | X106: 186.36 | Y106: RA | Z106: RA | AA106: =IF($C106="S",IF($Z106="CP",$X106,IF($Z106="RA",(($X106)*QCI!$AA$3),0)),SomaAgrup) -> 25.82466558 | AB106: 0 | AD106: =IF(C106<=CRONO.NivelExibicao,MAX($AD$15:OFFSET(AD106,-1,0))+IF($C106<>1,1,MAX(1,COUNTIF(QCI!$A$13:$A$24,OFFSET($E106,-1,0)))),"") ->  | AE106: SINAPI-I 11758 | AF106: 4462 | AG106: 59.15 | AH106: 0.2354 | AM106: 186.36 | AN106: 62.12
A107: S | B107: 4 | C107: S | D107: 0 | E107: =IF($C107=1,OFFSET(E107,-1,0)+MAX(1,COUNTIF(QCI!$A$13:$A$24,OFFSET(ORÇAMENTO!E107,-1,0))),OFFSET(E107,-1,0)) -> 1 | F107: 1 | G107: 8 | H107: 2 | I107: 4 | J107: 0 | K107: =IF(OR($C107="S",$C107=0),0,MATCH(OFFSET($D107,0,$C107)+IF($C107<>1,1,COUNTIF(QCI!$A$13:$A$24,ORÇAMENTO!E107)),OFFSET($D107,1,$C107,ROW($C$190)-ROW($C107)),0)) -> 0 | L107: F | M107: Serviço | N107: Serviço | O107: 1.1.8.2.4. | P107: SINAPI-I | Q107: 37399 | R107: CABIDE/GANCHO DE BANHEIRO SIMPLES EM METAL CROMADO | S107: UN | T107: =OFFSET(CÁLCULO!H$15,ROW($T107)-ROW(T$15),0) -> 3 | U107: 14.2885 | V107: BDI 1 | W107: 17.65 | X107: 52.95 | Y107: RA | Z107: RA | AA107: =IF($C107="S",IF($Z107="CP",$X107,IF($Z107="RA",(($X107)*QCI!$AA$3),0)),SomaAgrup) -> 7.337497545 | AB107: 0 | AD107: =IF(C107<=CRONO.NivelExibicao,MAX($AD$15:OFFSET(AD107,-1,0))+IF($C107<>1,1,MAX(1,COUNTIF(QCI!$A$13:$A$24,OFFSET($E107,-1,0)))),"") ->  | AE107: SINAPI-I 37399 | AF107: 1084 | AG107: 16.81 | AH107: 0.2354 | AM107: 52.95 | AN107: 17.65
A108: S | B108: 4 | C108: S | D108: 0 | E108: =IF($C108=1,OFFSET(E108,-1,0)+MAX(1,COUNTIF(QCI!$A$13:$A$24,OFFSET(ORÇAMENTO!E108,-1,0))),OFFSET(E108,-1,0)) -> 1 | F108: 1 | G108: 8 | H108: 2 | I108: 5 | J108: 0 | K108: =IF(OR($C108="S",$C108=0),0,MATCH(OFFSET($D108,0,$C108)+IF($C108<>1,1,COUNTIF(QCI!$A$13:$A$24,ORÇAMENTO!E108)),OFFSET($D108,1,$C108,ROW($C$190)-ROW($C108)),0)) -> 0 | L108: F | M108: Serviço | N108: Serviço | O108: 1.1.8.2.5. | P108: SINAPI-I | Q108: 11186 | R108: ESPELHO CRISTAL E = 4 MM | S108: M2 | T108: =OFFSET(CÁLCULO!H$15,ROW($T108)-ROW(T$15),0) -> 1.44 | U108: 168.1215 | V108: BDI 1 | W108: 207.7 | X108: 299.09 | Y108: RA | Z108: RA | AA108: =IF($C108="S",IF($Z108="CP",$X108,IF($Z108="RA",(($X108)*QCI!$AA$3),0)),SomaAgrup) -> 41.44612164 | AB108: 0 | AD108: =IF(C108<=CRONO.NivelExibicao,MAX($AD$15:OFFSET(AD108,-1,0))+IF($C108<>1,1,MAX(1,COUNTIF(QCI!$A$13:$A$24,OFFSET($E108,-1,0)))),"") ->  | AE108: SINAPI-I 11186 | AF108: 2454 | AG108: 197.79 | AH108: 0.2354 | AM108: 299.09 | AN108: 207.7
A109: S | B109: 4 | C109: S | D109: 0 | E109: =IF($C109=1,OFFSET(E109,-1,0)+MAX(1,COUNTIF(QCI!$A$13:$A$24,OFFSET(ORÇAMENTO!E109,-1,0))),OFFSET(E109,-1,0)) -> 1 | F109: 1 | G109: 8 | H109: 2 | I109: 6 | J109: 0 | K109: =IF(OR($C109="S",$C109=0),0,MATCH(OFFSET($D109,0,$C109)+IF($C109<>1,1,COUNTIF(QCI!$A$13:$A$24,ORÇAMENTO!E109)),OFFSET($D109,1,$C109,ROW($C$190)-ROW($C109)),0)) -> 0 | L109: F | M109: Serviço | N109: Serviço | O109: 1.1.8.2.6. | P109: SINAPI | Q109: 9535 | R109: CHUVEIRO ELETRICO COMUM CORPO PLASTICO TIPO DUCHA, FORNECIMENTO E INSTALACAO | S109: UN | T109: =OFFSET(CÁLCULO!H$15,ROW($T109)-ROW(T$15),0) -> 3 | U109: 53.278 | V109: BDI 1 | W109: 65.82 | X109: 197.46 | Y109: RA | Z109: RA | AA109: =IF($C109="S",IF($Z109="CP",$X109,IF($Z109="RA",(($X109)*QCI!$AA$3),0)),SomaAgrup) -> 27.36283787 | AB109: 0 | AD109: =IF(C109<=CRONO.NivelExibicao,MAX($AD$15:OFFSET(AD109,-1,0))+IF($C109<>1,1,MAX(1,COUNTIF(QCI!$A$13:$A$24,OFFSET($E109,-1,0)))),"") ->  | AE109: SINAPI 9535 | AF109: 8616 | AG109: 62.68 | AH109: 0.2354 | AM109: 197.46 | AN109: 65.82
A110: 3 | B110: 3 | C110: 3 | D110: 23 | E110: =IF($C110=1,OFFSET(E110,-1,0)+MAX(1,COUNTIF(QCI!$A$13:$A$24,OFFSET(ORÇAMENTO!E110,-1,0))),OFFSET(E110,-1,0)) -> 1 | F110: 1 | G110: 9 | H110: 0 | I110: 0 | J110: 39 | K110: =IF(OR($C110="S",$C110=0),0,MATCH(OFFSET($D110,0,$C110)+IF($C110<>1,1,COUNTIF(QCI!$A$13:$A$24,ORÇAMENTO!E110)),OFFSET($D110,1,$C110,ROW($C$190)-ROW($C110)),0)) -> 23 | L110: F | M110: Nível 3 | N110: Nível 3 | O110: 1.1.9. | P110: SINAPI | R110: Instalações Elétricas | S110: - | T110: =OFFSET(CÁLCULO!H$15,ROW($T110)-ROW(T$15),0) -> 0 | U110: 0 | V110: BDI 1 | W110: 0 | X110: 8493.07 | Y110: RA | AA110: =IF($C110="S",IF($Z110="CP",$X110,IF($Z110="RA",(($X110)*QCI!$AA$3),0)),SomaAgrup) -> 1176.919363 | AB110: 0 | AD110: =IF(C110<=CRONO.NivelExibicao,MAX($AD$15:OFFSET(AD110,-1,0))+IF($C110<>1,1,MAX(1,COUNTIF(QCI!$A$13:$A$24,OFFSET($E110,-1,0)))),"") ->  | AE110: FALSE | AF110: (Sem Código) | AG110: 0 | AH110: 0.2354 | AM110: 8493.07 | AN110: 0
A111: =CHOOSE(1+LOG(1+2*(ORÇAMENTO.Nivel="Meta")+4*(ORÇAMENTO.Nivel="Nível 2")+8*(ORÇAMENTO.Nivel="Nível 3")+16*(ORÇAMENTO.Nivel="Nível 4")+32*(ORÇAMENTO.Nivel="Serviço"),2),0,1,2,3,4,"S") -> 4 | B111: =IF(OR(C111="s",C111=0),OFFSET(B111,-1,0),C111) -> 4 | C111: =IF(OFFSET(C111,-1,0)="L",1,IF(OFFSET(C111,-1,0)=1,2,IF(OR(A111="s",A111=0),"S",IF(AND(OFFSET(C111,-1,0)=2,A111=4),3,IF(AND(OR(OFFSET(C111,-1,0)="s",OFFSET(C111,-1,0)=0),A111<>"s",A111>OFFSET(B111,-1,0)),OFFSET(B111,-1,0),A111))))) -> 4 | D111: =IF(OR(C111="S",C111=0),0,IF(ISERROR(K111),J111,SMALL(J111:K111,1))) -> 8 | E111: =IF($C111=1,OFFSET(E111,-1,0)+MAX(1,COUNTIF(QCI!$A$13:$A$24,OFFSET(ORÇAMENTO!E111,-1,0))),OFFSET(E111,-1,0)) -> 1 | F111: =IF($C111=1,0,IF($C111=2,OFFSET(F111,-1,0)+1,OFFSET(F111,-1,0))) -> 1 | G111: =IF(AND($C111<=2,$C111<>0),0,IF($C111=3,OFFSET(G111,-1,0)+1,OFFSET(G111,-1,0))) -> 9 | H111: =IF(AND($C111<=3,$C111<>0),0,IF($C111=4,OFFSET(H111,-1,0)+1,OFFSET(H111,-1,0))) -> 1 | I111: =IF(AND($C111<=4,$C111<>0),0,IF(AND($C111="S",$X111>0),OFFSET(I111,-1,0)+1,OFFSET(I111,-1,0))) -> 0 | J111: 22 | K111: =IF(OR($C111="S",$C111=0),0,MATCH(OFFSET($D111,0,$C111)+IF($C111<>1,1,COUNTIF(QCI!$A$13:$A$24,ORÇAMENTO!E111)),OFFSET($D111,1,$C111,ROW($C$190)-ROW($C111)),0)) -> 8 | L111: =IF(OR($X111>0,$C111=1,$C111=2,$C111=3,$C111=4),"F","") -> F | M111: Nível 4 | N111: =CHOOSE(1+LOG(1+2*(C111=1)+4*(C111=2)+8*(C111=3)+16*(C111=4)+32*(C111="S"),2),"","Meta","Nível 2","Nível 3","Nível 4","Serviço") -> Nível 4 | O111: =IF(OR($C111=0,$L111=""),"-",CONCATENATE(E111&".",IF(AND($A$5>=2,$C111>=2),F111&".",""),IF(AND($A$5>=3,$C111>=3),G111&".",""),IF(AND($A$5>=4,$C111>=4),H111&".",""),IF($C111="S",I111&".",""))) -> 1.1.9.1. | P111: SINAPI | R111: Pontos elétricos | S111: - | T111: =OFFSET(CÁLCULO!H$15,ROW($T111)-ROW(T$15),0) -> 0 | U111: 0 | V111: BDI 1 | W111: =IF($C111="S",ROUND(IF(TIPOORCAMENTO="Proposto",ORÇAMENTO.CustoUnitario*(1+$AH111),ORÇAMENTO.PrecoUnitarioLicitado),15-13*$AF$10),0) -> 0 | X111: =IF($C111="S",VTOTAL1,IF($C111=0,0,ROUND(SomaAgrup,15-13*$AF$11))) -> 3092.82 | Y111: RA | Z111: =IF(AND($C111="S",$X111>0),IF(ISBLANK($Y111),"RA",LEFT($Y111,2)),"") ->  | AA111: =IF($C111="S",IF($Z111="CP",$X111,IF($Z111="RA",(($X111)*QCI!$AA$3),0)),SomaAgrup) -> 428.5846866 | AB111: =IF($C111="S",IF($Z111="OU",ROUND($X111,2),0),SomaAgrup) -> 0 | AC111: =IF($N111="","",IF(ORÇAMENTO.Descricao="","DESCRIÇÃO",IF(AND($C111="S",ORÇAMENTO.Unidade=""),"UNIDADE",IF($X111<0,"VALOR NEGATIVO",IF(OR(AND(TIPOORCAMENTO="Proposto",$AG111<>"",$AG111>0,ORÇAMENTO.CustoUnitario>$AG111),AND(TIPOORCAMENTO="LICITADO",ORÇAMENTO.PrecoUnitarioLicitado>$AN111)),"ACIMA REF.",""))))) ->  | AD111: =IF(C111<=CRONO.NivelExibicao,MAX($AD$15:OFFSET(AD111,-1,0))+IF($C111<>1,1,MAX(1,COUNTIF(QCI!$A$13:$A$24,OFFSET($E111,-1,0)))),"") ->  | AE111: =IF(AND($C111="S",ORÇAMENTO.CodBarra<>""),IF(ORÇAMENTO.Fonte="",ORÇAMENTO.CodBarra,CONCATENATE(ORÇAMENTO.Fonte," ",ORÇAMENTO.CodBarra))) -> FALSE | AF111: =IF(ISERROR(INDIRECT(ORÇAMENTO.BancoRef)),"(abra o arquivo 'Referência "&Excel_BuiltIn_Database&".xls)",IF(OR($C111<>"S",ORÇAMENTO.CodBarra=""),"(Sem Código)",IF(ISERROR(MATCH($AE111,INDIRECT(ORÇAMENTO.BancoRef),0)),"(Código não identificado nas referências)",MATCH($AE111,INDIRECT(ORÇAMENTO.BancoRef),0)))) -> (Sem Código) | AG111: =ROUND(IF(DESONERACAO="sim",REFERENCIA.Desonerado,REFERENCIA.NaoDesonerado),2) -> 0 | AH111: =ROUND(IF(ISNUMBER(ORÇAMENTO.OpcaoBDI),ORÇAMENTO.OpcaoBDI,IF(LEFT(ORÇAMENTO.OpcaoBDI,3)="BDI",HLOOKUP(ORÇAMENTO.OpcaoBDI,$F$4:$H$5,2,FALSE),0)),15-11*$AF$9) -> 0.2354 | AM111: 3092.82 | AN111: =ROUND(ORÇAMENTO.CustoUnitario*(1+$AH111),2) -> 0
A112: S | B112: 4 | C112: S | D112: 0 | E112: =IF($C112=1,OFFSET(E112,-1,0)+MAX(1,COUNTIF(QCI!$A$13:$A$24,OFFSET(ORÇAMENTO!E112,-1,0))),OFFSET(E112,-1,0)) -> 1 | F112: 1 | G112: 9 | H112: 1 | I112: 1 | J112: =IF(OR($C112="S",$C112=0),0,MATCH(0,OFFSET($D112,1,$C112,ROW($C$190)-ROW($C112)),0)) -> 0 | K112: =IF(OR($C112="S",$C112=0),0,MATCH(OFFSET($D112,0,$C112)+IF($C112<>1,1,COUNTIF(QCI!$A$13:$A$24,ORÇAMENTO!E112)),OFFSET($D112,1,$C112,ROW($C$190)-ROW($C112)),0)) -> 0 | L112: F | M112: Serviço | N112: Serviço | O112: 1.1.9.1.1. | P112: SINAPI | Q112: 93128 | R112: PONTO DE ILUMINAÇÃO RESIDENCIAL INCLUINDO INTERRUPTOR SIMPLES, CAIXA ELÉTRICA, ELETRODUTO, CABO, RASGO, QUEBRA E CHUMBAMENTO | S112: UN | T112: =OFFSET(CÁLCULO!H$15,ROW($T112)-ROW(T$15),0) -> 2 | U112: 109.8285 | V112: BDI 1 | W112: 135.68 | X112: 271.36 | Y112: RA | Z112: RA | AA112: =IF($C112="S",IF($Z112="CP",$X112,IF($Z112="RA",(($X112)*QCI!$AA$3),0)),SomaAgrup) -> 37.6034624 | AB112: 0 | AD112: =IF(C112<=CRONO.NivelExibicao,MAX($AD$15:OFFSET(AD112,-1,0))+IF($C112<>1,1,MAX(1,COUNTIF(QCI!$A$13:$A$24,OFFSET($E112,-1,0)))),"") ->  | AE112: SINAPI 93128 | AF112: 8586 | AG112: 129.21 | AH112: 0.2354 | AM112: 271.36 | AN112: 135.68
A113: S | B113: 4 | C113: S | D113: 0 | E113: =IF($C113=1,OFFSET(E113,-1,0)+MAX(1,COUNTIF(QCI!$A$13:$A$24,OFFSET(ORÇAMENTO!E113,-1,0))),OFFSET(E113,-1,0)) -> 1 | F113: 1 | G113: 9 | H113: 1 | I113: 2 | J113: 0 | K113: =IF(OR($C113="S",$C113=0),0,MATCH(OFFSET($D113,0,$C113)+IF($C113<>1,1,COUNTIF(QCI!$A$13:$A$24,ORÇAMENTO!E113)),OFFSET($D113,1,$C113,ROW($C$190)-ROW($C113)),0)) -> 0 | L113: F | M113: Serviço | N113: Serviço | O113: 1.1.9.1.2. | P113: SINAPI | Q113: 93142 | R113: PONTO DE TOMADA RESIDENCIAL INCLUINDO TOMADA (2 MÓDULOS) 10A/250V, CAIXA ELÉTRICA, ELETRODUTO, CABO, RASGO, QUEBRA E CHUMBAMENTO | S113: UN | T113: =OFFSET(CÁLCULO!H$15,ROW($T113)-ROW(T$15),0) -> 6 | U113: 146.0895 | V113: BDI 1 | W113: 180.48 | X113: 1082.88 | Y113: RA | Z113: RA | AA113: =IF($C113="S",IF($Z113="CP",$X113,IF($Z113="RA",(($X113)*QCI!$AA$3),0)),SomaAgrup) -> 150.0590999 | AB113: 0 | AD113: =IF(C113<=CRONO.NivelExibicao,MAX($AD$15:OFFSET(AD113,-1,0))+IF($C113<>1,1,MAX(1,COUNTIF(QCI!$A$13:$A$24,OFFSET($E113,-1,0)))),"") ->  | AE113: SINAPI 93142 | AF113: 8592 | AG113: 171.87 | AH113: 0.2354 | AM113: 1082.88 | AN113: 180.48
A114: S | B114: 4 | C114: S | D114: 0 | E114: =IF($C114=1,OFFSET(E114,-1,0)+MAX(1,COUNTIF(QCI!$A$13:$A$24,OFFSET(ORÇAMENTO!E114,-1,0))),OFFSET(E114,-1,0)) -> 1 | F114: 1 | G114: 9 | H114: 1 | I114: 3 | J114: 0 | K114: =IF(OR($C114="S",$C114=0),0,MATCH(OFFSET($D114,0,$C114)+IF($C114<>1,1,COUNTIF(QCI!$A$13:$A$24,ORÇAMENTO!E114)),OFFSET($D114,1,$C114,ROW($C$190)-ROW($C114)),0)) -> 0 | L114: F | M114: Serviço | N114: Serviço | O114: 1.1.9.1.3. | P114: SINAPI | Q114: 93145 | R114: PONTO DE ILUMINAÇÃO E TOMADA, RESIDENCIAL, INCLUINDO INTERRUPTOR SIMPLES E TOMADA 10A/250V, CAIXA ELÉTRICA, ELETRODUTO, CABO, RASGO, QUEBRA E CHUMBAMENTO | S114: UN | T114: =OFFSET(CÁLCULO!H$15,ROW($T114)-ROW(T$15),0) -> 4 | U114: 156.23 | V114: BDI 1 | W114: 193.01 | X114: 772.04 | Y114: RA | Z114: RA | AA114: =IF($C114="S",IF($Z114="CP",$X114,IF($Z114="RA",(($X114)*QCI!$AA$3),0)),SomaAgrup) -> 106.9847329 | AB114: 0 | AD114: =IF(C114<=CRONO.NivelExibicao,MAX($AD$15:OFFSET(AD114,-1,0))+IF($C114<>1,1,MAX(1,COUNTIF(QCI!$A$13:$A$24,OFFSET($E114,-1,0)))),"") ->  | AE114: SINAPI 93145 | AF114: 8595 | AG114: 183.8 | AH114: 0.2354 | AM114: 772.04 | AN114: 193.01
A115: S | B115: 4 | C115: S | D115: 0 | E115: =IF($C115=1,OFFSET(E115,-1,0)+MAX(1,COUNTIF(QCI!$A$13:$A$24,OFFSET(ORÇAMENTO!E115,-1,0))),OFFSET(E115,-1,0)) -> 1 | F115: 1 | G115: 9 | H115: 1 | I115: 4 | J115: 0 | K115: =IF(OR($C115="S",$C115=0),0,MATCH(OFFSET($D115,0,$C115)+IF($C115<>1,1,COUNTIF(QCI!$A$13:$A$24,ORÇAMENTO!E115)),OFFSET($D115,1,$C115,ROW($C$190)-ROW($C115)),0)) -> 0 | L115: F | M115: Serviço | N115: Serviço | O115: 1.1.9.1.4. | P115: SINAPI | Q115: 97610 | R115: LÂMPADA COMPACTA DE LED 10 W, BASE E27 - FORNECIMENTO E INSTALAÇÃO | S115: UN | T115: =OFFSET(CÁLCULO!H$15,ROW($T115)-ROW(T$15),0) -> 1 | U115: 35.819 | V115: BDI 1 | W115: 44.25 | X115: 44.25 | Y115: RA | Z115: RA | AA115: =IF($C115="S",IF($Z115="CP",$X115,IF($Z115="RA",(($X115)*QCI!$AA$3),0)),SomaAgrup) -> 6.131903048 | AB115: 0 | AD115: =IF(C115<=CRONO.NivelExibicao,MAX($AD$15:OFFSET(AD115,-1,0))+IF($C115<>1,1,MAX(1,COUNTIF(QCI!$A$13:$A$24,OFFSET($E115,-1,0)))),"") ->  | AE115: SINAPI 97610 | AF115: 8503 | AG115: 42.14 | AH115: 0.2354 | AM115: 44.25 | AN115: 44.25
A116: S | B116: 4 | C116: S | D116: 0 | E116: =IF($C116=1,OFFSET(E116,-1,0)+MAX(1,COUNTIF(QCI!$A$13:$A$24,OFFSET(ORÇAMENTO!E116,-1,0))),OFFSET(E116,-1,0)) -> 1 | F116: 1 | G116: 9 | H116: 1 | I116: 5 | J116: 0 | K116: =IF(OR($C116="S",$C116=0),0,MATCH(OFFSET($D116,0,$C116)+IF($C116<>1,1,COUNTIF(QCI!$A$13:$A$24,ORÇAMENTO!E116)),OFFSET($D116,1,$C116,ROW($C$190)-ROW($C116)),0)) -> 0 | L116: F | M116: Serviço | N116: Serviço | O116: 1.1.9.1.5. | P116: SINAPI-I | Q116: 39386 | R116: LAMPADA LED TUBULAR BIVOLT 9/10 W, BASE G13 | S116: UN | T116: =OFFSET(CÁLCULO!H$15,ROW($T116)-ROW(T$15),0) -> 10 | U116: 32.5975 | V116: BDI 1 | W116: 40.27 | X116: 402.7 | Y116: RA | Z116: RA | AA116: =IF($C116="S",IF($Z116="CP",$X116,IF($Z116="RA",(($X116)*QCI!$AA$3),0)),SomaAgrup) -> 55.80378209 | AB116: 0 | AD116: =IF(C116<=CRONO.NivelExibicao,MAX($AD$15:OFFSET(AD116,-1,0))+IF($C116<>1,1,MAX(1,COUNTIF(QCI!$A$13:$A$24,OFFSET($E116,-1,0)))),"") ->  | AE116: SINAPI-I 39386 | AF116: 3136 | AG116: 38.35 | AH116: 0.2354 | AM116: 402.7 | AN116: 40.27
A117: S | B117: 4 | C117: S | D117: 0 | E117: =IF($C117=1,OFFSET(E117,-1,0)+MAX(1,COUNTIF(QCI!$A$13:$A$24,OFFSET(ORÇAMENTO!E117,-1,0))),OFFSET(E117,-1,0)) -> 1 | F117: 1 | G117: 9 | H117: 1 | I117: 6 | J117: 0 | K117: =IF(OR($C117="S",$C117=0),0,MATCH(OFFSET($D117,0,$C117)+IF($C117<>1,1,COUNTIF(QCI!$A$13:$A$24,ORÇAMENTO!E117)),OFFSET($D117,1,$C117,ROW($C$190)-ROW($C117)),0)) -> 0 | L117: F | M117: Serviço | N117: Serviço | O117: 1.1.9.1.6. | P117: SINAPI | Q117: 97589 | R117: LUMINÁRIA TIPO PLAFON EM PLÁSTICO, DE SOBREPOR, COM 1 LÂMPADA DE 15 W, - FORNECIMENTO E INSTALAÇÃO | S117: UN | T117: =OFFSET(CÁLCULO!H$15,ROW($T117)-ROW(T$15),0) -> 1 | U117: 29.2145 | V117: BDI 1 | W117: 36.09 | X117: 36.09 | Y117: RA | Z117: RA | AA117: =IF($C117="S",IF($Z117="CP",$X117,IF($Z117="RA",(($X117)*QCI!$AA$3),0)),SomaAgrup) -> 5.001138553 | AB117: 0 | AD117: =IF(C117<=CRONO.NivelExibicao,MAX($AD$15:OFFSET(AD117,-1,0))+IF($C117<>1,1,MAX(1,COUNTIF(QCI!$A$13:$A$24,OFFSET($E117,-1,0)))),"") ->  | AE117: SINAPI 97589 | AF117: 8491 | AG117: 34.37 | AH117: 0.2354 | AM117: 36.09 | AN117: 36.09
A118: S | B118: 4 | C118: S | D118: 0 | E118: =IF($C118=1,OFFSET(E118,-1,0)+MAX(1,COUNTIF(QCI!$A$13:$A$24,OFFSET(ORÇAMENTO!E118,-1,0))),OFFSET(E118,-1,0)) -> 1 | F118: 1 | G118: 9 | H118: 1 | I118: 7 | J118: 0 | K118: =IF(OR($C118="S",$C118=0),0,MATCH(OFFSET($D118,0,$C118)+IF($C118<>1,1,COUNTIF(QCI!$A$13:$A$24,ORÇAMENTO!E118)),OFFSET($D118,1,$C118,ROW($C$190)-ROW($C118)),0)) -> 0 | L118: F | M118: Serviço | N118: Serviço | O118: 1.1.9.1.7. | P118: SINAPI | Q118: 97583 | R118: LUMINÁRIA TIPO CALHA, DE SOBREPOR, COM 1 LÂMPADA TUBULAR DE 18 W - FORNECIMENTO E INSTALAÇÃO. | S118: UN | T118: =OFFSET(CÁLCULO!H$15,ROW($T118)-ROW(T$15),0) -> 10 | U118: 39.1425 | V118: BDI 1 | W118: 48.35 | X118: 483.5 | Y118: RA | Z118: RA | AA118: =IF($C118="S",IF($Z118="CP",$X118,IF($Z118="RA",(($X118)*QCI!$AA$3),0)),SomaAgrup) -> 67.00056776 | AB118: 0 | AD118: =IF(C118<=CRONO.NivelExibicao,MAX($AD$15:OFFSET(AD118,-1,0))+IF($C118<>1,1,MAX(1,COUNTIF(QCI!$A$13:$A$24,OFFSET($E118,-1,0)))),"") ->  | AE118: SINAPI 97583 | AF118: 8486 | AG118: 46.05 | AH118: 0.2354 | AM118: 483.5 | AN118: 48.35
A119: =CHOOSE(1+LOG(1+2*(ORÇAMENTO.Nivel="Meta")+4*(ORÇAMENTO.Nivel="Nível 2")+8*(ORÇAMENTO.Nivel="Nível 3")+16*(ORÇAMENTO.Nivel="Nível 4")+32*(ORÇAMENTO.Nivel="Serviço"),2),0,1,2,3,4,"S") -> 4 | B119: =IF(OR(C119="s",C119=0),OFFSET(B119,-1,0),C119) -> 4 | C119: =IF(OFFSET(C119,-1,0)="L",1,IF(OFFSET(C119,-1,0)=1,2,IF(OR(A119="s",A119=0),"S",IF(AND(OFFSET(C119,-1,0)=2,A119=4),3,IF(AND(OR(OFFSET(C119,-1,0)="s",OFFSET(C119,-1,0)=0),A119<>"s",A119>OFFSET(B119,-1,0)),OFFSET(B119,-1,0),A119))))) -> 4 | D119: =IF(OR(C119="S",C119=0),0,IF(ISERROR(K119),J119,SMALL(J119:K119,1))) -> 14 | E119: =IF($C119=1,OFFSET(E119,-1,0)+MAX(1,COUNTIF(QCI!$A$13:$A$24,OFFSET(ORÇAMENTO!E119,-1,0))),OFFSET(E119,-1,0)) -> 1 | F119: =IF($C119=1,0,IF($C119=2,OFFSET(F119,-1,0)+1,OFFSET(F119,-1,0))) -> 1 | G119: =IF(AND($C119<=2,$C119<>0),0,IF($C119=3,OFFSET(G119,-1,0)+1,OFFSET(G119,-1,0))) -> 9 | H119: =IF(AND($C119<=3,$C119<>0),0,IF($C119=4,OFFSET(H119,-1,0)+1,OFFSET(H119,-1,0))) -> 2 | I119: =IF(AND($C119<=4,$C119<>0),0,IF(AND($C119="S",$X119>0),OFFSET(I119,-1,0)+1,OFFSET(I119,-1,0))) -> 0 | J119: 14 | K119: =IF(OR($C119="S",$C119=0),0,MATCH(OFFSET($D119,0,$C119)+IF($C119<>1,1,COUNTIF(QCI!$A$13:$A$24,ORÇAMENTO!E119)),OFFSET($D119,1,$C119,ROW($C$190)-ROW($C119)),0)) ->  | L119: =IF(OR($X119>0,$C119=1,$C119=2,$C119=3,$C119=4),"F","") -> F | M119: Nível 4 | N119: =CHOOSE(1+LOG(1+2*(C119=1)+4*(C119=2)+8*(C119=3)+16*(C119=4)+32*(C119="S"),2),"","Meta","Nível 2","Nível 3","Nível 4","Serviço") -> Nível 4 | O119: =IF(OR($C119=0,$L119=""),"-",CONCATENATE(E119&".",IF(AND($A$5>=2,$C119>=2),F119&".",""),IF(AND($A$5>=3,$C119>=3),G119&".",""),IF(AND($A$5>=4,$C119>=4),H119&".",""),IF($C119="S",I119&".",""))) -> 1.1.9.2. | P119: SINAPI | R119: Cabos, Disjuntores, Eletrodutos e Distribuição | S119: - | T119: =OFFSET(CÁLCULO!H$15,ROW($T119)-ROW(T$15),0) -> 0 | U119: 0 | V119: BDI 1 | W119: =IF($C119="S",ROUND(IF(TIPOORCAMENTO="Proposto",ORÇAMENTO.CustoUnitario*(1+$AH119),ORÇAMENTO.PrecoUnitarioLicitado),15-13*$AF$10),0) -> 0 | X119: =IF($C119="S",VTOTAL1,IF($C119=0,0,ROUND(SomaAgrup,15-13*$AF$11))) -> 5400.25 | Y119: RA | Z119: =IF(AND($C119="S",$X119>0),IF(ISBLANK($Y119),"RA",LEFT($Y119,2)),"") ->  | AA119: =IF($C119="S",IF($Z119="CP",$X119,IF($Z119="RA",(($X119)*QCI!$AA$3),0)),SomaAgrup) -> 748.3346765 | AB119: =IF($C119="S",IF($Z119="OU",ROUND($X119,2),0),SomaAgrup) -> 0 | AC119: =IF($N119="","",IF(ORÇAMENTO.Descricao="","DESCRIÇÃO",IF(AND($C119="S",ORÇAMENTO.Unidade=""),"UNIDADE",IF($X119<0,"VALOR NEGATIVO",IF(OR(AND(TIPOORCAMENTO="Proposto",$AG119<>"",$AG119>0,ORÇAMENTO.CustoUnitario>$AG119),AND(TIPOORCAMENTO="LICITADO",ORÇAMENTO.PrecoUnitarioLicitado>$AN119)),"ACIMA REF.",""))))) ->  | AD119: =IF(C119<=CRONO.NivelExibicao,MAX($AD$15:OFFSET(AD119,-1,0))+IF($C119<>1,1,MAX(1,COUNTIF(QCI!$A$13:$A$24,OFFSET($E119,-1,0)))),"") ->  | AE119: =IF(AND($C119="S",ORÇAMENTO.CodBarra<>""),IF(ORÇAMENTO.Fonte="",ORÇAMENTO.CodBarra,CONCATENATE(ORÇAMENTO.Fonte," ",ORÇAMENTO.CodBarra))) -> FALSE | AF119: =IF(ISERROR(INDIRECT(ORÇAMENTO.BancoRef)),"(abra o arquivo 'Referência "&Excel_BuiltIn_Database&".xls)",IF(OR($C119<>"S",ORÇAMENTO.CodBarra=""),"(Sem Código)",IF(ISERROR(MATCH($AE119,INDIRECT(ORÇAMENTO.BancoRef),0)),"(Código não identificado nas referências)",MATCH($AE119,INDIRECT(ORÇAMENTO.BancoRef),0)))) -> (Sem Código) | AG119: =ROUND(IF(DESONERACAO="sim",REFERENCIA.Desonerado,REFERENCIA.NaoDesonerado),2) -> 0 | AH119: =ROUND(IF(ISNUMBER(ORÇAMENTO.OpcaoBDI),ORÇAMENTO.OpcaoBDI,IF(LEFT(ORÇAMENTO.OpcaoBDI,3)="BDI",HLOOKUP(ORÇAMENTO.OpcaoBDI,$F$4:$H$5,2,FALSE),0)),15-11*$AF$9) -> 0.2354 | AM119: 5400.25 | AN119: =ROUND(ORÇAMENTO.CustoUnitario*(1+$AH119),2) -> 0
A120: S | B120: 4 | C120: S | D120: 0 | E120: =IF($C120=1,OFFSET(E120,-1,0)+MAX(1,COUNTIF(QCI!$A$13:$A$24,OFFSET(ORÇAMENTO!E120,-1,0))),OFFSET(E120,-1,0)) -> 1 | F120: 1 | G120: 9 | H120: 2 | I120: 1 | J120: 0 | K120: =IF(OR($C120="S",$C120=0),0,MATCH(OFFSET($D120,0,$C120)+IF($C120<>1,1,COUNTIF(QCI!$A$13:$A$24,ORÇAMENTO!E120)),OFFSET($D120,1,$C120,ROW($C$190)-ROW($C120)),0)) -> 0 | L120: F | M120: Serviço | N120: Serviço | O120: 1.1.9.2.1. | P120: SINAPI | Q120: 9540 | R120: ENTRADA DE ENERGIA ELÉTRICA AÉREA MONOFÁSICA 50A COM POSTE DE CONCRETO, INCLUSIVE CABEAMENTO, CAIXA DE PROTEÇÃO PARA MEDIDOR E ATERRAMENTO. | S120: UN | T120: =OFFSET(CÁLCULO!H$15,ROW($T120)-ROW(T$15),0) -> 1 | U120: 1045.449 | V120: BDI 1 | W120: 1291.55 | X120: 1291.55 | Y120: RA | Z120: RA | AA120: =IF($C120="S",IF($Z120="CP",$X120,IF($Z120="RA",(($X120)*QCI!$AA$3),0)),SomaAgrup) -> 178.9753532 | AB120: 0 | AD120: =IF(C120<=CRONO.NivelExibicao,MAX($AD$15:OFFSET(AD120,-1,0))+IF($C120<>1,1,MAX(1,COUNTIF(QCI!$A$13:$A$24,OFFSET($E120,-1,0)))),"") ->  | AE120: SINAPI 9540 | AF120: 8512 | AG120: 1229.94 | AH120: 0.2354 | AM120: 1291.55 | AN120: 1291.55
A121: S | B121: 4 | C121: S | D121: 0 | E121: =IF($C121=1,OFFSET(E121,-1,0)+MAX(1,COUNTIF(QCI!$A$13:$A$24,OFFSET(ORÇAMENTO!E121,-1,0))),OFFSET(E121,-1,0)) -> 1 | F121: 1 | G121: 9 | H121: 2 | I121: 2 | J121: 0 | K121: =IF(OR($C121="S",$C121=0),0,MATCH(OFFSET($D121,0,$C121)+IF($C121<>1,1,COUNTIF(QCI!$A$13:$A$24,ORÇAMENTO!E121)),OFFSET($D121,1,$C121,ROW($C$190)-ROW($C121)),0)) -> 0 | L121: F | M121: Serviço | N121: Serviço | O121: 1.1.9.2.2. | P121: SINAPI-I | Q121: 13393 | R121: QUADRO DE DISTRIBUICAO COM BARRAMENTO TRIFASICO, DE EMBUTIR, EM CHAPA DE ACO GALVANIZADO, PARA 12 DISJUNTORES DIN, 80 A | S121: UN | T121: =OFFSET(CÁLCULO!H$15,ROW($T121)-ROW(T$15),0) -> 1 | U121: 204.5865 | V121: BDI 1 | W121: 252.75 | X121: 252.75 | Y121: RA | Z121: RA | AA121: =IF($C121="S",IF($Z121="CP",$X121,IF($Z121="RA",(($X121)*QCI!$AA$3),0)),SomaAgrup) -> 35.02459876 | AB121: 0 | AD121: =IF(C121<=CRONO.NivelExibicao,MAX($AD$15:OFFSET(AD121,-1,0))+IF($C121<>1,1,MAX(1,COUNTIF(QCI!$A$13:$A$24,OFFSET($E121,-1,0)))),"") ->  | AE121: SINAPI-I 13393 | AF121: 4265 | AG121: 240.69 | AH121: 0.2354 | AM121: 252.75 | AN121: 252.75
A122: S | B122: 4 | C122: S | D122: 0 | E122: =IF($C122=1,OFFSET(E122,-1,0)+MAX(1,COUNTIF(QCI!$A$13:$A$24,OFFSET(ORÇAMENTO!E122,-1,0))),OFFSET(E122,-1,0)) -> 1 | F122: 1 | G122: 9 | H122: 2 | I122: 3 | J122: 0 | K122: =IF(OR($C122="S",$C122=0),0,MATCH(OFFSET($D122,0,$C122)+IF($C122<>1,1,COUNTIF(QCI!$A$13:$A$24,ORÇAMENTO!E122)),OFFSET($D122,1,$C122,ROW($C$190)-ROW($C122)),0)) -> 0 | L122: F | M122: Serviço | N122: Serviço | O122: 1.1.9.2.3. | P122: SINAPI | Q122: 93660 | R122: DISJUNTOR BIPOLAR TIPO DIN, CORRENTE NOMINAL DE 10A - FORNECIMENTO E INSTALAÇÃO | S122: UN | T122: =OFFSET(CÁLCULO!H$15,ROW($T122)-ROW(T$15),0) -> 2 | U122: 58.378 | V122: BDI 1 | W122: 72.12 | X122: 144.24 | Y122: RA | Z122: RA | AA122: =IF($C122="S",IF($Z122="CP",$X122,IF($Z122="RA",(($X122)*QCI!$AA$3),0)),SomaAgrup) -> 19.98792532 | AB122: 0 | AD122: =IF(C122<=CRONO.NivelExibicao,MAX($AD$15:OFFSET(AD122,-1,0))+IF($C122<>1,1,MAX(1,COUNTIF(QCI!$A$13:$A$24,OFFSET($E122,-1,0)))),"") ->  | AE122: SINAPI 93660 | AF122: 8364 | AG122: 68.68 | AH122: 0.2354 | AM122: 144.24 | AN122: 72.12
A123: S | B123: 4 | C123: S | D123: 0 | E123: =IF($C123=1,OFFSET(E123,-1,0)+MAX(1,COUNTIF(QCI!$A$13:$A$24,OFFSET(ORÇAMENTO!E123,-1,0))),OFFSET(E123,-1,0)) -> 1 | F123: 1 | G123: 9 | H123: 2 | I123: 4 | J123: 0 | K123: =IF(OR($C123="S",$C123=0),0,MATCH(OFFSET($D123,0,$C123)+IF($C123<>1,1,COUNTIF(QCI!$A$13:$A$24,ORÇAMENTO!E123)),OFFSET($D123,1,$C123,ROW($C$190)-ROW($C123)),0)) -> 0 | L123: F | M123: Serviço | N123: Serviço | O123: 1.1.9.2.4. | P123: SINAPI | Q123: 93664 | R123: DISJUNTOR BIPOLAR TIPO DIN, CORRENTE NOMINAL DE 32A - FORNECIMENTO E INSTALAÇÃO | S123: UN | T123: =OFFSET(CÁLCULO!H$15,ROW($T123)-ROW(T$15),0) -> 3 | U123: 63.6055 | V123: BDI 1 | W123: 78.58 | X123: 235.74 | Y123: RA | Z123: RA | AA123: =IF($C123="S",IF($Z123="CP",$X123,IF($Z123="RA",(($X123)*QCI!$AA$3),0)),SomaAgrup) -> 32.66745366 | AB123: 0 | AD123: =IF(C123<=CRONO.NivelExibicao,MAX($AD$15:OFFSET(AD123,-1,0))+IF($C123<>1,1,MAX(1,COUNTIF(QCI!$A$13:$A$24,OFFSET($E123,-1,0)))),"") ->  | AE123: SINAPI 93664 | AF123: 8368 | AG123: 74.83 | AH123: 0.2354 | AM123: 235.74 | AN123: 78.58
A124: =CHOOSE(1+LOG(1+2*(ORÇAMENTO.Nivel="Meta")+4*(ORÇAMENTO.Nivel="Nível 2")+8*(ORÇAMENTO.Nivel="Nível 3")+16*(ORÇAMENTO.Nivel="Nível 4")+32*(ORÇAMENTO.Nivel="Serviço"),2),0,1,2,3,4,"S") -> S | B124: =IF(OR(C124="s",C124=0),OFFSET(B124,-1,0),C124) -> 4 | C124: =IF(OFFSET(C124,-1,0)="L",1,IF(OFFSET(C124,-1,0)=1,2,IF(OR(A124="s",A124=0),"S",IF(AND(OFFSET(C124,-1,0)=2,A124=4),3,IF(AND(OR(OFFSET(C124,-1,0)="s",OFFSET(C124,-1,0)=0),A124<>"s",A124>OFFSET(B124,-1,0)),OFFSET(B124,-1,0),A124))))) -> S | D124: =IF(OR(C124="S",C124=0),0,IF(ISERROR(K124),J124,SMALL(J124:K124,1))) -> 0 | E124: =IF($C124=1,OFFSET(E124,-1,0)+MAX(1,COUNTIF(QCI!$A$13:$A$24,OFFSET(ORÇAMENTO!E124,-1,0))),OFFSET(E124,-1,0)) -> 1 | F124: =IF($C124=1,0,IF($C124=2,OFFSET(F124,-1,0)+1,OFFSET(F124,-1,0))) -> 1 | G124: =IF(AND($C124<=2,$C124<>0),0,IF($C124=3,OFFSET(G124,-1,0)+1,OFFSET(G124,-1,0))) -> 9 | H124: =IF(AND($C124<=3,$C124<>0),0,IF($C124=4,OFFSET(H124,-1,0)+1,OFFSET(H124,-1,0))) -> 2 | I124: =IF(AND($C124<=4,$C124<>0),0,IF(AND($C124="S",$X124>0),OFFSET(I124,-1,0)+1,OFFSET(I124,-1,0))) -> 5 | J124: 0 | K124: =IF(OR($C124="S",$C124=0),0,MATCH(OFFSET($D124,0,$C124)+IF($C124<>1,1,COUNTIF(QCI!$A$13:$A$24,ORÇAMENTO!E124)),OFFSET($D124,1,$C124,ROW($C$190)-ROW($C124)),0)) -> 0 | L124: =IF(OR($X124>0,$C124=1,$C124=2,$C124=3,$C124=4),"F","") -> F | M124: Serviço | N124: =CHOOSE(1+LOG(1+2*(C124=1)+4*(C124=2)+8*(C124=3)+16*(C124=4)+32*(C124="S"),2),"","Meta","Nível 2","Nível 3","Nível 4","Serviço") -> Serviço | O124: =IF(OR($C124=0,$L124=""),"-",CONCATENATE(E124&".",IF(AND($A$5>=2,$C124>=2),F124&".",""),IF(AND($A$5>=3,$C124>=3),G124&".",""),IF(AND($A$5>=4,$C124>=4),H124&".",""),IF($C124="S",I124&".",""))) -> 1.1.9.2.5. | P124: SINAPI | Q124: 74130/5 | R124: DISJUNTOR TERMOMAGNETICO TRIPOLAR PADRAO NEMA (AMERICANO) 80A 240V, FORNECIMENTO E INSTALACAO | S124: UN | T124: =OFFSET(CÁLCULO!H$15,ROW($T124)-ROW(T$15),0) -> 1 | U124: 133.5435 | V124: BDI 1 | W124: =IF($C124="S",ROUND(IF(TIPOORCAMENTO="Proposto",ORÇAMENTO.CustoUnitario*(1+$AH124),ORÇAMENTO.PrecoUnitarioLicitado),15-13*$AF$10),0) -> 164.98 | X124: =IF($C124="S",VTOTAL1,IF($C124=0,0,ROUND(SomaAgrup,15-13*$AF$11))) -> 164.98 | Y124: RA | Z124: =IF(AND($C124="S",$X124>0),IF(ISBLANK($Y124),"RA",LEFT($Y124,2)),"") -> RA | AA124: =IF($C124="S",IF($Z124="CP",$X124,IF($Z124="RA",(($X124)*QCI!$AA$3),0)),SomaAgrup) -> 22.86195175 | AB124: =IF($C124="S",IF($Z124="OU",ROUND($X124,2),0),SomaAgrup) -> 0 | AC124: =IF($N124="","",IF(ORÇAMENTO.Descricao="","DESCRIÇÃO",IF(AND($C124="S",ORÇAMENTO.Unidade=""),"UNIDADE",IF($X124<0,"VALOR NEGATIVO",IF(OR(AND(TIPOORCAMENTO="Proposto",$AG124<>"",$AG124>0,ORÇAMENTO.CustoUnitario>$AG124),AND(TIPOORCAMENTO="LICITADO",ORÇAMENTO.PrecoUnitarioLicitado>$AN124)),"ACIMA REF.",""))))) ->  | AD124: =IF(C124<=CRONO.NivelExibicao,MAX($AD$15:OFFSET(AD124,-1,0))+IF($C124<>1,1,MAX(1,COUNTIF(QCI!$A$13:$A$24,OFFSET($E124,-1,0)))),"") ->  | AE124: =IF(AND($C124="S",ORÇAMENTO.CodBarra<>""),IF(ORÇAMENTO.Fonte="",ORÇAMENTO.CodBarra,CONCATENATE(ORÇAMENTO.Fonte," ",ORÇAMENTO.CodBarra))) -> SINAPI 74130/5 | AF124: =IF(ISERROR(INDIRECT(ORÇAMENTO.BancoRef)),"(abra o arquivo 'Referência "&Excel_BuiltIn_Database&".xls)",IF(OR($C124<>"S",ORÇAMENTO.CodBarra=""),"(Sem Código)",IF(ISERROR(MATCH($AE124,INDIRECT(ORÇAMENTO.BancoRef),0)),"(Código não identificado nas referências)",MATCH($AE124,INDIRECT(ORÇAMENTO.BancoRef),0)))) -> 8343 | AG124: =ROUND(IF(DESONERACAO="sim",REFERENCIA.Desonerado,REFERENCIA.NaoDesonerado),2) -> 157.11 | AH124: =ROUND(IF(ISNUMBER(ORÇAMENTO.OpcaoBDI),ORÇAMENTO.OpcaoBDI,IF(LEFT(ORÇAMENTO.OpcaoBDI,3)="BDI",HLOOKUP(ORÇAMENTO.OpcaoBDI,$F$4:$H$5,2,FALSE),0)),15-11*$AF$9) -> 0.2354 | AM124: 164.98 | AN124: =ROUND(ORÇAMENTO.CustoUnitario*(1+$AH124),2) -> 164.98
A125: S | B125: 4 | C125: S | D125: 0 | E125: =IF($C125=1,OFFSET(E125,-1,0)+MAX(1,COUNTIF(QCI!$A$13:$A$24,OFFSET(ORÇAMENTO!E125,-1,0))),OFFSET(E125,-1,0)) -> 1 | F125: 1 | G125: 9 | H125: 2 | I125: 6 | J125: 0 | K125: =IF(OR($C125="S",$C125=0),0,MATCH(OFFSET($D125,0,$C125)+IF($C125<>1,1,COUNTIF(QCI!$A$13:$A$24,ORÇAMENTO!E125)),OFFSET($D125,1,$C125,ROW($C$190)-ROW($C125)),0)) -> 0 | L125: F | M125: Serviço | N125: Serviço | O125: 1.1.9.2.6. | P125: SINAPI | Q125: 91924 | R125: CABO DE COBRE FLEXÍVEL ISOLADO, 1,5 MM², ANTI-CHAMA 450/750 V, PARA CIRCUITOS TERMINAIS - FORNECIMENTO E INSTALAÇÃO | S125: M | T125: =OFFSET(CÁLCULO!H$15,ROW($T125)-ROW(T$15),0) -> 94.5 | U125: 1.7085 | V125: BDI 1 | W125: 2.11 | X125: 199.4 | Y125: RA | Z125: RA | AA125: =IF($C125="S",IF($Z125="CP",$X125,IF($Z125="RA",(($X125)*QCI!$AA$3),0)),SomaAgrup) -> 27.63167159 | AB125: 0 | AD125: =IF(C125<=CRONO.NivelExibicao,MAX($AD$15:OFFSET(AD125,-1,0))+IF($C125<>1,1,MAX(1,COUNTIF(QCI!$A$13:$A$24,OFFSET($E125,-1,0)))),"") ->  | AE125: SINAPI 91924 | AF125: 8240 | AG125: 2.01 | AH125: 0.2354 | AM125: 199.4 | AN125: 2.11
A126: S | B126: 4 | C126: S | D126: 0 | E126: =IF($C126=1,OFFSET(E126,-1,0)+MAX(1,COUNTIF(QCI!$A$13:$A$24,OFFSET(ORÇAMENTO!E126,-1,0))),OFFSET(E126,-1,0)) -> 1 | F126: 1 | G126: 9 | H126: 2 | I126: 7 | J126: 0 | K126: =IF(OR($C126="S",$C126=0),0,MATCH(OFFSET($D126,0,$C126)+IF($C126<>1,1,COUNTIF(QCI!$A$13:$A$24,ORÇAMENTO!E126)),OFFSET($D126,1,$C126,ROW($C$190)-ROW($C126)),0)) -> 0 | L126: F | M126: Serviço | N126: Serviço | O126: 1.1.9.2.7. | P126: SINAPI | Q126: 91926 | R126: CABO DE COBRE FLEXÍVEL ISOLADO, 2,5 MM², ANTI-CHAMA 450/750 V, PARA CIRCUITOS TERMINAIS - FORNECIMENTO E INSTALAÇÃO | S126: M | T126: =OFFSET(CÁLCULO!H$15,ROW($T126)-ROW(T$15),0) -> 97.05 | U126: 2.397 | V126: BDI 1 | W126: 2.96 | X126: 287.27 | Y126: RA | Z126: RA | AA126: =IF($C126="S",IF($Z126="CP",$X126,IF($Z126="RA",(($X126)*QCI!$AA$3),0)),SomaAgrup) -> 39.80817601 | AB126: 0 | AD126: =IF(C126<=CRONO.NivelExibicao,MAX($AD$15:OFFSET(AD126,-1,0))+IF($C126<>1,1,MAX(1,COUNTIF(QCI!$A$13:$A$24,OFFSET($E126,-1,0)))),"") ->  | AE126: SINAPI 91926 | AF126: 8242 | AG126: 2.82 | AH126: 0.2354 | AM126: 287.27 | AN126: 2.96
A127: S | B127: 4 | C127: S | D127: 0 | E127: =IF($C127=1,OFFSET(E127,-1,0)+MAX(1,COUNTIF(QCI!$A$13:$A$24,OFFSET(ORÇAMENTO!E127,-1,0))),OFFSET(E127,-1,0)) -> 1 | F127: 1 | G127: 9 | H127: 2 | I127: 8 | J127: 0 | K127: =IF(OR($C127="S",$C127=0),0,MATCH(OFFSET($D127,0,$C127)+IF($C127<>1,1,COUNTIF(QCI!$A$13:$A$24,ORÇAMENTO!E127)),OFFSET($D127,1,$C127,ROW($C$190)-ROW($C127)),0)) -> 0 | L127: F | M127: Serviço | N127: Serviço | O127: 1.1.9.2.8. | P127: SINAPI | Q127: 91930 | R127: CABO DE COBRE FLEXÍVEL ISOLADO, 6 MM², ANTI-CHAMA 450/750 V, PARA CIRCUITOS TERMINAIS - FORNECIMENTO E INSTALAÇÃO | S127: M | T127: =OFFSET(CÁLCULO!H$15,ROW($T127)-ROW(T$15),0) -> 76.95 | U127: 4.9895 | V127: BDI 1 | W127: 6.16 | X127: 474.01 | Y127: RA | Z127: RA | AA127: =IF($C127="S",IF($Z127="CP",$X127,IF($Z127="RA",(($X127)*QCI!$AA$3),0)),SomaAgrup) -> 65.68549974 | AB127: 0 | AD127: =IF(C127<=CRONO.NivelExibicao,MAX($AD$15:OFFSET(AD127,-1,0))+IF($C127<>1,1,MAX(1,COUNTIF(QCI!$A$13:$A$24,OFFSET($E127,-1,0)))),"") ->  | AE127: SINAPI 91930 | AF127: 8246 | AG127: 5.87 | AH127: 0.2354 | AM127: 474.01 | AN127: 6.16
A128: S | B128: 4 | C128: S | D128: 0 | E128: =IF($C128=1,OFFSET(E128,-1,0)+MAX(1,COUNTIF(QCI!$A$13:$A$24,OFFSET(ORÇAMENTO!E128,-1,0))),OFFSET(E128,-1,0)) -> 1 | F128: 1 | G128: 9 | H128: 2 | I128: 9 | J128: 0 | K128: =IF(OR($C128="S",$C128=0),0,MATCH(OFFSET($D128,0,$C128)+IF($C128<>1,1,COUNTIF(QCI!$A$13:$A$24,ORÇAMENTO!E128)),OFFSET($D128,1,$C128,ROW($C$190)-ROW($C128)),0)) -> 0 | L128: F | M128: Serviço | N128: Serviço | O128: 1.1.9.2.9. | P128: SINAPI | Q128: 91934 | R128: CABO DE COBRE FLEXÍVEL ISOLADO, 16 MM², ANTI-CHAMA 450/750 V, PARA CIRCUITOS TERMINAIS - FORNECIMENTO E INSTALAÇÃO | S128: M | T128: =OFFSET(CÁLCULO!H$15,ROW($T128)-ROW(T$15),0) -> 100 | U128: 12.189 | V128: BDI 1 | W128: 15.06 | X128: 1506 | Y128: RA | Z128: RA | AA128: =IF($C128="S",IF($Z128="CP",$X128,IF($Z128="RA",(($X128)*QCI!$AA$3),0)),SomaAgrup) -> 208.6925647 | AB128: 0 | AD128: =IF(C128<=CRONO.NivelExibicao,MAX($AD$15:OFFSET(AD128,-1,0))+IF($C128<>1,1,MAX(1,COUNTIF(QCI!$A$13:$A$24,OFFSET($E128,-1,0)))),"") ->  | AE128: SINAPI 91934 | AF128: 8250 | AG128: 14.34 | AH128: 0.2354 | AM128: 1506 | AN128: 15.06
A129: S | B129: 4 | C129: S | D129: 0 | E129: =IF($C129=1,OFFSET(E129,-1,0)+MAX(1,COUNTIF(QCI!$A$13:$A$24,OFFSET(ORÇAMENTO!E129,-1,0))),OFFSET(E129,-1,0)) -> 1 | F129: 1 | G129: 9 | H129: 2 | I129: 10 | J129: 0 | K129: =IF(OR($C129="S",$C129=0),0,MATCH(OFFSET($D129,0,$C129)+IF($C129<>1,1,COUNTIF(QCI!$A$13:$A$24,ORÇAMENTO!E129)),OFFSET($D129,1,$C129,ROW($C$190)-ROW($C129)),0)) -> 0 | L129: F | M129: Serviço | N129: Serviço | O129: 1.1.9.2.10. | P129: SINAPI | Q129: 91834 | R129: ELETRODUTO FLEXÍVEL CORRUGADO, PVC, DN 25 MM (3/4"), PARA CIRCUITOS TERMINAIS, INSTALADO EM FORRO - FORNECIMENTO E INSTALAÇÃO | S129: M | T129: =OFFSET(CÁLCULO!H$15,ROW($T129)-ROW(T$15),0) -> 81.75 | U129: 5.882 | V129: BDI 1 | W129: 7.26 | X129: 593.51 | Y129: RA | Z129: RA | AA129: =IF($C129="S",IF($Z129="CP",$X129,IF($Z129="RA",(($X129)*QCI!$AA$3),0)),SomaAgrup) -> 82.24510232 | AB129: 0 | AD129: =IF(C129<=CRONO.NivelExibicao,MAX($AD$15:OFFSET(AD129,-1,0))+IF($C129<>1,1,MAX(1,COUNTIF(QCI!$A$13:$A$24,OFFSET($E129,-1,0)))),"") ->  | AE129: SINAPI 91834 | AF129: 8117 | AG129: 6.92 | AH129: 0.2354 | AM129: 593.51 | AN129: 7.26
A130: =CHOOSE(1+LOG(1+2*(ORÇAMENTO.Nivel="Meta")+4*(ORÇAMENTO.Nivel="Nível 2")+8*(ORÇAMENTO.Nivel="Nível 3")+16*(ORÇAMENTO.Nivel="Nível 4")+32*(ORÇAMENTO.Nivel="Serviço"),2),0,1,2,3,4,"S") -> S | B130: =IF(OR(C130="s",C130=0),OFFSET(B130,-1,0),C130) -> 4 | C130: =IF(OFFSET(C130,-1,0)="L",1,IF(OFFSET(C130,-1,0)=1,2,IF(OR(A130="s",A130=0),"S",IF(AND(OFFSET(C130,-1,0)=2,A130=4),3,IF(AND(OR(OFFSET(C130,-1,0)="s",OFFSET(C130,-1,0)=0),A130<>"s",A130>OFFSET(B130,-1,0)),OFFSET(B130,-1,0),A130))))) -> S | D130: =IF(OR(C130="S",C130=0),0,IF(ISERROR(K130),J130,SMALL(J130:K130,1))) -> 0 | E130: =IF($C130=1,OFFSET(E130,-1,0)+MAX(1,COUNTIF(QCI!$A$13:$A$24,OFFSET(ORÇAMENTO!E130,-1,0))),OFFSET(E130,-1,0)) -> 1 | F130: =IF($C130=1,0,IF($C130=2,OFFSET(F130,-1,0)+1,OFFSET(F130,-1,0))) -> 1 | G130: =IF(AND($C130<=2,$C130<>0),0,IF($C130=3,OFFSET(G130,-1,0)+1,OFFSET(G130,-1,0))) -> 9 | H130: =IF(AND($C130<=3,$C130<>0),0,IF($C130=4,OFFSET(H130,-1,0)+1,OFFSET(H130,-1,0))) -> 2 | I130: =IF(AND($C130<=4,$C130<>0),0,IF(AND($C130="S",$X130>0),OFFSET(I130,-1,0)+1,OFFSET(I130,-1,0))) -> 11 | J130: 0 | K130: =IF(OR($C130="S",$C130=0),0,MATCH(OFFSET($D130,0,$C130)+IF($C130<>1,1,COUNTIF(QCI!$A$13:$A$24,ORÇAMENTO!E130)),OFFSET($D130,1,$C130,ROW($C$190)-ROW($C130)),0)) -> 0 | L130: =IF(OR($X130>0,$C130=1,$C130=2,$C130=3,$C130=4),"F","") -> F | M130: Serviço | N130: =CHOOSE(1+LOG(1+2*(C130=1)+4*(C130=2)+8*(C130=3)+16*(C130=4)+32*(C130="S"),2),"","Meta","Nível 2","Nível 3","Nível 4","Serviço") -> Serviço | O130: =IF(OR($C130=0,$L130=""),"-",CONCATENATE(E130&".",IF(AND($A$5>=2,$C130>=2),F130&".",""),IF(AND($A$5>=3,$C130>=3),G130&".",""),IF(AND($A$5>=4,$C130>=4),H130&".",""),IF($C130="S",I130&".",""))) -> 1.1.9.2.11. | P130: SINAPI | Q130: 91846 | R130: ELETRODUTO FLEXÍVEL CORRUGADO, PVC, DN 32 MM (1"), PARA CIRCUITOS TERMINAIS, INSTALADO EM LAJE - FORNECIMENTO E INSTALAÇÃO | S130: M | T130: =OFFSET(CÁLCULO!H$15,ROW($T130)-ROW(T$15),0) -> 23 | U130: 6.613 | V130: BDI 1 | W130: =IF($C130="S",ROUND(IF(TIPOORCAMENTO="Proposto",ORÇAMENTO.CustoUnitario*(1+$AH130),ORÇAMENTO.PrecoUnitarioLicitado),15-13*$AF$10),0) -> 8.17 | X130: =IF($C130="S",VTOTAL1,IF($C130=0,0,ROUND(SomaAgrup,15-13*$AF$11))) -> 187.91 | Y130: RA | Z130: =IF(AND($C130="S",$X130>0),IF(ISBLANK($Y130),"RA",LEFT($Y130,2)),"") -> RA | AA130: =IF($C130="S",IF($Z130="CP",$X130,IF($Z130="RA",(($X130)*QCI!$AA$3),0)),SomaAgrup) -> 26.03945541 | AB130: =IF($C130="S",IF($Z130="OU",ROUND($X130,2),0),SomaAgrup) -> 0 | AC130: =IF($N130="","",IF(ORÇAMENTO.Descricao="","DESCRIÇÃO",IF(AND($C130="S",ORÇAMENTO.Unidade=""),"UNIDADE",IF($X130<0,"VALOR NEGATIVO",IF(OR(AND(TIPOORCAMENTO="Proposto",$AG130<>"",$AG130>0,ORÇAMENTO.CustoUnitario>$AG130),AND(TIPOORCAMENTO="LICITADO",ORÇAMENTO.PrecoUnitarioLicitado>$AN130)),"ACIMA REF.",""))))) ->  | AD130: =IF(C130<=CRONO.NivelExibicao,MAX($AD$15:OFFSET(AD130,-1,0))+IF($C130<>1,1,MAX(1,COUNTIF(QCI!$A$13:$A$24,OFFSET($E130,-1,0)))),"") ->  | AE130: =IF(AND($C130="S",ORÇAMENTO.CodBarra<>""),IF(ORÇAMENTO.Fonte="",ORÇAMENTO.CodBarra,CONCATENATE(ORÇAMENTO.Fonte," ",ORÇAMENTO.CodBarra))) -> SINAPI 91846 | AF130: =IF(ISERROR(INDIRECT(ORÇAMENTO.BancoRef)),"(abra o arquivo 'Referência "&Excel_BuiltIn_Database&".xls)",IF(OR($C130<>"S",ORÇAMENTO.CodBarra=""),"(Sem Código)",IF(ISERROR(MATCH($AE130,INDIRECT(ORÇAMENTO.BancoRef),0)),"(Código não identificado nas referências)",MATCH($AE130,INDIRECT(ORÇAMENTO.BancoRef),0)))) -> 8121 | AG130: =ROUND(IF(DESONERACAO="sim",REFERENCIA.Desonerado,REFERENCIA.NaoDesonerado),2) -> 7.78 | AH130: =ROUND(IF(ISNUMBER(ORÇAMENTO.OpcaoBDI),ORÇAMENTO.OpcaoBDI,IF(LEFT(ORÇAMENTO.OpcaoBDI,3)="BDI",HLOOKUP(ORÇAMENTO.OpcaoBDI,$F$4:$H$5,2,FALSE),0)),15-11*$AF$9) -> 0.2354 | AM130: 187.91 | AN130: =ROUND(ORÇAMENTO.CustoUnitario*(1+$AH130),2) -> 8.17
A131: S | B131: 4 | C131: S | D131: 0 | E131: =IF($C131=1,OFFSET(E131,-1,0)+MAX(1,COUNTIF(QCI!$A$13:$A$24,OFFSET(ORÇAMENTO!E131,-1,0))),OFFSET(E131,-1,0)) -> 1 | F131: 1 | G131: 9 | H131: 2 | I131: 12 | J131: 0 | K131: =IF(OR($C131="S",$C131=0),0,MATCH(OFFSET($D131,0,$C131)+IF($C131<>1,1,COUNTIF(QCI!$A$13:$A$24,ORÇAMENTO!E131)),OFFSET($D131,1,$C131,ROW($C$190)-ROW($C131)),0)) -> 0 | L131: F | M131: Serviço | N131: Serviço | O131: 1.1.9.2.12. | P131: SINAPI | Q131: 91871 | R131: ELETRODUTO RÍGIDO ROSCÁVEL, PVC, DN 25 MM (3/4"), PARA CIRCUITOS TERMINAIS, INSTALADO EM PAREDE - FORNECIMENTO E INSTALAÇÃO | S131: M | T131: =OFFSET(CÁLCULO!H$15,ROW($T131)-ROW(T$15),0) -> 3 | U131: 9.3245 | V131: BDI 1 | W131: 11.51 | X131: 34.53 | Y131: RA | Z131: RA | AA131: =IF($C131="S",IF($Z131="CP",$X131,IF($Z131="RA",(($X131)*QCI!$AA$3),0)),SomaAgrup) -> 4.784962988 | AB131: 0 | AD131: =IF(C131<=CRONO.NivelExibicao,MAX($AD$15:OFFSET(AD131,-1,0))+IF($C131<>1,1,MAX(1,COUNTIF(QCI!$A$13:$A$24,OFFSET($E131,-1,0)))),"") ->  | AE131: SINAPI 91871 | AF131: 8134 | AG131: 10.97 | AH131: 0.2354 | AM131: 34.53 | AN131: 11.51
A132: S | B132: 4 | C132: S | D132: 0 | E132: =IF($C132=1,OFFSET(E132,-1,0)+MAX(1,COUNTIF(QCI!$A$13:$A$24,OFFSET(ORÇAMENTO!E132,-1,0))),OFFSET(E132,-1,0)) -> 1 | F132: 1 | G132: 9 | H132: 2 | I132: 13 | J132: 0 | K132: =IF(OR($C132="S",$C132=0),0,MATCH(OFFSET($D132,0,$C132)+IF($C132<>1,1,COUNTIF(QCI!$A$13:$A$24,ORÇAMENTO!E132)),OFFSET($D132,1,$C132,ROW($C$190)-ROW($C132)),0)) -> 0 | L132: F | M132: Serviço | N132: Serviço | O132: 1.1.9.2.13. | P132: SINAPI-I | Q132: 3380 | R132: HASTE DE ATERRAMENTO EM ACO COM 3,00 M DE COMPRIMENTO E DN = 5/8", REVESTIDA COM BAIXA CAMADA DE COBRE, COM CONECTOR TIPO GRAMPO | S132: UN | T132: =OFFSET(CÁLCULO!H$15,ROW($T132)-ROW(T$15),0) -> 1 | U132: 22.9585 | V132: BDI 1 | W132: 28.36 | X132: 28.36 | Y132: RA | Z132: RA | AA132: =IF($C132="S",IF($Z132="CP",$X132,IF($Z132="RA",(($X132)*QCI!$AA$3),0)),SomaAgrup) -> 3.929960914 | AB132: 0 | AD132: =IF(C132<=CRONO.NivelExibicao,MAX($AD$15:OFFSET(AD132,-1,0))+IF($C132<>1,1,MAX(1,COUNTIF(QCI!$A$13:$A$24,OFFSET($E132,-1,0)))),"") ->  | AE132: SINAPI-I 3380 | AF132: 337 | AG132: 27.01 | AH132: 0.2354 | AM132: 28.36 | AN132: 28.36
A133: 3 | B133: 3 | C133: 3 | D133: 6 | E133: =IF($C133=1,OFFSET(E133,-1,0)+MAX(1,COUNTIF(QCI!$A$13:$A$24,OFFSET(ORÇAMENTO!E133,-1,0))),OFFSET(E133,-1,0)) -> 1 | F133: 1 | G133: 10 | H133: 0 | I133: 0 | J133: 16 | K133: =IF(OR($C133="S",$C133=0),0,MATCH(OFFSET($D133,0,$C133)+IF($C133<>1,1,COUNTIF(QCI!$A$13:$A$24,ORÇAMENTO!E133)),OFFSET($D133,1,$C133,ROW($C$190)-ROW($C133)),0)) -> 6 | L133: F | M133: Nível 3 | N133: Nível 3 | O133: 1.1.10. | P133: SINAPI | R133: Pinturas | S133: - | T133: =OFFSET(CÁLCULO!H$15,ROW($T133)-ROW(T$15),0) -> 0 | U133: 0 | V133: BDI 1 | W133: 0 | X133: 2582.83 | Y133: RA | AA133: =IF($C133="S",IF($Z133="CP",$X133,IF($Z133="RA",(($X133)*QCI!$AA$3),0)),SomaAgrup) -> 357.9132915 | AB133: 0 | AD133: =IF(C133<=CRONO.NivelExibicao,MAX($AD$15:OFFSET(AD133,-1,0))+IF($C133<>1,1,MAX(1,COUNTIF(QCI!$A$13:$A$24,OFFSET($E133,-1,0)))),"") ->  | AE133: FALSE | AF133: (Sem Código) | AG133: 0 | AH133: 0.2354 | AM133: 2582.83 | AN133: 0
A134: =CHOOSE(1+LOG(1+2*(ORÇAMENTO.Nivel="Meta")+4*(ORÇAMENTO.Nivel="Nível 2")+8*(ORÇAMENTO.Nivel="Nível 3")+16*(ORÇAMENTO.Nivel="Nível 4")+32*(ORÇAMENTO.Nivel="Serviço"),2),0,1,2,3,4,"S") -> 4 | B134: =IF(OR(C134="s",C134=0),OFFSET(B134,-1,0),C134) -> 4 | C134: =IF(OFFSET(C134,-1,0)="L",1,IF(OFFSET(C134,-1,0)=1,2,IF(OR(A134="s",A134=0),"S",IF(AND(OFFSET(C134,-1,0)=2,A134=4),3,IF(AND(OR(OFFSET(C134,-1,0)="s",OFFSET(C134,-1,0)=0),A134<>"s",A134>OFFSET(B134,-1,0)),OFFSET(B134,-1,0),A134))))) -> 4 | D134: =IF(OR(C134="S",C134=0),0,IF(ISERROR(K134),J134,SMALL(J134:K134,1))) -> 3 | E134: =IF($C134=1,OFFSET(E134,-1,0)+MAX(1,COUNTIF(QCI!$A$13:$A$24,OFFSET(ORÇAMENTO!E134,-1,0))),OFFSET(E134,-1,0)) -> 1 | F134: =IF($C134=1,0,IF($C134=2,OFFSET(F134,-1,0)+1,OFFSET(F134,-1,0))) -> 1 | G134: =IF(AND($C134<=2,$C134<>0),0,IF($C134=3,OFFSET(G134,-1,0)+1,OFFSET(G134,-1,0))) -> 10 | H134: =IF(AND($C134<=3,$C134<>0),0,IF($C134=4,OFFSET(H134,-1,0)+1,OFFSET(H134,-1,0))) -> 1 | I134: =IF(AND($C134<=4,$C134<>0),0,IF(AND($C134="S",$X134>0),OFFSET(I134,-1,0)+1,OFFSET(I134,-1,0))) -> 0 | J134: 5 | K134: =IF(OR($C134="S",$C134=0),0,MATCH(OFFSET($D134,0,$C134)+IF($C134<>1,1,COUNTIF(QCI!$A$13:$A$24,ORÇAMENTO!E134)),OFFSET($D134,1,$C134,ROW($C$190)-ROW($C134)),0)) -> 3 | L134: =IF(OR($X134>0,$C134=1,$C134=2,$C134=3,$C134=4),"F","") -> F | M134: Nível 4 | N134: =CHOOSE(1+LOG(1+2*(C134=1)+4*(C134=2)+8*(C134=3)+16*(C134=4)+32*(C134="S"),2),"","Meta","Nível 2","Nível 3","Nível 4","Serviço") -> Nível 4 | O134: =IF(OR($C134=0,$L134=""),"-",CONCATENATE(E134&".",IF(AND($A$5>=2,$C134>=2),F134&".",""),IF(AND($A$5>=3,$C134>=3),G134&".",""),IF(AND($A$5>=4,$C134>=4),H134&".",""),IF($C134="S",I134&".",""))) -> 1.1.10.1. | P134: SINAPI | R134: Fundo e Pintura Acrilica | S134: - | T134: =OFFSET(CÁLCULO!H$15,ROW($T134)-ROW(T$15),0) -> 0 | U134: 0 | V134: BDI 1 | W134: =IF($C134="S",ROUND(IF(TIPOORCAMENTO="Proposto",ORÇAMENTO.CustoUnitario*(1+$AH134),ORÇAMENTO.PrecoUnitarioLicitado),15-13*$AF$10),0) -> 0 | X134: =IF($C134="S",VTOTAL1,IF($C134=0,0,ROUND(SomaAgrup,15-13*$AF$11))) -> 2525.02 | Y134: RA | Z134: =IF(AND($C134="S",$X134>0),IF(ISBLANK($Y134),"RA",LEFT($Y134,2)),"") ->  | AA134: =IF($C134="S",IF($Z134="CP",$X134,IF($Z134="RA",(($X134)*QCI!$AA$3),0)),SomaAgrup) -> 349.9023239 | AB134: =IF($C134="S",IF($Z134="OU",ROUND($X134,2),0),SomaAgrup) -> 0 | AC134: =IF($N134="","",IF(ORÇAMENTO.Descricao="","DESCRIÇÃO",IF(AND($C134="S",ORÇAMENTO.Unidade=""),"UNIDADE",IF($X134<0,"VALOR NEGATIVO",IF(OR(AND(TIPOORCAMENTO="Proposto",$AG134<>"",$AG134>0,ORÇAMENTO.CustoUnitario>$AG134),AND(TIPOORCAMENTO="LICITADO",ORÇAMENTO.PrecoUnitarioLicitado>$AN134)),"ACIMA REF.",""))))) ->  | AD134: =IF(C134<=CRONO.NivelExibicao,MAX($AD$15:OFFSET(AD134,-1,0))+IF($C134<>1,1,MAX(1,COUNTIF(QCI!$A$13:$A$24,OFFSET($E134,-1,0)))),"") ->  | AE134: =IF(AND($C134="S",ORÇAMENTO.CodBarra<>""),IF(ORÇAMENTO.Fonte="",ORÇAMENTO.CodBarra,CONCATENATE(ORÇAMENTO.Fonte," ",ORÇAMENTO.CodBarra))) -> FALSE | AF134: =IF(ISERROR(INDIRECT(ORÇAMENTO.BancoRef)),"(abra o arquivo 'Referência "&Excel_BuiltIn_Database&".xls)",IF(OR($C134<>"S",ORÇAMENTO.CodBarra=""),"(Sem Código)",IF(ISERROR(MATCH($AE134,INDIRECT(ORÇAMENTO.BancoRef),0)),"(Código não identificado nas referências)",MATCH($AE134,INDIRECT(ORÇAMENTO.BancoRef),0)))) -> (Sem Código) | AG134: =ROUND(IF(DESONERACAO="sim",REFERENCIA.Desonerado,REFERENCIA.NaoDesonerado),2) -> 0 | AH134: =ROUND(IF(ISNUMBER(ORÇAMENTO.OpcaoBDI),ORÇAMENTO.OpcaoBDI,IF(LEFT(ORÇAMENTO.OpcaoBDI,3)="BDI",HLOOKUP(ORÇAMENTO.OpcaoBDI,$F$4:$H$5,2,FALSE),0)),15-11*$AF$9) -> 0.2354 | AM134: 2525.02 | AN134: =ROUND(ORÇAMENTO.CustoUnitario*(1+$AH134),2) -> 0
A135: S | B135: 4 | C135: S | D135: 0 | E135: =IF($C135=1,OFFSET(E135,-1,0)+MAX(1,COUNTIF(QCI!$A$13:$A$24,OFFSET(ORÇAMENTO!E135,-1,0))),OFFSET(E135,-1,0)) -> 1 | F135: 1 | G135: 10 | H135: 1 | I135: 1 | J135: 0 | K135: =IF(OR($C135="S",$C135=0),0,MATCH(OFFSET($D135,0,$C135)+IF($C135<>1,1,COUNTIF(QCI!$A$13:$A$24,ORÇAMENTO!E135)),OFFSET($D135,1,$C135,ROW($C$190)-ROW($C135)),0)) -> 0 | L135: F | M135: Serviço | N135: Serviço | O135: 1.1.10.1.1. | P135: SINAPI | Q135: 88485 | R135: APLICAÇÃO DE FUNDO SELADOR ACRÍLICO EM PAREDES, UMA DEMÃO | S135: M2 | T135: =OFFSET(CÁLCULO!H$15,ROW($T135)-ROW(T$15),0) -> 189.14 | U135: 1.6575 | V135: BDI 1 | W135: 2.05 | X135: 387.74 | Y135: RA | Z135: RA | AA135: =IF($C135="S",IF($Z135="CP",$X135,IF($Z135="RA",(($X135)*QCI!$AA$3),0)),SomaAgrup) -> 53.73071385 | AB135: 0 | AD135: =IF(C135<=CRONO.NivelExibicao,MAX($AD$15:OFFSET(AD135,-1,0))+IF($C135<>1,1,MAX(1,COUNTIF(QCI!$A$13:$A$24,OFFSET($E135,-1,0)))),"") ->  | AE135: SINAPI 88485 | AF135: 10918 | AG135: 1.95 | AH135: 0.2354 | AM135: 387.74 | AN135: 2.05
A136: S | B136: 4 | C136: S | D136: 0 | E136: =IF($C136=1,OFFSET(E136,-1,0)+MAX(1,COUNTIF(QCI!$A$13:$A$24,OFFSET(ORÇAMENTO!E136,-1,0))),OFFSET(E136,-1,0)) -> 1 | F136: 1 | G136: 10 | H136: 1 | I136: 2 | J136: 0 | K136: =IF(OR($C136="S",$C136=0),0,MATCH(OFFSET($D136,0,$C136)+IF($C136<>1,1,COUNTIF(QCI!$A$13:$A$24,ORÇAMENTO!E136)),OFFSET($D136,1,$C136,ROW($C$190)-ROW($C136)),0)) -> 0 | L136: F | M136: Serviço | N136: Serviço | O136: 1.1.10.1.2. | P136: SINAPI | Q136: 88489 | R136: APLICAÇÃO MANUAL DE PINTURA COM TINTA LÁTEX ACRÍLICA EM PAREDES, DUAS DEMÃOS | S136: M2 | T136: =OFFSET(CÁLCULO!H$15,ROW($T136)-ROW(T$15),0) -> 189.14 | U136: 9.146 | V136: BDI 1 | W136: 11.3 | X136: 2137.28 | Y136: RA | Z136: RA | AA136: =IF($C136="S",IF($Z136="CP",$X136,IF($Z136="RA",(($X136)*QCI!$AA$3),0)),SomaAgrup) -> 296.1716101 | AB136: 0 | AD136: =IF(C136<=CRONO.NivelExibicao,MAX($AD$15:OFFSET(AD136,-1,0))+IF($C136<>1,1,MAX(1,COUNTIF(QCI!$A$13:$A$24,OFFSET($E136,-1,0)))),"") ->  | AE136: SINAPI 88489 | AF136: 10922 | AG136: 10.76 | AH136: 0.2354 | AM136: 2137.28 | AN136: 11.3
A137: 4 | B137: 4 | C137: 4 | D137: 2 | E137: =IF($C137=1,OFFSET(E137,-1,0)+MAX(1,COUNTIF(QCI!$A$13:$A$24,OFFSET(ORÇAMENTO!E137,-1,0))),OFFSET(E137,-1,0)) -> 1 | F137: 1 | G137: 10 | H137: 2 | I137: 0 | J137: 2 | K137: =IF(OR($C137="S",$C137=0),0,MATCH(OFFSET($D137,0,$C137)+IF($C137<>1,1,COUNTIF(QCI!$A$13:$A$24,ORÇAMENTO!E137)),OFFSET($D137,1,$C137,ROW($C$190)-ROW($C137)),0)) ->  | L137: F | M137: Nível 4 | N137: Nível 4 | O137: 1.1.10.2. | P137: SINAPI | R137: Pintura em Aberturas | S137: - | T137: =OFFSET(CÁLCULO!H$15,ROW($T137)-ROW(T$15),0) -> 0 | V137: BDI 1 | W137: 0 | X137: 57.81 | Y137: RA | AA137: =IF($C137="S",IF($Z137="CP",$X137,IF($Z137="RA",(($X137)*QCI!$AA$3),0)),SomaAgrup) -> 8.010967575 | AB137: 0 | AD137: =IF(C137<=CRONO.NivelExibicao,MAX($AD$15:OFFSET(AD137,-1,0))+IF($C137<>1,1,MAX(1,COUNTIF(QCI!$A$13:$A$24,OFFSET($E137,-1,0)))),"") ->  | AE137: FALSE | AF137: (Sem Código) | AG137: 0 | AH137: 0.2354 | AM137: 57.81 | AN137: 0
A138: S | B138: 4 | C138: S | D138: 0 | E138: =IF($C138=1,OFFSET(E138,-1,0)+MAX(1,COUNTIF(QCI!$A$13:$A$24,OFFSET(ORÇAMENTO!E138,-1,0))),OFFSET(E138,-1,0)) -> 1 | F138: 1 | G138: 10 | H138: 2 | I138: 1 | J138: 0 | K138: =IF(OR($C138="S",$C138=0),0,MATCH(OFFSET($D138,0,$C138)+IF($C138<>1,1,COUNTIF(QCI!$A$13:$A$24,ORÇAMENTO!E138)),OFFSET($D138,1,$C138,ROW($C$190)-ROW($C138)),0)) -> 0 | L138: F | M138: Serviço | N138: Serviço | O138: 1.1.10.2.1. | P138: SINAPI | Q138: 74145/1 | R138: PINTURA ESMALTE FOSCO, DUAS DEMAOS, SOBRE SUPERFICIE METALICA, INCLUSO UMA DEMAO DE FUNDO ANTICORROSIVO. UTILIZACAO DE REVOLVER ( AR-COMPRIMIDO). | S138: M2 | T138: =OFFSET(CÁLCULO!H$15,ROW($T138)-ROW(T$15),0) -> 3.12 | U138: 15 | V138: BDI 1 | W138: 18.53 | X138: 57.81 | Y138: RA | Z138: RA | AA138: =IF($C138="S",IF($Z138="CP",$X138,IF($Z138="RA",(($X138)*QCI!$AA$3),0)),SomaAgrup) -> 8.010967575 | AB138: 0 | AD138: =IF(C138<=CRONO.NivelExibicao,MAX($AD$15:OFFSET(AD138,-1,0))+IF($C138<>1,1,MAX(1,COUNTIF(QCI!$A$13:$A$24,OFFSET($E138,-1,0)))),"") ->  | AE138: SINAPI 74145/1 | AF138: 10978 | AG138: 16.87 | AH138: 0.2354 | AM138: 57.81 | AN138: 18.53
A139: 3 | B139: 3 | C139: 3 | D139: 7 | E139: =IF($C139=1,OFFSET(E139,-1,0)+MAX(1,COUNTIF(QCI!$A$13:$A$24,OFFSET(ORÇAMENTO!E139,-1,0))),OFFSET(E139,-1,0)) -> 1 | F139: 1 | G139: 11 | H139: 0 | I139: 0 | J139: 10 | K139: =IF(OR($C139="S",$C139=0),0,MATCH(OFFSET($D139,0,$C139)+IF($C139<>1,1,COUNTIF(QCI!$A$13:$A$24,ORÇAMENTO!E139)),OFFSET($D139,1,$C139,ROW($C$190)-ROW($C139)),0)) -> 7 | L139: F | M139: Nível 3 | N139: Nível 3 | O139: 1.1.11. | P139: SINAPI | R139: Acessibilidade | S139: - | T139: =OFFSET(CÁLCULO!H$15,ROW($T139)-ROW(T$15),0) -> 0 | U139: 0 | V139: BDI 1 | W139: 0 | X139: 1136.01 | Y139: RA | AA139: =IF($C139="S",IF($Z139="CP",$X139,IF($Z139="RA",(($X139)*QCI!$AA$3),0)),SomaAgrup) -> 157.4215408 | AB139: 0 | AD139: =IF(C139<=CRONO.NivelExibicao,MAX($AD$15:OFFSET(AD139,-1,0))+IF($C139<>1,1,MAX(1,COUNTIF(QCI!$A$13:$A$24,OFFSET($E139,-1,0)))),"") ->  | AE139: FALSE | AF139: (Sem Código) | AG139: 0 | AH139: 0.2354 | AM139: 1136.01 | AN139: 0
A140: =CHOOSE(1+LOG(1+2*(ORÇAMENTO.Nivel="Meta")+4*(ORÇAMENTO.Nivel="Nível 2")+8*(ORÇAMENTO.Nivel="Nível 3")+16*(ORÇAMENTO.Nivel="Nível 4")+32*(ORÇAMENTO.Nivel="Serviço"),2),0,1,2,3,4,"S") -> 4 | B140: =IF(OR(C140="s",C140=0),OFFSET(B140,-1,0),C140) -> 4 | C140: =IF(OFFSET(C140,-1,0)="L",1,IF(OFFSET(C140,-1,0)=1,2,IF(OR(A140="s",A140=0),"S",IF(AND(OFFSET(C140,-1,0)=2,A140=4),3,IF(AND(OR(OFFSET(C140,-1,0)="s",OFFSET(C140,-1,0)=0),A140<>"s",A140>OFFSET(B140,-1,0)),OFFSET(B140,-1,0),A140))))) -> 4 | D140: =IF(OR(C140="S",C140=0),0,IF(ISERROR(K140),J140,SMALL(J140:K140,1))) -> 6 | E140: =IF($C140=1,OFFSET(E140,-1,0)+MAX(1,COUNTIF(QCI!$A$13:$A$24,OFFSET(ORÇAMENTO!E140,-1,0))),OFFSET(E140,-1,0)) -> 1 | F140: =IF($C140=1,0,IF($C140=2,OFFSET(F140,-1,0)+1,OFFSET(F140,-1,0))) -> 1 | G140: =IF(AND($C140<=2,$C140<>0),0,IF($C140=3,OFFSET(G140,-1,0)+1,OFFSET(G140,-1,0))) -> 11 | H140: =IF(AND($C140<=3,$C140<>0),0,IF($C140=4,OFFSET(H140,-1,0)+1,OFFSET(H140,-1,0))) -> 1 | I140: =IF(AND($C140<=4,$C140<>0),0,IF(AND($C140="S",$X140>0),OFFSET(I140,-1,0)+1,OFFSET(I140,-1,0))) -> 0 | J140: 6 | K140: =IF(OR($C140="S",$C140=0),0,MATCH(OFFSET($D140,0,$C140)+IF($C140<>1,1,COUNTIF(QCI!$A$13:$A$24,ORÇAMENTO!E140)),OFFSET($D140,1,$C140,ROW($C$190)-ROW($C140)),0)) ->  | L140: =IF(OR($X140>0,$C140=1,$C140=2,$C140=3,$C140=4),"F","") -> F | M140: Nível 4 | N140: =CHOOSE(1+LOG(1+2*(C140=1)+4*(C140=2)+8*(C140=3)+16*(C140=4)+32*(C140="S"),2),"","Meta","Nível 2","Nível 3","Nível 4","Serviço") -> Nível 4 | O140: =IF(OR($C140=0,$L140=""),"-",CONCATENATE(E140&".",IF(AND($A$5>=2,$C140>=2),F140&".",""),IF(AND($A$5>=3,$C140>=3),G140&".",""),IF(AND($A$5>=4,$C140>=4),H140&".",""),IF($C140="S",I140&".",""))) -> 1.1.11.1. | P140: SINAPI | R140: ìtens Acessiveis | S140: - | T140: =OFFSET(CÁLCULO!H$15,ROW($T140)-ROW(T$15),0) -> 0 | U140: 0 | V140: BDI 1 | W140: =IF($C140="S",ROUND(IF(TIPOORCAMENTO="Proposto",ORÇAMENTO.CustoUnitario*(1+$AH140),ORÇAMENTO.PrecoUnitarioLicitado),15-13*$AF$10),0) -> 0 | X140: =IF($C140="S",VTOTAL1,IF($C140=0,0,ROUND(SomaAgrup,15-13*$AF$11))) -> 1136.01 | Y140: RA | Z140: =IF(AND($C140="S",$X140>0),IF(ISBLANK($Y140),"RA",LEFT($Y140,2)),"") ->  | AA140: =IF($C140="S",IF($Z140="CP",$X140,IF($Z140="RA",(($X140)*QCI!$AA$3),0)),SomaAgrup) -> 157.4215408 | AB140: =IF($C140="S",IF($Z140="OU",ROUND($X140,2),0),SomaAgrup) -> 0 | AC140: =IF($N140="","",IF(ORÇAMENTO.Descricao="","DESCRIÇÃO",IF(AND($C140="S",ORÇAMENTO.Unidade=""),"UNIDADE",IF($X140<0,"VALOR NEGATIVO",IF(OR(AND(TIPOORCAMENTO="Proposto",$AG140<>"",$AG140>0,ORÇAMENTO.CustoUnitario>$AG140),AND(TIPOORCAMENTO="LICITADO",ORÇAMENTO.PrecoUnitarioLicitado>$AN140)),"ACIMA REF.",""))))) ->  | AD140: =IF(C140<=CRONO.NivelExibicao,MAX($AD$15:OFFSET(AD140,-1,0))+IF($C140<>1,1,MAX(1,COUNTIF(QCI!$A$13:$A$24,OFFSET($E140,-1,0)))),"") ->  | AE140: =IF(AND($C140="S",ORÇAMENTO.CodBarra<>""),IF(ORÇAMENTO.Fonte="",ORÇAMENTO.CodBarra,CONCATENATE(ORÇAMENTO.Fonte," ",ORÇAMENTO.CodBarra))) -> FALSE | AF140: =IF(ISERROR(INDIRECT(ORÇAMENTO.BancoRef)),"(abra o arquivo 'Referência "&Excel_BuiltIn_Database&".xls)",IF(OR($C140<>"S",ORÇAMENTO.CodBarra=""),"(Sem Código)",IF(ISERROR(MATCH($AE140,INDIRECT(ORÇAMENTO.BancoRef),0)),"(Código não identificado nas referências)",MATCH($AE140,INDIRECT(ORÇAMENTO.BancoRef),0)))) -> (Sem Código) | AG140: =ROUND(IF(DESONERACAO="sim",REFERENCIA.Desonerado,REFERENCIA.NaoDesonerado),2) -> 0 | AH140: =ROUND(IF(ISNUMBER(ORÇAMENTO.OpcaoBDI),ORÇAMENTO.OpcaoBDI,IF(LEFT(ORÇAMENTO.OpcaoBDI,3)="BDI",HLOOKUP(ORÇAMENTO.OpcaoBDI,$F$4:$H$5,2,FALSE),0)),15-11*$AF$9) -> 0.2354 | AM140: 1136.01 | AN140: =ROUND(ORÇAMENTO.CustoUnitario*(1+$AH140),2) -> 0
A141: S | B141: 4 | C141: S | D141: 0 | E141: =IF($C141=1,OFFSET(E141,-1,0)+MAX(1,COUNTIF(QCI!$A$13:$A$24,OFFSET(ORÇAMENTO!E141,-1,0))),OFFSET(E141,-1,0)) -> 1 | F141: 1 | G141: 11 | H141: 1 | I141: 1 | J141: 0 | K141: =IF(OR($C141="S",$C141=0),0,MATCH(OFFSET($D141,0,$C141)+IF($C141<>1,1,COUNTIF(QCI!$A$13:$A$24,ORÇAMENTO!E141)),OFFSET($D141,1,$C141,ROW($C$190)-ROW($C141)),0)) -> 0 | L141: F | M141: Serviço | N141: Serviço | O141: 1.1.11.1.1. | P141: Cotação | Q141: 5 AMMOC | R141: SIRENE AUDIOVISUAL PCD (NBR 9050) | S141: UN | T141: =OFFSET(CÁLCULO!H$15,ROW($T141)-ROW(T$15),0) -> 1 | U141: 297.5 | V141: BDI 1 | W141: 367.53 | X141: 367.53 | Y141: RA | Z141: RA | AA141: =IF($C141="S",IF($Z141="CP",$X141,IF($Z141="RA",(($X141)*QCI!$AA$3),0)),SomaAgrup) -> 50.93013169 | AB141: 0 | AD141: =IF(C141<=CRONO.NivelExibicao,MAX($AD$15:OFFSET(AD141,-1,0))+IF($C141<>1,1,MAX(1,COUNTIF(QCI!$A$13:$A$24,OFFSET($E141,-1,0)))),"") ->  | AE141: Cotação 5 AMMOC | AF141: 59 | AG141: 350 | AH141: 0.2354 | AM141: 367.53 | AN141: 367.53
A142: S | B142: 4 | C142: S | D142: 0 | E142: =IF($C142=1,OFFSET(E142,-1,0)+MAX(1,COUNTIF(QCI!$A$13:$A$24,OFFSET(ORÇAMENTO!E142,-1,0))),OFFSET(E142,-1,0)) -> 1 | F142: 1 | G142: 11 | H142: 1 | I142: 2 | J142: 0 | K142: =IF(OR($C142="S",$C142=0),0,MATCH(OFFSET($D142,0,$C142)+IF($C142<>1,1,COUNTIF(QCI!$A$13:$A$24,ORÇAMENTO!E142)),OFFSET($D142,1,$C142,ROW($C$190)-ROW($C142)),0)) -> 0 | L142: F | M142: Serviço | N142: Serviço | O142: 1.1.11.1.2. | P142: Cotação | Q142: 22 AMMOC | R142: BARRA DE APOIO INOX POLIDO 40CM | S142: UN | T142: =OFFSET(CÁLCULO!H$15,ROW($T142)-ROW(T$15),0) -> 1 | U142: 77.7325 | V142: BDI 1 | W142: 96.03 | X142: 96.03 | Y142: RA | Z142: RA | AA142: =IF($C142="S",IF($Z142="CP",$X142,IF($Z142="RA",(($X142)*QCI!$AA$3),0)),SomaAgrup) -> 13.30726892 | AB142: 0 | AD142: =IF(C142<=CRONO.NivelExibicao,MAX($AD$15:OFFSET(AD142,-1,0))+IF($C142<>1,1,MAX(1,COUNTIF(QCI!$A$13:$A$24,OFFSET($E142,-1,0)))),"") ->  | AE142: Cotação 22 AMMOC | AF142: 76 | AG142: 91.45 | AH142: 0.2354 | AM142: 96.03 | AN142: 96.03
A143: S | B143: 4 | C143: S | D143: 0 | E143: =IF($C143=1,OFFSET(E143,-1,0)+MAX(1,COUNTIF(QCI!$A$13:$A$24,OFFSET(ORÇAMENTO!E143,-1,0))),OFFSET(E143,-1,0)) -> 1 | F143: 1 | G143: 11 | H143: 1 | I143: 3 | J143: 0 | K143: =IF(OR($C143="S",$C143=0),0,MATCH(OFFSET($D143,0,$C143)+IF($C143<>1,1,COUNTIF(QCI!$A$13:$A$24,ORÇAMENTO!E143)),OFFSET($D143,1,$C143,ROW($C$190)-ROW($C143)),0)) -> 0 | L143: F | M143: Serviço | N143: Serviço | O143: 1.1.11.1.3. | P143: SINAPI-I | Q143: 36205 | R143: BARRA DE APOIO RETA, EM ACO INOX POLIDO, COMPRIMENTO 70CM, DIAMETRO MINIMO 3 CM | S143: UN | T143: =OFFSET(CÁLCULO!H$15,ROW($T143)-ROW(T$15),0) -> 1 | U143: 136.1445 | V143: BDI 1 | W143: 168.19 | X143: 168.19 | Y143: RA | Z143: RA | AA143: =IF($C143="S",IF($Z143="CP",$X143,IF($Z143="RA",(($X143)*QCI!$AA$3),0)),SomaAgrup) -> 23.30677454 | AB143: 0 | AD143: =IF(C143<=CRONO.NivelExibicao,MAX($AD$15:OFFSET(AD143,-1,0))+IF($C143<>1,1,MAX(1,COUNTIF(QCI!$A$13:$A$24,OFFSET($E143,-1,0)))),"") ->  | AE143: SINAPI-I 36205 | AF143: 793 | AG143: 160.17 | AH143: 0.2354 | AM143: 168.19 | AN143: 168.19
A144: S | B144: 4 | C144: S | D144: 0 | E144: =IF($C144=1,OFFSET(E144,-1,0)+MAX(1,COUNTIF(QCI!$A$13:$A$24,OFFSET(ORÇAMENTO!E144,-1,0))),OFFSET(E144,-1,0)) -> 1 | F144: 1 | G144: 11 | H144: 1 | I144: 4 | J144: =IF(OR($C144="S",$C144=0),0,MATCH(0,OFFSET($D144,1,$C144,ROW($C$190)-ROW($C144)),0)) -> 0 | K144: =IF(OR($C144="S",$C144=0),0,MATCH(OFFSET($D144,0,$C144)+IF($C144<>1,1,COUNTIF(QCI!$A$13:$A$24,ORÇAMENTO!E144)),OFFSET($D144,1,$C144,ROW($C$190)-ROW($C144)),0)) -> 0 | L144: F | M144: Serviço | N144: Serviço | O144: 1.1.11.1.4. | P144: SINAPI-I | Q144: 36081 | R144: BARRA DE APOIO RETA, EM ACO INOX POLIDO, COMPRIMENTO 80CM, DIAMETRO MINIMO 3 CM | S144: UN | T144: =OFFSET(CÁLCULO!H$15,ROW($T144)-ROW(T$15),0) -> 1 | U144: 145.163 | V144: BDI 1 | W144: 179.33 | X144: 179.33 | Y144: RA | Z144: RA | AA144: =IF($C144="S",IF($Z144="CP",$X144,IF($Z144="RA",(($X144)*QCI!$AA$3),0)),SomaAgrup) -> 24.8504898 | AB144: 0 | AD144: =IF(C144<=CRONO.NivelExibicao,MAX($AD$15:OFFSET(AD144,-1,0))+IF($C144<>1,1,MAX(1,COUNTIF(QCI!$A$13:$A$24,OFFSET($E144,-1,0)))),"") ->  | AE144: SINAPI-I 36081 | AF144: 794 | AG144: 170.78 | AH144: 0.2354 | AM144: 179.33 | AN144: 179.33
A145: S | B145: 4 | C145: S | D145: 0 | E145: =IF($C145=1,OFFSET(E145,-1,0)+MAX(1,COUNTIF(QCI!$A$13:$A$24,OFFSET(ORÇAMENTO!E145,-1,0))),OFFSET(E145,-1,0)) -> 1 | F145: 1 | G145: 11 | H145: 1 | I145: 5 | J145: 0 | K145: =IF(OR($C145="S",$C145=0),0,MATCH(OFFSET($D145,0,$C145)+IF($C145<>1,1,COUNTIF(QCI!$A$13:$A$24,ORÇAMENTO!E145)),OFFSET($D145,1,$C145,ROW($C$190)-ROW($C145)),0)) -> 0 | L145: F | M145: Serviço | N145: Serviço | O145: 1.1.11.1.5. | P145: SINAPI-I | Q145: 11795 | R145: GRANITO PARA BANCADA, POLIDO, TIPO ANDORINHA/ QUARTZ/ CASTELO/ CORUMBA OU OUTROS EQUIVALENTES DA REGIAO, E= *2,5* CM | S145: M2 | T145: =OFFSET(CÁLCULO!H$15,ROW($T145)-ROW(T$15),0) -> 1 | U145: 263.0155 | V145: BDI 1 | W145: 324.93 | X145: 324.93 | Y145: RA | Z145: RA | AA145: =IF($C145="S",IF($Z145="CP",$X145,IF($Z145="RA",(($X145)*QCI!$AA$3),0)),SomaAgrup) -> 45.02687587 | AB145: 0 | AD145: =IF(C145<=CRONO.NivelExibicao,MAX($AD$15:OFFSET(AD145,-1,0))+IF($C145<>1,1,MAX(1,COUNTIF(QCI!$A$13:$A$24,OFFSET($E145,-1,0)))),"") ->  | AE145: SINAPI-I 11795 | AF145: 2699 | AG145: 309.43 | AH145: 0.2354 | AM145: 324.93 | AN145: 324.93
A146: 3 | B146: 3 | C146: 3 | D146: 3 | E146: =IF($C146=1,OFFSET(E146,-1,0)+MAX(1,COUNTIF(QCI!$A$13:$A$24,OFFSET(ORÇAMENTO!E146,-1,0))),OFFSET(E146,-1,0)) -> 1 | F146: 1 | G146: 12 | H146: 0 | I146: 0 | J146: 3 | K146: =IF(OR($C146="S",$C146=0),0,MATCH(OFFSET($D146,0,$C146)+IF($C146<>1,1,COUNTIF(QCI!$A$13:$A$24,ORÇAMENTO!E146)),OFFSET($D146,1,$C146,ROW($C$190)-ROW($C146)),0)) ->  | L146: F | M146: Nível 3 | N146: Nível 3 | O146: 1.1.12. | P146: SINAPI | R146: Serviços Finais | S146: - | T146: =OFFSET(CÁLCULO!H$15,ROW($T146)-ROW(T$15),0) -> 0 | U146: 0 | V146: BDI 1 | W146: 0 | X146: 163.29 | Y146: RA | AA146: =IF($C146="S",IF($Z146="CP",$X146,IF($Z146="RA",(($X146)*QCI!$AA$3),0)),SomaAgrup) -> 22.62776155 | AB146: 0 | AD146: =IF(C146<=CRONO.NivelExibicao,MAX($AD$15:OFFSET(AD146,-1,0))+IF($C146<>1,1,MAX(1,COUNTIF(QCI!$A$13:$A$24,OFFSET($E146,-1,0)))),"") ->  | AE146: FALSE | AF146: (Sem Código) | AG146: 0 | AH146: 0.2354 | AM146: 163.29 | AN146: 0
A147: 4 | B147: 4 | C147: 4 | D147: 2 | E147: =IF($C147=1,OFFSET(E147,-1,0)+MAX(1,COUNTIF(QCI!$A$13:$A$24,OFFSET(ORÇAMENTO!E147,-1,0))),OFFSET(E147,-1,0)) -> 1 | F147: 1 | G147: 12 | H147: 1 | I147: 0 | J147: 2 | K147: =IF(OR($C147="S",$C147=0),0,MATCH(OFFSET($D147,0,$C147)+IF($C147<>1,1,COUNTIF(QCI!$A$13:$A$24,ORÇAMENTO!E147)),OFFSET($D147,1,$C147,ROW($C$190)-ROW($C147)),0)) ->  | L147: F | M147: Nível 4 | N147: Nível 4 | O147: 1.1.12.1. | P147: SINAPI | R147: Limpeza | S147: - | T147: =OFFSET(CÁLCULO!H$15,ROW($T147)-ROW(T$15),0) -> 0 | U147: 0 | V147: BDI 1 | W147: 0 | X147: 163.29 | Y147: RA | AA147: =IF($C147="S",IF($Z147="CP",$X147,IF($Z147="RA",(($X147)*QCI!$AA$3),0)),SomaAgrup) -> 22.62776155 | AB147: 0 | AD147: =IF(C147<=CRONO.NivelExibicao,MAX($AD$15:OFFSET(AD147,-1,0))+IF($C147<>1,1,MAX(1,COUNTIF(QCI!$A$13:$A$24,OFFSET($E147,-1,0)))),"") ->  | AE147: FALSE | AF147: (Sem Código) | AG147: 0 | AH147: 0.2354 | AM147: 163.29 | AN147: 0
A148: =CHOOSE(1+LOG(1+2*(ORÇAMENTO.Nivel="Meta")+4*(ORÇAMENTO.Nivel="Nível 2")+8*(ORÇAMENTO.Nivel="Nível 3")+16*(ORÇAMENTO.Nivel="Nível 4")+32*(ORÇAMENTO.Nivel="Serviço"),2),0,1,2,3,4,"S") -> S | B148: =IF(OR(C148="s",C148=0),OFFSET(B148,-1,0),C148) -> 4 | C148: =IF(OFFSET(C148,-1,0)="L",1,IF(OFFSET(C148,-1,0)=1,2,IF(OR(A148="s",A148=0),"S",IF(AND(OFFSET(C148,-1,0)=2,A148=4),3,IF(AND(OR(OFFSET(C148,-1,0)="s",OFFSET(C148,-1,0)=0),A148<>"s",A148>OFFSET(B148,-1,0)),OFFSET(B148,-1,0),A148))))) -> S | D148: =IF(OR(C148="S",C148=0),0,IF(ISERROR(K148),J148,SMALL(J148:K148,1))) -> 0 | E148: =IF($C148=1,OFFSET(E148,-1,0)+MAX(1,COUNTIF(QCI!$A$13:$A$24,OFFSET(ORÇAMENTO!E148,-1,0))),OFFSET(E148,-1,0)) -> 1 | F148: =IF($C148=1,0,IF($C148=2,OFFSET(F148,-1,0)+1,OFFSET(F148,-1,0))) -> 1 | G148: =IF(AND($C148<=2,$C148<>0),0,IF($C148=3,OFFSET(G148,-1,0)+1,OFFSET(G148,-1,0))) -> 12 | H148: =IF(AND($C148<=3,$C148<>0),0,IF($C148=4,OFFSET(H148,-1,0)+1,OFFSET(H148,-1,0))) -> 1 | I148: =IF(AND($C148<=4,$C148<>0),0,IF(AND($C148="S",$X148>0),OFFSET(I148,-1,0)+1,OFFSET(I148,-1,0))) -> 1 | J148: 0 | K148: =IF(OR($C148="S",$C148=0),0,MATCH(OFFSET($D148,0,$C148)+IF($C148<>1,1,COUNTIF(QCI!$A$13:$A$24,ORÇAMENTO!E148)),OFFSET($D148,1,$C148,ROW($C$190)-ROW($C148)),0)) -> 0 | L148: =IF(OR($X148>0,$C148=1,$C148=2,$C148=3,$C148=4),"F","") -> F | M148: Serviço | N148: =CHOOSE(1+LOG(1+2*(C148=1)+4*(C148=2)+8*(C148=3)+16*(C148=4)+32*(C148="S"),2),"","Meta","Nível 2","Nível 3","Nível 4","Serviço") -> Serviço | O148: =IF(OR($C148=0,$L148=""),"-",CONCATENATE(E148&".",IF(AND($A$5>=2,$C148>=2),F148&".",""),IF(AND($A$5>=3,$C148>=3),G148&".",""),IF(AND($A$5>=4,$C148>=4),H148&".",""),IF($C148="S",I148&".",""))) -> 1.1.12.1.1. | P148: SINAPI | Q148: 9537 | R148: LIMPEZA FINAL DA OBRA | S148: M2 | T148: =OFFSET(CÁLCULO!H$15,ROW($T148)-ROW(T$15),0) -> 66.11 | U148: 2 | V148: BDI 1 | W148: =IF($C148="S",ROUND(IF(TIPOORCAMENTO="Proposto",ORÇAMENTO.CustoUnitario*(1+$AH148),ORÇAMENTO.PrecoUnitarioLicitado),15-13*$AF$10),0) -> 2.47 | X148: =IF($C148="S",VTOTAL1,IF($C148=0,0,ROUND(SomaAgrup,15-13*$AF$11))) -> 163.29 | Y148: RA | Z148: =IF(AND($C148="S",$X148>0),IF(ISBLANK($Y148),"RA",LEFT($Y148,2)),"") -> RA | AA148: =IF($C148="S",IF($Z148="CP",$X148,IF($Z148="RA",(($X148)*QCI!$AA$3),0)),SomaAgrup) -> 22.62776155 | AB148: =IF($C148="S",IF($Z148="OU",ROUND($X148,2),0),SomaAgrup) -> 0 | AC148: =IF($N148="","",IF(ORÇAMENTO.Descricao="","DESCRIÇÃO",IF(AND($C148="S",ORÇAMENTO.Unidade=""),"UNIDADE",IF($X148<0,"VALOR NEGATIVO",IF(OR(AND(TIPOORCAMENTO="Proposto",$AG148<>"",$AG148>0,ORÇAMENTO.CustoUnitario>$AG148),AND(TIPOORCAMENTO="LICITADO",ORÇAMENTO.PrecoUnitarioLicitado>$AN148)),"ACIMA REF.",""))))) ->  | AD148: =IF(C148<=CRONO.NivelExibicao,MAX($AD$15:OFFSET(AD148,-1,0))+IF($C148<>1,1,MAX(1,COUNTIF(QCI!$A$13:$A$24,OFFSET($E148,-1,0)))),"") ->  | AE148: =IF(AND($C148="S",ORÇAMENTO.CodBarra<>""),IF(ORÇAMENTO.Fonte="",ORÇAMENTO.CodBarra,CONCATENATE(ORÇAMENTO.Fonte," ",ORÇAMENTO.CodBarra))) -> SINAPI 9537 | AF148: =IF(ISERROR(INDIRECT(ORÇAMENTO.BancoRef)),"(abra o arquivo 'Referência "&Excel_BuiltIn_Database&".xls)",IF(OR($C148<>"S",ORÇAMENTO.CodBarra=""),"(Sem Código)",IF(ISERROR(MATCH($AE148,INDIRECT(ORÇAMENTO.BancoRef),0)),"(Código não identificado nas referências)",MATCH($AE148,INDIRECT(ORÇAMENTO.BancoRef),0)))) -> 11647 | AG148: =ROUND(IF(DESONERACAO="sim",REFERENCIA.Desonerado,REFERENCIA.NaoDesonerado),2) -> 2.44 | AH148: =ROUND(IF(ISNUMBER(ORÇAMENTO.OpcaoBDI),ORÇAMENTO.OpcaoBDI,IF(LEFT(ORÇAMENTO.OpcaoBDI,3)="BDI",HLOOKUP(ORÇAMENTO.OpcaoBDI,$F$4:$H$5,2,FALSE),0)),15-11*$AF$9) -> 0.2354 | AM148: 163.29 | AN148: =ROUND(ORÇAMENTO.CustoUnitario*(1+$AH148),2) -> 2.47
A149: 2 | B149: 2 | C149: 2 | D149: 13 | E149: =IF($C149=1,OFFSET(E149,-1,0)+MAX(1,COUNTIF(QCI!$A$13:$A$24,OFFSET(ORÇAMENTO!E149,-1,0))),OFFSET(E149,-1,0)) -> 1 | F149: 2 | G149: 0 | H149: 0 | I149: 0 | J149: 41 | K149: =IF(OR($C149="S",$C149=0),0,MATCH(OFFSET($D149,0,$C149)+IF($C149<>1,1,COUNTIF(QCI!$A$13:$A$24,ORÇAMENTO!E149)),OFFSET($D149,1,$C149,ROW($C$190)-ROW($C149)),0)) -> 13 | L149: F | M149: Nível 2 | N149: Nível 2 | O149: 1.2. | P149: SINAPI | R149: PISTA DE CAMINHADA E CALÇADAS | S149: - | T149: =OFFSET(CÁLCULO!H$15,ROW($T149)-ROW(T$15),0) -> 0 | U149: 0 | V149: BDI 1 | W149: 0 | X149: 89063.88 | Y149: RA | AA149: =IF($C149="S",IF($Z149="CP",$X149,IF($Z149="RA",(($X149)*QCI!$AA$3),0)),SomaAgrup) -> 12341.94525 | AB149: 0 | AD149: =IF(C149<=CRONO.NivelExibicao,MAX($AD$15:OFFSET(AD149,-1,0))+IF($C149<>1,1,MAX(1,COUNTIF(QCI!$A$13:$A$24,OFFSET($E149,-1,0)))),"") -> 3 | AE149: FALSE | AF149: (Sem Código) | AG149: 0 | AH149: 0.2354 | AM149: 89063.88 | AN149: 0
A150: =CHOOSE(1+LOG(1+2*(ORÇAMENTO.Nivel="Meta")+4*(ORÇAMENTO.Nivel="Nível 2")+8*(ORÇAMENTO.Nivel="Nível 3")+16*(ORÇAMENTO.Nivel="Nível 4")+32*(ORÇAMENTO.Nivel="Serviço"),2),0,1,2,3,4,"S") -> 3 | B150: =IF(OR(C150="s",C150=0),OFFSET(B150,-1,0),C150) -> 3 | C150: =IF(OFFSET(C150,-1,0)="L",1,IF(OFFSET(C150,-1,0)=1,2,IF(OR(A150="s",A150=0),"S",IF(AND(OFFSET(C150,-1,0)=2,A150=4),3,IF(AND(OR(OFFSET(C150,-1,0)="s",OFFSET(C150,-1,0)=0),A150<>"s",A150>OFFSET(B150,-1,0)),OFFSET(B150,-1,0),A150))))) -> 3 | D150: =IF(OR(C150="S",C150=0),0,IF(ISERROR(K150),J150,SMALL(J150:K150,1))) -> 6 | E150: =IF($C150=1,OFFSET(E150,-1,0)+MAX(1,COUNTIF(QCI!$A$13:$A$24,OFFSET(ORÇAMENTO!E150,-1,0))),OFFSET(E150,-1,0)) -> 1 | F150: =IF($C150=1,0,IF($C150=2,OFFSET(F150,-1,0)+1,OFFSET(F150,-1,0))) -> 2 | G150: =IF(AND($C150<=2,$C150<>0),0,IF($C150=3,OFFSET(G150,-1,0)+1,OFFSET(G150,-1,0))) -> 1 | H150: =IF(AND($C150<=3,$C150<>0),0,IF($C150=4,OFFSET(H150,-1,0)+1,OFFSET(H150,-1,0))) -> 0 | I150: =IF(AND($C150<=4,$C150<>0),0,IF(AND($C150="S",$X150>0),OFFSET(I150,-1,0)+1,OFFSET(I150,-1,0))) -> 0 | J150: 12 | K150: =IF(OR($C150="S",$C150=0),0,MATCH(OFFSET($D150,0,$C150)+IF($C150<>1,1,COUNTIF(QCI!$A$13:$A$24,ORÇAMENTO!E150)),OFFSET($D150,1,$C150,ROW($C$190)-ROW($C150)),0)) -> 6 | L150: =IF(OR($X150>0,$C150=1,$C150=2,$C150=3,$C150=4),"F","") -> F | M150: Nível 3 | N150: =CHOOSE(1+LOG(1+2*(C150=1)+4*(C150=2)+8*(C150=3)+16*(C150=4)+32*(C150="S"),2),"","Meta","Nível 2","Nível 3","Nível 4","Serviço") -> Nível 3 | O150: =IF(OR($C150=0,$L150=""),"-",CONCATENATE(E150&".",IF(AND($A$5>=2,$C150>=2),F150&".",""),IF(AND($A$5>=3,$C150>=3),G150&".",""),IF(AND($A$5>=4,$C150>=4),H150&".",""),IF($C150="S",I150&".",""))) -> 1.2.1. | P150: SINAPI | R150: Calçadas Entorno | S150: - | T150: =OFFSET(CÁLCULO!H$15,ROW($T150)-ROW(T$15),0) -> 0 | U150: 0 | V150: BDI 1 | W150: =IF($C150="S",ROUND(IF(TIPOORCAMENTO="Proposto",ORÇAMENTO.CustoUnitario*(1+$AH150),ORÇAMENTO.PrecoUnitarioLicitado),15-13*$AF$10),0) -> 0 | X150: =IF($C150="S",VTOTAL1,IF($C150=0,0,ROUND(SomaAgrup,15-13*$AF$11))) -> 21594.54 | Y150: RA | Z150: =IF(AND($C150="S",$X150>0),IF(ISBLANK($Y150),"RA",LEFT($Y150,2)),"") ->  | AA150: =IF($C150="S",IF($Z150="CP",$X150,IF($Z150="RA",(($X150)*QCI!$AA$3),0)),SomaAgrup) -> 2992.443517 | AB150: =IF($C150="S",IF($Z150="OU",ROUND($X150,2),0),SomaAgrup) -> 0 | AC150: =IF($N150="","",IF(ORÇAMENTO.Descricao="","DESCRIÇÃO",IF(AND($C150="S",ORÇAMENTO.Unidade=""),"UNIDADE",IF($X150<0,"VALOR NEGATIVO",IF(OR(AND(TIPOORCAMENTO="Proposto",$AG150<>"",$AG150>0,ORÇAMENTO.CustoUnitario>$AG150),AND(TIPOORCAMENTO="LICITADO",ORÇAMENTO.PrecoUnitarioLicitado>$AN150)),"ACIMA REF.",""))))) ->  | AD150: =IF(C150<=CRONO.NivelExibicao,MAX($AD$15:OFFSET(AD150,-1,0))+IF($C150<>1,1,MAX(1,COUNTIF(QCI!$A$13:$A$24,OFFSET($E150,-1,0)))),"") ->  | AE150: =IF(AND($C150="S",ORÇAMENTO.CodBarra<>""),IF(ORÇAMENTO.Fonte="",ORÇAMENTO.CodBarra,CONCATENATE(ORÇAMENTO.Fonte," ",ORÇAMENTO.CodBarra))) -> FALSE | AF150: =IF(ISERROR(INDIRECT(ORÇAMENTO.BancoRef)),"(abra o arquivo 'Referência "&Excel_BuiltIn_Database&".xls)",IF(OR($C150<>"S",ORÇAMENTO.CodBarra=""),"(Sem Código)",IF(ISERROR(MATCH($AE150,INDIRECT(ORÇAMENTO.BancoRef),0)),"(Código não identificado nas referências)",MATCH($AE150,INDIRECT(ORÇAMENTO.BancoRef),0)))) -> (Sem Código) | AG150: =ROUND(IF(DESONERACAO="sim",REFERENCIA.Desonerado,REFERENCIA.NaoDesonerado),2) -> 0 | AH150: =ROUND(IF(ISNUMBER(ORÇAMENTO.OpcaoBDI),ORÇAMENTO.OpcaoBDI,IF(LEFT(ORÇAMENTO.OpcaoBDI,3)="BDI",HLOOKUP(ORÇAMENTO.OpcaoBDI,$F$4:$H$5,2,FALSE),0)),15-11*$AF$9) -> 0.2354 | AM150: 21594.54 | AN150: =ROUND(ORÇAMENTO.CustoUnitario*(1+$AH150),2) -> 0
A151: S | B151: 3 | C151: S | D151: 0 | E151: =IF($C151=1,OFFSET(E151,-1,0)+MAX(1,COUNTIF(QCI!$A$13:$A$24,OFFSET(ORÇAMENTO!E151,-1,0))),OFFSET(E151,-1,0)) -> 1 | F151: 2 | G151: 1 | H151: 0 | I151: 1 | J151: 0 | K151: =IF(OR($C151="S",$C151=0),0,MATCH(OFFSET($D151,0,$C151)+IF($C151<>1,1,COUNTIF(QCI!$A$13:$A$24,ORÇAMENTO!E151)),OFFSET($D151,1,$C151,ROW($C$190)-ROW($C151)),0)) -> 0 | L151: F | M151: Serviço | N151: Serviço | O151: 1.2.1.0.1. | P151: SINAPI | Q151: 74077/2 | R151: LOCACAO CONVENCIONAL DE OBRA, ATRAVÉS DE GABARITO DE TABUAS CORRIDAS PONTALETADAS, COM REAPROVEITAMENTO DE 10 VEZES. | S151: M2 | T151: =OFFSET(CÁLCULO!H$15,ROW($T151)-ROW(T$15),0) -> 258.37 | U151: 2 | V151: BDI 1 | W151: 2.47 | X151: 638.17 | Y151: RA | Z151: RA | AA151: =IF($C151="S",IF($Z151="CP",$X151,IF($Z151="RA",(($X151)*QCI!$AA$3),0)),SomaAgrup) -> 88.43382074 | AB151: 0 | AD151: =IF(C151<=CRONO.NivelExibicao,MAX($AD$15:OFFSET(AD151,-1,0))+IF($C151<>1,1,MAX(1,COUNTIF(QCI!$A$13:$A$24,OFFSET($E151,-1,0)))),"") ->  | AE151: SINAPI 74077/2 | AF151: 11837 | AG151: 4.64 | AH151: 0.2354 | AM151: 638.17 | AN151: 2.47
A152: =CHOOSE(1+LOG(1+2*(ORÇAMENTO.Nivel="Meta")+4*(ORÇAMENTO.Nivel="Nível 2")+8*(ORÇAMENTO.Nivel="Nível 3")+16*(ORÇAMENTO.Nivel="Nível 4")+32*(ORÇAMENTO.Nivel="Serviço"),2),0,1,2,3,4,"S") -> S | B152: =IF(OR(C152="s",C152=0),OFFSET(B152,-1,0),C152) -> 3 | C152: =IF(OFFSET(C152,-1,0)="L",1,IF(OFFSET(C152,-1,0)=1,2,IF(OR(A152="s",A152=0),"S",IF(AND(OFFSET(C152,-1,0)=2,A152=4),3,IF(AND(OR(OFFSET(C152,-1,0)="s",OFFSET(C152,-1,0)=0),A152<>"s",A152>OFFSET(B152,-1,0)),OFFSET(B152,-1,0),A152))))) -> S | D152: =IF(OR(C152="S",C152=0),0,IF(ISERROR(K152),J152,SMALL(J152:K152,1))) -> 0 | E152: =IF($C152=1,OFFSET(E152,-1,0)+MAX(1,COUNTIF(QCI!$A$13:$A$24,OFFSET(ORÇAMENTO!E152,-1,0))),OFFSET(E152,-1,0)) -> 1 | F152: =IF($C152=1,0,IF($C152=2,OFFSET(F152,-1,0)+1,OFFSET(F152,-1,0))) -> 2 | G152: =IF(AND($C152<=2,$C152<>0),0,IF($C152=3,OFFSET(G152,-1,0)+1,OFFSET(G152,-1,0))) -> 1 | H152: =IF(AND($C152<=3,$C152<>0),0,IF($C152=4,OFFSET(H152,-1,0)+1,OFFSET(H152,-1,0))) -> 0 | I152: =IF(AND($C152<=4,$C152<>0),0,IF(AND($C152="S",$X152>0),OFFSET(I152,-1,0)+1,OFFSET(I152,-1,0))) -> 2 | J152: 0 | K152: =IF(OR($C152="S",$C152=0),0,MATCH(OFFSET($D152,0,$C152)+IF($C152<>1,1,COUNTIF(QCI!$A$13:$A$24,ORÇAMENTO!E152)),OFFSET($D152,1,$C152,ROW($C$190)-ROW($C152)),0)) -> 0 | L152: =IF(OR($X152>0,$C152=1,$C152=2,$C152=3,$C152=4),"F","") -> F | M152: Serviço | N152: =CHOOSE(1+LOG(1+2*(C152=1)+4*(C152=2)+8*(C152=3)+16*(C152=4)+32*(C152="S"),2),"","Meta","Nível 2","Nível 3","Nível 4","Serviço") -> Serviço | O152: =IF(OR($C152=0,$L152=""),"-",CONCATENATE(E152&".",IF(AND($A$5>=2,$C152>=2),F152&".",""),IF(AND($A$5>=3,$C152>=3),G152&".",""),IF(AND($A$5>=4,$C152>=4),H152&".",""),IF($C152="S",I152&".",""))) -> 1.2.1.0.2. | P152: SINAPI | Q152: 74205/1 | R152: ESCAVACAO MECANICA DE MATERIAL 1A. CATEGORIA, PROVENIENTE DE CORTE DE SUBLEITO (C/TRATOR ESTEIRAS 160HP) | S152: M3 | T152: =OFFSET(CÁLCULO!H$15,ROW($T152)-ROW(T$15),0) -> 31 | U152: 1.1985 | V152: BDI 1 | W152: =IF($C152="S",ROUND(IF(TIPOORCAMENTO="Proposto",ORÇAMENTO.CustoUnitario*(1+$AH152),ORÇAMENTO.PrecoUnitarioLicitado),15-13*$AF$10),0) -> 1.48 | X152: =IF($C152="S",VTOTAL1,IF($C152=0,0,ROUND(SomaAgrup,15-13*$AF$11))) -> 45.88 | Y152: RA | Z152: =IF(AND($C152="S",$X152>0),IF(ISBLANK($Y152),"RA",LEFT($Y152,2)),"") -> RA | AA152: =IF($C152="S",IF($Z152="CP",$X152,IF($Z152="RA",(($X152)*QCI!$AA$3),0)),SomaAgrup) -> 6.357778798 | AB152: =IF($C152="S",IF($Z152="OU",ROUND($X152,2),0),SomaAgrup) -> 0 | AC152: =IF($N152="","",IF(ORÇAMENTO.Descricao="","DESCRIÇÃO",IF(AND($C152="S",ORÇAMENTO.Unidade=""),"UNIDADE",IF($X152<0,"VALOR NEGATIVO",IF(OR(AND(TIPOORCAMENTO="Proposto",$AG152<>"",$AG152>0,ORÇAMENTO.CustoUnitario>$AG152),AND(TIPOORCAMENTO="LICITADO",ORÇAMENTO.PrecoUnitarioLicitado>$AN152)),"ACIMA REF.",""))))) ->  | AD152: =IF(C152<=CRONO.NivelExibicao,MAX($AD$15:OFFSET(AD152,-1,0))+IF($C152<>1,1,MAX(1,COUNTIF(QCI!$A$13:$A$24,OFFSET($E152,-1,0)))),"") ->  | AE152: =IF(AND($C152="S",ORÇAMENTO.CodBarra<>""),IF(ORÇAMENTO.Fonte="",ORÇAMENTO.CodBarra,CONCATENATE(ORÇAMENTO.Fonte," ",ORÇAMENTO.CodBarra))) -> SINAPI 74205/1 | AF152: =IF(ISERROR(INDIRECT(ORÇAMENTO.BancoRef)),"(abra o arquivo 'Referência "&Excel_BuiltIn_Database&".xls)",IF(OR($C152<>"S",ORÇAMENTO.CodBarra=""),"(Sem Código)",IF(ISERROR(MATCH($AE152,INDIRECT(ORÇAMENTO.BancoRef),0)),"(Código não identificado nas referências)",MATCH($AE152,INDIRECT(ORÇAMENTO.BancoRef),0)))) -> 10398 | AG152: =ROUND(IF(DESONERACAO="sim",REFERENCIA.Desonerado,REFERENCIA.NaoDesonerado),2) -> 1.41 | AH152: =ROUND(IF(ISNUMBER(ORÇAMENTO.OpcaoBDI),ORÇAMENTO.OpcaoBDI,IF(LEFT(ORÇAMENTO.OpcaoBDI,3)="BDI",HLOOKUP(ORÇAMENTO.OpcaoBDI,$F$4:$H$5,2,FALSE),0)),15-11*$AF$9) -> 0.2354 | AM152: 45.88 | AN152: =ROUND(ORÇAMENTO.CustoUnitario*(1+$AH152),2) -> 1.48
A153: S | B153: 3 | C153: S | D153: 0 | E153: =IF($C153=1,OFFSET(E153,-1,0)+MAX(1,COUNTIF(QCI!$A$13:$A$24,OFFSET(ORÇAMENTO!E153,-1,0))),OFFSET(E153,-1,0)) -> 1 | F153: 2 | G153: 1 | H153: 0 | I153: 3 | J153: 0 | K153: =IF(OR($C153="S",$C153=0),0,MATCH(OFFSET($D153,0,$C153)+IF($C153<>1,1,COUNTIF(QCI!$A$13:$A$24,ORÇAMENTO!E153)),OFFSET($D153,1,$C153,ROW($C$190)-ROW($C153)),0)) -> 0 | L153: F | M153: Serviço | N153: Serviço | O153: 1.2.1.0.3. | P153: SINAPI | Q153: 96622 | R153: LASTRO COM MATERIAL GRANULAR, APLICAÇÃO EM PISOS OU RADIERS, ESPESSURA DE *5 CM* | S153: M3 | T153: =OFFSET(CÁLCULO!H$15,ROW($T153)-ROW(T$15),0) -> 12.91 | U153: 60 | V153: BDI 1 | W153: 74.12 | X153: 956.89 | Y153: RA | Z153: RA | AA153: =IF($C153="S",IF($Z153="CP",$X153,IF($Z153="RA",(($X153)*QCI!$AA$3),0)),SomaAgrup) -> 132.6001516 | AB153: 0 | AD153: =IF(C153<=CRONO.NivelExibicao,MAX($AD$15:OFFSET(AD153,-1,0))+IF($C153<>1,1,MAX(1,COUNTIF(QCI!$A$13:$A$24,OFFSET($E153,-1,0)))),"") ->  | AE153: SINAPI 96622 | AF153: 7607 | AG153: 104.19 | AH153: 0.2354 | AM153: 956.89 | AN153: 74.12
A154: S | B154: 3 | C154: S | D154: 0 | E154: =IF($C154=1,OFFSET(E154,-1,0)+MAX(1,COUNTIF(QCI!$A$13:$A$24,OFFSET(ORÇAMENTO!E154,-1,0))),OFFSET(E154,-1,0)) -> 1 | F154: 2 | G154: 1 | H154: 0 | I154: 4 | J154: 0 | K154: =IF(OR($C154="S",$C154=0),0,MATCH(OFFSET($D154,0,$C154)+IF($C154<>1,1,COUNTIF(QCI!$A$13:$A$24,ORÇAMENTO!E154)),OFFSET($D154,1,$C154,ROW($C$190)-ROW($C154)),0)) -> 0 | L154: F | M154: Serviço | N154: Serviço | O154: 1.2.1.0.4. | P154: SINAPI | Q154: 94992 | R154: EXECUÇÃO DE PASSEIO (CALÇADA) OU PISO DE CONCRETO COM CONCRETO MOLDADO IN LOCO, FEITO EM OBRA, ACABAMENTO CONVENCIONAL, ESPESSURA 6 CM, ARMADO. | S154: M2 | T154: =OFFSET(CÁLCULO!H$15,ROW($T154)-ROW(T$15),0) -> 258.37 | U154: 46.9965 | V154: BDI 1 | W154: 58.06 | X154: 15000.96 | Y154: RA | Z154: RA | AA154: =IF($C154="S",IF($Z154="CP",$X154,IF($Z154="RA",(($X154)*QCI!$AA$3),0)),SomaAgrup) -> 2078.744234 | AB154: 0 | AD154: =IF(C154<=CRONO.NivelExibicao,MAX($AD$15:OFFSET(AD154,-1,0))+IF($C154<>1,1,MAX(1,COUNTIF(QCI!$A$13:$A$24,OFFSET($E154,-1,0)))),"") ->  | AE154: SINAPI 94992 | AF154: 11063 | AG154: 55.29 | AH154: 0.2354 | AM154: 15000.96 | AN154: 58.06
A155: =CHOOSE(1+LOG(1+2*(ORÇAMENTO.Nivel="Meta")+4*(ORÇAMENTO.Nivel="Nível 2")+8*(ORÇAMENTO.Nivel="Nível 3")+16*(ORÇAMENTO.Nivel="Nível 4")+32*(ORÇAMENTO.Nivel="Serviço"),2),0,1,2,3,4,"S") -> S | B155: =IF(OR(C155="s",C155=0),OFFSET(B155,-1,0),C155) -> 3 | C155: =IF(OFFSET(C155,-1,0)="L",1,IF(OFFSET(C155,-1,0)=1,2,IF(OR(A155="s",A155=0),"S",IF(AND(OFFSET(C155,-1,0)=2,A155=4),3,IF(AND(OR(OFFSET(C155,-1,0)="s",OFFSET(C155,-1,0)=0),A155<>"s",A155>OFFSET(B155,-1,0)),OFFSET(B155,-1,0),A155))))) -> S | D155: =IF(OR(C155="S",C155=0),0,IF(ISERROR(K155),J155,SMALL(J155:K155,1))) -> 0 | E155: =IF($C155=1,OFFSET(E155,-1,0)+MAX(1,COUNTIF(QCI!$A$13:$A$24,OFFSET(ORÇAMENTO!E155,-1,0))),OFFSET(E155,-1,0)) -> 1 | F155: =IF($C155=1,0,IF($C155=2,OFFSET(F155,-1,0)+1,OFFSET(F155,-1,0))) -> 2 | G155: =IF(AND($C155<=2,$C155<>0),0,IF($C155=3,OFFSET(G155,-1,0)+1,OFFSET(G155,-1,0))) -> 1 | H155: =IF(AND($C155<=3,$C155<>0),0,IF($C155=4,OFFSET(H155,-1,0)+1,OFFSET(H155,-1,0))) -> 0 | I155: =IF(AND($C155<=4,$C155<>0),0,IF(AND($C155="S",$X155>0),OFFSET(I155,-1,0)+1,OFFSET(I155,-1,0))) -> 5 | J155: 0 | K155: =IF(OR($C155="S",$C155=0),0,MATCH(OFFSET($D155,0,$C155)+IF($C155<>1,1,COUNTIF(QCI!$A$13:$A$24,ORÇAMENTO!E155)),OFFSET($D155,1,$C155,ROW($C$190)-ROW($C155)),0)) -> 0 | L155: =IF(OR($X155>0,$C155=1,$C155=2,$C155=3,$C155=4),"F","") -> F | M155: Serviço | N155: =CHOOSE(1+LOG(1+2*(C155=1)+4*(C155=2)+8*(C155=3)+16*(C155=4)+32*(C155="S"),2),"","Meta","Nível 2","Nível 3","Nível 4","Serviço") -> Serviço | O155: =IF(OR($C155=0,$L155=""),"-",CONCATENATE(E155&".",IF(AND($A$5>=2,$C155>=2),F155&".",""),IF(AND($A$5>=3,$C155>=3),G155&".",""),IF(AND($A$5>=4,$C155>=4),H155&".",""),IF($C155="S",I155&".",""))) -> 1.2.1.0.5. | P155: SINAPI | Q155: 95031 | R155: PISO PODOTATIL DE CONCRETO ALERTA/DIRECIONAL *40 X 40 X 2,5*CM, SOBRE LASTRO DE CONCRETO ESPESSURA 3 CM E REJUNTE CIMENTICIO, EXCLUSO COLCHÃO | S155: M2 | T155: =OFFSET(CÁLCULO!H$15,ROW($T155)-ROW(T$15),0) -> 47.81 | U155: 83.8525 | V155: BDI 1 | W155: =IF($C155="S",ROUND(IF(TIPOORCAMENTO="Proposto",ORÇAMENTO.CustoUnitario*(1+$AH155),ORÇAMENTO.PrecoUnitarioLicitado),15-13*$AF$10),0) -> 103.59 | X155: =IF($C155="S",VTOTAL1,IF($C155=0,0,ROUND(SomaAgrup,15-13*$AF$11))) -> 4952.64 | Y155: RA | Z155: =IF(AND($C155="S",$X155>0),IF(ISBLANK($Y155),"RA",LEFT($Y155,2)),"") -> RA | AA155: =IF($C155="S",IF($Z155="CP",$X155,IF($Z155="RA",(($X155)*QCI!$AA$3),0)),SomaAgrup) -> 686.3075324 | AB155: =IF($C155="S",IF($Z155="OU",ROUND($X155,2),0),SomaAgrup) -> 0 | AC155: =IF($N155="","",IF(ORÇAMENTO.Descricao="","DESCRIÇÃO",IF(AND($C155="S",ORÇAMENTO.Unidade=""),"UNIDADE",IF($X155<0,"VALOR NEGATIVO",IF(OR(AND(TIPOORCAMENTO="Proposto",$AG155<>"",$AG155>0,ORÇAMENTO.CustoUnitario>$AG155),AND(TIPOORCAMENTO="LICITADO",ORÇAMENTO.PrecoUnitarioLicitado>$AN155)),"ACIMA REF.",""))))) ->  | AD155: =IF(C155<=CRONO.NivelExibicao,MAX($AD$15:OFFSET(AD155,-1,0))+IF($C155<>1,1,MAX(1,COUNTIF(QCI!$A$13:$A$24,OFFSET($E155,-1,0)))),"") ->  | AE155: =IF(AND($C155="S",ORÇAMENTO.CodBarra<>""),IF(ORÇAMENTO.Fonte="",ORÇAMENTO.CodBarra,CONCATENATE(ORÇAMENTO.Fonte," ",ORÇAMENTO.CodBarra))) -> SINAPI 95031 | AF155: =IF(ISERROR(INDIRECT(ORÇAMENTO.BancoRef)),"(abra o arquivo 'Referência "&Excel_BuiltIn_Database&".xls)",IF(OR($C155<>"S",ORÇAMENTO.CodBarra=""),"(Sem Código)",IF(ISERROR(MATCH($AE155,INDIRECT(ORÇAMENTO.BancoRef),0)),"(Código não identificado nas referências)",MATCH($AE155,INDIRECT(ORÇAMENTO.BancoRef),0)))) -> 5687 | AG155: =ROUND(IF(DESONERACAO="sim",REFERENCIA.Desonerado,REFERENCIA.NaoDesonerado),2) -> 98.65 | AH155: =ROUND(IF(ISNUMBER(ORÇAMENTO.OpcaoBDI),ORÇAMENTO.OpcaoBDI,IF(LEFT(ORÇAMENTO.OpcaoBDI,3)="BDI",HLOOKUP(ORÇAMENTO.OpcaoBDI,$F$4:$H$5,2,FALSE),0)),15-11*$AF$9) -> 0.2354 | AM155: 4952.64 | AN155: =ROUND(ORÇAMENTO.CustoUnitario*(1+$AH155),2) -> 103.59
A156: 3 | B156: 3 | C156: 3 | D156: 6 | E156: =IF($C156=1,OFFSET(E156,-1,0)+MAX(1,COUNTIF(QCI!$A$13:$A$24,OFFSET(ORÇAMENTO!E156,-1,0))),OFFSET(E156,-1,0)) -> 1 | F156: 2 | G156: 2 | H156: 0 | I156: 0 | J156: 6 | K156: =IF(OR($C156="S",$C156=0),0,MATCH(OFFSET($D156,0,$C156)+IF($C156<>1,1,COUNTIF(QCI!$A$13:$A$24,ORÇAMENTO!E156)),OFFSET($D156,1,$C156,ROW($C$190)-ROW($C156)),0)) ->  | L156: F | M156: Nível 3 | N156: Nível 3 | O156: 1.2.2. | P156: SINAPI | R156: Pista de Caminhada | S156: - | T156: =OFFSET(CÁLCULO!H$15,ROW($T156)-ROW(T$15),0) -> 0 | U156: 0 | V156: BDI 1 | W156: 0 | X156: 67469.34 | Y156: RA | AA156: =IF($C156="S",IF($Z156="CP",$X156,IF($Z156="RA",(($X156)*QCI!$AA$3),0)),SomaAgrup) -> 9349.50173 | AB156: 0 | AD156: =IF(C156<=CRONO.NivelExibicao,MAX($AD$15:OFFSET(AD156,-1,0))+IF($C156<>1,1,MAX(1,COUNTIF(QCI!$A$13:$A$24,OFFSET($E156,-1,0)))),"") ->  | AE156: FALSE | AF156: (Sem Código) | AG156: 0 | AH156: 0.2354 | AM156: 67469.34 | AN156: 0
A157: =CHOOSE(1+LOG(1+2*(ORÇAMENTO.Nivel="Meta")+4*(ORÇAMENTO.Nivel="Nível 2")+8*(ORÇAMENTO.Nivel="Nível 3")+16*(ORÇAMENTO.Nivel="Nível 4")+32*(ORÇAMENTO.Nivel="Serviço"),2),0,1,2,3,4,"S") -> S | B157: =IF(OR(C157="s",C157=0),OFFSET(B157,-1,0),C157) -> 3 | C157: =IF(OFFSET(C157,-1,0)="L",1,IF(OFFSET(C157,-1,0)=1,2,IF(OR(A157="s",A157=0),"S",IF(AND(OFFSET(C157,-1,0)=2,A157=4),3,IF(AND(OR(OFFSET(C157,-1,0)="s",OFFSET(C157,-1,0)=0),A157<>"s",A157>OFFSET(B157,-1,0)),OFFSET(B157,-1,0),A157))))) -> S | D157: =IF(OR(C157="S",C157=0),0,IF(ISERROR(K157),J157,SMALL(J157:K157,1))) -> 0 | E157: =IF($C157=1,OFFSET(E157,-1,0)+MAX(1,COUNTIF(QCI!$A$13:$A$24,OFFSET(ORÇAMENTO!E157,-1,0))),OFFSET(E157,-1,0)) -> 1 | F157: =IF($C157=1,0,IF($C157=2,OFFSET(F157,-1,0)+1,OFFSET(F157,-1,0))) -> 2 | G157: =IF(AND($C157<=2,$C157<>0),0,IF($C157=3,OFFSET(G157,-1,0)+1,OFFSET(G157,-1,0))) -> 2 | H157: =IF(AND($C157<=3,$C157<>0),0,IF($C157=4,OFFSET(H157,-1,0)+1,OFFSET(H157,-1,0))) -> 0 | I157: =IF(AND($C157<=4,$C157<>0),0,IF(AND($C157="S",$X157>0),OFFSET(I157,-1,0)+1,OFFSET(I157,-1,0))) -> 1 | J157: 0 | K157: =IF(OR($C157="S",$C157=0),0,MATCH(OFFSET($D157,0,$C157)+IF($C157<>1,1,COUNTIF(QCI!$A$13:$A$24,ORÇAMENTO!E157)),OFFSET($D157,1,$C157,ROW($C$190)-ROW($C157)),0)) -> 0 | L157: =IF(OR($X157>0,$C157=1,$C157=2,$C157=3,$C157=4),"F","") -> F | M157: Serviço | N157: =CHOOSE(1+LOG(1+2*(C157=1)+4*(C157=2)+8*(C157=3)+16*(C157=4)+32*(C157="S"),2),"","Meta","Nível 2","Nível 3","Nível 4","Serviço") -> Serviço | O157: =IF(OR($C157=0,$L157=""),"-",CONCATENATE(E157&".",IF(AND($A$5>=2,$C157>=2),F157&".",""),IF(AND($A$5>=3,$C157>=3),G157&".",""),IF(AND($A$5>=4,$C157>=4),H157&".",""),IF($C157="S",I157&".",""))) -> 1.2.2.0.1. | P157: SINAPI | Q157: 74077/2 | R157: LOCACAO CONVENCIONAL DE OBRA, ATRAVÉS DE GABARITO DE TABUAS CORRIDAS PONTALETADAS, COM REAPROVEITAMENTO DE 10 VEZES. | S157: M2 | T157: =OFFSET(CÁLCULO!H$15,ROW($T157)-ROW(T$15),0) -> 698.95 | U157: 2 | V157: BDI 1 | W157: =IF($C157="S",ROUND(IF(TIPOORCAMENTO="Proposto",ORÇAMENTO.CustoUnitario*(1+$AH157),ORÇAMENTO.PrecoUnitarioLicitado),15-13*$AF$10),0) -> 2.47 | X157: =IF($C157="S",VTOTAL1,IF($C157=0,0,ROUND(SomaAgrup,15-13*$AF$11))) -> 1726.41 | Y157: RA | Z157: =IF(AND($C157="S",$X157>0),IF(ISBLANK($Y157),"RA",LEFT($Y157,2)),"") -> RA | AA157: =IF($C157="S",IF($Z157="CP",$X157,IF($Z157="RA",(($X157)*QCI!$AA$3),0)),SomaAgrup) -> 239.2356778 | AB157: =IF($C157="S",IF($Z157="OU",ROUND($X157,2),0),SomaAgrup) -> 0 | AC157: =IF($N157="","",IF(ORÇAMENTO.Descricao="","DESCRIÇÃO",IF(AND($C157="S",ORÇAMENTO.Unidade=""),"UNIDADE",IF($X157<0,"VALOR NEGATIVO",IF(OR(AND(TIPOORCAMENTO="Proposto",$AG157<>"",$AG157>0,ORÇAMENTO.CustoUnitario>$AG157),AND(TIPOORCAMENTO="LICITADO",ORÇAMENTO.PrecoUnitarioLicitado>$AN157)),"ACIMA REF.",""))))) ->  | AD157: =IF(C157<=CRONO.NivelExibicao,MAX($AD$15:OFFSET(AD157,-1,0))+IF($C157<>1,1,MAX(1,COUNTIF(QCI!$A$13:$A$24,OFFSET($E157,-1,0)))),"") ->  | AE157: =IF(AND($C157="S",ORÇAMENTO.CodBarra<>""),IF(ORÇAMENTO.Fonte="",ORÇAMENTO.CodBarra,CONCATENATE(ORÇAMENTO.Fonte," ",ORÇAMENTO.CodBarra))) -> SINAPI 74077/2 | AF157: =IF(ISERROR(INDIRECT(ORÇAMENTO.BancoRef)),"(abra o arquivo 'Referência "&Excel_BuiltIn_Database&".xls)",IF(OR($C157<>"S",ORÇAMENTO.CodBarra=""),"(Sem Código)",IF(ISERROR(MATCH($AE157,INDIRECT(ORÇAMENTO.BancoRef),0)),"(Código não identificado nas referências)",MATCH($AE157,INDIRECT(ORÇAMENTO.BancoRef),0)))) -> 11837 | AG157: =ROUND(IF(DESONERACAO="sim",REFERENCIA.Desonerado,REFERENCIA.NaoDesonerado),2) -> 4.64 | AH157: =ROUND(IF(ISNUMBER(ORÇAMENTO.OpcaoBDI),ORÇAMENTO.OpcaoBDI,IF(LEFT(ORÇAMENTO.OpcaoBDI,3)="BDI",HLOOKUP(ORÇAMENTO.OpcaoBDI,$F$4:$H$5,2,FALSE),0)),15-11*$AF$9) -> 0.2354 | AM157: 1726.41 | AN157: =ROUND(ORÇAMENTO.CustoUnitario*(1+$AH157),2) -> 2.47
A158: =CHOOSE(1+LOG(1+2*(ORÇAMENTO.Nivel="Meta")+4*(ORÇAMENTO.Nivel="Nível 2")+8*(ORÇAMENTO.Nivel="Nível 3")+16*(ORÇAMENTO.Nivel="Nível 4")+32*(ORÇAMENTO.Nivel="Serviço"),2),0,1,2,3,4,"S") -> S | B158: =IF(OR(C158="s",C158=0),OFFSET(B158,-1,0),C158) -> 3 | C158: =IF(OFFSET(C158,-1,0)="L",1,IF(OFFSET(C158,-1,0)=1,2,IF(OR(A158="s",A158=0),"S",IF(AND(OFFSET(C158,-1,0)=2,A158=4),3,IF(AND(OR(OFFSET(C158,-1,0)="s",OFFSET(C158,-1,0)=0),A158<>"s",A158>OFFSET(B158,-1,0)),OFFSET(B158,-1,0),A158))))) -> S | D158: =IF(OR(C158="S",C158=0),0,IF(ISERROR(K158),J158,SMALL(J158:K158,1))) -> 0 | E158: =IF($C158=1,OFFSET(E158,-1,0)+MAX(1,COUNTIF(QCI!$A$13:$A$24,OFFSET(ORÇAMENTO!E158,-1,0))),OFFSET(E158,-1,0)) -> 1 | F158: =IF($C158=1,0,IF($C158=2,OFFSET(F158,-1,0)+1,OFFSET(F158,-1,0))) -> 2 | G158: =IF(AND($C158<=2,$C158<>0),0,IF($C158=3,OFFSET(G158,-1,0)+1,OFFSET(G158,-1,0))) -> 2 | H158: =IF(AND($C158<=3,$C158<>0),0,IF($C158=4,OFFSET(H158,-1,0)+1,OFFSET(H158,-1,0))) -> 0 | I158: =IF(AND($C158<=4,$C158<>0),0,IF(AND($C158="S",$X158>0),OFFSET(I158,-1,0)+1,OFFSET(I158,-1,0))) -> 2 | J158: 0 | K158: =IF(OR($C158="S",$C158=0),0,MATCH(OFFSET($D158,0,$C158)+IF($C158<>1,1,COUNTIF(QCI!$A$13:$A$24,ORÇAMENTO!E158)),OFFSET($D158,1,$C158,ROW($C$190)-ROW($C158)),0)) -> 0 | L158: =IF(OR($X158>0,$C158=1,$C158=2,$C158=3,$C158=4),"F","") -> F | M158: Serviço | N158: =CHOOSE(1+LOG(1+2*(C158=1)+4*(C158=2)+8*(C158=3)+16*(C158=4)+32*(C158="S"),2),"","Meta","Nível 2","Nível 3","Nível 4","Serviço") -> Serviço | O158: =IF(OR($C158=0,$L158=""),"-",CONCATENATE(E158&".",IF(AND($A$5>=2,$C158>=2),F158&".",""),IF(AND($A$5>=3,$C158>=3),G158&".",""),IF(AND($A$5>=4,$C158>=4),H158&".",""),IF($C158="S",I158&".",""))) -> 1.2.2.0.2. | P158: SINAPI | Q158: 74205/1 | R158: ESCAVACAO MECANICA DE MATERIAL 1A. CATEGORIA, PROVENIENTE DE CORTE DE SUBLEITO (C/TRATOR ESTEIRAS 160HP) | S158: M3 | T158: =OFFSET(CÁLCULO!H$15,ROW($T158)-ROW(T$15),0) -> 76.88 | U158: 1.1985 | V158: BDI 1 | W158: =IF($C158="S",ROUND(IF(TIPOORCAMENTO="Proposto",ORÇAMENTO.CustoUnitario*(1+$AH158),ORÇAMENTO.PrecoUnitarioLicitado),15-13*$AF$10),0) -> 1.48 | X158: =IF($C158="S",VTOTAL1,IF($C158=0,0,ROUND(SomaAgrup,15-13*$AF$11))) -> 113.78 | Y158: RA | Z158: =IF(AND($C158="S",$X158>0),IF(ISBLANK($Y158),"RA",LEFT($Y158,2)),"") -> RA | AA158: =IF($C158="S",IF($Z158="CP",$X158,IF($Z158="RA",(($X158)*QCI!$AA$3),0)),SomaAgrup) -> 15.76695884 | AB158: =IF($C158="S",IF($Z158="OU",ROUND($X158,2),0),SomaAgrup) -> 0 | AC158: =IF($N158="","",IF(ORÇAMENTO.Descricao="","DESCRIÇÃO",IF(AND($C158="S",ORÇAMENTO.Unidade=""),"UNIDADE",IF($X158<0,"VALOR NEGATIVO",IF(OR(AND(TIPOORCAMENTO="Proposto",$AG158<>"",$AG158>0,ORÇAMENTO.CustoUnitario>$AG158),AND(TIPOORCAMENTO="LICITADO",ORÇAMENTO.PrecoUnitarioLicitado>$AN158)),"ACIMA REF.",""))))) ->  | AD158: =IF(C158<=CRONO.NivelExibicao,MAX($AD$15:OFFSET(AD158,-1,0))+IF($C158<>1,1,MAX(1,COUNTIF(QCI!$A$13:$A$24,OFFSET($E158,-1,0)))),"") ->  | AE158: =IF(AND($C158="S",ORÇAMENTO.CodBarra<>""),IF(ORÇAMENTO.Fonte="",ORÇAMENTO.CodBarra,CONCATENATE(ORÇAMENTO.Fonte," ",ORÇAMENTO.CodBarra))) -> SINAPI 74205/1 | AF158: =IF(ISERROR(INDIRECT(ORÇAMENTO.BancoRef)),"(abra o arquivo 'Referência "&Excel_BuiltIn_Database&".xls)",IF(OR($C158<>"S",ORÇAMENTO.CodBarra=""),"(Sem Código)",IF(ISERROR(MATCH($AE158,INDIRECT(ORÇAMENTO.BancoRef),0)),"(Código não identificado nas referências)",MATCH($AE158,INDIRECT(ORÇAMENTO.BancoRef),0)))) -> 10398 | AG158: =ROUND(IF(DESONERACAO="sim",REFERENCIA.Desonerado,REFERENCIA.NaoDesonerado),2) -> 1.41 | AH158: =ROUND(IF(ISNUMBER(ORÇAMENTO.OpcaoBDI),ORÇAMENTO.OpcaoBDI,IF(LEFT(ORÇAMENTO.OpcaoBDI,3)="BDI",HLOOKUP(ORÇAMENTO.OpcaoBDI,$F$4:$H$5,2,FALSE),0)),15-11*$AF$9) -> 0.2354 | AM158: 113.78 | AN158: =ROUND(ORÇAMENTO.CustoUnitario*(1+$AH158),2) -> 1.48
A159: =CHOOSE(1+LOG(1+2*(ORÇAMENTO.Nivel="Meta")+4*(ORÇAMENTO.Nivel="Nível 2")+8*(ORÇAMENTO.Nivel="Nível 3")+16*(ORÇAMENTO.Nivel="Nível 4")+32*(ORÇAMENTO.Nivel="Serviço"),2),0,1,2,3,4,"S") -> S | B159: =IF(OR(C159="s",C159=0),OFFSET(B159,-1,0),C159) -> 3 | C159: =IF(OFFSET(C159,-1,0)="L",1,IF(OFFSET(C159,-1,0)=1,2,IF(OR(A159="s",A159=0),"S",IF(AND(OFFSET(C159,-1,0)=2,A159=4),3,IF(AND(OR(OFFSET(C159,-1,0)="s",OFFSET(C159,-1,0)=0),A159<>"s",A159>OFFSET(B159,-1,0)),OFFSET(B159,-1,0),A159))))) -> S | D159: =IF(OR(C159="S",C159=0),0,IF(ISERROR(K159),J159,SMALL(J159:K159,1))) -> 0 | E159: =IF($C159=1,OFFSET(E159,-1,0)+MAX(1,COUNTIF(QCI!$A$13:$A$24,OFFSET(ORÇAMENTO!E159,-1,0))),OFFSET(E159,-1,0)) -> 1 | F159: =IF($C159=1,0,IF($C159=2,OFFSET(F159,-1,0)+1,OFFSET(F159,-1,0))) -> 2 | G159: =IF(AND($C159<=2,$C159<>0),0,IF($C159=3,OFFSET(G159,-1,0)+1,OFFSET(G159,-1,0))) -> 2 | H159: =IF(AND($C159<=3,$C159<>0),0,IF($C159=4,OFFSET(H159,-1,0)+1,OFFSET(H159,-1,0))) -> 0 | I159: =IF(AND($C159<=4,$C159<>0),0,IF(AND($C159="S",$X159>0),OFFSET(I159,-1,0)+1,OFFSET(I159,-1,0))) -> 3 | J159: 0 | K159: =IF(OR($C159="S",$C159=0),0,MATCH(OFFSET($D159,0,$C159)+IF($C159<>1,1,COUNTIF(QCI!$A$13:$A$24,ORÇAMENTO!E159)),OFFSET($D159,1,$C159,ROW($C$190)-ROW($C159)),0)) -> 0 | L159: =IF(OR($X159>0,$C159=1,$C159=2,$C159=3,$C159=4),"F","") -> F | M159: Serviço | N159: =CHOOSE(1+LOG(1+2*(C159=1)+4*(C159=2)+8*(C159=3)+16*(C159=4)+32*(C159="S"),2),"","Meta","Nível 2","Nível 3","Nível 4","Serviço") -> Serviço | O159: =IF(OR($C159=0,$L159=""),"-",CONCATENATE(E159&".",IF(AND($A$5>=2,$C159>=2),F159&".",""),IF(AND($A$5>=3,$C159>=3),G159&".",""),IF(AND($A$5>=4,$C159>=4),H159&".",""),IF($C159="S",I159&".",""))) -> 1.2.2.0.3. | P159: SINAPI | Q159: 96622 | R159: LASTRO COM MATERIAL GRANULAR, APLICAÇÃO EM PISOS OU RADIERS, ESPESSURA DE *5 CM* | S159: M3 | T159: =OFFSET(CÁLCULO!H$15,ROW($T159)-ROW(T$15),0) -> 34.94 | U159: 60 | V159: BDI 1 | W159: =IF($C159="S",ROUND(IF(TIPOORCAMENTO="Proposto",ORÇAMENTO.CustoUnitario*(1+$AH159),ORÇAMENTO.PrecoUnitarioLicitado),15-13*$AF$10),0) -> 74.12 | X159: =IF($C159="S",VTOTAL1,IF($C159=0,0,ROUND(SomaAgrup,15-13*$AF$11))) -> 2589.75 | Y159: RA | Z159: =IF(AND($C159="S",$X159>0),IF(ISBLANK($Y159),"RA",LEFT($Y159,2)),"") -> RA | AA159: =IF($C159="S",IF($Z159="CP",$X159,IF($Z159="RA",(($X159)*QCI!$AA$3),0)),SomaAgrup) -> 358.8722241 | AB159: =IF($C159="S",IF($Z159="OU",ROUND($X159,2),0),SomaAgrup) -> 0 | AC159: =IF($N159="","",IF(ORÇAMENTO.Descricao="","DESCRIÇÃO",IF(AND($C159="S",ORÇAMENTO.Unidade=""),"UNIDADE",IF($X159<0,"VALOR NEGATIVO",IF(OR(AND(TIPOORCAMENTO="Proposto",$AG159<>"",$AG159>0,ORÇAMENTO.CustoUnitario>$AG159),AND(TIPOORCAMENTO="LICITADO",ORÇAMENTO.PrecoUnitarioLicitado>$AN159)),"ACIMA REF.",""))))) ->  | AD159: =IF(C159<=CRONO.NivelExibicao,MAX($AD$15:OFFSET(AD159,-1,0))+IF($C159<>1,1,MAX(1,COUNTIF(QCI!$A$13:$A$24,OFFSET($E159,-1,0)))),"") ->  | AE159: =IF(AND($C159="S",ORÇAMENTO.CodBarra<>""),IF(ORÇAMENTO.Fonte="",ORÇAMENTO.CodBarra,CONCATENATE(ORÇAMENTO.Fonte," ",ORÇAMENTO.CodBarra))) -> SINAPI 96622 | AF159: =IF(ISERROR(INDIRECT(ORÇAMENTO.BancoRef)),"(abra o arquivo 'Referência "&Excel_BuiltIn_Database&".xls)",IF(OR($C159<>"S",ORÇAMENTO.CodBarra=""),"(Sem Código)",IF(ISERROR(MATCH($AE159,INDIRECT(ORÇAMENTO.BancoRef),0)),"(Código não identificado nas referências)",MATCH($AE159,INDIRECT(ORÇAMENTO.BancoRef),0)))) -> 7607 | AG159: =ROUND(IF(DESONERACAO="sim",REFERENCIA.Desonerado,REFERENCIA.NaoDesonerado),2) -> 104.19 | AH159: =ROUND(IF(ISNUMBER(ORÇAMENTO.OpcaoBDI),ORÇAMENTO.OpcaoBDI,IF(LEFT(ORÇAMENTO.OpcaoBDI,3)="BDI",HLOOKUP(ORÇAMENTO.OpcaoBDI,$F$4:$H$5,2,FALSE),0)),15-11*$AF$9) -> 0.2354 | AM159: 2589.75 | AN159: =ROUND(ORÇAMENTO.CustoUnitario*(1+$AH159),2) -> 74.12
A160: =CHOOSE(1+LOG(1+2*(ORÇAMENTO.Nivel="Meta")+4*(ORÇAMENTO.Nivel="Nível 2")+8*(ORÇAMENTO.Nivel="Nível 3")+16*(ORÇAMENTO.Nivel="Nível 4")+32*(ORÇAMENTO.Nivel="Serviço"),2),0,1,2,3,4,"S") -> S | B160: =IF(OR(C160="s",C160=0),OFFSET(B160,-1,0),C160) -> 3 | C160: =IF(OFFSET(C160,-1,0)="L",1,IF(OFFSET(C160,-1,0)=1,2,IF(OR(A160="s",A160=0),"S",IF(AND(OFFSET(C160,-1,0)=2,A160=4),3,IF(AND(OR(OFFSET(C160,-1,0)="s",OFFSET(C160,-1,0)=0),A160<>"s",A160>OFFSET(B160,-1,0)),OFFSET(B160,-1,0),A160))))) -> S | D160: =IF(OR(C160="S",C160=0),0,IF(ISERROR(K160),J160,SMALL(J160:K160,1))) -> 0 | E160: =IF($C160=1,OFFSET(E160,-1,0)+MAX(1,COUNTIF(QCI!$A$13:$A$24,OFFSET(ORÇAMENTO!E160,-1,0))),OFFSET(E160,-1,0)) -> 1 | F160: =IF($C160=1,0,IF($C160=2,OFFSET(F160,-1,0)+1,OFFSET(F160,-1,0))) -> 2 | G160: =IF(AND($C160<=2,$C160<>0),0,IF($C160=3,OFFSET(G160,-1,0)+1,OFFSET(G160,-1,0))) -> 2 | H160: =IF(AND($C160<=3,$C160<>0),0,IF($C160=4,OFFSET(H160,-1,0)+1,OFFSET(H160,-1,0))) -> 0 | I160: =IF(AND($C160<=4,$C160<>0),0,IF(AND($C160="S",$X160>0),OFFSET(I160,-1,0)+1,OFFSET(I160,-1,0))) -> 4 | J160: 0 | K160: =IF(OR($C160="S",$C160=0),0,MATCH(OFFSET($D160,0,$C160)+IF($C160<>1,1,COUNTIF(QCI!$A$13:$A$24,ORÇAMENTO!E160)),OFFSET($D160,1,$C160,ROW($C$190)-ROW($C160)),0)) -> 0 | L160: =IF(OR($X160>0,$C160=1,$C160=2,$C160=3,$C160=4),"F","") -> F | M160: Serviço | N160: =CHOOSE(1+LOG(1+2*(C160=1)+4*(C160=2)+8*(C160=3)+16*(C160=4)+32*(C160="S"),2),"","Meta","Nível 2","Nível 3","Nível 4","Serviço") -> Serviço | O160: =IF(OR($C160=0,$L160=""),"-",CONCATENATE(E160&".",IF(AND($A$5>=2,$C160>=2),F160&".",""),IF(AND($A$5>=3,$C160>=3),G160&".",""),IF(AND($A$5>=4,$C160>=4),H160&".",""),IF($C160="S",I160&".",""))) -> 1.2.2.0.4. | P160: SINAPI | Q160: 94992 | R160: EXECUÇÃO DE PASSEIO (CALÇADA) OU PISO DE CONCRETO COM CONCRETO MOLDADO IN LOCO, FEITO EM OBRA, ACABAMENTO CONVENCIONAL, ESPESSURA 6 CM, ARMADO | S160: M2 | T160: =OFFSET(CÁLCULO!H$15,ROW($T160)-ROW(T$15),0) -> 698.95 | U160: 46.9965 | V160: BDI 1 | W160: =IF($C160="S",ROUND(IF(TIPOORCAMENTO="Proposto",ORÇAMENTO.CustoUnitario*(1+$AH160),ORÇAMENTO.PrecoUnitarioLicitado),15-13*$AF$10),0) -> 58.06 | X160: =IF($C160="S",VTOTAL1,IF($C160=0,0,ROUND(SomaAgrup,15-13*$AF$11))) -> 40581.04 | Y160: RA | Z160: =IF(AND($C160="S",$X160>0),IF(ISBLANK($Y160),"RA",LEFT($Y160,2)),"") -> RA | AA160: =IF($C160="S",IF($Z160="CP",$X160,IF($Z160="RA",(($X160)*QCI!$AA$3),0)),SomaAgrup) -> 5623.48029 | AB160: =IF($C160="S",IF($Z160="OU",ROUND($X160,2),0),SomaAgrup) -> 0 | AC160: =IF($N160="","",IF(ORÇAMENTO.Descricao="","DESCRIÇÃO",IF(AND($C160="S",ORÇAMENTO.Unidade=""),"UNIDADE",IF($X160<0,"VALOR NEGATIVO",IF(OR(AND(TIPOORCAMENTO="Proposto",$AG160<>"",$AG160>0,ORÇAMENTO.CustoUnitario>$AG160),AND(TIPOORCAMENTO="LICITADO",ORÇAMENTO.PrecoUnitarioLicitado>$AN160)),"ACIMA REF.",""))))) ->  | AD160: =IF(C160<=CRONO.NivelExibicao,MAX($AD$15:OFFSET(AD160,-1,0))+IF($C160<>1,1,MAX(1,COUNTIF(QCI!$A$13:$A$24,OFFSET($E160,-1,0)))),"") ->  | AE160: =IF(AND($C160="S",ORÇAMENTO.CodBarra<>""),IF(ORÇAMENTO.Fonte="",ORÇAMENTO.CodBarra,CONCATENATE(ORÇAMENTO.Fonte," ",ORÇAMENTO.CodBarra))) -> SINAPI 94992 | AF160: =IF(ISERROR(INDIRECT(ORÇAMENTO.BancoRef)),"(abra o arquivo 'Referência "&Excel_BuiltIn_Database&".xls)",IF(OR($C160<>"S",ORÇAMENTO.CodBarra=""),"(Sem Código)",IF(ISERROR(MATCH($AE160,INDIRECT(ORÇAMENTO.BancoRef),0)),"(Código não identificado nas referências)",MATCH($AE160,INDIRECT(ORÇAMENTO.BancoRef),0)))) -> 11063 | AG160: =ROUND(IF(DESONERACAO="sim",REFERENCIA.Desonerado,REFERENCIA.NaoDesonerado),2) -> 55.29 | AH160: =ROUND(IF(ISNUMBER(ORÇAMENTO.OpcaoBDI),ORÇAMENTO.OpcaoBDI,IF(LEFT(ORÇAMENTO.OpcaoBDI,3)="BDI",HLOOKUP(ORÇAMENTO.OpcaoBDI,$F$4:$H$5,2,FALSE),0)),15-11*$AF$9) -> 0.2354 | AM160: 40581.04 | AN160: =ROUND(ORÇAMENTO.CustoUnitario*(1+$AH160),2) -> 58.06
